Workbook

Sheet Hoja2 (hidden)
A1: =CA!D5 -> Parcela y emplazamiento | B1: =CA!F5 -> 0.1524462241
A2: =CA!D29 -> Energía y atmósfera | B2: =CA!F29 -> 0.1760100621
A3: =CA!D47 -> Recursos naturales | B3: =CA!F47 -> 0.2292212126
A4: =CA!D78 -> Ambiente Interior. | B4: =CA!F78 -> 0.09487139997
A5: =CA!D114 -> Aspectos sociales | B5: =CA!F114 -> 0.1671543714
A6: =CA!D94 -> Calidad de la edificación | B6: =CA!F94 -> 0.1802967298
B9: =SUM(B1:B8) -> 1

Sheet Matriz para imagen (hidden)
D1: Cambio climático | E1: Emisiones a la atmósfera, tierra y agua | F1: Cambios en la biodiversidad | G1: Agotamiento de energía no renovable | H1: Agotamiento de agua potable | I1: Agotamiento de recursos materiales | J1: Generación de residuos | K1: Impactos sobre el vecindario | L1: Accesibilidad | M1: Salud y confort | N1: Aspectos económicos del resultado | O1: Ahorro en el coste del ciclo de vida
B2: Parcela y Emplazamiento
B3: PyE 01 | C3: Proximidad al transporte publico. | L3: 1 | M3: 1 | N3: 1
B4: PyE 02 | C4: Proximidad a equipamiento y servicios. | L4: 1 | M4: 1 | N4: 1
B5: PyE 03 | C5: Facilidades para la bicicleta. | L5: 1 | M5: 1 | N5: 1
B6: PyE 04 | C6: Clasificación de RSU | I6: 1 | J6: 2
B7: PyE 05 | C7: Gestión y Restauración del hábitat | F7: 1 | I7: 1 | K7: 1 | N7: 1
B8: PyE 06 | C8: Uso de plantas para crear sombras | D8: 0.15 | F8: 1 | K8: 1 | M8: 1
B9: PyE 07 | C9: Efecto isla de calor | D9: 0.75 | F9: 1 | K9: 1
B10: PyE 08 | C10: Contaminación lumínica. | F10: 2 | K10: 1
B11: Energía y Atmósfera
B12: EyA 01 | C12: Demanda de calefacción y refrigeración | D12: 1 | E12: 1 | G12: 1 | M12: 2 | N12: 1 | O12: 2
B13: EyA 02 | C13: Consumo de energía primaria no renovable | D13: 1 | E13: 1 | G13: 2 | O13: 1
B14: EyA 03 | C14: Emisiones de CO2 por procesos de climatización y ACS | D14: 2 | E14: 2
B15: EyA 04 | C15: Demanda de energía eléctrica en fase de uso | D15: 0.25 | E15: 0.25 | G15: 0.25 | O15: 0.25
B16: EyA 05 | C16: Emisión de NOx en calderas de combustión. | E16: 1 | M16: 1
B17: EyA 06 | C17: Elección responsable de refrigerantes | D17: 1 | E17: 2 | F17: 1
B18: Recursos Naturales
B19: RN 01 | C19: Consumo de agua en aparatos sanitarios | E19: 1 | H19: 2 | O19: 2
B20: RN 02 | C20: Necesidades de riego en jardines | H20: 1 | N20: 1 | O20: 1
B21: RN 03 | C21: Consumo de agua en zonas comunes | H21: 0.5 | O21: 1
B22: RN 04 | C22: Uso de aguas no potables. | H22: 1 | N22: 1 | O22: 1
B23: RN 05 | C23: Uso de materiales reciclados. | I23: 1 | J23: 1
B24: RN 06 | C24: Uso de materiales obtenidos de recursos sostenibles. | I24: 0.5 | N24: 1
B25: RN 07 | C25: Uso de materiales locales. | K25: 1 | N25: 3
B26: RN 08 | C26: Planificación de una estrategia de demolición selectiva, | I26: 1 | J26: 1 | O26: 1
B27: RN 09 | C27: Gestión de los residuos de la construcción. | I27: 1 | J27: 1
B28: RN 10 | C28: Impacto de los materiales de la construcción. | E28: 2 | G28: 1 | H28: 1 | I28: 1 | J28: 1
B29: RN 11 | C29: Ecoetiquetado de producto. | I29: 1 | N29: 3
B30: Calidad del Ambiente Interior
B31: CAI 01 | C31: Limitación en las emisiones de COVs. | M31: 2 | N31: 1
B32: CAI 02 | C32: Eficacia de la ventilación natural. | M32: 3 | N32: 1
B33: CAI 03 | C33: Iluminación natural. | M33: 3 | N33: 2
B34: CAI 04 | C34: Protección frente al ruido. | M34: 3 | N34: 1
B35: Aspectos Sociales y Económicos
B36: ASE 01 | C36: Acceso universal. | K36: 1 | L36: 3 | N36: 2
B37: ASE 02 | C37: Derecho al sol. | M37: 2 | N37: 1
B38: ASE 03 | C38: Acceso a espacios abiertos privados. | M38: 1 | N38: 1
B39: ASE 04 | C39: Derecho a la intimidad. | M39: 1 | N39: 1
B40: ASE 05 | C40: Coste de construcción. | O40: 3
B41: Concepto de Calidad
B42: CC 01 | C42: Eficiencia de los espacios. | N42: 2 | O42: 1
B43: CC 02 | C43: Disponibilidad de un sistema de gestión del edificio (BMS). | G43: 1 | H43: 1 | N43: 2 | O43: 1
B44: CC 03 | C44: Custodia de la documentación del proyecto | N44: 3
B45: CC 04 | C45: El edificio como una herramienta para la educación | K45: 1 | N45: 3

Sheet Propuesta de áreas 2021 (hidden)
C2: Lista de criterios | D2: Alcance del efecto | E2: Duración del efecto | F2: Intensidad del efecto | G2: Fiabilidad de los datos | H2: Capacidad de lograr el objetivo | I2: Complejidad del criterio | J2: Cambio climático | K2: Emisiones a la atmósfera, tierra y agua | L2: Cambios en la biodiversidad | M2: Agotamiento de energía no renovable | N2: Agotamiento de agua potable | O2: Agotamiento de recursos materiales | P2: Generación de residuos | Q2: Accesibilidad | R2: Adaptabilidad | S2: Salud y confort | T2: Impactos sobre el vecindario | U2: Mantenimiento | V2: Seguridad | W2: Aspectos económicos del resultado | X2: Ahorro en el coste del ciclo de vida
B3: Listas de criterios | D3: Solidez del criterio | J3: Influencia de los impactos
D4: 3 | E4: 3 | F4: 2 | G4: 1 | H4: 2 | I4: 1 | J4: 3 | K4: 2 | L4: 3 | M4: 3 | N4: 2 | O4: 2 | P4: 1 | Q4: 2 | R4: 1 | S4: 3 | T4: 2 | U4: 1 | V4: 2 | W4: 2 | X4: 3
D5: =D4/SUM($D4:$H4) -> 0.2727272727 | E5: =E4/SUM($D4:$H4) -> 0.2727272727 | F5: 0.1818181818 | G5: 0.09090909091 | H5: 0.1818181818 | I5: =I4/SUM($D4:$H4) -> 0.09090909091 | J5: =J4/SUM($J4:$X4) -> 0.09375 | K5: 0.0625 | L5: 0.09375 | M5: 0.09375 | N5: 0.0625 | O5: 0.0625 | P5: 0.03125 | Q5: 0.0625 | R5: 0.03125 | S5: 0.09375 | T5: 0.0625 | U5: =U4/SUM($J4:$X4) -> 0.03125 | V5: =V4/SUM($J4:$X4) -> 0.0625 | W5: =W4/SUM($J4:$X4) -> 0.0625 | X5: =X4/SUM($J4:$X4) -> 0.09375
B6: Transporte y movilidad
B7: E 01 | C7: Proximidad al transporte publico. | D7: 2 | E7: 2 | F7: 1 | G7: 3 | H7: 1 | I7: 1 | J7: 1 | K7: 1 | Q7: 3 | R7: 2 | W7: 2
B8: E 02 | C8: Proximidad a equipamiento y servicios. | D8: 2 | E8: 2 | F8: 1 | G8: 3 | H8: 1 | I8: 2 | J8: 1 | K8: 1 | Q8: 3 | R8: 2 | W8: 2
B9: E 03 | C9: Facilidades para la bicicleta. | D9: 2 | E9: 2 | F9: 1 | G9: 3 | H9: 1 | I9: 1 | J9: 1 | K9: 1 | Q9: 3 | R9: 2 | S9: 1 | W9: 2
B10: Gestión de la parcela
B11: GP 01 | C11: Capacidad de carga de vehículos eléctricos. | D11: 2 | E11: 2 | F11: 1 | G11: 3 | H11: 2 | I11: 1 | K11: 1 | Q11: 1 | R11: 2 | W11: 2
B12: GP 02 | C12: Clasificación de RSU. | D12: 3 | E12: 2 | F12: 1 | G12: 2 | H12: 1 | I12: 1 | L12: 1 | O12: 1 | P12: 3
B13: GP 03 | C13: Gestión y Restauración del hábitat. | D13: 3 | E13: 2 | F13: 2 | G13: 1 | H13: 2 | I13: 3 | L13: 3 | O13: 1 | S13: 1 | T13: 2 | W13: 1
B14: GP 04 | C14: Uso de plantas para crear sombras. | D14: 2 | E14: 2 | F14: 1 | G14: 2 | H14: 2 | I14: 1 | J14: 1 | L14: 2 | M14: 1 | N14: 1 | S14: 1 | T14: 1
C15: Gestión de riesgos, escorrentías, terrenos contaminados
B16: Impacto en el vecindario
B17: GP 05 | C17: Efecto isla de calor. | D17: 2 | E17: 2 | F17: 2 | G17: 3 | H17: 3 | I17: 2 | J17: 2 | L17: 2 | S17: 1 | T17: 3
B18: GP 06 | C18: Contaminación lumínica. | D18: 2 | E18: 2 | F18: 2 | G18: 3 | H18: 3 | I18: 1 | J18: 1 | L18: 3 | S18: 1 | T18: 2
B19: Ciclo de la energía
B20: CE 01 | C20: Consumo de energía primaria | D20: 3 | E20: 3 | F20: 3 | G20: 3 | H20: 3 | I20: 5 | J20: 3 | K20: 3 | M20: 3 | S20: 2 | W20: 3 | X20: 3
B21: CE 02 | C21: Generación de energías renovables | D21: 3 | E21: 3 | F21: 2 | G21: 3 | H21: 2 | I21: 3 | J21: 3 | K21: 2 | M21: 3 | W21: 2 | X21: 3
B22: CE 03 | C22: Demanda de energía eléctrica en fase de uso | D22: 3 | E22: 3 | F22: 1 | G22: 3 | H22: 3 | I22: 2 | J22: 3 | K22: 2 | M22: 2 | W22: 1 | X22: 2
B23: CE 04 | C23: Emisión de NOx en calderas de combustión. | D23: 3 | E23: 3 | F23: 1 | G23: 2 | H23: 2 | I23: 1 | J23: 2 | K23: 2 | M23: 3 | S23: 2 | W23: 2 | X23: 3
B24: CE 05 | C24: Elección responsable de refrigerantes | D24: 1 | E24: 2 | F24: 1 | G24: 2 | H24: 3 | I24: 1 | K24: 2 | S24: 1
B25: Ciclo del agua
B26: CA 01 | C26: Consumo de agua en aparatos sanitarios | D26: 3 | E26: 3 | F26: 3 | G26: 2 | H26: 2 | I26: 3 | K26: 1 | N26: 3 | W26: 1 | X26: 2
B27: CA 02 | C27: Necesidades de riego en jardines. | D27: 3 | E27: 2 | F27: 3 | G27: 1 | H27: 2 | I27: 2 | N27: 3 | W27: 1 | X27: 2
B28: CA 03 | C28: Consumo de agua en zonas comunes. | D28: 3 | E28: 3 | F28: 1 | G28: 2 | H28: 2 | I28: 1 | K28: 1 | N28: 3 | W28: 1 | X28: 2
B29: CA 04 | C29: Uso de aguas no potables. | D29: 3 | E29: 3 | F29: 1 | G29: 3 | H29: 3 | I29: 2 | N29: 2 | W29: 1 | X29: 1
B30: Ciclo de los materiales
B31: CM 01 | C31: Uso de materiales reciclados. | D31: 2 | E31: 2 | F31: 2 | G31: 3 | H31: 3 | I31: 1 | O31: 2 | P31: 1
B32: CM 02 | C32: Uso de materiales obtenidos de recursos sostenibles. | D32: 2 | E32: 2 | F32: 2 | G32: 3 | H32: 3 | I32: 1 | L32: 1 | O32: 3 | S32: 1
B33: CM 03 | C33: Uso de materiales locales. | D33: 2 | E33: 2 | F33: 2 | G33: 3 | H33: 3 | I33: 1 | K33: 1 | T33: 2 | W33: 3
B34: CM 04 | C34: Planificación de una estrategia de demolición selectiva. | D34: 3 | E34: 3 | F34: 2 | G34: 3 | H34: 2 | I34: 3 | O34: 2 | P34: 3 | W34: 1 | X34: 2
B35: CM 05 | C35: Gestión de los residuos de la construcción. | D35: 2 | E35: 1 | F35: 1 | G35: 2 | H35: 2 | I35: 2 | O35: 1 | P35: 3 | X35: 1
B36: CM 06 | C36: Impacto de los materiales de la construcción. | D36: 5 | E36: 5 | F36: 3 | G36: 2 | H36: 3 | I36: 5 | J36: 3 | K36: 3 | L36: 1 | M36: 3 | N36: 3 | O36: 3 | P36: 3 | R36: 1 | U36: 3 | W36: 2 | X36: 3
B37: CM 07 | C37: Ecoetiquetado de producto. | D37: 1 | E37: 1 | F37: 1 | G37: 3 | H37: 1 | I37: 1 | J37: 1 | K37: 1 | M37: 1 | N37: 1 | O37: 1 | P37: 1 | W37: 3
B38: Salud y confort
B39: CAI 01 | C39: Limitación en las emisiones de COVs. | D39: 1 | E39: 2 | F39: 3 | G39: 3 | H39: 3 | I39: 2 | S39: 3 | W39: 1
B40: CAI 02 | C40: Monitorización de la calidad del aire | D40: 1 | E40: 2 | F40: 3 | G40: 3 | H40: 3 | I40: 1 | S40: 3 | W40: 2
B41: CAI 03 | C41: Eficacia de la ventilación natural. | D41: 1 | E41: 2 | F41: 3 | G41: 1 | H41: 2 | I41: 1 | S41: 3 | W41: 1
B42: CAI 04 | C42: Iluminación natural. | D42: 1 | E42: 2 | F42: 3 | G42: 2 | H42: 3 | I42: 2 | S42: 3 | W42: 2
B43: CAI 05 | C43: Iluminación artificial | D43: 1 | E43: 2 | F43: 2 | G43: 2 | H43: 2 | I43: 1 | S43: 2 | W43: 1
B44: CAI 06 | C44: Protección frente al ruido. | D44: 1 | E44: 2 | F44: 3 | G44: 2 | H44: 2 | I44: 1 | S44: 3 | W44: 1
B45: Aspectos Sociales y Económicos.
B46: ASE 01 | C46: Acceso universal. | D46: 2 | E46: 3 | F46: 3 | G46: 3 | H46: 2 | I46: 3 | Q46: 3 | T46: 1 | W46: 2
B47: ASE 02 | C47: Calidad de los espacios | D47: 1 | E47: 3 | F47: 3 | G47: 3 | H47: 2 | I47: 5 | R47: 2 | S47: 1 | W47: 1
B48: ASE 03 | C48: El edificio como una herramienta para la educación | D48: 3 | E48: 3 | F48: 1 | G48: 1 | H48: 2 | I48: 1 | T48: 1 | W48: 3
B49: ASE 04 | C49: Flexibilidad y adaptabilidad | D49: 1 | E49: 3 | F49: 3 | G49: 2 | H49: 2 | I49: 3 | R49: 3 | U49: 1 | W49: 2
B50: ASE 05 | C50: Viabilidad comercial | D50: 1 | E50: 2 | F50: 2 | G50: 2 | H50: 2 | I50: 3 | V50: 1 | W50: 3 | X50: 3
B51: ASE 06 | C51: Coste de ciclo de vida | D51: 2 | E51: 2 | F51: 3 | G51: 2 | H51: 2 | I51: 5 | R51: 1 | U51: 3 | W51: 2 | X51: 3
B52: Calidad de la construcción
B53: CC 01 | C53: Eficiencia de los espacios. | D53: 1 | E53: 3 | F53: 2 | G53: 3 | H53: 2 | I53: 1 | W53: 2 | X53: 1
B54: CC 02 | C54: Puesta en marcha sistemática | D54: 1 | E54: 2 | F54: 3 | G54: 3 | H54: 3 | I54: 3 | M54: 2 | N54: 2 | U54: 3 | W54: 2 | X54: 3
B55: CC 03 | C55: Custodia de la documentación del proyecto | D55: 1 | E55: 3 | F55: 2 | G55: 1 | H55: 2 | I55: 1 | U55: 1 | W55: 3
B56: CC 04 | C56: Calidad de la envolvente del edificio | D56: 1 | E56: 3 | F56: 3 | G56: 3 | H56: 3 | I56: 3 | J56: 1 | K56: 1 | M56: 1 | S56: 2 | U56: 2 | V56: 2 | W56: 3 | X56: 1
B57: CC 05 | C57: Calidad en el proceso de construcción | D57: 1 | E57: 2 | F57: 3 | G57: 3 | H57: 3 | I57: 3 | S57: 1 | U57: 3 | V57: 2 | W57: 3 | X57: 2
J58: =SUM(J7:J55) -> 22 | K58: 22 | L58: 13 | M58: 18 | N58: 18 | O58: 14 | P58: 14 | Q58: 13 | U58: =SUM(U7:U55) -> 11 | V58: =SUM(V7:V55) -> 1 | W58: =SUM(W7:W55) -> 58 | X58: =SUM(X7:X55) -> 34
J59: =SUM(J7:J55)*J5 -> 2.0625 | K59: 1.375 | L59: 1.21875 | M59: 1.6875 | N59: 1.125 | O59: 0.875 | P59: 0.4375 | Q59: 0.8125 | U59: =SUM(U7:U55)*U5 -> 0.34375 | V59: =SUM(V7:V55)*V5 -> 0.0625 | W59: =SUM(W7:W55)*W5 -> 3.625 | X59: =SUM(X7:X55)*X5 -> 3.1875

Sheet Matriz VERDE-GBCe (2) (hidden)
G1: Lista de criterios | L1: Cambio climático | M1: Emisiones a la atmósfera, tierra y agua | N1: Cambios en la biodiversidad | O1: Agotamiento de energía no renovable | P1: Agotamiento de agua potable | Q1: Agotamiento de recursos materiales | R1: Generación de residuos | S1: Impactos sobre el vecindario | T1: Accesibilidad | U1: Salud y confort | V1: Aspectos económicos del resultado | W1: Ahorro en el coste del ciclo de vida | Y1: Cambio climático | Z1: Emisiones a la atmósfera, tierra y agua | AA1: Cambios en la biodiversidad | AB1: Agotamiento de energía no renovable | AC1: Agotamiento de agua potable | AD1: Agotamiento de recursos materiales | AE1: Generación de residuos | AF1: Impactos sobre el vecindario | AG1: Accesibilidad | AH1: Salud y confort | AI1: Aspectos económicos del resultado | AJ1: Ahorro en el coste del ciclo de vida | AL1: Cambio climático | AM1: Emisiones a la atmósfera, tierra y agua | AN1: Cambios en la biodiversidad | AO1: Agotamiento de energía no renovable | AP1: Agotamiento de agua potable | AQ1: Agotamiento de recursos materiales | AR1: Generación de residuos | AS1: Impactos sobre el vecindario | AT1: Accesibilidad | AU1: Salud y confort | AV1: Aspectos económicos del resultado | AW1: Ahorro en el coste del ciclo de vida
L2: 3 | M2: 2 | N2: 1 | O2: 3 | P2: 2 | Q2: 2 | R2: 1 | S2: 2 | T2: 1 | U2: 4 | V2: 2 | W2: 2 | Y2: 4 | Z2: 2 | AA2: 1 | AB2: 3 | AC2: 2 | AD2: 2 | AE2: 1 | AF2: 1 | AG2: 1 | AH2: 3 | AI2: 1 | AJ2: 2 | AL2: 4 | AM2: 2 | AN2: 1 | AO2: 3 | AP2: 2 | AQ2: 2 | AR2: 1 | AS2: 1 | AT2: 1 | AU2: 3 | AV2: 1 | AW2: 2
B3: Nueva Edificación | C3: Rehabilitación | D3: Existente | E3: Mixto | L3: =L2/SUM($L2:$W2) -> 0.12 | M3: =M2/SUM($L2:$W2) -> 0.08 | N3: 0.04 | O3: 0.12 | P3: 0.08 | Q3: 0.08 | R3: 0.04 | S3: 0.08 | T3: 0.04 | U3: 0.16 | V3: 0.08 | W3: 0.08 | Y3: =Y2/SUM($L2:$W2) -> 0.16 | Z3: =Z2/SUM($L2:$W2) -> 0.08 | AA3: 0.04 | AB3: 0.12 | AC3: 0.08 | AD3: 0.08 | AE3: 0.04 | AF3: 0.04 | AG3: 0.04 | AH3: 0.12 | AI3: 0.04 | AJ3: 0.08 | AL3: =AL2/SUM($L2:$W2) -> 0.16 | AM3: =AM2/SUM($L2:$W2) -> 0.08 | AN3: 0.04 | AO3: 0.12 | AP3: 0.08 | AQ3: 0.08 | AR3: 0.04 | AS3: 0.04 | AT3: 0.04 | AU3: 0.12 | AV3: 0.04 | AW3: 0.08
F4: PyE | G4: Parcela y Emplazamiento. | I4: =SUM(I5:I13) -> 
F5: =VLOOKUP(G5,CA!$D$10:$K$139,5,FALSE) ->  | G5: PyE 01 | H5: Proximidad al transporte publico. | I5: =IF(J$49=0,0,J5/J$49) ->  | J5: =IF(F5="a",SUMPRODUCT(L5:W5,L$3:W$3),"0") ->  | K5: ='Informe resultados'!M29 -> 0 | T5: 1 | U5: 1 | V5: 1 | Y5: =(L5*L$3)*$I5/SUMPRODUCT($L5:$W5,$L$3:$W$3) ->  | Z5: =(M5*M$3)*$I5/SUMPRODUCT($L5:$W5,$L$3:$W$3) ->  | AL5: =(L5*L$3)*$K5/SUMPRODUCT($L5:$W5,$L$3:$W$3) -> 0 | AM5: =(M5*M$3)*$K5/SUMPRODUCT($L5:$W5,$L$3:$W$3) -> 0 | AN5: 0 | AO5: 0 | AP5: 0 | AQ5: 0 | AR5: 0 | AS5: 0 | AT5: 0 | AU5: 0 | AV5: 0 | AW5: 0
F6: =VLOOKUP(G6,CA!$D$10:$K$139,5,FALSE) ->  | G6: PyE 02 | H6: Proximidad a equipamiento y servicios. | K6: ='Informe resultados'!M30 -> 0 | T6: 1 | U6: 1 | V6: 1 | Y6: =(L6*L$3)*$I6/SUMPRODUCT($L6:$W6,$L$3:$W$3) ->  | AL6: =(L6*L$3)*$K6/SUMPRODUCT($L6:$W6,$L$3:$W$3) -> 0 | AM6: 0 | AN6: 0 | AO6: 0 | AP6: 0 | AQ6: 0 | AR6: 0 | AS6: 0 | AT6: 0 | AU6: 0 | AV6: 0 | AW6: 0
F7: =IF(OR(DG!E$29="",DG!E29="Residencial colectivo"),VLOOKUP(G7,CA!$D$10:$K$139,5,FALSE),"") ->  | G7: PyE 03 | H7: Facilidades para la bicicleta. | K7: ='Informe resultados'!M31 -> 0 | T7: 1 | U7: 1 | V7: 1 | AL7: 0 | AM7: 0 | AN7: 0 | AO7: 0 | AP7: 0 | AQ7: 0 | AR7: 0 | AS7: 0 | AT7: 0 | AU7: 0 | AV7: 0 | AW7: 0
F8: =IF(OR(DG!E29="Parte de un edificio",PE!H104="NO"),"",VLOOKUP(G8,CA!$D$10:$K$139,5,FALSE)) ->  | G8: PyE 04 | H8: Capacidad de carga de vehículos eléctricos. | J8: =IF(F8="a",SUMPRODUCT(L8:W8,L$3:W$3),"0") ->  | K8: ='Informe resultados'!M33 -> 0 | L8: 0.15 | M8: 0.15 | O8: 0.15 | S8: 0.5 | T8: 0.5 | V8: 0.5 | AL8: 0 | AM8: 0 | AN8: 0 | AO8: 0 | AP8: 0 | AQ8: 0 | AR8: 0 | AS8: 0 | AT8: 0 | AU8: 0 | AV8: 0 | AW8: 0
F9: =IF(DG!E29="Parte de un edificio","",VLOOKUP(G9,CA!$D$10:$K$139,5,FALSE)) ->  | G9: PyE 05 | H9: Clasificación de RSU. | K9: ='Informe resultados'!M33 -> 0 | Q9: 1 | R9: 2 | AL9: 0 | AM9: 0 | AN9: 0 | AO9: 0 | AP9: 0 | AQ9: 0 | AR9: 0 | AS9: 0 | AT9: 0 | AU9: 0 | AV9: 0 | AW9: 0
F10: =IF(DG!E29="Parte de un edificio","",VLOOKUP(G10,CA!$D$10:$K$139,5,FALSE)) ->  | G10: PyE 06 | H10: Gestión y Restauración del hábitat. | K10: ='Informe resultados'!M34 -> 0 | N10: 1 | Q10: 1 | S10: 1 | V10: 1 | AL10: 0 | AM10: 0 | AN10: 0 | AO10: 0 | AP10: 0 | AQ10: 0 | AR10: 0 | AS10: 0 | AT10: 0 | AU10: 0 | AV10: 0 | AW10: 0
F11: =IF(DG!E29="Parte de un edificio","",VLOOKUP(G11,CA!$D$10:$K$139,5,FALSE)) ->  | G11: PyE 07 | H11: Uso de plantas para crear sombras. | K11: ='Informe resultados'!M35 -> 0 | L11: 0.15 | N11: 1 | S11: 1 | U11: 1 | AL11: 0 | AM11: 0 | AN11: 0 | AO11: 0 | AP11: 0 | AQ11: 0 | AR11: 0 | AS11: 0 | AT11: 0 | AU11: 0 | AV11: 0 | AW11: 0
F12: =IF(DG!E29="Parte de un edificio","",VLOOKUP(G12,CA!$D$10:$K$139,5,FALSE)) ->  | G12: PyE 08 | H12: Efecto isla de calor. | K12: ='Informe resultados'!M36 -> 0 | L12: 0.75 | N12: 1 | S12: 1 | AL12: 0 | AM12: 0 | AN12: 0 | AO12: 0 | AP12: 0 | AQ12: 0 | AR12: 0 | AS12: 0 | AT12: 0 | AU12: 0 | AV12: 0 | AW12: 0
F13: =IF(DG!E29="Parte de un edificio","",VLOOKUP(G13,CA!$D$10:$K$139,5,FALSE)) ->  | G13: PyE 09 | H13: Contaminación lumínica. | K13: ='Informe resultados'!M37 -> 0 | N13: 2 | S13: 1 | AL13: 0 | AM13: 0 | AN13: 0 | AO13: 0 | AP13: 0 | AQ13: 0 | AR13: 0 | AS13: 0 | AT13: 0 | AU13: 0 | AV13: 0 | AW13: 0
F14: EyA | G14: Energía y Atmósfera. | I14: =SUM(I15:I20) -> 
F15: =VLOOKUP(G15,CA!$D$10:$K$139,5,FALSE) ->  | G15: EyA 01 | H15: Demanda de calefacción y refrigeración. | I15: =IF(J$49=0,0,J15/J$49) ->  | J15: =IF(F15="a",SUMPRODUCT(L15:W15,L$3:W$3),"0") ->  | K15: ='Informe resultados'!M38 -> 0 | L15: 1 | M15: 1 | O15: 1 | U15: 2 | V15: 1 | W15: 2 | Y15: =(L15*L$3)*$I15/SUMPRODUCT($L15:$W15,$L$3:$W$3) ->  | AL15: =(L15*L$3)*$K15/SUMPRODUCT($L15:$W15,$L$3:$W$3) -> 0 | AM15: 0 | AN15: 0 | AO15: 0 | AP15: 0 | AQ15: 0 | AR15: 0 | AS15: 0 | AT15: 0 | AU15: 0 | AV15: 0 | AW15: 0
F16: =VLOOKUP(G16,CA!$D$10:$K$139,5,FALSE) ->  | G16: EyA 02 | H16: Consumo de energía primaria no renovable. | K16: ='Informe resultados'!M39 -> 0 | L16: 1 | M16: 1 | O16: 2 | W16: 1 | AL16: 0 | AM16: 0 | AN16: 0 | AO16: 0 | AP16: 0 | AQ16: 0 | AR16: 0 | AS16: 0 | AT16: 0 | AU16: 0 | AV16: 0 | AW16: 0
F17: =VLOOKUP(G17,CA!$D$10:$K$139,5,FALSE) ->  | G17: EyA 03 | H17: Emisiones de CO2 | K17: ='Informe resultados'!M40 -> 0 | L17: 2 | M17: 2 | AL17: 0 | AM17: 0 | AN17: 0 | AO17: 0 | AP17: 0 | AQ17: 0 | AR17: 0 | AS17: 0 | AT17: 0 | AU17: 0 | AV17: 0 | AW17: 0
F18: =IF(OR(DG!E$29="",DG!E$29="Residencial colectivo"),VLOOKUP(G18,CA!$D$10:$K$139,5,FALSE),"") ->  | G18: EyA 04 | H18: Demanda de energía eléctrica en fase de uso. | K18: ='Informe resultados'!#REF! ->  | L18: 0.25 | M18: 0.5 | O18: 0.5 | W18: 0.25
F19: =VLOOKUP(G19,CA!$D$10:$K$139,5,FALSE) ->  | G19: EyA 05 | H19: Emisión de NOx en calderas de combustión. | K19: ='Informe resultados'!#REF! ->  | M19: 1 | U19: 1
F20: =VLOOKUP(G20,CA!$D$10:$K$139,5,FALSE) ->  | G20: EyA 06 | H20: Elección responsable de refrigerantes. | K20: ='Informe resultados'!#REF! ->  | L20: 1 | M20: 2 | N20: 1
F21: RN | G21: Recursos Naturales. | I21: =SUM(I22:I32) -> 
F22: =VLOOKUP(G22,CA!$D$10:$K$139,5,FALSE) -> 1 | G22: RN 01 | H22: Consumo de agua en aparatos sanitarios. | I22: =IF(J$49=0,0,J22/J$49) ->  | J22: =IF(F22="a",SUMPRODUCT(L22:W22,L$3:W$3),"0") -> 0 | K22: ='Informe resultados'!M42 -> 0 | M22: 1 | P22: 2 | W22: 2 | Y22: =(L22*L$3)*$I22/SUMPRODUCT($L22:$W22,$L$3:$W$3) ->  | AL22: =(L22*L$3)*$K22/SUMPRODUCT($L22:$W22,$L$3:$W$3) -> 0 | AM22: 0 | AN22: 0 | AO22: 0 | AP22: 0 | AQ22: 0 | AR22: 0 | AS22: 0 | AT22: 0 | AU22: 0 | AV22: 0 | AW22: 0
F23: =IF(DG!E29="Parte de un edificio","",VLOOKUP(G23,CA!$D$10:$K$139,5,FALSE)) -> 1 | G23: RN 02 | H23: Necesidades de riego en jardines. | J23: =IF(F23="a",IF(RN!H33="no",0,SUMPRODUCT(L23:W23,L$3:W$3)),"0") -> 0 | K23: ='Informe resultados'!M43 -> 0 | P23: 1 | V23: 1 | W23: 1 | AL23: 0 | AM23: 0 | AN23: 0 | AO23: 0 | AP23: 0 | AQ23: 0 | AR23: 0 | AS23: 0 | AT23: 0 | AU23: 0 | AV23: 0 | AW23: 0
F24: =IF(OR(DG!E$29="",DG!E29="Residencial colectivo"),VLOOKUP(G24,CA!$D$10:$K$139,5,FALSE),"") -> 1 | G24: RN 03 | H24: Consumo de agua en zonas comunes. | J24: =IF(F24="a",IF(RN!H57="no",0,SUMPRODUCT(L24:W24,L$3:W$3)),"0") -> 0 | K24: ='Informe resultados'!M44 -> 0 | P24: 1 | W24: 1 | AL24: 0 | AM24: 0 | AN24: 0 | AO24: 0 | AP24: 0 | AQ24: 0 | AR24: 0 | AS24: 0 | AT24: 0 | AU24: 0 | AV24: 0 | AW24: 0
F25: =IF(DG!E29="Parte de un edificio","",VLOOKUP(G25,CA!$D$10:$K$139,5,FALSE)) -> 1 | G25: RN 04 | H25: Uso de aguas no potables. | J25: =IF(F25="a",SUMPRODUCT(L25:W25,L$3:W$3),"0") -> 0 | K25: ='Informe resultados'!M45 -> 0 | P25: 1 | V25: 1 | W25: 1 | AL25: 0 | AM25: 0 | AN25: 0 | AO25: 0 | AP25: 0 | AQ25: 0 | AR25: 0 | AS25: 0 | AT25: 0 | AU25: 0 | AV25: 0 | AW25: 0
F26: =IF(OR(DG!E29="Parte de un edificio",DG!E31="Edificio existente"),"",VLOOKUP(G26,CA!$D$10:$K$139,5,FALSE)) -> 1 | G26: RN 05 | H26: Uso de materiales reciclados. | J26: 0 | K26: ='Informe resultados'!M46 -> 0 | Q26: 3 | R26: 2 | AL26: 0 | AM26: 0 | AN26: 0 | AO26: 0 | AP26: 0 | AQ26: 0 | AR26: 0 | AS26: 0 | AT26: 0 | AU26: 0 | AV26: 0 | AW26: 0
F27: =IF(OR(DG!E29="Parte de un edificio",DG!E$31="Edificio existente"),"",VLOOKUP(G27,CA!$D$10:$K$139,5,FALSE)) -> 1 | G27: RN 06 | H27: Uso de materiales obtenidos de recursos sostenibles. | J27: 0 | K27: ='Informe resultados'!M47 -> 0 | Q27: 1 | V27: 1 | AL27: 0 | AM27: 0 | AN27: 0 | AO27: 0 | AP27: 0 | AQ27: 0 | AR27: 0 | AS27: 0 | AT27: 0 | AU27: 0 | AV27: 0 | AW27: 0
F28: =IF(OR(DG!E29="Parte de un edificio",DG!E$31="Edificio existente"),"",VLOOKUP(G28,CA!$D$10:$K$139,5,FALSE)) -> 1 | G28: RN 07 | H28: Uso de materiales locales. | J28: 0 | K28: ='Informe resultados'!M48 -> 0 | S28: 1 | V28: 3 | AL28: 0 | AM28: 0 | AN28: 0 | AO28: 0 | AP28: 0 | AQ28: 0 | AR28: 0 | AS28: 0 | AT28: 0 | AU28: 0 | AV28: 0 | AW28: 0
F29: =IF(OR(DG!E29="Parte de un edificio",DG!E$31="Edificio existente"),"",VLOOKUP(G29,CA!$D$10:$K$139,5,FALSE)) -> 1 | G29: RN 08 | H29: Planificación de una estrategia de demolición selectiva. | J29: 0 | K29: ='Informe resultados'!M49 -> 0 | Q29: 1 | R29: 1 | W29: 1 | AL29: 0 | AM29: 0 | AN29: 0 | AO29: 0 | AP29: 0 | AQ29: 0 | AR29: 0 | AS29: 0 | AT29: 0 | AU29: 0 | AV29: 0 | AW29: 0
F30: =IF(OR(DG!E29="Parte de un edificio",DG!E$31="Edificio existente"),"",VLOOKUP(G30,CA!$D$10:$K$139,5,FALSE)) -> 1 | G30: RN 09 | H30: Gestión de los residuos de la construcción. | J30: 0 | K30: ='Informe resultados'!M50 -> 0 | Q30: 1 | R30: 2 | AL30: 0 | AM30: 0 | AN30: 0 | AO30: 0 | AP30: 0 | AQ30: 0 | AR30: 0 | AS30: 0 | AT30: 0 | AU30: 0 | AV30: 0 | AW30: 0
F31: =IF(OR(DG!E29="Parte de un edificio",DG!E$31="Edificio existente"),"",VLOOKUP(G31,CA!$D$10:$K$139,5,FALSE)) -> 1 | G31: RN 10 | H31: Impacto de los materiales de la construcción. | J31: 0 | K31: ='Informe resultados'!M52 -> 0 | M31: 3 | O31: 2 | P31: 2 | Q31: 2 | R31: 2 | AL31: 0 | AM31: 0 | AN31: 0 | AO31: 0 | AP31: 0 | AQ31: 0 | AR31: 0 | AS31: 0 | AT31: 0 | AU31: 0 | AV31: 0 | AW31: 0
F32: =IF(OR(DG!E$31="Edificio existente",DG!E29="Parte de un edificio"),"",VLOOKUP(G32,CA!$D$10:$K$139,5,FALSE)) -> 1 | G32: RN 11 | H32: Ecoetiquetado de producto. | J32: 0 | K32: ='Informe resultados'!M53 -> 0 | Q32: 1 | V32: 3 | AL32: 0 | AM32: 0 | AN32: 0 | AO32: 0 | AP32: 0 | AQ32: 0 | AR32: 0 | AS32: 0 | AT32: 0 | AU32: 0 | AV32: 0 | AW32: 0
F33: CAI | G33: Calidad del Ambiente Interior. | I33: =SUM(I34:I37) -> 
F34: =IF(DG!E$31="Edificio existente","",VLOOKUP(G34,CA!$D$10:$K$139,5,FALSE)) ->  | G34: CAI 01 | H34: Limitación en las emisiones de COVs. | I34: =IF(J$49=0,0,J34/J$49) ->  | J34: =IF(F34="a",SUMPRODUCT(L34:W34,L$3:W$3),"0") ->  | K34: ='Informe resultados'!M54 -> 0 | U34: 2 | V34: 1 | Y34: =(L34*L$3)*$I34/SUMPRODUCT($L34:$W34,$L$3:$W$3) ->  | AL34: =(L34*L$3)*$K34/SUMPRODUCT($L34:$W34,$L$3:$W$3) -> 0 | AM34: 0 | AN34: 0 | AO34: 0 | AP34: 0 | AQ34: 0 | AR34: 0 | AS34: 0 | AT34: 0 | AU34: 0 | AV34: 0 | AW34: 0
F35: =IF(OR(DG!E29="Unifamiliar",DG!E29="Urbanización"),"",VLOOKUP(G35,CA!$D$10:$K$139,5,FALSE)) ->  | G35: CAI 02 | H35: Eficacia de la ventilación natural. | I35: =IF(J$49=0,0,J35/J$49) ->  | J35: =IF(F35="a",SUMPRODUCT(L35:W35,L$3:W$3),"0") ->  | K35: ='Informe resultados'!M55 -> 0 | U35: 3 | V35: 1 | AL35: 0 | AM35: 0 | AN35: 0 | AO35: 0 | AP35: 0 | AQ35: 0 | AR35: 0 | AS35: 0 | AT35: 0 | AU35: 0 | AV35: 0 | AW35: 0
F36: =IF(OR(DG!E29="Unifamiliar",DG!E29="Urbanización"),"",VLOOKUP(G36,CA!$D$10:$K$139,5,FALSE)) ->  | G36: CAI 03 | H36: Iluminación natural. | I36: =IF(J$49=0,0,J36/J$49) ->  | J36: =IF(F36="a",SUMPRODUCT(L36:W36,L$3:W$3),"0") ->  | K36: ='Informe resultados'!M56 -> 0 | U36: 3 | V36: 2 | AL36: 0 | AM36: 0 | AN36: 0 | AO36: 0 | AP36: 0 | AQ36: 0 | AR36: 0 | AS36: 0 | AT36: 0 | AU36: 0 | AV36: 0 | AW36: 0
F37: =VLOOKUP(G37,CA!$D$10:$K$139,5,FALSE) ->  | G37: CAI 04 | H37: Protección frente al ruido. | I37: =IF(J$49=0,0,J37/J$49) ->  | J37: =IF(F37="a",SUMPRODUCT(L37:W37,L$3:W$3),"0") ->  | K37: ='Informe resultados'!M57 -> 0.02002156168 | U37: 3 | V37: 1 | AL37: 0 | AM37: 0 | AN37: 0 | AO37: 0 | AP37: 0 | AQ37: 0 | AR37: 0 | AS37: 0 | AT37: 0 | AU37: 0.01716133858 | AV37: 0.002860223097 | AW37: 0
F38: ASE | G38: Aspectos Sociales y Económicos. | I38: =SUM(I39:I43) -> 
F39: =IF(OR(DG!E29="Unifamiliar",DG!E29="Urbanización",DG!E29="Parte de un edificio"),"",VLOOKUP(G39,CA!$D$10:$K$139,5,FALSE)) ->  | G39: ASE 01 | H39: Acceso universal. | I39: =IF(J$49=0,0,J39/J$49) ->  | J39: =IF(F39="a",SUMPRODUCT(L39:W39,L$3:W$3),"0") ->  | K39: ='Informe resultados'!M59 -> 0 | S39: 1 | T39: 3 | V39: 2 | Y39: =(L39*L$3)*$I39/SUMPRODUCT($L39:$W39,$L$3:$W$3) ->  | AL39: =(L39*L$3)*$K39/SUMPRODUCT($L39:$W39,$L$3:$W$3) -> 0 | AM39: 0 | AN39: 0 | AO39: 0 | AP39: 0 | AQ39: 0 | AR39: 0 | AS39: 0 | AT39: 0 | AU39: 0 | AV39: 0 | AW39: 0
F40: =VLOOKUP(G40,CA!$D$10:$K$139,5,FALSE) ->  | G40: ASE 02 | H40: Derecho al sol. | I40: =IF(J$49=0,0,J40/J$49) ->  | J40: =IF(F40="a",SUMPRODUCT(L40:W40,L$3:W$3),"0") ->  | K40: ='Informe resultados'!M60 -> 0 | U40: 2 | V40: 1 | AL40: 0 | AM40: 0 | AN40: 0 | AO40: 0 | AP40: 0 | AQ40: 0 | AR40: 0 | AS40: 0 | AT40: 0 | AU40: 0 | AV40: 0 | AW40: 0
F41: =IF(OR(DG!E29="Unifamiliar",DG!E29="Urbanización"),"",VLOOKUP(G41,CA!$D$10:$K$139,5,FALSE)) ->  | G41: ASE 03 | H41: Acceso a espacios abiertos privados. | I41: =IF(J$49=0,0,J41/J$49) ->  | J41: =IF(F41="a",SUMPRODUCT(L41:W41,L$3:W$3),"0") ->  | K41: ='Informe resultados'!M62 -> 0 | U41: 1 | V41: 1 | AL41: 0 | AM41: 0 | AN41: 0 | AO41: 0 | AP41: 0 | AQ41: 0 | AR41: 0 | AS41: 0 | AT41: 0 | AU41: 0 | AV41: 0 | AW41: 0
F42: =VLOOKUP(G42,CA!$D$10:$K$139,5,FALSE) ->  | G42: ASE 04 | H42: Derecho a la intimidad. | I42: =IF(J$49=0,0,J42/J$49) ->  | J42: =IF(F42="a",SUMPRODUCT(L42:W42,L$3:W$3),"0") ->  | K42: ='Informe resultados'!M63 -> 0 | U42: 1 | V42: 1 | AL42: 0 | AM42: 0 | AN42: 0 | AO42: 0 | AP42: 0 | AQ42: 0 | AR42: 0 | AS42: 0 | AT42: 0 | AU42: 0 | AV42: 0 | AW42: 0
F43: =IF(OR(DG!E$29="",DG!E29="Residencial colectivo"),VLOOKUP(G43,CA!$D$10:$K$139,5,FALSE),"") ->  | G43: ASE 05 | H43: Coste de construcción. | I43: =IF(J$49=0,0,J43/J$49) ->  | J43: =IF(F43="a",SUMPRODUCT(L43:W43,L$3:W$3),"0") ->  | K43: ='Informe resultados'!M67 -> 0 | W43: 3 | AL43: 0 | AM43: 0 | AN43: 0 | AO43: 0 | AP43: 0 | AQ43: 0 | AR43: 0 | AS43: 0 | AT43: 0 | AU43: 0 | AV43: 0 | AW43: 0
F44: CC | G44: Concepto de Calidad. | I44: =SUM(I45:I48) -> 
F45: =IF(OR(DG!E$29="",DG!E29="Residencial colectivo"),VLOOKUP(G45,CA!$D$10:$K$139,5,FALSE),"") ->  | G45: CC 01 | H45: Eficiencia de los espacios. | I45: =IF(J$49=0,0,J45/J$49) ->  | J45: =IF(F45="a",SUMPRODUCT(L45:W45,L$3:W$3),"0") ->  | K45: ='Informe resultados'!M68 -> 0 | V45: 2 | W45: 1 | Y45: =(L45*L$3)*$I45/SUMPRODUCT($L45:$W45,$L$3:$W$3) ->  | AL45: =(L45*L$3)*$K45/SUMPRODUCT($L45:$W45,$L$3:$W$3) -> 0 | AM45: 0 | AN45: 0 | AO45: 0 | AP45: 0 | AQ45: 0 | AR45: 0 | AS45: 0 | AT45: 0 | AU45: 0 | AV45: 0 | AW45: 0
F46: =VLOOKUP(G46,CA!$D$10:$K$139,5,FALSE) ->  | G46: CC 02 | H46: Sistema de gestión del edificio (BMS). | I46: =IF(J$49=0,0,J46/J$49) ->  | J46: =IF(F46="a",SUMPRODUCT(L46:W46,L$3:W$3),"0") ->  | K46: ='Informe resultados'!M69 -> 0.02669541558 | O46: 1 | P46: 1 | V46: 2 | W46: 1 | AL46: 0 | AM46: 0 | AN46: 0 | AO46: 0.007280567884 | AP46: 0.004853711923 | AQ46: 0 | AR46: 0 | AS46: 0 | AT46: 0 | AU46: 0 | AV46: 0.009707423846 | AW46: 0.004853711923
F47: =IF(DG!E29="Parte de un edificio","",VLOOKUP(G47,CA!$D$10:$K$139,5,FALSE)) ->  | G47: CC 03 | H47: Custodia de la documentación del proyecto. | I47: =IF(J$49=0,0,J47/J$49) ->  | J47: =IF(F47="a",SUMPRODUCT(L47:W47,L$3:W$3),"0") ->  | K47: ='Informe resultados'!M70 -> 0.0222290672 | V47: 3 | AL47: 0 | AM47: 0 | AN47: 0 | AO47: 0 | AP47: 0 | AQ47: 0 | AR47: 0 | AS47: 0 | AT47: 0 | AU47: 0 | AV47: 0.0222290672 | AW47: 0
F48: =IF(DG!E29="Parte de un edificio","",VLOOKUP(G48,CA!$D$10:$K$139,5,FALSE)) ->  | G48: CC 04 | H48: El edificio como una herramienta para la educación. | I48: =IF(J$49=0,0,J48/J$49) ->  | J48: =IF(F48="a",SUMPRODUCT(L48:W48,L$3:W$3),"0") ->  | K48: ='Informe resultados'!M74 -> 0 | S48: 1 | V48: 3 | AL48: 0 | AM48: 0 | AN48: 0 | AO48: 0 | AP48: 0 | AQ48: 0 | AR48: 0 | AS48: 0 | AT48: 0 | AU48: 0 | AV48: 0 | AW48: 0
I49: =I4+I14+I21+I33+I38+I44 ->  | J49: =SUM(J4:J48) ->  | L49: =SUM(L5:L48) -> 6.3 | M49: 11.65 | N49: 6 | O49: 6.65 | P49: 8 | Q49: 11 | R49: 9 | S49: 7.5 | T49: 6.5 | U49: 22 | V49: 34.5 | W49: 14.25 | Y49: =SUM(Y5:Y48) ->  | AL49: =SUM(AL5:AL48) ->  | AY49: =SUM(Y49:AJ49) -> 
L50: =SUM(L5:L48)*L3 -> 0.756 | M50: 0.932 | N50: 0.24 | O50: 0.798 | P50: 0.64 | Q50: 0.88 | R50: 0.36 | S50: 0.6 | T50: 0.26 | U50: 3.52 | V50: 2.76 | W50: 1.14

Sheet tablas y gráficos Guía (hidden)
B1: PRODUCTO | E1: CONSTRUCCIÓN | G1: USO | N1: FIN DE VIDA
B2: A1 | C2: A2 | D2: A3 | E2: A4 | F2: A5 | G2: B1 | H2: B2 | I2: B3 | J2: B4 | K2: B5 | L2: B6 | M2: B7 | N2: C1 | O2: C2 | P2: C3 | Q2: C4
A3: Cambio climático | B3: 3 | C3: 3 | D3: 3 | E3: 2 | L3: 2 | S3: Cambio climático | T3: ='Matriz VERDE-GBCe'!AJ5 -> 0.09375
A4: Emisiones a la atmósfera, tierra y agua | B4: 3 | C4: 3 | D4: 3 | E4: 1 | L4: 2 | S4: Emisiones a la atmósfera, tierra y agua | T4: ='Matriz VERDE-GBCe'!AK5 -> 0.0625
A5: Cambios en la biodiversidad | B5: 1 | F5: 2 | G5: 2 | S5: Cambios en la biodiversidad | T5: ='Matriz VERDE-GBCe'!AL5 -> 0.09375
A6: Agotamiento de energía no renovable | B6: 3 | C6: 3 | D6: 3 | E6: 2 | F6: 1 | L6: 3 | S6: Agotamiento de energía no renovable | T6: ='Matriz VERDE-GBCe'!AM5 -> 0.09375
A7: Agotamiento de agua potable | M7: 3 | S7: Agotamiento de agua potable | T7: ='Matriz VERDE-GBCe'!AN5 -> 0.0625
A8: Agotamiento de recursos materiales | B8: 3 | C8: 3 | D8: 3 | J8: 2 | N8: 1 | S8: Agotamiento de recursos materiales | T8: ='Matriz VERDE-GBCe'!AO5 -> 0.0625
A9: Generación de residuos | B9: 2 | C9: 2 | D9: 2 | F9: 3 | J9: 1 | K9: 1 | N9: 2 | P9: 2 | S9: Generación de residuos | T9: ='Matriz VERDE-GBCe'!AP5 -> 0.03125
A10: Accesibilidad | G10: 3 | S10: Accesibilidad | T10: ='Matriz VERDE-GBCe'!AQ5 -> 0.0625
A11: Adaptabilidad | G11: 3 | S11: Adaptabilidad | T11: ='Matriz VERDE-GBCe'!AR5 -> 0.03125
A12: Salud y confort | G12: 3 | S12: Salud y confort | T12: ='Matriz VERDE-GBCe'!AS5 -> 0.09375
A13: Impactos sobre el vecindario | G13: 3 | S13: Impactos sobre el vecindario | T13: ='Matriz VERDE-GBCe'!AT5 -> 0.0625
A14: Mantenimiento | G14: 3 | H14: 3 | I14: 3 | J14: 2 | K14: 2 | S14: Mantenimiento | T14: ='Matriz VERDE-GBCe'!AU5 -> 0.03125
A15: Seguridad | G15: 3 | S15: Seguridad | T15: ='Matriz VERDE-GBCe'!AV5 -> 0.0625
A16: Aspectos económicos del resultado | F16: 3 | G16: 2 | H16: 1 | I16: 1 | J16: 2 | K16: 1 | L16: 2 | M16: 2 | N16: 2 | S16: Aspectos económicos del resultado | T16: ='Matriz VERDE-GBCe'!AW5 -> 0.0625
A17: Ahorro en el coste del ciclo de vida | B17: 3 | C17: 3 | D17: 3 | F17: 3 | G17: 2 | J17: 3 | L17: 2 | M17: 2 | N17: 3 | S17: Ahorro en el coste del ciclo de vida | T17: ='Matriz VERDE-GBCe'!AX5 -> 0.09375
S19: Comportamiento ambiental | T19: =SUM(T20:T26) -> 0.5 | U19: Comportamiento social | V19: =SUM(V20:V26) -> 0.34375 | W19: Comportamiento económico | X19: =SUM(X20:X26) -> 0.15625 | Z19: Comportamiento ambiental | AA19: =SUM(T20:T26) -> 0.5
S20: Cambio climático | T20: ='Matriz VERDE-GBCe'!AZ5 -> 0.09375 | U20: Accesibilidad | V20: ='Matriz VERDE-GBCe'!BG5 -> 0.0625 | W20: Aspectos económicos del resultado | X20: ='Matriz VERDE-GBCe'!BM5 -> 0.0625 | Z20: Comportamiento social | AA20: =SUM(V20:V26) -> 0.34375
S21: Emisiones a la atmósfera, tierra y agua | T21: ='Matriz VERDE-GBCe'!BA5 -> 0.0625 | U21: Adaptabilidad | V21: ='Matriz VERDE-GBCe'!BH5 -> 0.03125 | W21: Ahorro en el coste del ciclo de vida | X21: ='Matriz VERDE-GBCe'!BN5 -> 0.09375 | Z21: Comportamiento económico | AA21: =SUM(X20:X25) -> 0.15625
S22: Cambios en la biodiversidad | T22: ='Matriz VERDE-GBCe'!BB5 -> 0.09375 | U22: Salud y confort | V22: ='Matriz VERDE-GBCe'!BI5 -> 0.09375
S23: Agotamiento de energía no renovable | T23: ='Matriz VERDE-GBCe'!BC5 -> 0.09375 | U23: Impactos sobre el vecindario | V23: ='Matriz VERDE-GBCe'!BJ5 -> 0.0625
S24: Agotamiento de agua potable | T24: ='Matriz VERDE-GBCe'!BD5 -> 0.0625 | U24: Mantenimiento | V24: ='Matriz VERDE-GBCe'!BK5 -> 0.03125
S25: Agotamiento de recursos materiales | T25: ='Matriz VERDE-GBCe'!BE5 -> 0.0625 | U25: Seguridad | V25: ='Matriz VERDE-GBCe'!BL5 -> 0.0625
S26: Generación de residuos | T26: ='Matriz VERDE-GBCe'!BF5 -> 0.03125
S29: ='Matriz VERDE-GBCe'!V6 -> Parcela y emplazamiento | T29: ='Matriz VERDE-GBCe'!X6 -> 0.1524462241
S30: ='Matriz VERDE-GBCe'!V16 -> Energía y atmósfera | T30: ='Matriz VERDE-GBCe'!X16 -> 0.1760100621
S31: ='Matriz VERDE-GBCe'!V23 -> Recursos naturales | T31: ='Matriz VERDE-GBCe'!X23 -> 0.2292212126
S32: ='Matriz VERDE-GBCe'!V36 -> Ambiente Interior. | T32: ='Matriz VERDE-GBCe'!X36 -> 0.09487139997
S33: ='Matriz VERDE-GBCe'!V42 -> Aspectos sociales | T33: ='Matriz VERDE-GBCe'!X42 -> 0.1671543714
S34: ='Matriz VERDE-GBCe'!V52 -> Calidad de la edificación | T34: ='Matriz VERDE-GBCe'!X52 -> 0.1802967298
T36: =SUM(T29:T35) -> 1
T39: 17.84
T40: 15.47
T41: 24.07
T42: 14.16
T43: 12.79
T44: 15.67
T46: =SUM(T39:T45) -> 100

Sheet Matriz VERDE-GBCe (hidden)
A2: Residencial colectivo | B2: Unifamiliar | C2: Urbanizaciones | D2: Vivienda en un edificio | E2: Edificios administrativos | F2: Equipamiento público | G2: Edificios docentes | H2: Edificios comerciales | I2: Alojamiento y hospedaje | J2: Servicios de restauración | K2: Edificios deportivos | L2: Edificios sanitarios | M2: Industria ligera o logística | N2: Local o parte de un edificio | P2: Nueva Edificación | Q2: Rehabilitación | R2: Existente | S2: Mixto | T2: Límites de aplicabilidad | W2: Lista de criterios | X2: Peso del criterio | Z2: Solidez del criterio | AA2: Solidez del criterio | AB2: Alcance del efecto | AC2: Duración del efecto | AD2: Intensidad del efecto | AE2: Fiabilidad de los datos | AF2: Capacidad de lograr el objetivo | AG2: Complejidad del criterio | AH2: Peso por impactos | AI2: Peso por impactos | AJ2: Cambio climático | AK2: Emisiones a la atmósfera, tierra y agua | AL2: Cambios en la biodiversidad | AM2: Agotamiento de energía no renovable | AN2: Agotamiento de agua potable | AO2: Agotamiento de recursos materiales | AP2: Generación de residuos | AQ2: Accesibilidad | AR2: Adaptabilidad | AS2: Salud y confort | AT2: Impactos sobre el vecindario | AU2: Mantenimiento | AV2: Seguridad | AW2: Aspectos económicos del resultado | AX2: Ahorro en el coste del ciclo de vida | AZ2: Cambio climático | BA2: Emisiones a la atmósfera, tierra y agua | BB2: Cambios en la biodiversidad | BC2: Agotamiento de energía no renovable | BD2: Agotamiento de agua potable | BE2: Agotamiento de recursos materiales | BF2: Generación de residuos | BG2: Accesibilidad | BH2: Adaptabilidad | BI2: Salud y confort | BJ2: Impactos sobre el vecindario | BK2: Mantenimiento | BL2: Seguridad | BM2: Aspectos económicos del resultado | BN2: Ahorro en el coste del ciclo de vida | BP2: Cambio climático | BQ2: Emisiones a la atmósfera, tierra y agua | BR2: Cambios en la biodiversidad | BS2: Agotamiento de energía no renovable | BT2: Agotamiento de agua potable | BU2: Agotamiento de recursos materiales | BV2: Generación de residuos | BW2: Accesibilidad | BX2: Adaptabilidad | BY2: Salud y confort | BZ2: Impactos sobre el vecindario | CA2: Mantenimiento | CB2: Seguridad | CC2: Aspectos económicos del resultado | CD2: Ahorro en el coste del ciclo de vida
V3: Listas de criterios | X3: Peso | AB3: Solidez del criterio | AJ3: Influencia de los impactos
AB4: 3 | AC4: 3 | AD4: 2 | AE4: 1 | AF4: 3 | AG4: 1 | AJ4: 3 | AK4: 2 | AL4: 3 | AM4: 3 | AN4: 2 | AO4: 2 | AP4: 1 | AQ4: 2 | AR4: 1 | AS4: 3 | AT4: 2 | AU4: 1 | AV4: 2 | AW4: 2 | AX4: 3 | AZ4: 3 | BA4: 2 | BB4: 3 | BC4: 3 | BD4: 2 | BE4: 2 | BF4: 1 | BG4: 2 | BH4: 1 | BI4: 3 | BJ4: 2 | BK4: 1 | BL4: 2 | BM4: 2 | BN4: 3 | BP4: 3 | BQ4: 2 | BR4: 3 | BS4: 3 | BT4: 2 | BU4: 2 | BV4: 1 | BW4: 2 | BX4: 1 | BY4: 3 | BZ4: 2 | CA4: 1 | CB4: 2 | CC4: 2 | CD4: 3
AA5: =SUM(AB5:AG5) -> 1 | AB5: =AB4/SUM($AB4:$AG4) -> 0.2307692308 | AC5: 0.2307692308 | AD5: 0.1538461538 | AE5: 0.07692307692 | AF5: 0.2307692308 | AG5: 0.07692307692 | AI5: =SUM(AJ5:AX5) -> 1 | AJ5: =AJ4/SUM($AJ4:$AX4) -> 0.09375 | AK5: 0.0625 | AL5: 0.09375 | AM5: 0.09375 | AN5: 0.0625 | AO5: 0.0625 | AP5: 0.03125 | AQ5: 0.0625 | AR5: =AR4/SUM($AJ4:$AX4) -> 0.03125 | AS5: 0.09375 | AT5: 0.0625 | AU5: =AU4/SUM($AJ4:$AX4) -> 0.03125 | AV5: =AV4/SUM($AJ4:$AX4) -> 0.0625 | AW5: =AW4/SUM($AJ4:$AX4) -> 0.0625 | AX5: =AX4/SUM($AJ4:$AX4) -> 0.09375 | AZ5: =AZ4/SUM($AJ4:$AX4) -> 0.09375 | BA5: 0.0625 | BB5: 0.09375 | BC5: 0.09375 | BD5: 0.0625 | BE5: 0.0625 | BF5: 0.03125 | BG5: 0.0625 | BH5: =BH4/SUM($AJ4:$AX4) -> 0.03125 | BI5: =BI4/SUM($AJ4:$AX4) -> 0.09375 | BJ5: =BJ4/SUM($AJ4:$AX4) -> 0.0625 | BK5: =BK4/SUM($AJ4:$AX4) -> 0.03125 | BL5: =BL4/SUM($AJ4:$AX4) -> 0.0625 | BM5: =BM4/SUM($AJ4:$AX4) -> 0.0625 | BN5: =BN4/SUM($AJ4:$AX4) -> 0.09375 | BP5: =BP4/SUM($AJ4:$AX4) -> 0.09375 | BQ5: 0.0625 | BR5: 0.09375 | BS5: 0.09375 | BT5: 0.0625 | BU5: 0.0625 | BV5: 0.03125 | BW5: 0.0625 | BX5: =BX4/SUM($AJ4:$AX4) -> 0.03125 | BY5: =BY4/SUM($AJ4:$AX4) -> 0.09375 | BZ5: =BZ4/SUM($AJ4:$AX4) -> 0.0625 | CA5: =CA4/SUM($AJ4:$AX4) -> 0.03125 | CB5: =CB4/SUM($AJ4:$AX4) -> 0.0625 | CC5: =CC4/SUM($AJ4:$AX4) -> 0.0625 | CD5: =CD4/SUM($AJ4:$AX4) -> 0.09375
U6: PE | V6: Parcela y emplazamiento | X6: =SUM(X7:X15) -> 0.1524462241 | AA6: =SUM(AA7:AA15) -> 0.1471389646 | AI6: =SUM(AI7:AI15) -> 0.1605042017
A7: si | B7: si | C7: si | D7: si | E7: si | F7: si | G7: si | H7: si | I7: si | J7: si | K7: si | L7: si | M7: si | N7: si | T7: NO | U7: =VLOOKUP(V7,CA!$D$10:$K$139,5,FALSE) -> 1 | V7: PE 01 | W7: Proximidad al transporte publico. | X7: =($Z7+2*$AH7)/($Z$60+2*$AH$60) -> 0.01429744853 | Y7: ='Informe resultados'!M29 -> 0 | Z7: =IF($U7=1,SUMPRODUCT(AB7:AG7,AB$5:AG$5),"0") -> 1.615384615 | AA7: =IF($Z$60=0,0,$Z7/$Z$60) -> 0.01430517711 | AB7: 2 | AC7: 2 | AD7: 1 | AE7: 3 | AF7: 1 | AG7: 1 | AH7: =IF($U7=1,SUMPRODUCT(AJ7:AX7,AJ$5:AX$5),"0") -> 0.53125 | AI7: =IF($AH$60=0,0,$AH7/$AH$60) -> 0.01428571429 | AJ7: 1 | AK7: 1 | AQ7: 3 | AR7: 2 | AW7: 2 | AZ7: =(AJ7*AJ$5)*$X7/SUMPRODUCT($AJ7:$AX7,$AJ$5:$AX$5) -> 0.002523079153 | BA7: =(AK7*AK$5)*$X7/SUMPRODUCT($AJ7:$AX7,$AJ$5:$AX$5) -> 0.001682052769 | BB7: =(AL7*AL$5)*$X7/SUMPRODUCT($AJ7:$AX7,$AJ$5:$AX$5) -> 0 | BC7: =(AM7*AM$5)*$X7/SUMPRODUCT($AJ7:$AX7,$AJ$5:$AX$5) -> 0 | BD7: =(AN7*AN$5)*$X7/SUMPRODUCT($AJ7:$AX7,$AJ$5:$AX$5) -> 0 | BE7: =(AO7*AO$5)*$X7/SUMPRODUCT($AJ7:$AX7,$AJ$5:$AX$5) -> 0 | BF7: =(AP7*AP$5)*$X7/SUMPRODUCT($AJ7:$AX7,$AJ$5:$AX$5) -> 0 | BG7: =(AQ7*AQ$5)*$X7/SUMPRODUCT($AJ7:$AX7,$AJ$5:$AX$5) -> 0.005046158306 | BH7: =(AU7*AU$5)*$X7/SUMPRODUCT($AJ7:$AX7,$AJ$5:$AX$5) -> 0 | BI7: =(AV7*AV$5)*$X7/SUMPRODUCT($AJ7:$AX7,$AJ$5:$AX$5) -> 0 | BJ7: 0.003364105537 | BK7: 0 | BL7: =(AV7*AV$5)*$X7/SUMPRODUCT($AJ7:$AX7,$AJ$5:$AX$5) -> 0 | BM7: =(AW7*AW$5)*$X7/SUMPRODUCT($AJ7:$AX7,$AJ$5:$AX$5) -> 0.003364105537 | BN7: =(AX7*AX$5)*$X7/SUMPRODUCT($AJ7:$AX7,$AJ$5:$AX$5) -> 0 | BP7: =(AJ7*AJ$5)*$Y7/SUMPRODUCT($AJ7:$AX7,$AJ$5:$AX$5) -> 0 | BQ7: =(AK7*AK$5)*$Y7/SUMPRODUCT($AJ7:$AX7,$AJ$5:$AX$5) -> 0 | BR7: =(AL7*AL$5)*$Y7/SUMPRODUCT($AJ7:$AX7,$AJ$5:$AX$5) -> 0 | BS7: =(AM7*AM$5)*$Y7/SUMPRODUCT($AJ7:$AX7,$AJ$5:$AX$5) -> 0 | BT7: =(AN7*AN$5)*$Y7/SUMPRODUCT($AJ7:$AX7,$AJ$5:$AX$5) -> 0 | BU7: =(AO7*AO$5)*$Y7/SUMPRODUCT($AJ7:$AX7,$AJ$5:$AX$5) -> 0 | BV7: 0 | BW7: 0 | BX7: =(AO7*AO$5)*$Y7/SUMPRODUCT($AJ7:$AX7,$AJ$5:$AX$5) -> 0 | BY7: =(AP7*AP$5)*$Y7/SUMPRODUCT($AJ7:$AX7,$AJ$5:$AX$5) -> 0 | BZ7: =(AQ7*AQ$5)*$Y7/SUMPRODUCT($AJ7:$AX7,$AJ$5:$AX$5) -> 0 | CA7: =(AU7*AU$5)*$Y7/SUMPRODUCT($AJ7:$AX7,$AJ$5:$AX$5) -> 0 | CB7: =(AV7*AV$5)*$Y7/SUMPRODUCT($AJ7:$AX7,$AJ$5:$AX$5) -> 0 | CC7: =(AW7*AW$5)*$Y7/SUMPRODUCT($AJ7:$AX7,$AJ$5:$AX$5) -> 0 | CD7: =(AX7*AX$5)*$Y7/SUMPRODUCT($AJ7:$AX7,$AJ$5:$AX$5) -> 0
A8: si | B8: si | C8: si | D8: si | E8: si | F8: si | G8: si | H8: si | I8: si | J8: si | K8: si | L8: si | M8: si | N8: si | T8: NO | U8: =VLOOKUP(V8,CA!$D$10:$K$139,5,FALSE) -> 1 | V8: PE 02 | W8: Proximidad a equipamiento y servicios. | X8: 0.01347605113 | Y8: ='Informe resultados'!M30 -> 0 | Z8: =IF($U8=1,SUMPRODUCT(AB8:AG8,AB$5:AG$5),"0") -> 1.461538462 | AA8: 0.01294277929 | AB8: 2 | AC8: 1 | AD8: 1 | AE8: 3 | AF8: 1 | AG8: 2 | AH8: =IF($U8=1,SUMPRODUCT(AJ8:AX8,AJ$5:AX$5),"0") -> 0.53125 | AI8: 0.01428571429 | AJ8: 1 | AK8: 1 | AQ8: 3 | AR8: 2 | AW8: 2 | AZ8: 0.00237812667 | BA8: 0.00158541778 | BB8: 0 | BC8: 0 | BD8: 0 | BE8: 0 | BF8: 0 | BG8: 0.004756253341 | BH8: 0 | BI8: 0 | BJ8: 0.00317083556 | BK8: 0 | BL8: 0 | BM8: 0.00317083556 | BN8: 0 | BP8: 0 | BQ8: 0 | BR8: 0 | BS8: 0 | BT8: 0 | BU8: 0 | BV8: 0 | BW8: 0 | BX8: 0 | BY8: 0 | BZ8: 0 | CA8: 0 | CB8: 0 | CC8: 0 | CD8: 0
A9: si | B9: no | C9: no | D9: no | E9: si | F9: si | G9: si | H9: si | I9: si | J9: si | K9: si | L9: si | M9: si | N9: no | U9: =IF(OR(DG!E$29="Unifamiliar",DG!E29="Urbanizaciones",DG!E29="Vivienda en un edificio",DG!E29="Local o parte de un edificio"),0,VLOOKUP(V9,CA!$D$10:$K$139,5,FALSE)) -> 1 | V9: PE 03 | W9: Facilidades para la bicicleta. | X9: 0.0162996047 | Y9: ='Informe resultados'!M31 -> 0 | Z9: 1.615384615 | AA9: 0.01430517711 | AB9: 2 | AC9: 2 | AD9: 1 | AE9: 3 | AF9: 1 | AG9: 1 | AH9: 0.71875 | AI9: 0.01932773109 | AJ9: 1 | AK9: 1 | AQ9: 3 | AR9: 2 | AS9: 2 | AW9: 2 | AZ9: 0.002126035396 | BA9: 0.001417356931 | BB9: 0 | BC9: 0 | BD9: 0 | BE9: 0 | BF9: 0 | BG9: 0.004252070792 | BH9: 0 | BI9: 0 | BJ9: 0.002834713861 | BK9: 0 | BL9: 0 | BM9: 0.002834713861 | BN9: 0 | BP9: 0 | BQ9: 0 | BR9: 0 | BS9: 0 | BT9: 0 | BU9: 0 | BV9: 0 | BW9: 0 | BX9: 0 | BY9: 0 | BZ9: 0 | CA9: 0 | CB9: 0 | CC9: 0 | CD9: 0
A10: si | B10: si | C10: si | D10: no | E10: si | F10: si | G10: si | H10: si | I10: si | J10: si | K10: si | L10: si | M10: si | N10: no | U10: =IF(OR(DG!E29="Vivienda en un edificio",DG!E29="Parte de un edificio",DG!E43="NO"),0,VLOOKUP(V10,CA!$D$10:$K$139,5,FALSE)) -> 1 | V10: PE 04 | W10: Capacidad de carga de vehículos eléctricos. | X10: 0.01601724935 | Y10: ='Informe resultados'!M33 -> 0 | Z10: =IF($U10=1,SUMPRODUCT(AB10:AG10,AB$5:AG$5),"0") -> 2 | AA10: 0.01771117166 | AB10: 2 | AC10: 2 | AD10: 2 | AE10: 3 | AF10: 2 | AG10: 1 | AH10: =IF($U10=1,SUMPRODUCT(AJ10:AX10,AJ$5:AX$5),"0") -> 0.5 | AI10: 0.01344537815 | AJ10: 1 | AK10: 1 | AQ10: 1 | AR10: 2 | AW10: 2 | AX10: 1 | AZ10: 0.003003234252 | BA10: 0.002002156168 | BB10: 0 | BC10: 0 | BD10: 0 | BE10: 0 | BF10: 0 | BG10: 0.002002156168 | BH10: 0 | BI10: =(AV10*AV$5)*$X10/SUMPRODUCT($AJ10:$AX10,$AJ$5:$AX$5) -> 0 | BJ10: 0.004004312336 | BK10: 0.003003234252 | BL10: 0 | BM10: 0.004004312336 | BN10: 0.003003234252 | BP10: 0 | BQ10: 0 | BR10: 0 | BS10: 0 | BT10: 0 | BU10: =(AO10*AO$5)*$Y10/SUMPRODUCT($AJ10:$AX10,$AJ$5:$AX$5) -> 0 | BV10: 0 | BW10: 0 | BX10: 0 | BY10: 0 | BZ10: 0 | CA10: 0 | CB10: 0 | CC10: 0 | CD10: 0
A11: si | B11: si | C11: si | D11: no | E11: si | F11: si | G11: si | H11: si | I11: si | J11: si | K11: si | L11: si | M11: si | N11: no | U11: =IF(OR(DG!E29="Vivienda en un edificio",DG!E29="Parte de un edificio"),0,VLOOKUP(V11,CA!$D$10:$K$139,5,FALSE)) -> 1 | V11: PE 05 | W11: Clasificación de RSU. | X11: 0.01129421428 | Y11: ='Informe resultados'!M33 -> 0 | Z11: 1.615384615 | AA11: 0.01430517711 | AB11: 2 | AC11: 1 | AD11: 1 | AE11: 3 | AF11: 2 | AG11: 1 | AH11: 0.25 | AI11: 0.006722689076 | AL11: 1 | AO11: 1 | AP11: 3 | AZ11: 0 | BA11: 0 | BB11: 0.004235330356 | BC11: 0 | BD11: 0 | BE11: 0.002823553571 | BF11: 0.004235330356 | BG11: 0 | BH11: 0 | BI11: 0 | BJ11: 0 | BK11: 0 | BL11: 0 | BM11: 0 | BN11: 0 | BP11: 0 | BQ11: 0 | BR11: 0 | BS11: 0 | BT11: 0 | BU11: 0 | BV11: 0 | BW11: 0 | BX11: 0 | BY11: 0 | BZ11: 0 | CA11: 0 | CB11: 0 | CC11: 0 | CD11: 0
A12: si | B12: si | C12: si | D12: no | E12: si | F12: si | G12: si | H12: si | I12: si | J12: si | K12: si | L12: si | M12: si | N12: no | U12: =IF(OR(DG!E29="Vivienda en un edificio",DG!E29="Parte de un edificio"),0,VLOOKUP(V12,CA!$D$10:$K$139,5,FALSE)) -> 1 | V12: PE 06 | W12: Gestión y Restauración del hábitat. | X12: 0.02281944658 | Y12: ='Informe resultados'!M34 -> 0 | Z12: 2.461538462 | AA12: 0.02179836512 | AB12: 2 | AC12: 3 | AD12: 2 | AE12: 2 | AF12: 3 | AG12: 2 | AH12: 0.90625 | AI12: 0.0243697479 | AJ12: 1 | AK12: 1 | AL12: 3 | AN12: 2 | AO12: 1 | AS12: 1 | AT12: 2 | AW12: 1 | AZ12: 0.002360632405 | BA12: 0.001573754937 | BB12: 0.007081897216 | BC12: 0 | BD12: 0.003147509874 | BE12: 0.001573754937 | BF12: 0 | BG12: 0 | BH12: 0 | BI12: 0 | BJ12: 0.001573754937 | BK12: 0 | BL12: 0 | BM12: 0.001573754937 | BN12: 0 | BP12: 0 | BQ12: 0 | BR12: 0 | BS12: 0 | BT12: 0 | BU12: 0 | BV12: 0 | BW12: 0 | BX12: 0 | BY12: 0 | BZ12: 0 | CA12: 0 | CB12: 0 | CC12: 0 | CD12: 0
A13: si | B13: si | C13: si | D13: no | E13: si | F13: si | G13: si | H13: si | I13: si | J13: si | K13: si | L13: si | M13: si | N13: no | U13: =IF(OR(DG!E29="Vivienda en un edificio",DG!E29="Parte de un edificio"),0,VLOOKUP(V13,CA!$D$10:$K$139,5,FALSE)) -> 1 | V13: PE 07 | W13: Uso de plantas para crear sombras. | X13: 0.01812208019 | Y13: ='Informe resultados'!M35 -> 0 | Z13: 1.769230769 | AA13: 0.01566757493 | AB13: 2 | AC13: 1 | AD13: 1 | AE13: 2 | AF13: 3 | AG13: 1 | AH13: 0.8125 | AI13: 0.0218487395 | AJ13: 1 | AK13: 1 | AL13: 3 | AM13: 1 | AN13: 2 | AS13: 1 | AT13: 1 | AZ13: 0.002091009253 | BA13: 0.001394006168 | BB13: 0.006273027758 | BC13: 0.002091009253 | BD13: 0.002788012337 | BE13: 0 | BF13: 0 | BG13: 0 | BH13: 0 | BI13: 0 | BJ13: 0 | BK13: 0 | BL13: 0 | BM13: 0 | BN13: 0 | BP13: 0 | BQ13: 0 | BR13: 0 | BS13: 0 | BT13: 0 | BU13: 0 | BV13: 0 | BW13: 0 | BX13: 0 | BY13: 0 | BZ13: 0 | CA13: 0 | CB13: 0 | CC13: 0 | CD13: 0
A14: si | B14: si | C14: si | D14: no | E14: si | F14: si | G14: si | H14: si | I14: si | J14: si | K14: si | L14: si | M14: si | N14: no | U14: =IF(OR(DG!E29="Vivienda en un edificio",DG!E29="Parte de un edificio"),0,VLOOKUP(V14,CA!$D$10:$K$139,5,FALSE)) -> 1 | V14: PE 08 | W14: Efecto isla de calor. | X14: 0.02043226038 | Y14: ='Informe resultados'!M36 -> 0 | Z14: 2.076923077 | AA14: 0.01839237057 | AB14: 2 | AC14: 1 | AD14: 2 | AE14: 3 | AF14: 3 | AG14: 2 | AH14: 0.875 | AI14: 0.02352941176 | AJ14: 2 | AK14: 2 | AL14: 2 | AS14: 2 | AT14: 3 | AZ14: 0.004378341511 | BA14: 0.00291889434 | BB14: 0.004378341511 | BC14: 0 | BD14: 0 | BE14: 0 | BF14: 0 | BG14: 0 | BH14: 0 | BI14: 0 | BJ14: 0 | BK14: 0 | BL14: 0 | BM14: 0 | BN14: 0 | BP14: 0 | BQ14: 0 | BR14: 0 | BS14: 0 | BT14: 0 | BU14: 0 | BV14: 0 | BW14: 0 | BX14: 0 | BY14: 0 | BZ14: 0 | CA14: 0 | CB14: 0 | CC14: 0 | CD14: 0
A15: si | B15: si | C15: si | D15: no | E15: si | F15: si | G15: si | H15: si | I15: si | J15: si | K15: si | L15: si | M15: si | N15: no | U15: =IF(OR(DG!E29="Vivienda en un edificio",DG!E29="Parte de un edificio"),0,VLOOKUP(V15,CA!$D$10:$K$139,5,FALSE)) -> 1 | V15: PE 09 | W15: Contaminación lumínica. | X15: 0.01968786899 | Y15: ='Informe resultados'!M37 -> 0 | Z15: 2 | AA15: 0.01771117166 | AB15: 2 | AC15: 1 | AD15: 2 | AE15: 3 | AF15: 3 | AG15: 1 | AH15: 0.84375 | AI15: 0.02268907563 | AK15: 3 | AL15: 3 | AS15: 2 | AT15: 3 | AZ15: 0 | BA15: 0.004375081997 | BB15: 0.006562622996 | BC15: 0 | BD15: 0 | BE15: 0 | BF15: 0 | BG15: 0 | BH15: 0 | BI15: 0 | BJ15: 0 | BK15: 0 | BL15: 0 | BM15: 0 | BN15: 0 | BP15: 0 | BQ15: 0 | BR15: 0 | BS15: 0 | BT15: 0 | BU15: 0 | BV15: 0 | BW15: 0 | BX15: 0 | BY15: 0 | BZ15: 0 | CA15: 0 | CB15: 0 | CC15: 0 | CD15: 0
U16: EA | V16: Energía y atmósfera | X16: =SUM(X17:X22) -> 0.1760100621 | AA16: =SUM(AA17:AA22) -> 0.1873297003 | AI16: =SUM(AI17:AI22) -> 0.1588235294
U17: 0 | V17: EA 00 | W17: Demanda de calefacción y refrigeración | X17: =($Z17+2*$AH17)/($Z$60+2*$AH$60) -> 0 | Z17: =IF($U17=1,SUMPRODUCT(AB17:AG17,AB$5:AG$5),"0") -> 0 | AA17: =IF($Z$60=0,0,$Z17/$Z$60) -> 0 | AB17: 3 | AC17: 3 | AD17: 3 | AE17: 3 | AF17: 3 | AG17: 5 | AH17: =IF($U17=1,SUMPRODUCT(AJ17:AX17,AJ$5:AX$5),"0") -> 0 | AI17: =IF($AH$60=0,0,$AH17/$AH$60) -> 0 | AJ17: 3 | AK17: 3 | AM17: 3 | AS17: 3 | AW17: 3 | AX17: 3 | AZ17: =(AJ17*AJ$5)*$X17/SUMPRODUCT($AJ17:$AX17,$AJ$5:$AX$5) -> 0 | BA17: 0 | BB17: 0 | BC17: 0 | BD17: 0 | BE17: 0 | BF17: 0 | BG17: 0 | BH17: =(AU17*AU$5)*$X17/SUMPRODUCT($AJ17:$AX17,$AJ$5:$AX$5) -> 0 | BI17: =(AV17*AV$5)*$X17/SUMPRODUCT($AJ17:$AX17,$AJ$5:$AX$5) -> 0 | BJ17: 0 | BK17: 0 | BL17: =(AV17*AV$5)*$X17/SUMPRODUCT($AJ17:$AX17,$AJ$5:$AX$5) -> 0 | BM17: 0 | BN17: 0 | BP17: =(AJ17*AJ$5)*$Y17/SUMPRODUCT($AJ17:$AX17,$AJ$5:$AX$5) -> 0 | BQ17: 0 | BR17: 0 | BS17: 0 | BT17: 0 | BU17: 0 | BV17: 0 | BW17: 0 | BX17: =(AO17*AO$5)*$Y17/SUMPRODUCT($AJ17:$AX17,$AJ$5:$AX$5) -> 0 | BY17: 0 | BZ17: 0 | CA17: =(AU17*AU$5)*$Y17/SUMPRODUCT($AJ17:$AX17,$AJ$5:$AX$5) -> 0 | CB17: 0 | CC17: 0 | CD17: 0
A18: si | B18: si | C18: si | D18: si | E18: si | F18: si | G18: si | H18: si | I18: si | J18: si | K18: si | L18: si | M18: si | N18: si | T18: NO | U18: =VLOOKUP(V18,CA!$D$10:$K$139,5,FALSE) -> 1 | V18: EA 01 | W18: Consumo de energía primaria | X18: 0.075414549 | Y18: ='Informe resultados'!M38 -> 0 | Z18: 10 | AA18: 0.08855585831 | AB18: 10 | AC18: 10 | AD18: 10 | AE18: 10 | AF18: 10 | AG18: 10 | AH18: 2.0625 | AI18: 0.05546218487 | AJ18: 10 | AK18: 3 | AL18: 2 | AM18: 3 | AW18: 3 | AX18: 3 | AZ18: 0.03427934046 | BA18: 0.006855868091 | BB18: 0.006855868091 | BC18: 0.01028380214 | BD18: 0 | BE18: 0 | BF18: 0 | BG18: 0 | BH18: 0 | BI18: 0 | BJ18: 0.006855868091 | BK18: 0.01028380214 | BL18: 0 | BM18: 0.006855868091 | BN18: 0.01028380214 | BP18: 0 | BQ18: 0 | BR18: 0 | BS18: 0 | BT18: 0 | BU18: 0 | BV18: 0 | BW18: 0 | BX18: 0 | BY18: 0 | BZ18: 0 | CA18: 0 | CB18: 0 | CC18: 0 | CD18: 0
A19: si | B19: si | C19: si | D19: no | E19: si | F19: si | G19: si | H19: si | I19: si | J19: si | K19: si | L19: si | M19: si | N19: no | U19: =IF(OR(DG!E29="Vivienda en un edificio",DG!E29="Parte de un edificio"),0,VLOOKUP(V19,CA!$D$10:$K$139,5,FALSE)) -> 1 | V19: EA 02 | W19: Generación distribuida | X19: 0.04851378408 | Y19: ='Informe resultados'!M39 -> 0 | Z19: 5.461538462 | AA19: 0.04836512262 | AB19: 5 | AC19: 5 | AD19: 3 | AE19: 3 | AF19: 10 | AG19: 2 | AH19: 1.8125 | AI19: 0.0487394958 | AJ19: 10 | AK19: 3 | AL19: 2 | AM19: 2 | AW19: 2 | AX19: 2 | AZ19: 0.02509333659 | BA19: 0.005018667318 | BB19: 0.005018667318 | BC19: 0.005018667318 | BD19: 0 | BE19: 0 | BF19: 0 | BG19: 0 | BH19: 0 | BI19: 0 | BJ19: 0.003345778212 | BK19: 0.005018667318 | BL19: 0 | BM19: 0.003345778212 | BN19: 0.005018667318 | BP19: 0 | BQ19: 0 | BR19: 0 | BS19: 0 | BT19: 0 | BU19: 0 | BV19: 0 | BW19: 0 | BX19: 0 | BY19: 0 | BZ19: 0 | CA19: 0 | CB19: 0 | CC19: 0 | CD19: 0
A20: si | B20: no | C20: no | D20: no | E20: si | F20: si | G20: si | H20: si | I20: si | J20: si | K20: si | L20: si | M20: si | N20: si | U20: =IF(OR(DG!E$29="Vivienda unifamiliar",DG!E$29="Urbanizaciones",DG!E$29="Vivienda en un edificio"),0,VLOOKUP(V20,CA!$D$10:$K$139,5,FALSE)) -> 1 | V20: EA 03 | W20: Consumo en zonas comunes | X20: 0.02541198213 | Y20: ='Informe resultados'!M40 -> 0 | Z20: 2.384615385 | AA20: 0.02111716621 | AB20: 3 | AC20: 3 | AD20: 2 | AE20: 2 | AF20: 2 | AG20: 1 | AH20: 1.1875 | AI20: 0.03193277311 | AJ20: 2 | AK20: 2 | AL20: 2 | AM20: 3 | AW20: 2 | AX20: 3 | AZ20: 0.004012418232 | BA20: 0.002674945488 | BB20: 0.004012418232 | BC20: 0.006018627348 | BD20: 0 | BE20: 0 | BF20: 0 | BG20: 0 | BH20: 0 | BI20: 0 | BJ20: 0.002674945488 | BK20: 0.006018627348 | BL20: 0 | BM20: 0.002674945488 | BN20: 0.006018627348 | BP20: 0 | BQ20: 0 | BR20: 0 | BS20: 0 | BT20: 0 | BU20: 0 | BV20: 0 | BW20: 0 | BX20: 0 | BY20: 0 | BZ20: 0 | CA20: 0 | CB20: 0 | CC20: 0 | CD20: 0
U21: 0 | V21: EA 05 | W21: Emisión de NOx en calderas de combustión. | X21: 0 | Z21: 0 | AA21: 0 | AB21: 1 | AC21: 2 | AD21: 1 | AE21: 2 | AF21: 3 | AG21: 1 | AH21: 0 | AI21: 0 | AK21: 2 | AS21: 1 | AZ21: 0 | BA21: 0 | BB21: 0 | BC21: 0 | BD21: 0 | BE21: 0 | BF21: 0 | BG21: 0 | BH21: 0 | BI21: 0 | BJ21: 0 | BK21: 0 | BL21: 0 | BM21: 0 | BN21: 0 | BP21: 0 | BQ21: 0 | BR21: 0 | BS21: 0 | BT21: 0 | BU21: 0 | BV21: 0 | BW21: 0 | BX21: 0 | BY21: 0 | BZ21: 0 | CA21: 0 | CB21: 0 | CC21: 0 | CD21: 0
A22: si | B22: si | C22: si | D22: si | E22: si | F22: si | G22: si | H22: si | I22: si | J22: si | K22: si | L22: si | M22: si | N22: si | T22: NO | U22: =VLOOKUP(V22,CA!$D$10:$K$139,5,FALSE) -> 1 | V22: EA 04 | W22: Elección responsable de refrigerantes | X22: 0.02666974691 | Y22: ='Informe resultados'!M41 -> 0 | Z22: 3.307692308 | AA22: 0.02929155313 | AB22: 3 | AC22: 3 | AD22: 3 | AE22: 3 | AF22: 5 | AG22: 1 | AH22: 0.84375 | AI22: 0.02268907563 | AJ22: 5 | AK22: 3 | AL22: 2 | AZ22: 0.01481652606 | BA22: 0.005926610424 | BB22: 0.005926610424 | BC22: 0 | BD22: 0 | BE22: 0 | BF22: 0 | BG22: 0 | BH22: 0 | BI22: 0 | BJ22: 0 | BK22: 0 | BL22: 0 | BM22: 0 | BN22: 0 | BP22: 0 | BQ22: 0 | BR22: 0 | BS22: 0 | BT22: 0 | BU22: 0 | BV22: 0 | BW22: 0 | BX22: 0 | BY22: 0 | BZ22: 0 | CA22: 0 | CB22: 0 | CC22: 0 | CD22: 0
U23: RN | V23: Recursos naturales | X23: =SUM(X24:X35) -> 0.2292212126 | AA23: =SUM(AA24:AA35) -> 0.2506811989 | AI23: =SUM(AI24:AI35) -> 0.1966386555
A24: si | B24: si | C24: si | D24: si | E24: si | F24: si | G24: si | H24: si | I24: si | J24: si | K24: si | L24: si | M24: si | N24: si | T24: NO | U24: =VLOOKUP(V24,CA!$D$10:$K$139,5,FALSE) -> 1 | V24: RN 01 | W24: Consumo de agua en aparatos sanitarios | X24: =($Z24+2*$AH24)/($Z$60+2*$AH$60) -> 0.0214076698 | Y24: ='Informe resultados'!M42 -> 0 | Z24: =IF($U24=1,SUMPRODUCT(AB24:AG24,AB$5:AG$5),"0") -> 2.384615385 | AA24: =IF($Z$60=0,0,$Z24/$Z$60) -> 0.02111716621 | AB24: 3 | AC24: 1 | AD24: 3 | AE24: 3 | AF24: 3 | AG24: 1 | AH24: =IF($U24=1,SUMPRODUCT(AJ24:AX24,AJ$5:AX$5),"0") -> 0.8125 | AI24: =IF($AH$60=0,0,$AH24/$AH$60) -> 0.0218487395 | AK24: 2 | AL24: 1 | AN24: 3 | AW24: 2 | AX24: 3 | AZ24: =(AJ24*AJ$5)*$X24/SUMPRODUCT($AJ24:$AX24,$AJ$5:$AX$5) -> 0 | BA24: =(AK24*AK$5)*$X24/SUMPRODUCT($AJ24:$AX24,$AJ$5:$AX$5) -> 0.003293487661 | BB24: =(AL24*AL$5)*$X24/SUMPRODUCT($AJ24:$AX24,$AJ$5:$AX$5) -> 0.002470115746 | BC24: =(AM24*AM$5)*$X24/SUMPRODUCT($AJ24:$AX24,$AJ$5:$AX$5) -> 0 | BD24: =(AN24*AN$5)*$X24/SUMPRODUCT($AJ24:$AX24,$AJ$5:$AX$5) -> 0.004940231492 | BE24: =(AO24*AO$5)*$X24/SUMPRODUCT($AJ24:$AX24,$AJ$5:$AX$5) -> 0 | BF24: =(AP24*AP$5)*$X24/SUMPRODUCT($AJ24:$AX24,$AJ$5:$AX$5) -> 0 | BG24: =(AQ24*AQ$5)*$X24/SUMPRODUCT($AJ24:$AX24,$AJ$5:$AX$5) -> 0 | BH24: =(AU24*AU$5)*$X24/SUMPRODUCT($AJ24:$AX24,$AJ$5:$AX$5) -> 0 | BI24: =(AV24*AV$5)*$X24/SUMPRODUCT($AJ24:$AX24,$AJ$5:$AX$5) -> 0 | BJ24: 0.003293487661 | BK24: 0.007410347238 | BL24: =(AV24*AV$5)*$X24/SUMPRODUCT($AJ24:$AX24,$AJ$5:$AX$5) -> 0 | BM24: =(AW24*AW$5)*$X24/SUMPRODUCT($AJ24:$AX24,$AJ$5:$AX$5) -> 0.003293487661 | BN24: =(AX24*AX$5)*$X24/SUMPRODUCT($AJ24:$AX24,$AJ$5:$AX$5) -> 0.007410347238 | BP24: =(AJ24*AJ$5)*$Y24/SUMPRODUCT($AJ24:$AX24,$AJ$5:$AX$5) -> 0 | BQ24: =(AK24*AK$5)*$Y24/SUMPRODUCT($AJ24:$AX24,$AJ$5:$AX$5) -> 0 | BR24: =(AL24*AL$5)*$Y24/SUMPRODUCT($AJ24:$AX24,$AJ$5:$AX$5) -> 0 | BS24: =(AM24*AM$5)*$Y24/SUMPRODUCT($AJ24:$AX24,$AJ$5:$AX$5) -> 0 | BT24: =(AN24*AN$5)*$Y24/SUMPRODUCT($AJ24:$AX24,$AJ$5:$AX$5) -> 0 | BU24: =(AO24*AO$5)*$Y24/SUMPRODUCT($AJ24:$AX24,$AJ$5:$AX$5) -> 0 | BV24: 0 | BW24: 0 | BX24: =(AO24*AO$5)*$Y24/SUMPRODUCT($AJ24:$AX24,$AJ$5:$AX$5) -> 0 | BY24: =(AP24*AP$5)*$Y24/SUMPRODUCT($AJ24:$AX24,$AJ$5:$AX$5) -> 0 | BZ24: =(AQ24*AQ$5)*$Y24/SUMPRODUCT($AJ24:$AX24,$AJ$5:$AX$5) -> 0 | CA24: =(AU24*AU$5)*$Y24/SUMPRODUCT($AJ24:$AX24,$AJ$5:$AX$5) -> 0 | CB24: =(AV24*AV$5)*$Y24/SUMPRODUCT($AJ24:$AX24,$AJ$5:$AX$5) -> 0 | CC24: =(AW24*AW$5)*$Y24/SUMPRODUCT($AJ24:$AX24,$AJ$5:$AX$5) -> 0 | CD24: =(AX24*AX$5)*$Y24/SUMPRODUCT($AJ24:$AX24,$AJ$5:$AX$5) -> 0
A25: si | B25: si | C25: si | D25: no | E25: si | F25: si | G25: si | H25: si | I25: si | J25: si | K25: si | L25: si | M25: si | N25: no | U25: =IF(OR(DG!E29="Vivienda en un edificio",DG!E29="Parte de un edificio",DG!E47<=20),0,VLOOKUP(V25,CA!$D$10:$K$139,5,FALSE)) -> 0 | V25: RN 02 | W25: Necesidades de riego en jardines. | X25: 0 | Y25: ='Informe resultados'!M43 -> 0 | Z25: 0 | AA25: 0 | AB25: 3 | AC25: 1 | AD25: 3 | AE25: 3 | AF25: 3 | AG25: 2 | AH25: 0 | AI25: 0 | AK25: 2 | AL25: 1 | AN25: 3 | AW25: 2 | AX25: 3 | AZ25: 0 | BA25: 0 | BB25: 0 | BC25: 0 | BD25: 0 | BE25: 0 | BF25: 0 | BG25: 0 | BH25: 0 | BI25: 0 | BJ25: 0 | BK25: 0 | BL25: 0 | BM25: 0 | BN25: 0 | BP25: 0 | BQ25: 0 | BR25: 0 | BS25: 0 | BT25: 0 | BU25: 0 | BV25: 0 | BW25: 0 | BX25: 0 | BY25: 0 | BZ25: 0 | CA25: 0 | CB25: 0 | CC25: 0 | CD25: 0
A26: si | B26: no | C26: no | D26: no | E26: si | F26: si | G26: si | H26: si | I26: si | J26: si | K26: si | L26: si | M26: si | N26: si | U26: =IF(OR(DG!E$29="Vivienda unifamiliar",DG!E$29="Urbanizaciones",DG!E$29="Vivienda en un edificio"),0,VLOOKUP(V26,CA!$D$10:$K$139,5,FALSE)) -> 1 | V26: RN 03 | W26: Consumos de agua singulares. | X26: 0.01812208019 | Y26: ='Informe resultados'!M44 -> 0 | Z26: 1.769230769 | AA26: 0.01566757493 | AB26: 3 | AC26: 1 | AD26: 1 | AE26: 2 | AF26: 2 | AG26: 1 | AH26: 0.8125 | AI26: 0.0218487395 | AK26: 2 | AL26: 1 | AN26: 3 | AW26: 2 | AX26: 3 | AZ26: 0 | BA26: 0.002788012337 | BB26: 0.002091009253 | BC26: 0 | BD26: 0.004182018505 | BE26: 0 | BF26: 0 | BG26: 0 | BH26: 0 | BI26: 0 | BJ26: 0.002788012337 | BK26: 0.006273027758 | BL26: 0 | BM26: 0.002788012337 | BN26: 0.006273027758 | BP26: 0 | BQ26: 0 | BR26: 0 | BS26: 0 | BT26: 0 | BU26: 0 | BV26: 0 | BW26: 0 | BX26: 0 | BY26: 0 | BZ26: 0 | CA26: 0 | CB26: 0 | CC26: 0 | CD26: 0
A27: si | B27: si | C27: si | D27: no | E27: si | F27: si | G27: si | H27: si | I27: si | J27: si | K27: si | L27: si | M27: si | N27: no | U27: =IF(OR(DG!E$29="Vivienda en un edificio",DG!E$29="Parte de un edificio"),0,VLOOKUP(V27,CA!$D$10:$K$139,5,FALSE)) -> 1 | V27: RN 04 | W27: Uso de agua no potable. | X27: 0.02084295908 | Y27: ='Informe resultados'!M45 -> 0 | Z27: 2.153846154 | AA27: 0.01907356948 | AB27: 3 | AC27: 1 | AD27: 1 | AE27: 3 | AF27: 3 | AG27: 2 | AH27: 0.875 | AI27: 0.02352941176 | AK27: 2 | AL27: 1 | AN27: 3 | AW27: 3 | AX27: 3 | AZ27: 0 | BA27: 0.002977565583 | BB27: 0.002233174188 | BC27: 0 | BD27: 0.004466348375 | BE27: 0 | BF27: 0 | BG27: 0 | BH27: 0 | BI27: 0 | BJ27: 0.004466348375 | BK27: 0.006699522563 | BL27: 0 | BM27: 0.004466348375 | BN27: 0.006699522563 | BP27: 0 | BQ27: 0 | BR27: 0 | BS27: 0 | BT27: 0 | BU27: 0 | BV27: 0 | BW27: 0 | BX27: 0 | BY27: 0 | BZ27: 0 | CA27: 0 | CB27: 0 | CC27: 0 | CD27: 0
A28: si | B28: si | C28: si | D28: si | E28: si | F28: si | G28: si | H28: si | I28: si | J28: si | K28: si | L28: si | M28: si | N28: si | R28: no | U28: =IF(DG!E31="Edificio existente",0,VLOOKUP(V28,CA!$D$10:$K$139,5,FALSE)) -> 1 | V28: RN 05 | W28: Uso de materiales reciclados. | X28: 0.01812208019 | Y28: ='Informe resultados'!M46 -> 0 | Z28: =IF($U28=1,SUMPRODUCT(AB28:AG28,AB$5:AG$5),"0") -> 2.769230769 | AA28: 0.02452316076 | AB28: 3 | AC28: 3 | AD28: 2 | AE28: 3 | AF28: 3 | AG28: 2 | AH28: =IF($U28=1,SUMPRODUCT(AJ28:AX28,AJ$5:AX$5),"0") -> 0.3125 | AI28: 0.008403361345 | AO28: 3 | AP28: 1 | AX28: 1 | AZ28: 0 | BA28: 0 | BB28: 0 | BC28: 0 | BD28: 0 | BE28: 0.01087324811 | BF28: 0.001812208019 | BG28: 0 | BH28: 0 | BI28: =(AV28*AV$5)*$X28/SUMPRODUCT($AJ28:$AX28,$AJ$5:$AX$5) -> 0 | BJ28: 0 | BK28: 0.005436624057 | BL28: 0 | BM28: 0 | BN28: 0.005436624057 | BP28: 0 | BQ28: 0 | BR28: 0 | BS28: 0 | BT28: 0 | BU28: =(AO28*AO$5)*$Y28/SUMPRODUCT($AJ28:$AX28,$AJ$5:$AX$5) -> 0 | BV28: 0 | BW28: 0 | BX28: 0 | BY28: 0 | BZ28: 0 | CA28: 0 | CB28: 0 | CC28: 0 | CD28: 0
A29: si | B29: si | C29: si | D29: si | E29: si | F29: si | G29: si | H29: si | I29: si | J29: si | K29: si | L29: si | M29: si | N29: si | R29: no | U29: =IF(DG!E$31="Edificio existente",0,VLOOKUP(V29,CA!$D$10:$K$139,5,FALSE)) -> 1 | V29: RN 06 | W29: Elección responsable de materiales | X29: 0.01878946558 | Y29: ='Informe resultados'!M47 -> 0 | Z29: 2.769230769 | AA29: 0.02452316076 | AB29: 3 | AC29: 3 | AD29: 2 | AE29: 3 | AF29: 3 | AG29: 2 | AH29: 0.375 | AI29: 0.01008403361 | AL29: 1 | AO29: 3 | AS29: 1 | AZ29: 0 | BA29: 0 | BB29: 0.004697366395 | BC29: 0 | BD29: 0 | BE29: 0.009394732789 | BF29: 0 | BG29: 0 | BH29: 0 | BI29: 0 | BJ29: 0 | BK29: 0 | BL29: 0 | BM29: 0 | BN29: 0 | BP29: 0 | BQ29: 0 | BR29: 0 | BS29: 0 | BT29: 0 | BU29: 0 | BV29: 0 | BW29: 0 | BX29: 0 | BY29: 0 | BZ29: 0 | CA29: 0 | CB29: 0 | CC29: 0 | CD29: 0
A30: si | B30: si | C30: si | D30: si | E30: si | F30: si | G30: si | H30: si | I30: si | J30: si | K30: si | L30: si | M30: si | N30: si | R30: no | U30: =IF(DG!E$31="Edificio existente",0,VLOOKUP(V30,CA!$D$10:$K$139,5,FALSE)) -> 1 | V30: RN 07 | W30: Uso de materiales de producción local. | X30: 0.01973920632 | Y30: ='Informe resultados'!M48 -> 0 | Z30: 2.384615385 | AA30: 0.02111716621 | AB30: 3 | AC30: 1 | AD30: 3 | AE30: 3 | AF30: 3 | AG30: 1 | AH30: 0.65625 | AI30: 0.01764705882 | AJ30: 1 | AK30: 1 | AT30: 3 | AW30: 2 | AX30: 2 | AZ30: 0.002819886618 | BA30: 0.001879924412 | BB30: 0 | BC30: 0 | BD30: 0 | BE30: 0 | BF30: 0 | BG30: 0 | BH30: 0 | BI30: 0 | BJ30: 0.003759848824 | BK30: 0.005639773236 | BL30: 0 | BM30: 0.003759848824 | BN30: 0.005639773236 | BP30: 0 | BQ30: 0 | BR30: 0 | BS30: 0 | BT30: 0 | BU30: 0 | BV30: 0 | BW30: 0 | BX30: 0 | BY30: 0 | BZ30: 0 | CA30: 0 | CB30: 0 | CC30: 0 | CD30: 0
A31: si | B31: si | C31: si | D31: si | E31: si | F31: si | G31: si | H31: si | I31: si | J31: si | K31: si | L31: si | M31: si | N31: si | R31: no | U31: =IF(DG!E$31="Edificio existente",0,VLOOKUP(V31,CA!$D$10:$K$139,5,FALSE)) -> 1 | V31: RN 08 | W31: El edificio como banco de materiales | X31: 0.02163868782 | Y31: ='Informe resultados'!M49 -> 0 | Z31: 2.615384615 | AA31: 0.02316076294 | AB31: 3 | AC31: 2 | AD31: 3 | AE31: 2 | AF31: 3 | AG31: 2 | AH31: 0.71875 | AI31: 0.01932773109 | AO31: 3 | AP31: 3 | AR31: 3 | AW31: 1 | AX31: 3 | AZ31: 0 | BA31: 0 | BB31: 0 | BC31: 0 | BD31: 0 | BE31: 0.005644875083 | BF31: 0.002822437541 | BG31: 0 | BH31: 0 | BI31: 0 | BJ31: 0.001881625028 | BK31: 0.008467312624 | BL31: 0 | BM31: 0.001881625028 | BN31: 0.008467312624 | BP31: 0 | BQ31: 0 | BR31: 0 | BS31: 0 | BT31: 0 | BU31: 0 | BV31: 0 | BW31: 0 | BX31: 0 | BY31: 0 | BZ31: 0 | CA31: 0 | CB31: 0 | CC31: 0 | CD31: 0
A32: si | B32: si | C32: si | D32: si | E32: si | F32: si | G32: si | H32: si | I32: si | J32: si | K32: si | L32: si | M32: si | N32: si | R32: no | U32: =IF(DG!E$31="Edificio existente",0,VLOOKUP(V32,CA!$D$10:$K$139,5,FALSE)) -> 1 | V32: RN 09 | W32: Gestión de los residuos de la construcción. | X32: 0.01565788798 | Y32: ='Informe resultados'!M50 -> 0 | Z32: 2.307692308 | AA32: 0.0204359673 | AB32: 3 | AC32: 2 | AD32: 1 | AE32: 3 | AF32: 3 | AG32: 1 | AH32: 0.3125 | AI32: 0.008403361345 | AO32: 2 | AP32: 3 | AX32: 1 | AZ32: 0 | BA32: 0 | BB32: 0 | BC32: 0 | BD32: 0 | BE32: 0.006263155193 | BF32: 0.004697366395 | BG32: 0 | BH32: 0 | BI32: 0 | BJ32: 0 | BK32: 0.004697366395 | BL32: 0 | BM32: 0 | BN32: 0.004697366395 | BP32: 0 | BQ32: 0 | BR32: 0 | BS32: 0 | BT32: 0 | BU32: 0 | BV32: 0 | BW32: 0 | BX32: 0 | BY32: 0 | BZ32: 0 | CA32: 0 | CB32: 0 | CC32: 0 | CD32: 0
A33: si | B33: si | C33: si | D33: si | E33: si | F33: si | G33: si | H33: si | I33: si | J33: si | K33: si | L33: si | M33: si | N33: si | P33: no | R33: no | U33: =IF(DG!E31="Rehabilitación",VLOOKUP(V33,CA!$D$10:$K$139,5,FALSE),0) -> 0 | V33: RN 10 | W33: Nivel de intervención en rehabilitaciones | X33: 0 | Y33: ='Informe resultados'!M52 -> 0 | Z33: =IF($U33=1,SUMPRODUCT(AB33:AG33,AB$5:AG$5),"0") -> 0 | AA33: 0 | AB33: 3 | AC33: 2 | AD33: 2 | AE33: 2 | AF33: 3 | AG33: 2 | AH33: =IF($U33=1,SUMPRODUCT(AJ33:AX33,AJ$5:AX$5),"0") -> 0 | AI33: 0 | AO33: 3 | AP33: 3 | AR33: 2 | AX33: 3 | AZ33: =(AJ33*AJ$5)*$X33/SUMPRODUCT($AJ33:$AX33,$AJ$5:$AX$5) -> 0 | BA33: =(AK33*AK$5)*$X33/SUMPRODUCT($AJ33:$AX33,$AJ$5:$AX$5) -> 0 | BB33: =(AL33*AL$5)*$X33/SUMPRODUCT($AJ33:$AX33,$AJ$5:$AX$5) -> 0 | BC33: =(AM33*AM$5)*$X33/SUMPRODUCT($AJ33:$AX33,$AJ$5:$AX$5) -> 0 | BD33: =(AN33*AN$5)*$X33/SUMPRODUCT($AJ33:$AX33,$AJ$5:$AX$5) -> 0 | BE33: =(AO33*AO$5)*$X33/SUMPRODUCT($AJ33:$AX33,$AJ$5:$AX$5) -> 0 | BF33: =(AP33*AP$5)*$X33/SUMPRODUCT($AJ33:$AX33,$AJ$5:$AX$5) -> 0 | BG33: =(AQ33*AQ$5)*$X33/SUMPRODUCT($AJ33:$AX33,$AJ$5:$AX$5) -> 0 | BH33: =(AU33*AU$5)*$X33/SUMPRODUCT($AJ33:$AX33,$AJ$5:$AX$5) -> 0 | BI33: =(AV33*AV$5)*$X33/SUMPRODUCT($AJ33:$AX33,$AJ$5:$AX$5) -> 0 | BJ33: =(AW33*AW$5)*$X33/SUMPRODUCT($AJ33:$AX33,$AJ$5:$AX$5) -> 0 | BK33: =(AX33*AX$5)*$X33/SUMPRODUCT($AJ33:$AX33,$AJ$5:$AX$5) -> 0 | BL33: =(AV33*AV$5)*$X33/SUMPRODUCT($AJ33:$AX33,$AJ$5:$AX$5) -> 0 | BM33: =(AW33*AW$5)*$X33/SUMPRODUCT($AJ33:$AX33,$AJ$5:$AX$5) -> 0 | BN33: =(AX33*AX$5)*$X33/SUMPRODUCT($AJ33:$AX33,$AJ$5:$AX$5) -> 0 | BP33: =(AJ33*AJ$5)*$Y33/SUMPRODUCT($AJ33:$AX33,$AJ$5:$AX$5) -> 0 | BQ33: =(AK33*AK$5)*$Y33/SUMPRODUCT($AJ33:$AX33,$AJ$5:$AX$5) -> 0 | BR33: =(AL33*AL$5)*$Y33/SUMPRODUCT($AJ33:$AX33,$AJ$5:$AX$5) -> 0 | BS33: =(AM33*AM$5)*$Y33/SUMPRODUCT($AJ33:$AX33,$AJ$5:$AX$5) -> 0 | BT33: =(AN33*AN$5)*$Y33/SUMPRODUCT($AJ33:$AX33,$AJ$5:$AX$5) -> 0 | BU33: =(AO33*AO$5)*$Y33/SUMPRODUCT($AJ33:$AX33,$AJ$5:$AX$5) -> 0 | BV33: =(AP33*AP$5)*$Y33/SUMPRODUCT($AJ33:$AX33,$AJ$5:$AX$5) -> 0 | BW33: =(AQ33*AQ$5)*$Y33/SUMPRODUCT($AJ33:$AX33,$AJ$5:$AX$5) -> 0 | BX33: =(AO33*AO$5)*$Y33/SUMPRODUCT($AJ33:$AX33,$AJ$5:$AX$5) -> 0 | BY33: =(AP33*AP$5)*$Y33/SUMPRODUCT($AJ33:$AX33,$AJ$5:$AX$5) -> 0 | BZ33: =(AQ33*AQ$5)*$Y33/SUMPRODUCT($AJ33:$AX33,$AJ$5:$AX$5) -> 0 | CA33: =(AU33*AU$5)*$Y33/SUMPRODUCT($AJ33:$AX33,$AJ$5:$AX$5) -> 0 | CB33: =(AV33*AV$5)*$Y33/SUMPRODUCT($AJ33:$AX33,$AJ$5:$AX$5) -> 0 | CC33: =(AW33*AW$5)*$Y33/SUMPRODUCT($AJ33:$AX33,$AJ$5:$AX$5) -> 0 | CD33: =(AX33*AX$5)*$Y33/SUMPRODUCT($AJ33:$AX33,$AJ$5:$AX$5) -> 0
A34: si | B34: si | C34: si | D34: si | E34: si | F34: si | G34: si | H34: si | I34: si | J34: si | K34: si | L34: si | M34: si | N34: si | R34: no | U34: =IF(DG!E$31="Edificio existente",0,VLOOKUP(V34,CA!$D$10:$K$139,5,FALSE)) -> 1 | V34: RN 11 | W34: Impacto de los materiales de la construcción. | X34: 0.05485394527 | Y34: ='Informe resultados'!M53 -> 0 | Z34: 6.461538462 | AA34: 0.05722070845 | AB34: 8 | AC34: 3 | AD34: 8 | AE34: 3 | AF34: 8 | AG34: 8 | AH34: 1.90625 | AI34: 0.0512605042 | AJ34: 3 | AK34: 3 | AL34: 1 | AM34: 3 | AN34: 3 | AO34: 3 | AP34: 3 | AR34: 1 | AU34: 3 | AW34: 3 | AX34: 3 | AZ34: 0.00809320504 | BA34: 0.005395470027 | BB34: 0.002697735013 | BC34: 0.00809320504 | BD34: 0.005395470027 | BE34: 0.005395470027 | BF34: 0.002697735013 | BG34: 0 | BH34: 0.002697735013 | BI34: 0 | BJ34: 0.005395470027 | BK34: 0.00809320504 | BL34: 0 | BM34: 0.005395470027 | BN34: 0.00809320504 | BP34: 0 | BQ34: 0 | BR34: 0 | BS34: 0 | BT34: 0 | BU34: 0 | BV34: 0 | BW34: 0 | BX34: 0 | BY34: 0 | BZ34: 0 | CA34: 0 | CB34: 0 | CC34: 0 | CD34: 0
A35: si | B35: si | C35: si | D35: si | E35: si | F35: si | G35: si | H35: si | I35: si | J35: si | K35: si | L35: si | M35: si | N35: si | R35: no | U35: =IF(DG!E$31="Edificio existente",0,VLOOKUP(V35,CA!$D$10:$K$139,5,FALSE)) -> 1 | V35: RN 12 | W35: Ecoetiquetado de producto. | X35: 0.02004723035 | Y35: ='Informe resultados'!M54 -> 0 | Z35: 2.692307692 | AA35: 0.02384196185 | AB35: 3 | AC35: 3 | AD35: 2 | AE35: 3 | AF35: 3 | AG35: 1 | AH35: 0.53125 | AI35: 0.01428571429 | AJ35: 1 | AK35: 1 | AM35: 1 | AN35: 1 | AO35: 1 | AP35: 1 | AW35: 2 | AZ35: 0.003537746532 | BA35: 0.002358497688 | BB35: 0 | BC35: 0.003537746532 | BD35: 0.002358497688 | BE35: 0.002358497688 | BF35: 0.001179248844 | BG35: 0 | BH35: 0 | BI35: 0 | BJ35: 0.004716995377 | BK35: 0 | BL35: 0 | BM35: 0.004716995377 | BN35: 0 | BP35: 0 | BQ35: 0 | BR35: 0 | BS35: 0 | BT35: 0 | BU35: 0 | BV35: 0 | BW35: 0 | BX35: 0 | BY35: 0 | BZ35: 0 | CA35: 0 | CB35: 0 | CC35: 0 | CD35: 0
U36: AI | V36: Ambiente Interior. | X36: =SUM(X37:X41) -> 0.09487139997 | AA36: =SUM(AA37:AA41) -> 0.08651226158 | AI36: =SUM(AI37:AI41) -> 0.1075630252
A37: si | B37: si | C37: si | D37: si | E37: si | F37: si | G37: si | H37: si | I37: si | J37: si | K37: si | L37: si | M37: si | N37: si | R37: no | U37: =IF(DG!E$31="Edificio existente",0,VLOOKUP(V37,CA!$D$10:$K$139,5,FALSE)) -> 1 | V37: AI 01 | W37: Limitación de las emisiones de COVs | X37: =($Z37+2*$AH37)/($Z$60+2*$AH$60) -> 0.0190204836 | Y37: ='Informe resultados'!M55 -> 0 | Z37: =IF($U37=1,SUMPRODUCT(AB37:AG37,AB$5:AG$5),"0") -> 2 | AA37: =IF($Z$60=0,0,$Z37/$Z$60) -> 0.01771117166 | AB37: 1 | AC37: 1 | AD37: 3 | AE37: 3 | AF37: 3 | AG37: 2 | AH37: =IF($U37=1,SUMPRODUCT(AJ37:AX37,AJ$5:AX$5),"0") -> 0.78125 | AI37: =IF($AH$60=0,0,$AH37/$AH$60) -> 0.02100840336 | AS37: 5 | AW37: 5 | AZ37: =(AJ37*AJ$5)*$X37/SUMPRODUCT($AJ37:$AX37,$AJ$5:$AX$5) -> 0 | BA37: 0 | BB37: 0 | BC37: 0 | BD37: 0 | BE37: 0 | BF37: 0 | BG37: 0 | BH37: =(AU37*AU$5)*$X37/SUMPRODUCT($AJ37:$AX37,$AJ$5:$AX$5) -> 0 | BI37: 0 | BJ37: 0.007608193439 | BK37: 0 | BL37: =(AV37*AV$5)*$X37/SUMPRODUCT($AJ37:$AX37,$AJ$5:$AX$5) -> 0 | BM37: 0.007608193439 | BN37: 0 | BP37: =(AJ37*AJ$5)*$Y37/SUMPRODUCT($AJ37:$AX37,$AJ$5:$AX$5) -> 0 | BQ37: 0 | BR37: 0 | BS37: 0 | BT37: 0 | BU37: 0 | BV37: 0 | BW37: 0 | BX37: =(AO37*AO$5)*$Y37/SUMPRODUCT($AJ37:$AX37,$AJ$5:$AX$5) -> 0 | BY37: 0 | BZ37: 0 | CA37: =(AU37*AU$5)*$Y37/SUMPRODUCT($AJ37:$AX37,$AJ$5:$AX$5) -> 0 | CB37: 0 | CC37: 0 | CD37: 0
A38: si | B38: si | C38: si | D38: si | E38: si | F38: si | G38: si | H38: si | I38: si | J38: si | K38: si | L38: si | M38: si | N38: si | T38: NO | U38: =VLOOKUP(V38,CA!$D$10:$K$139,5,FALSE) -> 1 | V38: AI 02 | W38: Control de la calidad del aire | X38: =($Z38+2*$AH38)/($Z$60+2*$AH$60) -> 0.0186097849 | Y38: ='Informe resultados'!M56 -> 0 | Z38: 1.923076923 | AA38: =IF($Z$60=0,0,$Z38/$Z$60) -> 0.01702997275 | AB38: 1 | AC38: 1 | AD38: 3 | AE38: 3 | AF38: 3 | AG38: 1 | AH38: 0.78125 | AI38: =IF($AH$60=0,0,$AH38/$AH$60) -> 0.02100840336 | AS38: 5 | AW38: 5 | AZ38: 0 | BA38: 0 | BB38: 0 | BC38: 0 | BD38: 0 | BE38: 0 | BF38: 0 | BG38: 0 | BH38: 0 | BI38: 0 | BJ38: 0.007443913959 | BK38: 0 | BL38: 0 | BM38: 0.007443913959 | BN38: 0 | BP38: 0 | BQ38: 0 | BR38: 0 | BS38: 0 | BT38: 0 | BU38: 0 | BV38: 0 | BW38: 0 | BX38: 0 | BY38: 0 | BZ38: 0 | CA38: 0 | CB38: 0 | CC38: 0 | CD38: 0
A39: si | B39: no | C39: no | D39: si | E39: si | F39: si | G39: si | H39: si | I39: si | J39: si | K39: si | L39: si | M39: si | N39: si | U39: =IF(OR(DG!E29="Unifamiliar",DG!E29="Urbanización"),0,VLOOKUP(V39,CA!$D$10:$K$139,5,FALSE)) -> 1 | V39: AI 03 | W39: Iluminación natural. | X39: =($Z39+2*$AH39)/($Z$60+2*$AH$60) -> 0.0186097849 | Y39: ='Informe resultados'!M57 -> 0.02002156168 | Z39: 1.923076923 | AA39: =IF($Z$60=0,0,$Z39/$Z$60) -> 0.01702997275 | AB39: 1 | AC39: 1 | AD39: 3 | AE39: 2 | AF39: 3 | AG39: 2 | AH39: 0.78125 | AI39: =IF($AH$60=0,0,$AH39/$AH$60) -> 0.02100840336 | AS39: 5 | AW39: 5 | AZ39: 0 | BA39: 0 | BB39: 0 | BC39: 0 | BD39: 0 | BE39: 0 | BF39: 0 | BG39: 0 | BH39: 0 | BI39: 0 | BJ39: 0.007443913959 | BK39: 0 | BL39: 0 | BM39: 0.007443913959 | BN39: 0 | BP39: 0 | BQ39: 0 | BR39: 0 | BS39: 0 | BT39: 0 | BU39: 0 | BV39: 0 | BW39: 0 | BX39: 0 | BY39: 0 | BZ39: 0 | CA39: 0 | CB39: 0 | CC39: 0.008008624673 | CD39: 0
A40: no | B40: no | C40: no | D40: no | E40: si | F40: si | G40: si | H40: si | I40: si | J40: si | K40: si | L40: si | M40: si | N40: si | U40: =IF(OR(DG!E$29="Residencial colectivo",DG!E$29="unifamiliar",DG!E$29="urbanización",DG!E$29="Vivienda en un edificio"),0,VLOOKUP(V40,CA!$D$10:$K$139,5,FALSE)) -> 1 | V40: AI 04 | W40: Iluminación artificial | X40: =($Z40+2*$AH40)/($Z$60+2*$AH$60) -> 0.02002156168 | Y40: ='Informe resultados'!M58 -> 0 | Z40: 2 | AA40: =IF($Z$60=0,0,$Z40/$Z$60) -> 0.01771117166 | AB40: 1 | AC40: 1 | AD40: 3 | AE40: 3 | AF40: 3 | AG40: 2 | AH40: 0.875 | AI40: =IF($AH$60=0,0,$AH40/$AH$60) -> 0.02352941176 | AJ40: 1 | AS40: 5 | AW40: 5 | AZ40: 0.002145167323 | BA40: 0 | BB40: 0 | BC40: 0 | BD40: 0 | BE40: 0 | BF40: 0 | BG40: 0 | BH40: 0 | BI40: 0 | BJ40: 0.007150557744 | BK40: 0 | BL40: 0 | BM40: 0.007150557744 | BN40: 0 | BP40: 0 | BQ40: 0 | BR40: 0 | BS40: 0 | BT40: 0 | BU40: 0 | BV40: 0 | BW40: 0 | BX40: 0 | BY40: 0 | BZ40: 0 | CA40: 0 | CB40: 0 | CC40: 0 | CD40: 0
A41: si | B41: si | C41: si | D41: si | E41: si | F41: si | G41: si | H41: si | I41: si | J41: si | K41: si | L41: si | M41: si | N41: si | T41: NO | U41: =VLOOKUP(V41,CA!$D$10:$K$139,5,FALSE) -> 1 | V41: AI 05 | W41: Protección frente al ruido. | X41: =($Z41+2*$AH41)/($Z$60+2*$AH$60) -> 0.0186097849 | Y41: ='Informe resultados'!M59 -> 0 | Z41: 1.923076923 | AA41: =IF($Z$60=0,0,$Z41/$Z$60) -> 0.01702997275 | AB41: 1 | AC41: 1 | AD41: 3 | AE41: 3 | AF41: 3 | AG41: 1 | AH41: 0.78125 | AI41: =IF($AH$60=0,0,$AH41/$AH$60) -> 0.02100840336 | AS41: 5 | AW41: 5 | AZ41: =(AJ41*AJ$5)*$X41/SUMPRODUCT($AJ41:$AX41,$AJ$5:$AX$5) -> 0 | BA41: =(AK41*AK$5)*$X41/SUMPRODUCT($AJ41:$AX41,$AJ$5:$AX$5) -> 0 | BB41: =(AL41*AL$5)*$X41/SUMPRODUCT($AJ41:$AX41,$AJ$5:$AX$5) -> 0 | BC41: =(AM41*AM$5)*$X41/SUMPRODUCT($AJ41:$AX41,$AJ$5:$AX$5) -> 0 | BD41: =(AN41*AN$5)*$X41/SUMPRODUCT($AJ41:$AX41,$AJ$5:$AX$5) -> 0 | BE41: =(AO41*AO$5)*$X41/SUMPRODUCT($AJ41:$AX41,$AJ$5:$AX$5) -> 0 | BF41: =(AP41*AP$5)*$X41/SUMPRODUCT($AJ41:$AX41,$AJ$5:$AX$5) -> 0 | BG41: =(AQ41*AQ$5)*$X41/SUMPRODUCT($AJ41:$AX41,$AJ$5:$AX$5) -> 0 | BH41: =(AU41*AU$5)*$X41/SUMPRODUCT($AJ41:$AX41,$AJ$5:$AX$5) -> 0 | BI41: =(AV41*AV$5)*$X41/SUMPRODUCT($AJ41:$AX41,$AJ$5:$AX$5) -> 0 | BJ41: =(AW41*AW$5)*$X41/SUMPRODUCT($AJ41:$AX41,$AJ$5:$AX$5) -> 0.007443913959 | BK41: =(AX41*AX$5)*$X41/SUMPRODUCT($AJ41:$AX41,$AJ$5:$AX$5) -> 0 | BL41: =(AV41*AV$5)*$X41/SUMPRODUCT($AJ41:$AX41,$AJ$5:$AX$5) -> 0 | BM41: =(AW41*AW$5)*$X41/SUMPRODUCT($AJ41:$AX41,$AJ$5:$AX$5) -> 0.007443913959 | BN41: =(AX41*AX$5)*$X41/SUMPRODUCT($AJ41:$AX41,$AJ$5:$AX$5) -> 0 | BP41: =(AJ41*AJ$5)*$Y41/SUMPRODUCT($AJ41:$AX41,$AJ$5:$AX$5) -> 0 | BQ41: =(AK41*AK$5)*$Y41/SUMPRODUCT($AJ41:$AX41,$AJ$5:$AX$5) -> 0 | BR41: =(AL41*AL$5)*$Y41/SUMPRODUCT($AJ41:$AX41,$AJ$5:$AX$5) -> 0 | BS41: =(AM41*AM$5)*$Y41/SUMPRODUCT($AJ41:$AX41,$AJ$5:$AX$5) -> 0 | BT41: =(AN41*AN$5)*$Y41/SUMPRODUCT($AJ41:$AX41,$AJ$5:$AX$5) -> 0 | BU41: =(AO41*AO$5)*$Y41/SUMPRODUCT($AJ41:$AX41,$AJ$5:$AX$5) -> 0 | BV41: =(AP41*AP$5)*$Y41/SUMPRODUCT($AJ41:$AX41,$AJ$5:$AX$5) -> 0 | BW41: =(AQ41*AQ$5)*$Y41/SUMPRODUCT($AJ41:$AX41,$AJ$5:$AX$5) -> 0 | BX41: =(AO41*AO$5)*$Y41/SUMPRODUCT($AJ41:$AX41,$AJ$5:$AX$5) -> 0 | BY41: =(AP41*AP$5)*$Y41/SUMPRODUCT($AJ41:$AX41,$AJ$5:$AX$5) -> 0 | BZ41: =(AQ41*AQ$5)*$Y41/SUMPRODUCT($AJ41:$AX41,$AJ$5:$AX$5) -> 0 | CA41: =(AU41*AU$5)*$Y41/SUMPRODUCT($AJ41:$AX41,$AJ$5:$AX$5) -> 0 | CB41: =(AV41*AV$5)*$Y41/SUMPRODUCT($AJ41:$AX41,$AJ$5:$AX$5) -> 0 | CC41: =(AW41*AW$5)*$Y41/SUMPRODUCT($AJ41:$AX41,$AJ$5:$AX$5) -> 0 | CD41: =(AX41*AX$5)*$Y41/SUMPRODUCT($AJ41:$AX41,$AJ$5:$AX$5) -> 0
U42: AS | V42: Aspectos sociales | X42: =SUM(X43:X51) -> 0.1671543714 | AA42: =SUM(AA43:AA51) -> 0.1709809264 | AI42: =SUM(AI43:AI51) -> 0.1613445378
A43: si | B43: si | C43: si | D43: si | E43: si | F43: si | G43: si | H43: si | I43: si | J43: si | K43: si | L43: si | M43: si | N43: si | T43: NO | U43: =VLOOKUP(V43,CA!$D$10:$K$139,5,FALSE) -> 1 | V43: AS 01 | W43: Espacios para todas las personas | X43: =($Z43+2*$AH43)/($Z$60+2*$AH$60) -> 0.0182760922 | Y43: ='Informe resultados'!M60 -> 0 | Z43: =IF($U43=1,SUMPRODUCT(AB43:AG43,AB$5:AG$5),"0") -> 1.923076923 | AA43: =IF($Z$60=0,0,$Z43/$Z$60) -> 0.01702997275 | AB43: 1 | AC43: 1 | AD43: 3 | AE43: 2 | AF43: 3 | AG43: 2 | AH43: =IF($U43=1,SUMPRODUCT(AJ43:AX43,AJ$5:AX$5),"0") -> 0.75 | AI43: =IF($AH$60=0,0,$AH43/$AH$60) -> 0.02016806723 | AQ43: 3 | AR43: 3 | AS43: 3 | AT43: 1 | AW43: 2 | AZ43: =(AJ43*AJ$5)*$X43/SUMPRODUCT($AJ43:$AX43,$AJ$5:$AX$5) -> 0 | BA43: =(AK43*AK$5)*$X43/SUMPRODUCT($AJ43:$AX43,$AJ$5:$AX$5) -> 0 | BB43: =(AL43*AL$5)*$X43/SUMPRODUCT($AJ43:$AX43,$AJ$5:$AX$5) -> 0 | BC43: =(AM43*AM$5)*$X43/SUMPRODUCT($AJ43:$AX43,$AJ$5:$AX$5) -> 0 | BD43: =(AN43*AN$5)*$X43/SUMPRODUCT($AJ43:$AX43,$AJ$5:$AX$5) -> 0 | BE43: =(AO43*AO$5)*$X43/SUMPRODUCT($AJ43:$AX43,$AJ$5:$AX$5) -> 0 | BF43: =(AP43*AP$5)*$X43/SUMPRODUCT($AJ43:$AX43,$AJ$5:$AX$5) -> 0 | BG43: =(AQ43*AQ$5)*$X43/SUMPRODUCT($AJ43:$AX43,$AJ$5:$AX$5) -> 0.00456902305 | BH43: =(AU43*AU$5)*$X43/SUMPRODUCT($AJ43:$AX43,$AJ$5:$AX$5) -> 0 | BI43: =(AV43*AV$5)*$X43/SUMPRODUCT($AJ43:$AX43,$AJ$5:$AX$5) -> 0 | BJ43: =(AW43*AW$5)*$X43/SUMPRODUCT($AJ43:$AX43,$AJ$5:$AX$5) -> 0.003046015367 | BK43: =(AX43*AX$5)*$X43/SUMPRODUCT($AJ43:$AX43,$AJ$5:$AX$5) -> 0 | BL43: =(AV43*AV$5)*$X43/SUMPRODUCT($AJ43:$AX43,$AJ$5:$AX$5) -> 0 | BM43: =(AW43*AW$5)*$X43/SUMPRODUCT($AJ43:$AX43,$AJ$5:$AX$5) -> 0.003046015367 | BN43: =(AX43*AX$5)*$X43/SUMPRODUCT($AJ43:$AX43,$AJ$5:$AX$5) -> 0 | BP43: =(AJ43*AJ$5)*$Y43/SUMPRODUCT($AJ43:$AX43,$AJ$5:$AX$5) -> 0 | BQ43: =(AK43*AK$5)*$Y43/SUMPRODUCT($AJ43:$AX43,$AJ$5:$AX$5) -> 0 | BR43: =(AL43*AL$5)*$Y43/SUMPRODUCT($AJ43:$AX43,$AJ$5:$AX$5) -> 0 | BS43: =(AM43*AM$5)*$Y43/SUMPRODUCT($AJ43:$AX43,$AJ$5:$AX$5) -> 0 | BT43: =(AN43*AN$5)*$Y43/SUMPRODUCT($AJ43:$AX43,$AJ$5:$AX$5) -> 0 | BU43: =(AO43*AO$5)*$Y43/SUMPRODUCT($AJ43:$AX43,$AJ$5:$AX$5) -> 0 | BV43: =(AP43*AP$5)*$Y43/SUMPRODUCT($AJ43:$AX43,$AJ$5:$AX$5) -> 0 | BW43: =(AQ43*AQ$5)*$Y43/SUMPRODUCT($AJ43:$AX43,$AJ$5:$AX$5) -> 0 | BX43: =(AO43*AO$5)*$Y43/SUMPRODUCT($AJ43:$AX43,$AJ$5:$AX$5) -> 0 | BY43: =(AP43*AP$5)*$Y43/SUMPRODUCT($AJ43:$AX43,$AJ$5:$AX$5) -> 0 | BZ43: =(AQ43*AQ$5)*$Y43/SUMPRODUCT($AJ43:$AX43,$AJ$5:$AX$5) -> 0 | CA43: =(AU43*AU$5)*$Y43/SUMPRODUCT($AJ43:$AX43,$AJ$5:$AX$5) -> 0 | CB43: =(AV43*AV$5)*$Y43/SUMPRODUCT($AJ43:$AX43,$AJ$5:$AX$5) -> 0 | CC43: =(AW43*AW$5)*$Y43/SUMPRODUCT($AJ43:$AX43,$AJ$5:$AX$5) -> 0 | CD43: =(AX43*AX$5)*$Y43/SUMPRODUCT($AJ43:$AX43,$AJ$5:$AX$5) -> 0
A44: si | B44: no | C44: no | D44: no | E44: si | F44: si | G44: si | H44: si | I44: si | J44: no | K44: no | L44: si | M44: si | N44: no | U44: =IF(OR(DG!E$29="unifamiliar",DG!E$29="urbanización",DG!E$29="Vivienda en un edificio",DG!E$29="Servicios de restauración",DG!E$29="Edificios deportivos",DG!E$29="Local o parte de un edificio"),0,VLOOKUP(V44,CA!$D$10:$K$139,5,FALSE)) -> 1 | V44: AS 02 | W44: Espacios para la comunicación | X44: 0.01760870681 | Y44: ='Informe resultados'!M61 -> 0 | Z44: 1.923076923 | AA44: 0.01702997275 | AB44: 1 | AC44: 1 | AD44: 3 | AE44: 2 | AF44: 3 | AG44: 2 | AH44: 0.6875 | AI44: 0.01848739496 | AQ44: 3 | AR44: 3 | AS44: 3 | AW44: 2 | AZ44: 0 | BA44: 0 | BB44: 0 | BC44: 0 | BD44: 0 | BE44: 0 | BF44: 0 | BG44: 0.004802374585 | BH44: 0 | BI44: 0 | BJ44: 0.003201583057 | BK44: 0 | BL44: 0 | BM44: 0.003201583057 | BN44: 0 | BP44: 0 | BQ44: 0 | BR44: 0 | BS44: 0 | BT44: 0 | BU44: 0 | BV44: 0 | BW44: 0 | BX44: 0 | BY44: 0 | BZ44: 0 | CA44: 0 | CB44: 0 | CC44: 0 | CD44: 0
A45: si | B45: si | C45: si | D45: si | E45: no | F45: no | G45: no | H45: no | I45: si | J45: no | K45: no | L45: si | M45: no | N45: si | U45: =IF(OR(DG!E$29="Edificios administrativos",DG!E$29="equipamiento público",DG!E$29="Edificios docentes",DG!E$29="Edificios comerciales",DG!E$29="Servicios de restauración",DG!E$29="Edificios deportivos",DG!E$29="Industria ligera o logística"),0,VLOOKUP(V45,CA!$D$10:$K$139,5,FALSE)) -> 1 | V45: AS 03 | W45: Derecho al sol | X45: 0.01660762873 | Y45: ='Informe resultados'!M62 -> 0 | Z45: 1.923076923 | AA45: 0.01702997275 | AB45: 1 | AC45: 1 | AD45: 3 | AE45: 3 | AF45: 3 | AG45: 1 | AH45: 0.59375 | AI45: 0.01596638655 | AR45: 2 | AS45: 3 | AT45: 1 | AW45: 3 | AZ45: 0 | BA45: 0 | BB45: 0 | BC45: 0 | BD45: 0 | BE45: 0 | BF45: 0 | BG45: 0 | BH45: 0 | BI45: 0 | BJ45: 0.005244514335 | BK45: 0 | BL45: 0 | BM45: 0.005244514335 | BN45: 0 | BP45: 0 | BQ45: 0 | BR45: 0 | BS45: 0 | BT45: 0 | BU45: 0 | BV45: 0 | BW45: 0 | BX45: 0 | BY45: 0 | BZ45: 0 | CA45: 0 | CB45: 0 | CC45: 0 | CD45: 0
A46: si | B46: si | C46: si | D46: si | E46: no | F46: no | G46: no | H46: no | I46: si | J46: no | K46: no | L46: no | M46: no | N46: si | U46: =IF(OR(DG!E$29="Edificios administrativos",DG!E$29="equipamiento público",DG!E$29="Edificios docentes",DG!E$29="Edificios comerciales",DG!E$29="Servicios de restauración",DG!E$29="Edificios deportivos",DG!E$29="Edificios sanitarios",DG!E$29="Industria ligera o logística"),0,VLOOKUP(V46,CA!$D$10:$K$139,5,FALSE)) -> 1 | V46: AS 04 | W46: Derecho a la intimidad | X46: 0.01601724935 | Y46: ='Informe resultados'!M63 -> 0 | Z46: 2 | AA46: 0.01771117166 | AB46: 1 | AC46: 1 | AD46: 3 | AE46: 3 | AF46: 3 | AG46: 2 | AH46: 0.5 | AI46: 0.01344537815 | AR46: 2 | AS46: 3 | AU46: 1 | AW46: 2 | AZ46: 0 | BA46: 0 | BB46: 0 | BC46: 0 | BD46: 0 | BE46: 0 | BF46: 0 | BG46: 0 | BH46: 0.001001078084 | BI46: 0 | BJ46: 0.004004312336 | BK46: 0 | BL46: 0 | BM46: 0.004004312336 | BN46: 0 | BP46: 0 | BQ46: 0 | BR46: 0 | BS46: 0 | BT46: 0 | BU46: 0 | BV46: 0 | BW46: 0 | BX46: 0 | BY46: 0 | BZ46: 0 | CA46: 0 | CB46: 0 | CC46: 0 | CD46: 0
A47: si | B47: si | C47: si | D47: si | E47: si | F47: no | G47: si | H47: no | I47: si | J47: no | K47: si | L47: si | M47: no | N47: si | U47: =IF(OR(DG!E$29="equipamiento público",DG!E$29="Edificios comerciales",DG!E$29="Servicios de restauración",DG!E$29="Industria ligera o logística"),0,VLOOKUP(V47,CA!$D$10:$K$139,5,FALSE)) -> 1 | V47: AS 05 | W47: Contacto visual con el exterior | X47: 0.01701832743 | Y47: ='Informe resultados'!M64 -> 0 | Z47: 2 | AA47: 0.01771117166 | AB47: 1 | AC47: 1 | AD47: 3 | AE47: 3 | AF47: 3 | AG47: 2 | AH47: 0.59375 | AI47: 0.01596638655 | AR47: 2 | AS47: 3 | AV47: 1 | AW47: 3 | AZ47: 0 | BA47: 0 | BB47: 0 | BC47: 0 | BD47: 0 | BE47: 0 | BF47: 0 | BG47: 0 | BH47: 0 | BI47: 0.001791402887 | BJ47: 0.005374208662 | BK47: 0 | BL47: 0.001791402887 | BM47: 0.005374208662 | BN47: 0 | BP47: 0 | BQ47: 0 | BR47: 0 | BS47: 0 | BT47: 0 | BU47: 0 | BV47: 0 | BW47: 0 | BX47: 0 | BY47: 0 | BZ47: 0 | CA47: 0 | CB47: 0 | CC47: 0 | CD47: 0
A48: si | B48: si | C48: si | D48: si | E48: si | F48: no | G48: no | H48: no | I48: no | J48: no | K48: no | L48: si | M48: no | N48: no | U48: =IF(OR(DG!E$29="equipamiento público",DG!E$29="Edificios docentes",DG!E$29="Edificios comerciales",DG!E$29="Alojamiento y hospedaje",DG!E$29="Servicios de restauración",DG!E$29="Edificios deportivos",DG!E$29="Industria ligera o logística",DG!E$29="local o parte de un edificio"),0,VLOOKUP(V48,CA!$D$10:$K$139,5,FALSE)) -> 1 | V48: AS 06 | W48: Espacios abiertos privados | X48: 0.01735202012 | Y48: ='Informe resultados'!M65 -> 0 | Z48: 2 | AA48: 0.01771117166 | AB48: 1 | AC48: 1 | AD48: 3 | AE48: 3 | AF48: 3 | AG48: 2 | AH48: 0.625 | AI48: 0.01680672269 | AR48: 3 | AS48: 3 | AV48: 1 | AW48: 3 | AZ48: 0 | BA48: 0 | BB48: 0 | BC48: 0 | BD48: 0 | BE48: 0 | BF48: 0 | BG48: 0 | BH48: 0 | BI48: 0.001735202012 | BJ48: 0.005205606037 | BK48: 0 | BL48: 0.001735202012 | BM48: 0.005205606037 | BN48: 0 | BP48: 0 | BQ48: 0 | BR48: 0 | BS48: 0 | BT48: 0 | BU48: 0 | BV48: 0 | BW48: 0 | BX48: 0 | BY48: 0 | BZ48: 0 | CA48: 0 | CB48: 0 | CC48: 0 | CD48: 0
A49: si | B49: si | C49: si | D49: si | E49: si | F49: si | G49: si | H49: si | I49: si | J49: si | K49: si | L49: si | M49: si | N49: si | T49: NO | U49: =VLOOKUP(V49,CA!$D$10:$K$139,5,FALSE) -> 1 | V49: AS 07 | W49: Diseño inclusivo | X49: 0.01976487499 | Y49: ='Informe resultados'!M66 -> 0 | Z49: 2.076923077 | AA49: 0.01839237057 | AB49: 1 | AC49: 1 | AD49: 3 | AE49: 3 | AF49: 3 | AG49: 3 | AH49: 0.8125 | AI49: 0.0218487395 | AQ49: 3 | AR49: 3 | AS49: 3 | AV49: 1 | AW49: 3 | AZ49: 0 | BA49: 0 | BB49: 0 | BC49: 0 | BD49: 0 | BE49: 0 | BF49: 0 | BG49: 0.004561124999 | BH49: 0 | BI49: 0.001520375 | BJ49: 0.004561124999 | BK49: 0 | BL49: 0.001520375 | BM49: 0.004561124999 | BN49: 0 | BP49: 0 | BQ49: 0 | BR49: 0 | BS49: 0 | BT49: 0 | BU49: 0 | BV49: 0 | BW49: 0 | BX49: 0 | BY49: 0 | BZ49: 0 | CA49: 0 | CB49: 0 | CC49: 0 | CD49: 0
A50: si | B50: si | C50: si | D50: si | E50: si | F50: si | G50: si | H50: si | I50: si | J50: si | K50: si | L50: si | M50: si | N50: si | T50: NO | U50: =VLOOKUP(V50,CA!$D$10:$K$139,5,FALSE) -> 1 | V50: AS 08 | W50: Conexión con la naturaleza | X50: 0.02605369886 | Y50: ='Informe resultados'!M67 -> 0 | Z50: 2.692307692 | AA50: 0.02384196185 | AB50: 2 | AC50: 3 | AD50: 3 | AE50: 2 | AF50: 3 | AG50: 3 | AH50: 1.09375 | AI50: 0.02941176471 | AJ50: 1 | AL50: 3 | AN50: 2 | AR50: 2 | AS50: 3 | AV50: 1 | AW50: 3 | AZ50: 0.002233174188 | BA50: 0 | BB50: 0.006699522563 | BC50: 0 | BD50: 0.002977565583 | BE50: 0 | BF50: 0 | BG50: 0 | BH50: 0 | BI50: 0.001488782792 | BJ50: 0.004466348375 | BK50: 0 | BL50: 0.001488782792 | BM50: 0.004466348375 | BN50: 0 | BP50: 0 | BQ50: 0 | BR50: 0 | BS50: 0 | BT50: 0 | BU50: 0 | BV50: 0 | BW50: 0 | BX50: 0 | BY50: 0 | BZ50: 0 | CA50: 0 | CB50: 0 | CC50: 0 | CD50: 0
A51: si | B51: si | C51: si | D51: si | E51: si | F51: si | G51: si | H51: si | I51: si | J51: si | K51: si | L51: si | M51: si | N51: si | T51: NO | U51: =VLOOKUP(V51,CA!$D$10:$K$139,5,FALSE) -> 1 | V51: AS 09 | W51: El edificio como herramienta de comunicación | X51: 0.01845577288 | Y51: ='Informe resultados'!M68 -> 0 | Z51: 2.769230769 | AA51: 0.02452316076 | AB51: 3 | AC51: 3 | AD51: 2 | AE51: 2 | AF51: 3 | AG51: 3 | AH51: 0.34375 | AI51: 0.009243697479 | AJ51: 1 | AT51: 3 | AV51: 1 | AZ51: 0.005033392605 | BA51: 0 | BB51: 0 | BC51: 0 | BD51: 0 | BE51: 0 | BF51: 0 | BG51: 0 | BH51: 0 | BI51: 0.00335559507 | BJ51: 0 | BK51: 0 | BL51: 0.00335559507 | BM51: 0 | BN51: 0 | BP51: 0 | BQ51: 0 | BR51: 0 | BS51: 0 | BT51: 0 | BU51: 0 | BV51: 0 | BW51: 0 | BX51: 0 | BY51: 0 | BZ51: 0 | CA51: 0 | CB51: 0 | CC51: 0 | CD51: 0
U52: CE | V52: Calidad de la edificación | X52: =SUM(X53:X59) -> 0.1802967298 | AA52: =SUM(AA53:AA59) -> 0.1573569482 | AI52: =SUM(AI53:AI59) -> 0.2151260504
A53: si | B53: si | C53: si | D53: si | E53: si | F53: si | G53: si | H53: si | I53: si | J53: si | K53: si | L53: si | M53: si | N53: si | T53: NO | U53: =VLOOKUP(V53,CA!$D$10:$K$139,5,FALSE) -> 1 | V53: CE 01 | W53: Diseño pasivo | X53: =($Z53+2*$AH53)/($Z$60+2*$AH$60) -> 0.02836387905 | Y53: ='Informe resultados'!M69 -> 0.02669541558 | Z53: =IF($U53=1,SUMPRODUCT(AB53:AG53,AB$5:AG$5),"0") -> 3 | AA53: =IF($Z$60=0,0,$Z53/$Z$60) -> 0.02656675749 | AB53: 3 | AC53: 3 | AD53: 3 | AE53: 3 | AF53: 3 | AG53: 3 | AH53: =IF($U53=1,SUMPRODUCT(AJ53:AX53,AJ$5:AX$5),"0") -> 1.15625 | AI53: =IF($AH$60=0,0,$AH53/$AH$60) -> 0.03109243697 | AJ53: 3 | AK53: 3 | AM53: 3 | AW53: 2 | AX53: 3 | AZ53: =(AJ53*AJ$5)*$X53/SUMPRODUCT($AJ53:$AX53,$AJ$5:$AX$5) -> 0.006899321931 | BA53: 0.004599547954 | BB53: 0 | BC53: 0.006899321931 | BD53: 0 | BE53: 0 | BF53: 0 | BG53: 0 | BH53: =(AU53*AU$5)*$X53/SUMPRODUCT($AJ53:$AX53,$AJ$5:$AX$5) -> 0 | BI53: 0 | BJ53: 0.003066365303 | BK53: 0.006899321931 | BL53: =(AV53*AV$5)*$X53/SUMPRODUCT($AJ53:$AX53,$AJ$5:$AX$5) -> 0 | BM53: 0.003066365303 | BN53: 0.006899321931 | BP53: =(AJ53*AJ$5)*$Y53/SUMPRODUCT($AJ53:$AX53,$AJ$5:$AX$5) -> 0.006493479464 | BQ53: 0.00432898631 | BR53: 0 | BS53: 0.006493479464 | BT53: 0 | BU53: 0 | BV53: 0 | BW53: 0 | BX53: =(AO53*AO$5)*$Y53/SUMPRODUCT($AJ53:$AX53,$AJ$5:$AX$5) -> 0 | BY53: 0 | BZ53: 0 | CA53: =(AU53*AU$5)*$Y53/SUMPRODUCT($AJ53:$AX53,$AJ$5:$AX$5) -> 0 | CB53: 0 | CC53: 0.002885990873 | CD53: 0.006493479464
A54: no | B54: no | C54: no | D54: no | E54: si | F54: si | G54: si | H54: si | I54: si | J54: si | K54: si | L54: si | M54: si | N54: si | U54: =IF(OR(DG!E$29="Residencial colectivo",DG!E$29="unifamiliar",DG!E$29="urbanización",DG!E$29="Vivienda en un edificio"),0,VLOOKUP(V54,CA!$D$10:$K$139,5,FALSE)) -> 1 | V54: CE 02 | W54: Control parcial de los sistemas de clima | X54: =($Z54+2*$AH54)/($Z$60+2*$AH$60) -> 0.02669541558 | Y54: ='Informe resultados'!M70 -> 0.0222290672 | Z54: =IF($U54=1,SUMPRODUCT(AB54:AG54,AB$5:AG$5),"0") -> 3 | AA54: 0.02656675749 | AB54: 3 | AC54: 3 | AD54: 3 | AE54: 3 | AF54: 3 | AG54: 3 | AH54: =IF($U54=1,SUMPRODUCT(AJ54:AX54,AJ$5:AX$5),"0") -> 1 | AI54: 0.0268907563 | AJ54: 2 | AK54: 2 | AM54: 2 | AU54: 3 | AW54: 2 | AX54: 3 | AZ54: 0.00500539042 | BA54: 0.003336926947 | BB54: 0 | BC54: 0.00500539042 | BD54: 0 | BE54: 0 | BF54: 0 | BG54: 0 | BH54: 0.00250269521 | BI54: 0 | BJ54: 0.003336926947 | BK54: 0.007508085631 | BL54: 0 | BM54: 0.003336926947 | BN54: 0.007508085631 | BP54: 0.0041679501 | BQ54: 0.0027786334 | BR54: 0 | BS54: 0.0041679501 | BT54: 0 | BU54: 0 | BV54: 0 | BW54: 0 | BX54: 0 | BY54: 0 | BZ54: 0 | CA54: 0.00208397505 | CB54: 0 | CC54: 0.0027786334 | CD54: 0.00625192515
A55: no | B55: no | C55: no | D55: no | E55: si | F55: si | G55: si | H55: si | I55: si | J55: si | K55: si | L55: si | M55: si | N55: si | U55: =IF(OR(DG!E$29="Residencial colectivo",DG!E$29="unifamiliar",DG!E$29="urbanización",DG!E$29="Vivienda en un edificio"),0,VLOOKUP(V55,CA!$D$10:$K$139,5,FALSE)) -> 1 | V55: CE 03 | W55: Control local de la iluminación | X55: =($Z55+2*$AH55)/($Z$60+2*$AH$60) -> 0.0222290672 | Y55: ='Informe resultados'!M71 -> 0 | Z55: =IF($U55=1,SUMPRODUCT(AB55:AG55,AB$5:AG$5),"0") -> 2.538461538 | AA55: 0.02247956403 | AB55: 3 | AC55: 3 | AD55: 2 | AE55: 1 | AF55: 3 | AG55: 1 | AH55: =IF($U55=1,SUMPRODUCT(AJ55:AX55,AJ$5:AX$5),"0") -> 0.8125 | AI55: 0.0218487395 | AJ55: 1 | AK55: 1 | AM55: 1 | AU55: 3 | AW55: 3 | AX55: 3 | AZ55: 0.002564892369 | BA55: 0.001709928246 | BB55: 0 | BC55: 0.002564892369 | BD55: 0 | BE55: 0 | BF55: 0 | BG55: 0 | BH55: 0.002564892369 | BI55: 0 | BJ55: 0.005129784739 | BK55: 0.007694677108 | BL55: 0 | BM55: 0.005129784739 | BN55: 0.007694677108 | BP55: 0 | BQ55: 0 | BR55: 0 | BS55: 0 | BT55: 0 | BU55: 0 | BV55: 0 | BW55: 0 | BX55: 0 | BY55: 0 | BZ55: 0 | CA55: 0 | CB55: 0 | CC55: 0 | CD55: 0
A56: si | B56: si | C56: si | D56: si | E56: si | F56: si | G56: si | H56: si | I56: si | J56: si | K56: si | L56: si | M56: si | N56: si | T56: NO | U56: =VLOOKUP(V56,CA!$D$10:$K$139,5,FALSE) -> 1 | V56: CE 04 | W56: Calidad en la construcción | X56: =($Z56+(2*$AH56))/($Z$60+(2*$AH$60)) -> 0.03478104625 | Y56: ='Informe resultados'!M72 -> 0 | Z56: =IF($U56=1,SUMPRODUCT(AB56:AG56,AB$5:AG$5),"0") -> 3.076923077 | AA56: 0.0272479564 | AB56: 2 | AC56: 2 | AD56: 3 | AE56: 2 | AF56: 5 | AG56: 5 | AH56: =IF($U56=1,SUMPRODUCT(AJ56:AX56,AJ$5:AX$5),"0") -> 1.71875 | AI56: 0.04621848739 | AJ56: 3 | AK56: 3 | AM56: 3 | AS56: 3 | AU56: 3 | AV56: 2 | AW56: 3 | AX56: 3 | AZ56: 0.005691443933 | BA56: 0.003794295955 | BB56: 0 | BC56: 0.005691443933 | BD56: 0 | BE56: 0 | BF56: 0 | BG56: 0 | BH56: 0.001897147978 | BI56: 0.002529530637 | BJ56: 0.003794295955 | BK56: 0.005691443933 | BL56: 0.002529530637 | BM56: 0.003794295955 | BN56: 0.005691443933 | BP56: 0 | BQ56: 0 | BR56: 0 | BS56: 0 | BT56: 0 | BU56: 0 | BV56: 0 | BW56: 0 | BX56: 0 | BY56: 0 | BZ56: 0 | CA56: 0 | CB56: 0 | CC56: 0 | CD56: 0
A57: si | B57: si | C57: si | D57: si | E57: si | F57: si | G57: si | H57: si | I57: si | J57: si | K57: si | L57: si | M57: si | N57: si | T57: NO | U57: =VLOOKUP(V57,CA!$D$10:$K$139,5,FALSE) -> 1 | V57: CE 05 | W57: Puesta en marcha sistemática | X57: =($Z57+(2*$AH57))/($Z$60+(2*$AH$60)) -> 0.03611581703 | Y57: ='Informe resultados'!M73 -> 0 | Z57: =IF($U57=1,SUMPRODUCT(AB57:AG57,AB$5:AG$5),"0") -> 3.076923077 | AA57: 0.0272479564 | AB57: 2 | AC57: 2 | AD57: 3 | AE57: 2 | AF57: 5 | AG57: 5 | AH57: =IF($U57=1,SUMPRODUCT(AJ57:AX57,AJ$5:AX$5),"0") -> 1.84375 | AI57: 0.04957983193 | AJ57: 3 | AK57: 3 | AM57: 3 | AN57: 2 | AS57: 3 | AU57: 3 | AV57: 2 | AW57: 3 | AX57: 3 | AZ57: =(AJ57*AJ$5)*$X57/SUMPRODUCT($AJ57:$AX57,$AJ$5:$AX$5) -> 0.005509192429 | BA57: =(AK57*AK$5)*$X57/SUMPRODUCT($AJ57:$AX57,$AJ$5:$AX$5) -> 0.003672794953 | BB57: =(AL57*AL$5)*$X57/SUMPRODUCT($AJ57:$AX57,$AJ$5:$AX$5) -> 0 | BC57: =(AM57*AM$5)*$X57/SUMPRODUCT($AJ57:$AX57,$AJ$5:$AX$5) -> 0.005509192429 | BD57: =(AN57*AN$5)*$X57/SUMPRODUCT($AJ57:$AX57,$AJ$5:$AX$5) -> 0.002448529968 | BE57: =(AO57*AO$5)*$X57/SUMPRODUCT($AJ57:$AX57,$AJ$5:$AX$5) -> 0 | BF57: =(AP57*AP$5)*$X57/SUMPRODUCT($AJ57:$AX57,$AJ$5:$AX$5) -> 0 | BG57: =(AQ57*AQ$5)*$X57/SUMPRODUCT($AJ57:$AX57,$AJ$5:$AX$5) -> 0 | BH57: =(AU57*AU$5)*$X57/SUMPRODUCT($AJ57:$AX57,$AJ$5:$AX$5) -> 0.001836397476 | BI57: =(AV57*AV$5)*$X57/SUMPRODUCT($AJ57:$AX57,$AJ$5:$AX$5) -> 0.002448529968 | BJ57: =(AW57*AW$5)*$X57/SUMPRODUCT($AJ57:$AX57,$AJ$5:$AX$5) -> 0.003672794953 | BK57: =(AX57*AX$5)*$X57/SUMPRODUCT($AJ57:$AX57,$AJ$5:$AX$5) -> 0.005509192429 | BL57: =(AV57*AV$5)*$X57/SUMPRODUCT($AJ57:$AX57,$AJ$5:$AX$5) -> 0.002448529968 | BM57: =(AW57*AW$5)*$X57/SUMPRODUCT($AJ57:$AX57,$AJ$5:$AX$5) -> 0.003672794953 | BN57: =(AX57*AX$5)*$X57/SUMPRODUCT($AJ57:$AX57,$AJ$5:$AX$5) -> 0.005509192429 | BP57: =(AJ57*AJ$5)*$Y57/SUMPRODUCT($AJ57:$AX57,$AJ$5:$AX$5) -> 0 | BQ57: =(AK57*AK$5)*$Y57/SUMPRODUCT($AJ57:$AX57,$AJ$5:$AX$5) -> 0 | BR57: =(AL57*AL$5)*$Y57/SUMPRODUCT($AJ57:$AX57,$AJ$5:$AX$5) -> 0 | BS57: =(AM57*AM$5)*$Y57/SUMPRODUCT($AJ57:$AX57,$AJ$5:$AX$5) -> 0 | BT57: =(AN57*AN$5)*$Y57/SUMPRODUCT($AJ57:$AX57,$AJ$5:$AX$5) -> 0 | BU57: =(AO57*AO$5)*$Y57/SUMPRODUCT($AJ57:$AX57,$AJ$5:$AX$5) -> 0 | BV57: =(AP57*AP$5)*$Y57/SUMPRODUCT($AJ57:$AX57,$AJ$5:$AX$5) -> 0 | BW57: =(AQ57*AQ$5)*$Y57/SUMPRODUCT($AJ57:$AX57,$AJ$5:$AX$5) -> 0 | BX57: =(AO57*AO$5)*$Y57/SUMPRODUCT($AJ57:$AX57,$AJ$5:$AX$5) -> 0 | BY57: =(AP57*AP$5)*$Y57/SUMPRODUCT($AJ57:$AX57,$AJ$5:$AX$5) -> 0 | BZ57: =(AQ57*AQ$5)*$Y57/SUMPRODUCT($AJ57:$AX57,$AJ$5:$AX$5) -> 0 | CA57: =(AU57*AU$5)*$Y57/SUMPRODUCT($AJ57:$AX57,$AJ$5:$AX$5) -> 0 | CB57: =(AV57*AV$5)*$Y57/SUMPRODUCT($AJ57:$AX57,$AJ$5:$AX$5) -> 0 | CC57: =(AW57*AW$5)*$Y57/SUMPRODUCT($AJ57:$AX57,$AJ$5:$AX$5) -> 0 | CD57: =(AX57*AX$5)*$Y57/SUMPRODUCT($AJ57:$AX57,$AJ$5:$AX$5) -> 0
A58: si | B58: si | C58: si | D58: si | E58: si | F58: si | G58: si | H58: si | I58: si | J58: si | K58: si | L58: si | M58: si | N58: si | T58: NO | U58: =VLOOKUP(V58,CA!$D$10:$K$139,5,FALSE) -> 1 | V58: CE 06 | W58: Custodia de la documentación del proyecto | X58: =($Z58+(2*$AH58))/($Z$60+(2*$AH$60)) -> 0.0321115047 | Y58: ='Informe resultados'!M74 -> 0 | Z58: 3.076923077 | AA58: 0.0272479564 | AB58: 2 | AC58: 2 | AD58: 3 | AE58: 2 | AF58: 5 | AG58: 5 | AH58: 1.46875 | AI58: 0.03949579832 | AJ58: 2 | AK58: 2 | AM58: 2 | AS58: 3 | AU58: 3 | AV58: 2 | AW58: 3 | AX58: 3 | AZ58: 0.004099341025 | BA58: 0.002732894017 | BB58: 0 | BC58: 0.004099341025 | BD58: 0 | BE58: 0 | BF58: 0 | BG58: 0 | BH58: 0.002049670513 | BI58: 0.002732894017 | BJ58: 0.004099341025 | BK58: 0.006149011538 | BL58: 0.002732894017 | BM58: 0.004099341025 | BN58: 0.006149011538 | BP58: 0 | BQ58: 0 | BR58: 0 | BS58: 0 | BT58: 0 | BU58: 0 | BV58: 0 | BW58: 0 | BX58: 0 | BY58: 0 | BZ58: 0 | CA58: 0 | CB58: 0 | CC58: 0 | CD58: 0
A59: no | B59: no | C59: no | D59: si | E59: no | F59: no | G59: no | H59: no | I59: no | J59: no | K59: no | L59: no | M59: no | N59: si | U59: =IF(OR(DG!E$29="Vivienda en un edificio",DG!E$29="Parte de un edificio"),VLOOKUP(V59,CA!$D$10:$K$139,5,FALSE),0) -> 0 | V59: CE 07 | W59: Certificaciones voluntarias de edificios | X59: =($Z59+(2*$AH59))/($Z$60+(2*$AH$60)) -> 0 | Y59: ='Informe resultados'!M75 -> 0 | Z59: 0 | AA59: 0 | AB59: 3 | AC59: 3 | AD59: 5 | AE59: 2 | AF59: 5 | AG59: 1 | AH59: 0 | AI59: 0 | AJ59: 3 | AK59: 3 | AM59: 2 | AS59: 3 | AU59: 2 | AV59: 2 | AW59: 3 | AX59: 1 | AZ59: 0 | BA59: 0 | BB59: 0 | BC59: 0 | BD59: 0 | BE59: 0 | BF59: 0 | BG59: 0 | BH59: 0 | BI59: 0 | BJ59: 0 | BK59: 0 | BL59: 0 | BM59: 0 | BN59: 0 | BP59: 0 | BQ59: 0 | BR59: 0 | BS59: 0 | BT59: 0 | BU59: 0 | BV59: 0 | BW59: 0 | BX59: 0 | BY59: 0 | BZ59: 0 | CA59: 0 | CB59: 0 | CC59: 0 | CD59: 0
X60: =SUM(X6:X59) -> 2 | Z60: =SUM(Z7:Z59) -> 112.9230769 | AA60: =SUM(AA6:AA59) -> 2 | AH60: =SUM(AH7:AH59) -> 37.1875 | AI60: =SUM(AI6:AI59) -> 2 | AJ60: =SUM(AJ7:AJ59) -> 63 | AK60: 57 | AL60: 29 | AM60: 32 | AN60: 24 | AO60: 20 | AP60: 17 | AQ60: 19 | AR60: 34 | AS60: 74 | AT60: 17 | AU60: 21 | AV60: 13 | AW60: 101 | AX60: 56 | AZ60: =SUM(AZ7:AZ59) -> 0.1506942344 | BA60: 0.07596415819 | BB60: 0.07123370706 | BC60: 0.06481263974 | BD60: 0.03270418385 | BE60: 0.0443272874 | BF60: 0.01744432617 | BG60: 0.02998916124 | BH60: 0.01454961664 | BI60: 0.01760231238 | BJ60: 0.1494198168 | BK60: 0.1164932425 | BL60: 0.01760231238 | BM60: 0.1494198168 | BN60: 0.1164932425 | BP60: =SUM(BP7:BP59) -> 0.01066142956 | BQ60: 0.00710761971 | BR60: 0 | BS60: 0.01066142956 | BT60: 0 | BU60: 0 | BV60: 0 | BW60: 0 | BX60: 0 | BY60: 0 | BZ60: 0 | CA60: 0.00208397505 | CB60: 0 | CC60: 0.01367324895 | CD60: 0.01274540461 | CF60: =SUM(AZ60:BN60) -> 1.068750058
AJ61: =SUM(AJ7:AJ59)*AJ5 -> 5.90625 | AK61: 3.5625 | AL61: 2.71875 | AM61: 3 | AN61: 1.5 | AO61: 1.25 | AP61: 0.53125 | AQ61: 1.1875 | AR61: 1.0625 | AS61: 6.9375 | AT61: 1.0625 | AU61: 0.65625 | AV61: 0.8125 | AW61: 6.3125 | AX61: 5.25

Sheet Revisión (hidden)
B2: VERDE W Residencial | Y2: SEGURO
B3: REVISIÓN | Y3: EN REVISIÓN
B4: ='Matriz VERDE-GBCe'!U6 -> PE | D4: =VLOOKUP($B4,'Matriz VERDE-GBCe'!$U$6:$V$61,2,FALSE) -> Parcela y emplazamiento | E4: =VLOOKUP($D4,'Matriz VERDE-GBCe'!$V$6:$AH$61,2,FALSE) -> 0 | Y4: NO CUMPLE
D7: ='Matriz VERDE-GBCe'!V7 -> PE 01 | E7: =VLOOKUP($D7,'Matriz VERDE-GBCe'!$V$6:$AH$61,2,FALSE) -> Proximidad al transporte publico. | F7: =VLOOKUP($D7,'Matriz VERDE-GBCe'!$V$6:$Y$61,5,FALSE) ->  | Y7: Target | Z7: SEGURO | AB7: EN REVISIÓN | AD7: NO CUMPLE | AF7: NO APLICA
D9: D.J | E9: Fecha de entrega del archivo
D11: AA 01.1 | E11: Mantenimiento de corredores naturales | Y11: =IF(AF11=0,1,0) -> 1 | Z11: =+IF($H11="seguro",$Y11,0) -> 0 | AB11: =+IF($H11="EN REVISIÓN",$Y11,0) -> 0 | AD11: =+IF($H11="NO CUMPLE",$Y11,0) -> 0 | AF11: =+IF($H11="no aplica",2,0) -> 0
D14: AA 01.2 | E14: Medidas de protección de la biodiversidad | Y14: =IF(AF14=0,1,0) -> 1 | Z14: =+IF($H14="seguro",$Y14,0) -> 0 | AB14: =+IF($H14="EN REVISIÓN",$Y14,0) -> 0 | AD14: =+IF($H14="NO CUMPLE",$Y14,0) -> 0 | AF14: =+IF($H14="no aplica",2,0) -> 0
Y16: =SUM(Y11:Y14) -> 2 | Z16: =IF($F7="",0,SUM(Z11:Z14)*$F7/$Y16) ->  | AB16: =IF($F7="",0,SUM(AB11:AB14)*$F7/$Y16) ->  | AD16: =IF($F7="",0,SUM(AD11:AD14)*$F7/$Y16) -> 
D19: ='Matriz VERDE-GBCe'!V11 -> PE 05 | E19: =VLOOKUP($D19,'Matriz VERDE-GBCe'!$V$6:$AH$61,2,FALSE) -> Clasificación de RSU. | F19: 0.04159733777 | L19: NOTAS | Y19: Target | Z19: SEGURO | AB19: EN REVISIÓN | AD19: NO CUMPLE | AF19: NO APLICA
D21: D.J | E21: Fecha del archivo
D23: AA 02.1 | E23: 20% de superficie ajardinada con plantas autóctonas o adaptadas | Y23: =IF(AF23=0,0.4,0) -> 0.4 | Z23: =+IF($H23="seguro",$Y23,0) -> 0 | AB23: =+IF($H23="EN REVISIÓN",$Y23,0) -> 0 | AD23: =+IF($H23="NO CUMPLE",$Y23,0) -> 0 | AF23: =+IF($H23="no aplica",2,0) -> 0
D26: AA 02.2 | E26: Existe un estudio previo del terreno | Y26: =IF(AF26=0,0.3,0) -> 0.3 | Z26: =+IF($H26="seguro",$Y26,0) -> 0 | AB26: =+IF($H26="EN REVISIÓN",$Y26,0) -> 0 | AD26: =+IF($H26="NO CUMPLE",$Y26,0) -> 0 | AF26: =+IF($H26="no aplica",2,0) -> 0
D29: AA 02.3 | E29: Se supera en un 10% las superficies ajardinadas fijadas por normativa | Y29: =IF(AF29=0,0.3,0) -> 0.3 | Z29: =+IF($H29="seguro",$Y29,0) -> 0 | AB29: =+IF($H29="EN REVISIÓN",$Y29,0) -> 0 | AD29: =+IF($H29="NO CUMPLE",$Y29,0) -> 0 | AF29: =+IF($H29="no aplica",2,0) -> 0
Y31: =SUM(Y23:Y29) -> 1 | Z31: =IF($F19="",0,SUM(Z22:Z29)*$F19/$Y31) -> 0 | AB31: =IF($F19="",0,SUM(AB22:AB29)*$F19/$Y31) -> 0 | AD31: =IF($F19="",0,SUM(AD22:AD29)*$F19/$Y31) -> 0
D34: ='Matriz VERDE-GBCe'!V15 -> PE 09 | E34: =VLOOKUP($D34,'Matriz VERDE-GBCe'!$V$6:$AH$61,2,FALSE) -> Contaminación lumínica. | F34: =VLOOKUP($D34,'Matriz VERDE-GBCe'!$V$6:$AH$61,6,FALSE) -> 0.01771117166 | L34: NOTAS | Y34: Target | Z34: SEGURO | AB34: EN REVISIÓN | AD34: NO CUMPLE | AF34: NO APLICA
D36: D.J | E36: Fecha del archivo
D38: AA 03.1 | E38: Valor ecológico previo de la zona | Y38: =IF(AF38=0,0.4,0) -> 0.4 | Z38: =+IF($H38="seguro",$Y38,0) -> 0 | AB38: =+IF($H38="EN REVISIÓN",$Y38,0) -> 0 | AD38: =+IF($H38="NO CUMPLE",$Y38,0) -> 0 | AF38: =+IF($H38="no aplica",2,0) -> 0
D41: AA 03.2 | E41: Implantación sobre terrenos ya urbanizados | Y41: =IF(AF41=0,0.3,0) -> 0.3 | Z41: =+IF($H41="seguro",$Y41,0) -> 0 | AB41: =+IF($H41="EN REVISIÓN",$Y41,0) -> 0 | AD41: =+IF($H41="NO CUMPLE",$Y41,0) -> 0 | AF41: =+IF($H41="no aplica",2,0) -> 0
D44: AA 03.3 | E44: Estudio previo de la contaminación del suelo | Y44: =IF(AF44=0,0.3,0) -> 0.3 | Z44: =+IF($H44="seguro",$Y44,0) -> 0 | AB44: =+IF($H44="EN REVISIÓN",$Y44,0) -> 0 | AD44: =+IF($H44="NO CUMPLE",$Y44,0) -> 0 | AF44: =+IF($H44="no aplica",2,0) -> 0
Y46: =SUM(Y38:Y44) -> 1 | Z46: =IF($F34="",0,SUM(Z37:Z44)*$F34/$Y46) -> 0 | AB46: =IF($F34="",0,SUM(AB37:AB44)*$F34/$Y46) -> 0 | AD46: =IF($F34="",0,SUM(AD37:AD44)*$F34/$Y46) -> 0
D48: ='Matriz VERDE-GBCe'!V16 -> Energía y atmósfera
D51: ='Matriz VERDE-GBCe'!V17 -> EA 00 | E51: =VLOOKUP($D51,'Matriz VERDE-GBCe'!$V$6:$AH$61,2,FALSE) -> Demanda de calefacción y refrigeración | F51: =VLOOKUP($D51,'Matriz VERDE-GBCe'!$V$6:$AH$61,6,FALSE) -> 0 | L51: NOTAS | Y51: Target | Z51: SEGURO | AB51: EN REVISIÓN | AD51: NO CUMPLE | AF51: NO APLICA
D53: D.J | E53: Fecha del archivo
D55: AA 05.1 | E55: El Índice de calificación energética es D | Y55: =IF(AF55=0,0.1,0) -> 0.1 | Z55: =+IF($H55="seguro",$Y55,0) -> 0 | AB55: =+IF($H55="EN REVISIÓN",$Y55,0) -> 0 | AD55: =+IF($H55="NO CUMPLE",$Y55,0) -> 0 | AF55: =+IF($H55="no aplica",2,0) -> 0
D58: AA 05.2 | E58: El Índice de calificación energética es C | Y58: =IF(AF58=0,0.2,0) -> 0.2 | Z58: =+IF($H58="seguro",$Y58,0) -> 0 | AB58: =+IF($H58="EN REVISIÓN",$Y58,0) -> 0 | AD58: =+IF($H58="NO CUMPLE",$Y58,0) -> 0 | AF58: =+IF($H58="no aplica",2,0) -> 0
D61: AA 05.3 | E61: El Índice de calificación energética es B | Y61: 0.5 | Z61: =+IF($H61="seguro",$Y61,0) -> 0 | AB61: =+IF($H61="EN REVISIÓN",$Y61,0) -> 0 | AD61: =+IF($H61="NO CUMPLE",$Y61,0) -> 0 | AF61: =+IF($H61="no aplica",2,0) -> 0
D64: AA 05.4 | E64: El Índice de calificación energética es A | Y64: 0.7 | Z64: =+IF($H64="seguro",$Y64,0) -> 0 | AB64: =+IF($H64="EN REVISIÓN",$Y64,0) -> 0 | AD64: =+IF($H64="NO CUMPLE",$Y64,0) -> 0 | AF64: =+IF($H64="no aplica",2,0) -> 0
D67: AA 05.5 | E67: Se utilizan equipos de bombeo eficientes | Y67: =IF(AF67=0,0.2,0) -> 0.2 | Z67: =+IF($H67="seguro",$Y67,0) -> 0 | AB67: =+IF($H67="EN REVISIÓN",$Y67,0) -> 0 | AD67: =+IF($H67="NO CUMPLE",$Y67,0) -> 0 | AF67: =+IF($H67="no aplica",2,0) -> 0
D70: AA 05.6 | E70: Medidas de telecontrol para gestionart los sistemas de bombeo | Y70: =IF(AF70=0,0.1,0) -> 0.1 | Z70: =+IF($H70="seguro",$Y70,0) -> 0 | AB70: =+IF($H70="EN REVISIÓN",$Y70,0) -> 0 | AD70: =+IF($H70="NO CUMPLE",$Y70,0) -> 0 | AF70: =+IF($H70="no aplica",2,0) -> 0
Y72: =SUM(Y63:Y70) -> 1 | Z72: =IF($F51="",0,SUM(Z55:Z70)*$F51/$Y72) -> 0 | AB72: =IF($F51="",0,SUM(AB55:AB70)*$F51/$Y72) -> 0 | AD72: =IF($F51="",0,SUM(AD55:AD70)*$F51/$Y72) -> 0
D75: ='Matriz VERDE-GBCe'!V22 -> EA 04 | E75: =VLOOKUP($D75,'Matriz VERDE-GBCe'!$V$6:$AH$61,2,FALSE) -> Elección responsable de refrigerantes | F75: =VLOOKUP($D75,'Matriz VERDE-GBCe'!$V$6:$AH$61,6,FALSE) -> 0.02929155313 | L75: NOTAS | Y75: Target | Z75: SEGURO | AB75: EN REVISIÓN | AD75: NO CUMPLE | AF75: NO APLICA
D77: D.J | E77: Fecha del archivo
D79: AA 06.1 | E79: Estudio previo de implantación de renovables | Y79: 0.4 | Z79: =+IF($H79="seguro",$Y79,0) -> 0 | AB79: =+IF($H79="EN REVISIÓN",$Y79,0) -> 0 | AD79: =+IF($H79="NO CUMPLE",$Y79,0) -> 0 | AF79: =+IF($H79="no aplica",2,0) -> 0
D82: AA 06.2 | E82: Sistema de producción y distribución de energía cumunitario | Y82: 0.6 | Z82: =+IF($H82="seguro",$Y82,0) -> 0 | AB82: =+IF($H82="EN REVISIÓN",$Y82,0) -> 0 | AD82: =+IF($H82="NO CUMPLE",$Y82,0) -> 0 | AF82: =+IF($H82="no aplica",2,0) -> 0
Y84: =SUM(Y79:Y82) -> 1 | Z84: =IF($F75="",0,SUM(Z79:Z82)*$F75/$Y84) -> 0 | AB84: =IF($F75="",0,SUM(AB79:AB82)*$F75/$Y84) -> 0 | AD84: =IF($F75="",0,SUM(AD79:AD82)*$F75/$Y84) -> 0
D86: ='Matriz VERDE-GBCe'!V23 -> Recursos naturales
D89: ='Matriz VERDE-GBCe'!V24 -> RN 01 | E89: =VLOOKUP($D89,'Matriz VERDE-GBCe'!$V$6:$AH$61,2,FALSE) -> Consumo de agua en aparatos sanitarios | F89: =VLOOKUP($D89,'Matriz VERDE-GBCe'!$V$6:$AH$61,6,FALSE) -> 0.02111716621 | L89: NOTAS | Y89: Target | Z89: SEGURO | AB89: EN REVISIÓN | AD89: NO CUMPLE | AF89: NO APLICA
D91: D.J | E91: Fecha del archivo
D93: AA 07.1 | E93: Las necesidades de riego se reducen en un 20% | Y93: =IF(AF93=0,0.15,0) -> 0.15 | Z93: =+IF($H93="seguro",$Y93,0) -> 0 | AB93: =+IF($H93="EN REVISIÓN",$Y93,0) -> 0 | AD93: =+IF($H93="NO CUMPLE",$Y93,0) -> 0 | AF93: =+IF($H93="no aplica",2,0) -> 0
D96: AA 07.2 | E96: Las necesidades de riego se reducen en un 50% | Y96: =IF(AF96=0,0.25,0) -> 0.25 | Z96: =+IF($H96="seguro",$Y96,0) -> 0 | AB96: =+IF($H96="EN REVISIÓN",$Y96,0) -> 0 | AD96: =+IF($H96="NO CUMPLE",$Y96,0) -> 0 | AF96: =+IF($H96="no aplica",2,0) -> 0
D99: AA 07.3 | E99: Sistema de monitorización para gestionar el consumo de agua | Y99: =IF(AF99=0,0.3,0) -> 0.3 | Z99: =+IF($H99="seguro",$Y99,0) -> 0 | AB99: =+IF($H99="EN REVISIÓN",$Y99,0) -> 0 | AD99: =+IF($H99="NO CUMPLE",$Y99,0) -> 0 | AF99: =+IF($H99="no aplica",2,0) -> 0
D102: AA 07.4 | E102: Se reaprovechas las aguas pluviales y/o grises | Y102: =IF(AF102=0,0.3,0) -> 0.3 | Z102: =+IF($H102="seguro",$Y102,0) -> 0 | AB102: =+IF($H102="EN REVISIÓN",$Y102,0) -> 0 | AD102: =+IF($H102="NO CUMPLE",$Y102,0) -> 0 | AF102: =+IF($H102="no aplica",2,0) -> 0
Y104: =SUM(Y93:Y102) -> 1 | Z104: =IF($F89="",0,SUM(Z93:Z102)*$F89/$Y104) -> 0 | AB104: =IF($F89="",0,SUM(AB93:AB102)*$F89/$Y104) -> 0 | AD104: =IF($F89="",0,SUM(AD93:AD102)*$F89/$Y104) -> 0
D107: ='Matriz VERDE-GBCe'!V35 -> RN 12 | E107: =VLOOKUP($D107,'Matriz VERDE-GBCe'!$V$6:$AH$61,2,FALSE) -> Ecoetiquetado de producto. | F107: =VLOOKUP($D107,'Matriz VERDE-GBCe'!$V$6:$AH$61,6,FALSE) -> 0.02384196185 | L107: NOTAS | Y107: Target | Z107: SEGURO | AB107: EN REVISIÓN | AD107: NO CUMPLE | AF107: NO APLICA
D109: D.J | E109: Fecha del archivo
D111: AA 06.1 | E111: Estudio previo de implantación de renovables | Y111: 0.4 | Z111: =+IF($H111="seguro",$Y111,0) -> 0 | AB111: =+IF($H111="EN REVISIÓN",$Y111,0) -> 0 | AD111: =+IF($H111="NO CUMPLE",$Y111,0) -> 0 | AF111: =+IF($H111="no aplica",2,0) -> 0
D114: AA 06.2 | E114: Sistema de producción y distribución de energía cumunitario | Y114: 0.6 | Z114: =+IF($H114="seguro",$Y114,0) -> 0 | AB114: =+IF($H114="EN REVISIÓN",$Y114,0) -> 0 | AD114: =+IF($H114="NO CUMPLE",$Y114,0) -> 0 | AF114: =+IF($H114="no aplica",2,0) -> 0
Y116: =SUM(Y111:Y114) -> 1 | Z116: =IF($F107="",0,SUM(Z111:Z114)*$F107/$Y116) -> 0 | AB116: =IF($F107="",0,SUM(AB111:AB114)*$F107/$Y116) -> 0 | AD116: =IF($F107="",0,SUM(AD111:AD114)*$F107/$Y116) -> 0
D118: ='Matriz VERDE-GBCe'!V36 -> Ambiente Interior.
D122: ='Matriz VERDE-GBCe'!V37 -> AI 01 | E122: =VLOOKUP($D122,'Matriz VERDE-GBCe'!$V$6:$AH$61,2,FALSE) -> Limitación de las emisiones de COVs | F122: =VLOOKUP($D122,'Matriz VERDE-GBCe'!$V$6:$AH$61,6,FALSE) -> 0.01771117166 | L122: NOTAS | Y122: Target | Z122: SEGURO | AB122: EN REVISIÓN | AD122: NO CUMPLE | AF122: NO APLICA
D124: D.J | E124: Fecha del archivo
D126: AA 09.1 | E126: Se ha reutilizado, al menos, un 5% del material | Y126: =IF(AF126=0,0.25,0) -> 0.25 | Z126: =+IF($H126="seguro",$Y126,0) -> 0 | AB126: =+IF($H126="EN REVISIÓN",$Y126,0) -> 0 | AD126: =+IF($H126="NO CUMPLE",$Y126,0) -> 0 | AF126: =+IF($H126="no aplica",2,0) -> 0
D129: AA 09.2 | E129: Los materiles reciclados alcanzan, al menos, un 40% del total | Y129: =IF(AF129=0,0.25,0) -> 0.25 | Z129: =+IF($H129="seguro",$Y129,0) -> 0 | AB129: =+IF($H129="EN REVISIÓN",$Y129,0) -> 0 | AD129: =+IF($H129="NO CUMPLE",$Y129,0) -> 0 | AF129: =+IF($H129="no aplica",2,0) -> 0
D132: AA 09.3 | E132: Se alcanza, al menos, un 15% de materiales de origen sostenible | Y132: =IF(AF132=0,0.25,0) -> 0.25 | Z132: =+IF($H132="seguro",$Y132,0) -> 0 | AB132: =+IF($H132="EN REVISIÓN",$Y132,0) -> 0 | AD132: =+IF($H132="NO CUMPLE",$Y132,0) -> 0 | AF132: =+IF($H132="no aplica",2,0) -> 0
D135: AA 09.4 | E135: Se disponene de, al menos, 5 materiales con ecoetiqueta tipo I o III | Y135: =IF(AF135=0,0.25,0) -> 0.25 | Z135: =+IF($H135="seguro",$Y135,0) -> 0 | AB135: =+IF($H135="EN REVISIÓN",$Y135,0) -> 0 | AD135: =+IF($H135="NO CUMPLE",$Y135,0) -> 0 | AF135: =+IF($H135="no aplica",2,0) -> 0
Y137: =SUM(Y126:Y135) -> 1 | Z137: =IF($F122="",0,SUM(Z126:Z135)*$F122/$Y137) -> 0 | AB137: =IF($F122="",0,SUM(AB126:AB135)*$F122/$Y137) -> 0 | AD137: =IF($F122="",0,SUM(AD126:AD135)*$F122/$Y137) -> 0
D140: ='Matriz VERDE-GBCe'!#REF! ->  | E140: =VLOOKUP($D140,'Matriz VERDE-GBCe'!$V$6:$AH$61,2,FALSE) ->  | F140: 0.08874098724 | L140: NOTAS | Y140: Target | Z140: SEGURO | AB140: EN REVISIÓN | AD140: NO CUMPLE | AF140: NO APLICA
D142: D.J | E142: Fecha del archivo
D144: AA 10.1 | E144: Se ha desarrollado un ACV de los materiales empleados | Y144: =IF(AF144=0,1,0) -> 1 | Z144: =+IF($H144="seguro",$Y144,0) -> 0 | AB144: =+IF($H144="EN REVISIÓN",$Y144,0) -> 0 | AD144: =+IF($H144="NO CUMPLE",$Y144,0) -> 0 | AF144: =+IF($H144="no aplica",2,0) -> 0
Y146: =Y144 -> 1 | Z146: =IF($F140="",0,Z144*$F140) -> 0 | AB146: =IF($F140="",0,AB144*$F140) -> 0 | AD146: =IF($F140="",0,AD144*$F140) -> 0
D148: ='Matriz VERDE-GBCe'!V52 -> Calidad de la edificación
D151: ='Matriz VERDE-GBCe'!V53 -> CE 01 | E151: =VLOOKUP($D151,'Matriz VERDE-GBCe'!$V$6:$AH$61,2,FALSE) -> Diseño pasivo | F151: =VLOOKUP($D151,'Matriz VERDE-GBCe'!$V$6:$AH$61,6,FALSE) -> 0.02656675749 | L151: NOTAS | Y151: Target | Z151: SEGURO | AB151: EN REVISIÓN | AD151: NO CUMPLE | AF151: NO APLICA
D153: D.J | E153: Fecha del archivo
D155: AA 11.1 | E155: Instalación de contenedores por fracciones para residuos NO peligrosos | Y155: 0.25 | Z155: =+IF($H155="seguro",$Y155,0) -> 0 | AB155: =+IF($H155="EN REVISIÓN",$Y155,0) -> 0 | AD155: =+IF($H155="NO CUMPLE",$Y155,0) -> 0 | AF155: =+IF($H155="no aplica",2,0) -> 0
D158: AA 11.2 | E158: Instalacción de contenedores para residuos peligrosos | Y158: 0.25 | Z158: =+IF($H158="seguro",$Y158,0) -> 0 | AB158: =+IF($H158="EN REVISIÓN",$Y158,0) -> 0 | AD158: =+IF($H158="NO CUMPLE",$Y158,0) -> 0 | AF158: =+IF($H158="no aplica",2,0) -> 0
D161: AA 11.3 | E161: Compromiso de retirada selectiva de residuos | Y161: 0.25 | Z161: =+IF($H161="seguro",$Y161,0) -> 0 | AB161: =+IF($H161="EN REVISIÓN",$Y161,0) -> 0 | AD161: =+IF($H161="NO CUMPLE",$Y161,0) -> 0 | AF161: =+IF($H161="no aplica",2,0) -> 0
D164: AA 11.4 | E164: Mejora sustancial en la gestión de residuos | Y164: 0.25 | Z164: =+IF($H164="seguro",$Y164,0) -> 0 | AB164: =+IF($H164="EN REVISIÓN",$Y164,0) -> 0 | AD164: =+IF($H164="NO CUMPLE",$Y164,0) -> 0 | AF164: =+IF($H164="no aplica",2,0) -> 0
Y166: =SUM(Y155:Y164) -> 1 | Z166: =IF($F151="",0,SUM(Z154:Z164)*$F151/$Y166) -> 0 | AB166: =IF($F151="",0,SUM(AB154:AB164)*$F151/$Y166) -> 0 | AD166: =IF($F151="",0,SUM(AD154:AD164)*$F151/$Y166) -> 0
D169: ='Matriz VERDE-GBCe'!V54 -> CE 02 | E169: =VLOOKUP($D169,'Matriz VERDE-GBCe'!$V$6:$AH$61,2,FALSE) -> Control parcial de los sistemas de clima | F169: =VLOOKUP($D169,'Matriz VERDE-GBCe'!$V$6:$AH$61,6,FALSE) -> 0.02656675749 | L169: NOTAS | Y169: Target | Z169: SEGURO | AB169: EN REVISIÓN | AD169: NO CUMPLE | AF169: NO APLICA
D171: D.J | E171: Fecha del archivo
D173: AA 12.1 | E173: Existe un plan de prevención de las actividades de la construcción | Y173: =IF(AF173=0,1,0) -> 1 | Z173: =+IF($H173="seguro",$Y173,0) -> 0 | AB173: =+IF($H173="EN REVISIÓN",$Y173,0) -> 0 | AD173: =+IF($H173="NO CUMPLE",$Y173,0) -> 0 | AF173: =+IF($H173="no aplica",2,0) -> 0
Y175: =Y173 -> 1 | Z175: =IF($F169="",0,Z173*$F169) -> 0 | AB175: =IF($F169="",0,AB173*$F169) -> 0 | AD175: =IF($F169="",0,AD173*$F169) -> 0
D178: ='Matriz VERDE-GBCe'!#REF! ->  | E178: =VLOOKUP($D178,'Matriz VERDE-GBCe'!$V$6:$AH$61,2,FALSE) ->  | F178: =VLOOKUP($D178,'Matriz VERDE-GBCe'!$V$6:$AH$61,6,FALSE) ->  | L178: NOTAS | Y178: Target | Z178: SEGURO | AB178: EN REVISIÓN | AD178: NO CUMPLE | AF178: NO APLICA
D180: D.J | E180: Fecha del archivo
D182: AA 13.1 | E182: Red separativa de pluviales | Y182: 0.6 | Z182: =+IF($H182="seguro",$Y182,0) -> 0 | AB182: =+IF($H182="EN REVISIÓN",$Y182,0) -> 0 | AD182: =+IF($H182="NO CUMPLE",$Y182,0) -> 0 | AF182: =+IF($H182="no aplica",2,0) -> 0
D185: AA 13.2 | E185: Separadores de contaminantes (hidrocarburos y otros) | Y185: 0.2 | Z185: =+IF($H185="seguro",$Y185,0) -> 0 | AB185: =+IF($H185="EN REVISIÓN",$Y185,0) -> 0 | AD185: =+IF($H185="NO CUMPLE",$Y185,0) -> 0 | AF185: =+IF($H185="no aplica",2,0) -> 0
D188: AA 13.3 | E188: Gestión de escorrentías | Y188: 0.2 | Z188: =+IF($H188="seguro",$Y188,0) -> 0 | AB188: =+IF($H188="EN REVISIÓN",$Y188,0) -> 0 | AD188: =+IF($H188="NO CUMPLE",$Y188,0) -> 0 | AF188: =+IF($H188="no aplica",2,0) -> 0
Y190: =SUM(Y182:Y189) -> 1 | Z190: =IF($F178="",0,SUM(Z181:Z188)*$F178/$Y190) ->  | AB190: =IF($F178="",0,SUM(AB181:AB188)*$F178/$Y190) ->  | AD190: =IF($F178="",0,SUM(AD181:AD188)*$F178/$Y190) -> 
D193: ='Matriz VERDE-GBCe'!#REF! ->  | E193: =VLOOKUP($D193,'Matriz VERDE-GBCe'!$V$6:$AH$61,2,FALSE) ->  | F193: =VLOOKUP($D193,'Matriz VERDE-GBCe'!$V$6:$AH$61,6,FALSE) ->  | L193: NOTAS | Y193: Target | Z193: SEGURO | AB193: EN REVISIÓN | AD193: NO CUMPLE | AF193: NO APLICA
D195: D.J | E195: Fecha del archivo
D197: AA 14.1 | E197: El FHS reduce el exigido por normativa en un 50% | Y197: =IF(AF197=0,1,0) -> 1 | Z197: =+IF($H197="seguro",$Y197,0) -> 0 | AB197: =+IF($H197="EN REVISIÓN",$Y197,0) -> 0 | AD197: =+IF($H197="NO CUMPLE",$Y197,0) -> 0 | AF197: =+IF($H197="no aplica",2,0) -> 0
Y199: =Y197 -> 1 | Z199: =IF($F193="",0,Z197*$F193) ->  | AB199: =IF($F193="",0,AB197*$F193) ->  | AD199: =IF($F193="",0,AD197*$F193) -> 
D202: ='Matriz VERDE-GBCe'!#REF! ->  | E202: =VLOOKUP($D202,'Matriz VERDE-GBCe'!$V$6:$AH$61,2,FALSE) ->  | F202: =VLOOKUP($D202,'Matriz VERDE-GBCe'!$V$6:$AH$61,6,FALSE) ->  | L202: NOTAS | Y202: Target | Z202: SEGURO | AB202: EN REVISIÓN | AD202: NO CUMPLE | AF202: NO APLICA
D203: ='Matriz VERDE-GBCe'!#REF! -> 
D204: D.J | E204: Fecha del archivo
D206: AA 15.1 | E206: Las superficies tratadas para evitar la isla de calor supera el 25% | Y206: =IF(AF206=0,1,0) -> 1 | Z206: =+IF($H206="seguro",$Y206,0) -> 0 | AB206: =+IF($H206="EN REVISIÓN",$Y206,0) -> 0 | AD206: =+IF($H206="NO CUMPLE",$Y206,0) -> 0 | AF206: =+IF($H206="no aplica",2,0) -> 0
Y208: =Y206 -> 1 | Z208: =IF($F202="",0,Z206*$F202) ->  | AB208: =IF($F202="",0,AB206*$F202) ->  | AD208: =IF($F202="",0,AD206*$F202) -> 
D211: ='Matriz VERDE-GBCe'!#REF! ->  | E211: =VLOOKUP($D211,'Matriz VERDE-GBCe'!$V$6:$AH$61,2,FALSE) ->  | F211: =VLOOKUP($D211,'Matriz VERDE-GBCe'!$V$6:$AH$61,6,FALSE) ->  | L211: NOTAS | Y211: Target | Z211: SEGURO | AB211: EN REVISIÓN | AD211: NO CUMPLE | AF211: NO APLICA
D213: D.J | E213: Fecha del archivo
X214: =D211 -> 
D215: AA 16.1 | E215: Se emplea asfalto fonoabsorvente (solo cerca de poblaciones) | Y215: =IF(AF215=0,1,0) -> 1 | Z215: =+IF($H215="seguro",$Y215,0) -> 0 | AB215: =+IF($H215="EN REVISIÓN",$Y215,0) -> 0 | AD215: =+IF($H215="NO CUMPLE",$Y215,0) -> 0 | AF215: =+IF($H215="no aplica",2,0) -> 0
Y217: =Y215 -> 1 | Z217: =IF($F211="",0,Z215*$F211) ->  | AB217: =IF($F211="",0,AB215*$F211) ->  | AD217: =IF($F211="",0,AD215*$F211) -> 
B220: ='Matriz VERDE-GBCe'!U42 -> AS | D220: ='Matriz VERDE-GBCe'!V42 -> Aspectos sociales
D223: ='Matriz VERDE-GBCe'!V43 -> AS 01 | E223: =VLOOKUP($D223,'Matriz VERDE-GBCe'!$V$6:$AH$61,2,FALSE) -> Espacios para todas las personas | F223: =VLOOKUP($D223,'Matriz VERDE-GBCe'!$V$6:$AH$61,6,FALSE) -> 0.01702997275 | L223: NOTAS | Y223: Target | Z223: SEGURO | AB223: EN REVISIÓN | AD223: NO CUMPLE | AF223: NO APLICA
D225: D.J | E225: Fecha del archivo
D227: AS 01.1 | E227: Existe una estación que mide la calidad del aire | Y227: =IF(AF227=0,1,0) -> 1 | Z227: =+IF($H227="seguro",$Y227,0) -> 0 | AB227: =+IF($H227="EN REVISIÓN",$Y227,0) -> 0 | AD227: =+IF($H227="NO CUMPLE",$Y227,0) -> 0 | AF227: =+IF($H227="no aplica",2,0) -> 0
D230: AS 01.2 | E230: Los datos de dicha estación se comparten con los servicios municipales | Y230: =IF(AF230=0,1,0) -> 1 | Z230: =+IF($H230="seguro",$Y230,0) -> 0 | AB230: =+IF($H230="EN REVISIÓN",$Y230,0) -> 0 | AD230: =+IF($H230="NO CUMPLE",$Y230,0) -> 0 | AF230: =+IF($H230="no aplica",2,0) -> 0
D233: AS 01.3 | E233: Los datos de la estación son públicos | Y233: =IF(AF233=0,1,0) -> 1 | Z233: =+IF($H233="seguro",$Y233,0) -> 0 | AB233: =+IF($H233="EN REVISIÓN",$Y233,0) -> 0 | AD233: =+IF($H233="NO CUMPLE",$Y233,0) -> 0 | AF233: =+IF($H233="no aplica",2,0) -> 0
Y235: =SUM(Y226:Y233) -> 3 | Z235: =IF($F223="",0,SUM(Z227:Z233)*$F223/$Y235) -> 0 | AB235: =IF($F223="",0,SUM(AB227:AB233)*$F223/$Y235) -> 0 | AD235: =IF($F223="",0,SUM(AD227:AD233)*$F223/$Y235) -> 0
D238: ='Matriz VERDE-GBCe'!V44 -> AS 02 | E238: =VLOOKUP($D238,'Matriz VERDE-GBCe'!$V$6:$AH$61,2,FALSE) -> Espacios para la comunicación | F238: =VLOOKUP($D238,'Matriz VERDE-GBCe'!$V$6:$AH$61,6,FALSE) -> 0.01702997275 | L238: NOTAS | Y238: Target | Z238: SEGURO | AB238: EN REVISIÓN | AD238: NO CUMPLE | AF238: NO APLICA
D240: D.J | E240: Fecha del archivo
D242: AS 02.1 | E242: El 70% tienen acceso a equipamientos a menos de 1,000 m | Y242: =IF(AF242=0,0.4,0) -> 0.4 | Z242: =+IF($H242="seguro",$Y242,0) -> 0 | AB242: =+IF($H242="EN REVISIÓN",$Y242,0) -> 0 | AD242: =+IF($H242="NO CUMPLE",$Y242,0) -> 0 | AF242: =+IF($H242="no aplica",2,0) -> 0
D245: AS 02.2 | E245: Las zonas verdes están dotadas de, al menos, 3 equipaciones | Y245: =IF(AF245=0,0.3,0) -> 0.3 | Z245: =+IF($H245="seguro",$Y245,0) -> 0 | AB245: =+IF($H245="EN REVISIÓN",$Y245,0) -> 0 | AD245: =+IF($H245="NO CUMPLE",$Y245,0) -> 0 | AF245: =+IF($H245="no aplica",2,0) -> 0
D248: AS 02.3 | E248: Existen, al menos, dos usos complementarios al de nave logística. | Y248: =IF(AF248=0,0.3,0) -> 0.3 | Z248: =+IF($H248="seguro",$Y248,0) -> 0 | AB248: =+IF($H248="EN REVISIÓN",$Y248,0) -> 0 | AD248: =+IF($H248="NO CUMPLE",$Y248,0) -> 0 | AF248: =+IF($H248="no aplica",2,0) -> 0
Y250: =SUM(Y242:Y248) -> 1 | Z250: =IF($F238="",0,SUM(Z242:Z248)*$F238/$Y250) -> 0 | AB250: =IF($F238="",0,SUM(AB242:AB248)*$F238/$Y250) -> 0 | AD250: =IF($F238="",0,SUM(AD242:AD248)*$F238/$Y250) -> 0
D253: ='Matriz VERDE-GBCe'!#REF! ->  | E253: =VLOOKUP($D253,'Matriz VERDE-GBCe'!$V$6:$AH$61,2,FALSE) ->  | F253: =VLOOKUP($D253,'Matriz VERDE-GBCe'!$V$6:$AH$61,6,FALSE) ->  | L253: NOTAS | Y253: Target | Z253: SEGURO | AB253: EN REVISIÓN | AD253: NO CUMPLE | AF253: NO APLICA
D255: D.J | E255: Fecha del archivo
D257: AS 02.1 | E257: El 70% tienen acceso a equipamientos a menos de 1,000 m | Y257: =IF(AF257=0,0.4,0) -> 0.4 | Z257: =+IF($H257="seguro",$Y257,0) -> 0 | AB257: =+IF($H257="EN REVISIÓN",$Y257,0) -> 0 | AD257: =+IF($H257="NO CUMPLE",$Y257,0) -> 0 | AF257: =+IF($H257="no aplica",2,0) -> 0
D260: AS 02.2 | E260: Las zonas verdes están dotadas de, al menos, 3 equipaciones | Y260: =IF(AF260=0,0.3,0) -> 0.3 | Z260: =+IF($H260="seguro",$Y260,0) -> 0 | AB260: =+IF($H260="EN REVISIÓN",$Y260,0) -> 0 | AD260: =+IF($H260="NO CUMPLE",$Y260,0) -> 0 | AF260: =+IF($H260="no aplica",2,0) -> 0
D263: AS 02.3 | E263: Existen, al menos, dos usos complementarios al de nave logística. | Y263: =IF(AF263=0,0.3,0) -> 0.3 | Z263: =+IF($H263="seguro",$Y263,0) -> 0 | AB263: =+IF($H263="EN REVISIÓN",$Y263,0) -> 0 | AD263: =+IF($H263="NO CUMPLE",$Y263,0) -> 0 | AF263: =+IF($H263="no aplica",2,0) -> 0
Y265: =SUM(Y257:Y263) -> 1 | Z265: =IF($F253="",0,SUM(Z257:Z263)*$F253/$Y265) ->  | AB265: =IF($F253="",0,SUM(AB257:AB263)*$F253/$Y265) ->  | AD265: =IF($F253="",0,SUM(AD257:AD263)*$F253/$Y265) -> 
D268: ='Matriz VERDE-GBCe'!V47 -> AS 05 | E268: =VLOOKUP($D268,'Matriz VERDE-GBCe'!$V$6:$AH$61,2,FALSE) -> Contacto visual con el exterior | F268: =VLOOKUP($D268,'Matriz VERDE-GBCe'!$V$6:$AH$61,6,FALSE) -> 0.01771117166 | L268: NOTAS | Y268: Target | Z268: SEGURO | AB268: EN REVISIÓN | AD268: NO CUMPLE | AF268: NO APLICA
D270: D.J | E270: Fecha del archivo
D272: AS 03.1 | E272: Existe un núcleo que cumple con el criterio a menos de 15,000 m | Y272: 0.25 | Z272: =+IF($H272="seguro",$Y272,0) -> 0 | AB272: =+IF($H272="EN REVISIÓN",$Y272,0) -> 0 | AD272: =+IF($H272="NO CUMPLE",$Y272,0) -> 0 | AF272: =+IF($H272="no aplica",2,0) -> 0
D275: AS 03.2 | E275: Existe un núcleo que cumple con el criterio a menos de 10,000 m | Y275: 0.25 | Z275: =+IF($H275="seguro",$Y275,0) -> 0 | AB275: =+IF($H275="EN REVISIÓN",$Y275,0) -> 0 | AD275: =+IF($H275="NO CUMPLE",$Y275,0) -> 0 | AF275: =+IF($H275="no aplica",2,0) -> 0
D278: AS 03.3 | E278: Existe un núcleo que cumple con el criterio a menos de 5,000 m | Y278: 0.25 | Z278: =+IF($H278="seguro",$Y278,0) -> 0 | AB278: =+IF($H278="EN REVISIÓN",$Y278,0) -> 0 | AD278: =+IF($H278="NO CUMPLE",$Y278,0) -> 0 | AF278: =+IF($H278="no aplica",2,0) -> 0
D281: AS 03.4 | E281: Existe un núcleo que cumple con el criterio a menos de 2,000 m | Y281: 0.25 | Z281: =+IF($H281="seguro",$Y281,0) -> 0 | AB281: =+IF($H281="EN REVISIÓN",$Y281,0) -> 0 | AD281: =+IF($H281="NO CUMPLE",$Y281,0) -> 0 | AF281: =+IF($H281="no aplica",2,0) -> 0
Y283: =SUM(Y271:Y281) -> 1 | Z283: =IF($F268="",0,SUM(Z271:Z281)*$F268/$Y283) -> 0 | AB283: =IF($F268="",0,SUM(AB271:AB281)*$F268/$Y283) -> 0 | AD283: =IF($F268="",0,SUM(AD271:AD281)*$F268/$Y283) -> 0
D286: ='Matriz VERDE-GBCe'!V47 -> AS 05 | E286: =VLOOKUP($D286,'Matriz VERDE-GBCe'!$V$6:$AH$61,2,FALSE) -> Contacto visual con el exterior | F286: =VLOOKUP($D286,'Matriz VERDE-GBCe'!$V$6:$AH$61,6,FALSE) -> 0.01771117166 | L286: NOTAS | Y286: Target | Z286: SEGURO | AB286: EN REVISIÓN | AD286: NO CUMPLE | AF286: NO APLICA
D288: D.J | E288: Fecha del archivo
D290: AS 04.1 | E290: Existe un Plan de Movilidad Sostenible | Y290: 1 | Z290: =+IF($H290="seguro",$Y290,0) -> 0 | AB290: =+IF($H290="EN REVISIÓN",$Y290,0) -> 0 | AD290: =+IF($H290="NO CUMPLE",$Y290,0) -> 0 | AF290: =+IF($H290="no aplica",2,0) -> 0
Y292: =SUM(Y289:Y290) -> 1 | Z292: =IF($F286="",0,SUM(Z289:Z290)*$F286/$Y292) -> 0 | AB292: =IF($F286="",0,SUM(AB289:AB290)*$F286/$Y292) -> 0 | AD292: =IF($F286="",0,SUM(AD289:AD290)*$F286/$Y292) -> 0
D295: ='Matriz VERDE-GBCe'!#REF! ->  | E295: =VLOOKUP($D295,'Matriz VERDE-GBCe'!$V$6:$AH$61,2,FALSE) ->  | F295: =VLOOKUP($D295,'Matriz VERDE-GBCe'!$V$6:$AH$61,6,FALSE) ->  | L295: NOTAS | Y295: Target | Z295: SEGURO | AB295: EN REVISIÓN | AD295: NO CUMPLE | AF295: NO APLICA
D297: D.J | E297: Fecha del archivo
D299: AS 05.1 | E299: El diseño de los viales garantizan la accesibilidad | Y299: =IF(AF299=0,0.7,0) -> 0.7 | Z299: =+IF($H299="seguro",$Y299,0) -> 0 | AB299: =+IF($H299="EN REVISIÓN",$Y299,0) -> 0 | AD299: =+IF($H299="NO CUMPLE",$Y299,0) -> 0 | AF299: =+IF($H299="no aplica",2,0) -> 0
D302: AS 05.2 | E302: La señalización del parque es adecuada | Y302: =IF(AF302=0,0.3,0) -> 0.3 | Z302: =+IF($H302="seguro",$Y302,0) -> 0 | AB302: =+IF($H302="EN REVISIÓN",$Y302,0) -> 0 | AD302: =+IF($H302="NO CUMPLE",$Y302,0) -> 0 | AF302: =+IF($H302="no aplica",2,0) -> 0
Y304: =SUM(Y299:Y302) -> 1 | Z304: =IF($F295="",0,SUM(Z299:Z302)*$F295/$Y304) ->  | AB304: =IF($F295="",0,SUM(AB299:AB302)*$F295/$Y304) ->  | AD304: =IF($F295="",0,SUM(AD299:AD302)*$F295/$Y304) -> 
D307: ='Matriz VERDE-GBCe'!#REF! ->  | E307: =VLOOKUP($D307,'Matriz VERDE-GBCe'!$V$6:$AH$61,2,FALSE) ->  | F307: =VLOOKUP($D307,'Matriz VERDE-GBCe'!$V$6:$AH$61,6,FALSE) ->  | L307: NOTAS | Y307: Target | Z307: SEGURO | AB307: EN REVISIÓN | AD307: NO CUMPLE | AF307: NO APLICA
D309: D.J | E309: Fecha del archivo
D311: AS 06.1 | E311: Existe aparcamiento de bicicletas | Y311: 0.5 | Z311: =+IF($H311="seguro",$Y311,0) -> 0 | AB311: =+IF($H311="EN REVISIÓN",$Y311,0) -> 0 | AD311: =+IF($H311="NO CUMPLE",$Y311,0) -> 0 | AF311: =+IF($H311="no aplica",2,0) -> 0
D314: AS 06.2 | E314: Se ha diseñado una red viaria para bicicletas | Y314: 0.5 | Z314: =+IF($H314="seguro",$Y314,0) -> 0 | AB314: =+IF($H314="EN REVISIÓN",$Y314,0) -> 0 | AD314: =+IF($H314="NO CUMPLE",$Y314,0) -> 0 | AF314: =+IF($H314="no aplica",2,0) -> 0
Y316: =SUM(Y311:Y314) -> 1 | Z316: =IF($F307="",0,SUM(Z311:Z314)*$F307/$Y316) ->  | AB316: =IF($F307="",0,SUM(AB311:AB314)*$F307/$Y316) ->  | AD316: =IF($F307="",0,SUM(AD311:AD314)*$F307/$Y316) -> 
D319: ='Matriz VERDE-GBCe'!#REF! ->  | E319: =VLOOKUP($D319,'Matriz VERDE-GBCe'!$V$6:$AH$61,2,FALSE) ->  | F319: =VLOOKUP($D319,'Matriz VERDE-GBCe'!$V$6:$AH$61,6,FALSE) ->  | L319: NOTAS | Y319: Target | Z319: SEGURO | AB319: EN REVISIÓN | AD319: NO CUMPLE | AF319: NO APLICA
D321: D.J | E321: Fecha del archivo
D323: AS 07.1 | E323: El 70% de las parcelas tienen un nodo de trasnporte a menos de 1.000 m | Y323: =IF(AF323=0,0.7,0) -> 0.7 | Z323: =+IF($H323="seguro",$Y323,0) -> 0 | AB323: =+IF($H323="EN REVISIÓN",$Y323,0) -> 0 | AD323: =+IF($H323="NO CUMPLE",$Y323,0) -> 0 | AF323: =+IF($H323="no aplica",2,0) -> 0
D326: AS 07.2 | E326: El parque tiene conexión con al menos, dos lineas de trasnporte | Y326: =IF(AF326=0,0.3,0) -> 0.3 | Z326: =+IF($H326="seguro",$Y326,0) -> 0 | AB326: =+IF($H326="EN REVISIÓN",$Y326,0) -> 0 | AD326: =+IF($H326="NO CUMPLE",$Y326,0) -> 0 | AF326: =+IF($H326="no aplica",2,0) -> 0
Y328: =SUM(Y323:Y326) -> 1 | Z328: =IF($F319="",0,SUM(Z323:Z326)*$F319/$Y328) ->  | AB328: =IF($F319="",0,SUM(AB323:AB326)*$F319/$Y328) ->  | AD328: =IF($F319="",0,SUM(AD323:AD326)*$F319/$Y328) -> 
D331: ='Matriz VERDE-GBCe'!#REF! ->  | E331: =VLOOKUP($D331,'Matriz VERDE-GBCe'!$V$6:$AH$61,2,FALSE) ->  | F331: =VLOOKUP($D331,'Matriz VERDE-GBCe'!$V$6:$AH$61,6,FALSE) ->  | L331: NOTAS | Y331: Target | Z331: SEGURO | AB331: EN REVISIÓN | AD331: NO CUMPLE | AF331: NO APLICA
D333: D.J | E333: Fecha del archivo
D335: AS 08.1 | E335: Las plazas de aparcamiento no superan las exigencias normativas | Y335: =IF(AF335=0,0.7,0) -> 0.7 | Z335: =+IF($H335="seguro",$Y335,0) -> 0 | AB335: =+IF($H335="EN REVISIÓN",$Y335,0) -> 0 | AD335: =+IF($H335="NO CUMPLE",$Y335,0) -> 0 | AF335: =+IF($H335="no aplica",2,0) -> 0
D338: AS 08.2 | E338: Se cumple con la reserva de plazas para vehículos eléctricos | Y338: =IF(AF338=0,0.3,0) -> 0.3 | Z338: =+IF($H338="seguro",$Y338,0) -> 0 | AB338: =+IF($H338="EN REVISIÓN",$Y338,0) -> 0 | AD338: =+IF($H338="NO CUMPLE",$Y338,0) -> 0 | AF338: =+IF($H338="no aplica",2,0) -> 0
Y340: =SUM(Y335:Y338) -> 1 | Z340: =IF($F331="",0,SUM(Z335:Z338)*$F331/$Y340) ->  | AB340: =IF($F331="",0,SUM(AB335:AB338)*$F331/$Y340) ->  | AD340: =IF($F331="",0,SUM(AD335:AD338)*$F331/$Y340) -> 
D343: ='Matriz VERDE-GBCe'!#REF! ->  | E343: =VLOOKUP($D343,'Matriz VERDE-GBCe'!$V$6:$AH$61,2,FALSE) ->  | F343: =VLOOKUP($D343,'Matriz VERDE-GBCe'!$V$6:$AH$61,6,FALSE) ->  | L343: NOTAS | Y343: Target | Z343: SEGURO | AB343: EN REVISIÓN | AD343: NO CUMPLE | AF343: NO APLICA
D345: D.J | E345: Fecha del archivo
D347: AS 09.1 | E347: Se cumple con una de las medidas propuestas | Y347: =IF(AF347=0,0.2,0) -> 0.2 | Z347: =+IF($H347="seguro",$Y347,0) -> 0 | AB347: =+IF($H347="EN REVISIÓN",$Y347,0) -> 0 | AD347: =+IF($H347="NO CUMPLE",$Y347,0) -> 0 | AF347: =+IF($H347="no aplica",2,0) -> 0
D350: AS 09.2 | E350: Se cumple con dos de las medidas propuestas | Y350: =IF(AF350=0,0.2,0) -> 0.2 | Z350: =+IF($H350="seguro",$Y350,0) -> 0 | AB350: =+IF($H350="EN REVISIÓN",$Y350,0) -> 0 | AD350: =+IF($H350="NO CUMPLE",$Y350,0) -> 0 | AF350: =+IF($H350="no aplica",2,0) -> 0
D353: AS 09.3 | E353: Se cumple con tres de las medidas propuestas | Y353: =IF(AF353=0,0.2,0) -> 0.2 | Z353: =+IF($H353="seguro",$Y353,0) -> 0 | AB353: =+IF($H353="EN REVISIÓN",$Y353,0) -> 0 | AD353: =+IF($H353="NO CUMPLE",$Y353,0) -> 0 | AF353: =+IF($H353="no aplica",2,0) -> 0
D356: AS 09.4 | E356: Se cumple con cuatro de las medidas propuestas | Y356: =IF(AF356=0,0.2,0) -> 0.2 | Z356: =+IF($H356="seguro",$Y356,0) -> 0 | AB356: =+IF($H356="EN REVISIÓN",$Y356,0) -> 0 | AD356: =+IF($H356="NO CUMPLE",$Y356,0) -> 0 | AF356: =+IF($H356="no aplica",2,0) -> 0
D359: AS 09.5 | E359: Se cumplen con cinco de las medidas propuestas | Y359: =IF(AF359=0,0.2,0) -> 0.2 | Z359: =+IF($H359="seguro",$Y359,0) -> 0 | AB359: =+IF($H359="EN REVISIÓN",$Y359,0) -> 0 | AD359: =+IF($H359="NO CUMPLE",$Y359,0) -> 0 | AF359: =+IF($H359="no aplica",2,0) -> 0
Y361: =SUM(Y347:Y359) -> 1 | Z361: =IF($F343="",0,SUM(Z347:Z359)*$F343/$Y361) ->  | AB361: =IF($F343="",0,SUM(AB347:AB359)*$F343/$Y361) ->  | AD361: =IF($F343="",0,SUM(AD347:AD359)*$F343/$Y361) -> 
D364: ='Matriz VERDE-GBCe'!#REF! ->  | E364: =VLOOKUP($D364,'Matriz VERDE-GBCe'!$V$6:$AH$61,2,FALSE) ->  | F364: =VLOOKUP($D364,'Matriz VERDE-GBCe'!$V$6:$AH$61,6,FALSE) ->  | L364: NOTAS | Y364: Target | Z364: SEGURO | AB364: EN REVISIÓN | AD364: NO CUMPLE | AF364: NO APLICA
D366: D.J | E366: Fecha del archivo
D368: AS 10.1 | E368: Control de acceso | Y368: 0.5 | Z368: =+IF($H368="seguro",$Y368,0) -> 0 | AB368: =+IF($H368="EN REVISIÓN",$Y368,0) -> 0 | AD368: =+IF($H368="NO CUMPLE",$Y368,0) -> 0 | AF368: =+IF($H368="no aplica",2,0) -> 0
D371: AS 10.2 | E371: Estudio de seguridad | Y371: 0.25 | Z371: =+IF($H371="seguro",$Y371,0) -> 0 | AB371: =+IF($H371="EN REVISIÓN",$Y371,0) -> 0 | AD371: =+IF($H371="NO CUMPLE",$Y371,0) -> 0 | AF371: =+IF($H371="no aplica",2,0) -> 0
D374: AS 10.3 | E374: Medidas extraordinarias de seguridad | Y374: 0.25 | Z374: =+IF($H374="seguro",$Y374,0) -> 0 | AB374: =+IF($H374="EN REVISIÓN",$Y374,0) -> 0 | AD374: =+IF($H374="NO CUMPLE",$Y374,0) -> 0 | AF374: =+IF($H374="no aplica",2,0) -> 0
Y376: =SUM(Y368:Y374) -> 1 | Z376: =IF($F364="",0,SUM(Z368:Z374)*$F364/$Y376) ->  | AB376: =IF($F364="",0,SUM(AB368:AB374)*$F364/$Y376) ->  | AD376: =IF($F364="",0,SUM(AD368:AD374)*$F364/$Y376) -> 
B378: ='Matriz VERDE-GBCe'!#REF! ->  | D378: ='Matriz VERDE-GBCe'!#REF! -> 
D381: ='Matriz VERDE-GBCe'!#REF! ->  | E381: =VLOOKUP($D381,'Matriz VERDE-GBCe'!$V$6:$AH$61,2,FALSE) ->  | F381: =VLOOKUP($D381,'Matriz VERDE-GBCe'!$V$6:$AH$61,6,FALSE) ->  | L381: NOTAS | Y381: Target | Z381: SEGURO | AB381: EN REVISIÓN | AD381: NO CUMPLE | AF381: NO APLICA
D383: D.J | E383: Fecha del archivo
D385: AE 01.1 | E385: Existe un estudio de viabilidad económica del polígono | Y385: 0.5 | Z385: =+IF($H385="seguro",$Y385,0) -> 0 | AB385: =+IF($H385="EN REVISIÓN",$Y385,0) -> 0 | AD385: =+IF($H385="NO CUMPLE",$Y385,0) -> 0 | AF385: =+IF($H385="no aplica",2,0) -> 0
D388: AE 01.2 | E388: Se han adoptado medidas para mejorar la viabilidad económica | Y388: 0.5 | Z388: =+IF($H388="seguro",$Y388,0) -> 0 | AB388: =+IF($H388="EN REVISIÓN",$Y388,0) -> 0 | AD388: =+IF($H388="NO CUMPLE",$Y388,0) -> 0 | AF388: =+IF($H388="no aplica",2,0) -> 0
Y390: =SUM(Y385:Y388) -> 1 | Z390: =IF($F381="",0,SUM(Z385:Z388)*$F381/$Y390) ->  | AB390: =IF($F381="",0,SUM(AB385:AB388)*$F381/$Y390) ->  | AD390: =IF($F381="",0,SUM(AD385:AD388)*$F381/$Y390) -> 
D393: ='Matriz VERDE-GBCe'!#REF! ->  | E393: =VLOOKUP($D393,'Matriz VERDE-GBCe'!$V$6:$AH$61,2,FALSE) ->  | F393: =VLOOKUP($D393,'Matriz VERDE-GBCe'!$V$6:$AH$61,6,FALSE) ->  | L393: NOTAS | Y393: Target | Z393: SEGURO | AB393: EN REVISIÓN | AD393: NO CUMPLE | AF393: NO APLICA
D395: D.J | E395: Fecha del archivo
D397: AE 02.1 | E397: No hay coste de iluminación para el municipio | Y397: 0.2 | Z397: =+IF($H397="seguro",$Y397,0) -> 0 | AB397: =+IF($H397="EN REVISIÓN",$Y397,0) -> 0 | AD397: =+IF($H397="NO CUMPLE",$Y397,0) -> 0 | AF397: =+IF($H397="no aplica",2,0) -> 0
D400: AE 02.2 | E400: No hay coste de depuración de aguas para el municipio | Y400: 0.2 | Z400: =+IF($H400="seguro",$Y400,0) -> 0 | AB400: =+IF($H400="EN REVISIÓN",$Y400,0) -> 0 | AD400: =+IF($H400="NO CUMPLE",$Y400,0) -> 0 | AF400: =+IF($H400="no aplica",2,0) -> 0
D403: AE 02.3 | E403: No hay coste de recogida de residuos para el municipio | Y403: 0.2 | Z403: =+IF($H403="seguro",$Y403,0) -> 0 | AB403: =+IF($H403="EN REVISIÓN",$Y403,0) -> 0 | AD403: =+IF($H403="NO CUMPLE",$Y403,0) -> 0 | AF403: =+IF($H403="no aplica",2,0) -> 0
D406: AE 02.4 | E406: No hay coste de limpieza del viario para el municipio | Y406: 0.2 | Z406: =+IF($H406="seguro",$Y406,0) -> 0 | AB406: =+IF($H406="EN REVISIÓN",$Y406,0) -> 0 | AD406: =+IF($H406="NO CUMPLE",$Y406,0) -> 0 | AF406: =+IF($H406="no aplica",2,0) -> 0
D409: AE 02.5 | E409: No hay coste de mantenimiento para el municipio | Y409: 0.2 | Z409: =+IF($H409="seguro",$Y409,0) -> 0 | AB409: =+IF($H409="EN REVISIÓN",$Y409,0) -> 0 | AD409: =+IF($H409="NO CUMPLE",$Y409,0) -> 0 | AF409: =+IF($H409="no aplica",2,0) -> 0
Y411: =SUM(Y397:Y409) -> 1 | Z411: =IF($F393="",0,SUM(Z397:Z409)*$F393) ->  | AB411: =IF($F393="",0,SUM(AB397:AB409)*$F393) ->  | AD411: =IF($F393="",0,SUM(AD397:AD409)*$F393) -> 
D414: ='Matriz VERDE-GBCe'!#REF! ->  | E414: =VLOOKUP($D414,'Matriz VERDE-GBCe'!$V$6:$AH$61,2,FALSE) ->  | F414: =VLOOKUP($D414,'Matriz VERDE-GBCe'!$V$6:$AH$61,6,FALSE) ->  | L414: NOTAS | Y414: Target | Z414: SEGURO | AB414: EN REVISIÓN | AD414: NO CUMPLE | AF414: NO APLICA
D416: D.J | E416: Fecha del archivo
D418: AE 03.1 | E418: El 30% de las parcelas están reservadas | Y418: 0.5 | Z418: =+IF($H418="seguro",$Y418,0) -> 0 | AB418: =+IF($H418="EN REVISIÓN",$Y418,0) -> 0 | AD418: =+IF($H418="NO CUMPLE",$Y418,0) -> 0 | AF418: =+IF($H418="no aplica",2,0) -> 0
D421: AE 03.2 | E421: El 70% de las parcelas están reservadas | Y421: 0.5 | Z421: =+IF($H421="seguro",$Y421,0) -> 0 | AB421: =+IF($H421="EN REVISIÓN",$Y421,0) -> 0 | AD421: =+IF($H421="NO CUMPLE",$Y421,0) -> 0 | AF421: =+IF($H421="no aplica",2,0) -> 0
Y423: =SUM(Y418:Y421) -> 1 | Z423: =IF($F414="",0,SUM(Z418:Z421)*$F414/$Y423) ->  | AB423: =IF($F414="",0,SUM(AB418:AB421)*$F414/$Y423) ->  | AD423: =IF($F414="",0,SUM(AD418:AD421)*$F414/$Y423) -> 
D426: ='Matriz VERDE-GBCe'!#REF! ->  | E426: =VLOOKUP($D426,'Matriz VERDE-GBCe'!$V$6:$AH$61,2,FALSE) ->  | F426: =VLOOKUP($D426,'Matriz VERDE-GBCe'!$V$6:$AH$61,6,FALSE) ->  | L426: NOTAS | Y426: Target | Z426: SEGURO | AB426: EN REVISIÓN | AD426: NO CUMPLE | AF426: NO APLICA
D428: D.J | E428: Fecha del archivo
D430: AE 04.1 | E430: Incentivar las certificaciones sostenibles de los edificios | Y430: 0.4 | Z430: =+IF($H430="seguro",$Y430,0) -> 0 | AB430: =+IF($H430="EN REVISIÓN",$Y430,0) -> 0 | AD430: =+IF($H430="NO CUMPLE",$Y430,0) -> 0 | AF430: =+IF($H430="no aplica",2,0) -> 0
D433: AE 04.1 | E433: Existe infraestructura de uso comunitario | Y433: 0.3 | Z433: =+IF($H433="seguro",$Y433,0) -> 0 | AB433: =+IF($H433="EN REVISIÓN",$Y433,0) -> 0 | AD433: =+IF($H433="NO CUMPLE",$Y433,0) -> 0 | AF433: =+IF($H433="no aplica",2,0) -> 0
D436: AE 04.1 | E436: Fondo de formación y bolsa de trabajo para empleo local | Y436: 0.3 | Z436: =+IF($H436="seguro",$Y436,0) -> 0 | AB436: =+IF($H436="EN REVISIÓN",$Y436,0) -> 0 | AD436: =+IF($H436="NO CUMPLE",$Y436,0) -> 0 | AF436: =+IF($H436="no aplica",2,0) -> 0
Y438: =SUM(Y430:Y436) -> 1 | Z438: =IF($F426="",0,Z430*$F426) ->  | AB438: =IF($F426="",0,AB430*$F426) ->  | AD438: =IF($F426="",0,AD430*$F426) -> 
D441: ='Matriz VERDE-GBCe'!#REF! ->  | E441: =VLOOKUP($D441,'Matriz VERDE-GBCe'!$V$6:$AH$61,2,FALSE) ->  | F441: =VLOOKUP($D441,'Matriz VERDE-GBCe'!$V$6:$AH$61,6,FALSE) ->  | L441: NOTAS | Y441: Target | Z441: SEGURO | AB441: EN REVISIÓN | AD441: NO CUMPLE | AF441: NO APLICA
D443: D.J | E443: Fecha del archivo
D445: AE 05.1 | E445: El acceso a una vía rápida rodada está a menos de 1.500 m | Y445: =IF(AF445=0,0.7,0) -> 0.7 | Z445: =+IF($H445="seguro",$Y445,0) -> 0 | AB445: =+IF($H445="EN REVISIÓN",$Y445,0) -> 0 | AD445: =+IF($H445="NO CUMPLE",$Y445,0) -> 0 | AF445: =+IF($H445="no aplica",2,0) -> 0
D448: AE 05.2 | E448: El acceso a otras infraestructuras de transporte a menos de 5.000 m | Y448: =IF(AF448=0,0.3,0) -> 0.3 | Z448: =+IF($H448="seguro",$Y448,0) -> 0 | AB448: =+IF($H448="EN REVISIÓN",$Y448,0) -> 0 | AD448: =+IF($H448="NO CUMPLE",$Y448,0) -> 0 | AF448: =+IF($H448="no aplica",2,0) -> 0
Y450: =SUM(Y445:Y448) -> 1 | Z450: =IF($F441="",0,SUM(Z445:Z448)*$F441/$Y450) ->  | AB450: =IF($F441="",0,SUM(AB445:AB448)*$F441/$Y450) ->  | AD450: =IF($F441="",0,SUM(AD445:AD448)*$F441/$Y450) -> 
D453: ='Matriz VERDE-GBCe'!#REF! ->  | E453: =VLOOKUP($D453,'Matriz VERDE-GBCe'!$V$6:$AH$61,2,FALSE) ->  | F453: =VLOOKUP($D453,'Matriz VERDE-GBCe'!$V$6:$AH$61,6,FALSE) ->  | L453: NOTAS | Y453: Target | Z453: SEGURO | AB453: EN REVISIÓN | AD453: NO CUMPLE | AF453: NO APLICA
D455: D.J | E455: Fecha del archivo
D457: AE 06.1 | E457: Toma de medidas de consumo energético por usos | Y457: 0.35 | Z457: =+IF($H457="seguro",$Y457,0) -> 0 | AB457: =+IF($H457="EN REVISIÓN",$Y457,0) -> 0 | AD457: =+IF($H457="NO CUMPLE",$Y457,0) -> 0 | AF457: =+IF($H457="no aplica",2,0) -> 0
D460: AE 06.2 | E460: Toma de medidas de consumo de agua por usos | Y460: 0.15 | Z460: =+IF($H460="seguro",$Y460,0) -> 0 | AB460: =+IF($H460="EN REVISIÓN",$Y460,0) -> 0 | AD460: =+IF($H460="NO CUMPLE",$Y460,0) -> 0 | AF460: =+IF($H460="no aplica",2,0) -> 0
D463: AE 06.3 | E463: Sistemas de monitorización y telemedida por usos | Y463: 0.2 | Z463: =+IF($H463="seguro",$Y463,0) -> 0 | AB463: =+IF($H463="EN REVISIÓN",$Y463,0) -> 0 | AD463: =+IF($H463="NO CUMPLE",$Y463,0) -> 0 | AF463: =+IF($H463="no aplica",2,0) -> 0
D466: AE 06.4 | E466: Sistemas de monitorización y telemedida sectorizado | Y466: 0.2 | Z466: =+IF($H466="seguro",$Y466,0) -> 0 | AB466: =+IF($H466="EN REVISIÓN",$Y466,0) -> 0 | AD466: =+IF($H466="NO CUMPLE",$Y466,0) -> 0 | AF466: =+IF($H466="no aplica",2,0) -> 0
D469: AE 06.5 | E469: Archivo de registro de medidas | Y469: 0.1 | Z469: =+IF($H469="seguro",$Y469,0) -> 0 | AB469: =+IF($H469="EN REVISIÓN",$Y469,0) -> 0 | AD469: =+IF($H469="NO CUMPLE",$Y469,0) -> 0 | AF469: =+IF($H469="no aplica",2,0) -> 0
Y471: =SUM(Y457:Y469) -> 1 | Z471: =IF($F453="",0,SUM(Z456:Z469)*$F453/$Y471) ->  | AB471: =IF($F453="",0,SUM(AB456:AB469)*$F453/$Y471) ->  | AD471: =IF($F453="",0,SUM(AD457:AD469)*$F453/$Y471) -> 
B473: ='Matriz VERDE-GBCe'!#REF! ->  | D473: ='Matriz VERDE-GBCe'!#REF! -> 
D476: ='Matriz VERDE-GBCe'!#REF! ->  | E476: =VLOOKUP($D476,'Matriz VERDE-GBCe'!$V$6:$AH$61,2,FALSE) ->  | F476: =VLOOKUP($D476,'Matriz VERDE-GBCe'!$V$6:$AH$61,6,FALSE) ->  | L476: NOTAS | Y476: Target | Z476: SEGURO | AB476: EN REVISIÓN | AD476: NO CUMPLE | AF476: NO APLICA
D478: D.J | E478: Fecha del archivo
D480: CC 01.1 | E480: Documento de requisitos previo al proyecto | Y480: 0.2 | Z480: =+IF($H480="seguro",$Y480,0) -> 0 | AB480: =+IF($H480="EN REVISIÓN",$Y480,0) -> 0 | AD480: =+IF($H480="NO CUMPLE",$Y480,0) -> 0 | AF480: =+IF($H480="no aplica",2,0) -> 0
D483: CC 01.2 | E483: Análisis de alternativas constructivas y de diseño | Y483: 0.2 | Z483: =+IF($H483="seguro",$Y483,0) -> 0 | AB483: =+IF($H483="EN REVISIÓN",$Y483,0) -> 0 | AD483: =+IF($H483="NO CUMPLE",$Y483,0) -> 0 | AF483: =+IF($H483="no aplica",2,0) -> 0
D486: CC 01.3 | E486: Guías de diseño que se han tenido en cuenta | Y486: 0.2 | Z486: =+IF($H486="seguro",$Y486,0) -> 0 | AB486: =+IF($H486="EN REVISIÓN",$Y486,0) -> 0 | AD486: =+IF($H486="NO CUMPLE",$Y486,0) -> 0 | AF486: =+IF($H486="no aplica",2,0) -> 0
... 35 more rows

Sheet portada
C3: VERDE Edificios 2020
E4: Evaluación de la sostenibilidad en edificios
E5: Residencial privado
E6: Nueva Edificación, ReHabilitación, Edificios Existentes y mixtos
E8: VERDE Edificios 2020
E9: Publicación en Septiembre de 2020

Sheet Instrucciones
B2: VERDE Edificios 2020
D3: Instrucciones de uso
C5: Celdas a rellenar
D7: Solo se rellenan las celdas sombreadas.
C10: Pestañas
D12: Para navegar por la herramienta existen una serie de pestañas que se pueden ver en el margen inferior de la ventana, a continación se describen los contenidos de cada una de ellas:
D14: DG (datos generales): En ella se introducirán los datos del edificio, el proyecto y el EA VERDE que realiza la evaluación.
D16: CA (criterios aplicables): En esta pestaña se pueden personalizar los criterio que serán de aplicación apra una evaluación. De cara a una certificación, deberán estar todos los criterios activos a menos que se haya justificado la no aplicabilidad de alguno de ellos y se haya aprobado por GBCe.
D18: PRE (pre-evaluación): En esta pestaña se puede hacer una preevaluación del edificio. En el listado de criterios, se indicará qué criterios es seguro (s) que se van a cumplir, cuáles son probables (p), difícil (d) o cuáles no se van a cumplir (n). En función de los datos introducidos, la herramienta informará de las posibles valoraciones del edificio.
D20: Pestañas de certificación: por cada una de las áreas de evaluación, tenemos una pestaña donde se introducirán los datos generales para la evaluación y los resultados criterio a criterio. Al final de la hoja, aparece la valoración que se ha obtenido en la misma.
D22: Informe resultados: en esta hoja aparecen los resultados de la evaluación, con la calificación de la certificación y un resumen de los resultados por criterios
D24: Resultados por impactos: en esta hoja se ofrece la mejora alcanzada por el edificio en los distintos impactos evaluados sobre la referencia establecida.
D26: Indicadores: en esta hoja se ofrecen los datos cuantitativos de los indicadores correspondientes a cada impacto de forma cualitativa y referido a la referencia establecida. Se indica a qué fase del ciclo de vida se hace referencia y cuál es el alcance del cálculo.
C29: Celdas Documento Justificativos
D31: Estas celdas aparecen, tanto en la pestaña de datos generales, como en las pestañas de certificación, en cada uno de los criterios. En ellas habrá que indicar si se han incluido, no se han incluido o no son de aplicación, en los archivos de evaluación los Documentos Justificativos (D.J.) correspondientes.
D32: Los D.J. solicitados para justificar la evaluación de cara a una certificación con VERDE, se describen en la guía de la herramienta.
C35: ¿Cómo hacer la evaluación de los criterios?
D37: El método de evaluación de cada uno de los criterios, aparece definido en la guía de evaluación de la herramienta que se puede descargar en la página web.

Sheet DG
B2: VERDE Edificios 2020 (Residencial privado) Nueva Edificación, Rehabilitación, Edificio Existente y Mixto
D3: DATOS GENERALES
C5: Datos de edificio
D8: Nombre del edificio
D10: Localidad
D12: Comunidad Autónoma
D14: Capital de Provincia
D16: Altura sobre el nivel del mar
D18: Zona climática de la localidad | E18: =CONCATENATE('zona clima'!C10,'zona clima'!C11) -> 
D20: Estación meteorológica
K21: Residencial colectivo | R21: 950
D22: Superficie construida total (m2)* | K22: Unifamiliar
D23: *Descontando plantas bajo rasante y aparcamientos | K23: Urbanizaciones
K24: Vivienda en un edificio
D25: Superficie útil de los espacios habitables del edificio (m2)* | K25: Edificios administrativos
K26: Equipamiento público
D27: Número de viviendas | K27: Edificios docentes
K28: Edificios comerciales
D29: Tipología del edificio | K29: Alojamiento y hospedaje
K30: Servicios de restauración
D31: Tipo de actuación | K31: Industria ligera o logística
K32: Local o parte de un edificio
D33: Superficie de ampliación (equiparable a nueva edificación):
D35: Superficie rehabilitada
D37: Superficie de edificio existente sobre el que no se interviene:
K39: Nueva Edificación
C40: Ajustes de la herramienta | K40: Rehabilitación
K41: Edificio existente
K42: Mixto
D43: ¿El edificio dispone de plazas de aparcamiento?
D45: Superficie libre de parcela
D47: Superficie ajardinada | K47: Sí
K48: No
D49: ¿El edificio dispone de sustancias refrigerantes en su instalación de climatización? | K49: No aplica
K50: No
D51: ¿El edificio se sitúa en una isla? | K51: No aplica
C54: Datos del promotor y equipo de proyecto
D57: Promotor
D59: Contacto promotor
D61: Equipo redactor
D63: Fecha de proyecto
D65: Fecha de construcción
C68: Datos del Evaluador Acreditado
D71: Nombre
D73: Apellidos
D75: Email y teléfono de contacto
C78: Datos de la certificación
D81: Código de la certifiacción
D83: Tipo de certificación | K83: Promocional | L83: Proyecto de ejecución
K84: Comercial | L84: Obra construida
D85: Estado de la certificación
D87: Fecha de entrega de la evaluación
D89: Dirección postal de entrega de la certificación
C94: Documentos Justificativos | M94: a
M95: r
D97: DG 01
D99: DG 02
D101: DG 03
D103: DG 04
D105: DG 05
D107: DG 06
D109: DG 07
D111: DG 08
G396: a

Sheet zona clima (hidden)
I1: A | J1: B | K1: C | L1: D | M1: E
I2: 1 | J2: 2 | K2: 3 | L2: 4
E4: CAPITAL | F4: Z.C. INVIERNO | G4: Z.C. VERANO | H4: ALTITUD | I4: 0-50 | K4: 50-100 | M4: 100-150 | O4: 150-200 | Q4: 200-250 | S4: 250-300 | U4: 300-350 | W4: 350-400 | Y4: 400-450 | AA4: 450-500 | AC4: 500-550 | AE4: 550-600 | AG4: 600-650 | AI4: 650-700 | AK4: 700-750 | AM4: 750-800 | AO4: 800-850 | AQ4: 850-900 | AS4: 900-950 | AU4: 950-1000 | AW4: 1000-1050 | AY4: 1100-1150 | BA4: 1150-1200 | BC4: 1200-1250 | BE4: 1250-1300 | BG4: >=1300 | BJ4: A4 | BK4: A3 | BL4: A2 | BM4: A1 | BN4: B4 | BO4: B3 | BP4: B2 | BQ4: B1 | BR4: C4 | BS4: C3 | BT4: C2 | BU4: C1 | BV4: D3 | BW4: D2 | BX4: D1 | BY4: E1
B5: capital de provincia | C5: =IF(DG!E14=0,"",DG!E14) ->  | E5: Albacete | F5: =$L$1 -> D | G5: =$K$2 -> 3 | H5: 677 | I5: =$K$1 -> C | J5: =$K$2 -> 3 | K5: =$K$1 -> C | L5: =$K$2 -> 3 | M5: =$K$1 -> C | N5: =$K$2 -> 3 | O5: =$K$1 -> C | P5: =$K$2 -> 3 | Q5: =$K$1 -> C | R5: =$K$2 -> 3 | S5: =$K$1 -> C | T5: =$K$2 -> 3 | U5: =$K$1 -> C | V5: =$K$2 -> 3 | W5: =$K$1 -> C | X5: =$K$2 -> 3 | Y5: =$K$1 -> C | Z5: =$K$2 -> 3 | AA5: =$L$1 -> D | AB5: =$K$2 -> 3 | AC5: =$L$1 -> D | AD5: =$K$2 -> 3 | AE5: =$L$1 -> D | AF5: =$K$2 -> 3 | AG5: =$L$1 -> D | AH5: =$K$2 -> 3 | AI5: =$L$1 -> D | AJ5: =$K$2 -> 3 | AK5: =$L$1 -> D | AL5: =$K$2 -> 3 | AM5: =$L$1 -> D | AN5: =$K$2 -> 3 | AO5: =$L$1 -> D | AP5: =$K$2 -> 3 | AQ5: =$L$1 -> D | AR5: =$K$2 -> 3 | AS5: =$L$1 -> D | AT5: =$K$2 -> 3 | AU5: =$M$1 -> E | AV5: =$I$2 -> 1 | AW5: E | AX5: 1 | AY5: E | AZ5: 1 | BA5: E | BB5: 1 | BC5: E | BD5: 1 | BE5: E | BF5: 1 | BG5: E | BH5: 1 | BS5: <450 | BV5: <950 | BY5: >=950
B6: altura capital | C6: =IF(C5="","",VLOOKUP(C5,E5:BJ55,3,FALSE)) ->  | E6: Alicante | F6: =$J$1 -> B | G6: =$L$2 -> 4 | H6: 7 | I6: =$J$1 -> B | J6: =$L$2 -> 4 | K6: =$J$1 -> B | L6: =$L$2 -> 4 | M6: =$J$1 -> B | N6: =$L$2 -> 4 | O6: =$J$1 -> B | P6: =$L$2 -> 4 | Q6: =$J$1 -> B | R6: =$L$2 -> 4 | S6: =$K$1 -> C | T6: =$K$2 -> 3 | U6: =$K$1 -> C | V6: =$K$2 -> 3 | W6: =$K$1 -> C | X6: =$K$2 -> 3 | Y6: =$K$1 -> C | Z6: =$K$2 -> 3 | AA6: =$K$1 -> C | AB6: =$K$2 -> 3 | AC6: =$K$1 -> C | AD6: =$K$2 -> 3 | AE6: =$K$1 -> C | AF6: =$K$2 -> 3 | AG6: =$K$1 -> C | AH6: =$K$2 -> 3 | AI6: =$K$1 -> C | AJ6: =$K$2 -> 3 | AK6: =$L$1 -> D | AL6: =$K$2 -> 3 | AM6: =$L$1 -> D | AN6: =$K$2 -> 3 | AO6: =$L$1 -> D | AP6: =$K$2 -> 3 | AQ6: =$L$1 -> D | AR6: =$K$2 -> 3 | AS6: =$L$1 -> D | AT6: =$K$2 -> 3 | AU6: =$L$1 -> D | AV6: =$K$2 -> 3 | AW6: =$L$1 -> D | AX6: =$K$2 -> 3 | AY6: =$L$1 -> D | AZ6: =$K$2 -> 3 | BA6: =$L$1 -> D | BB6: =$K$2 -> 3 | BC6: =$L$1 -> D | BD6: =$K$2 -> 3 | BE6: =$L$1 -> D | BF6: =$K$2 -> 3 | BG6: =$L$1 -> D | BH6: =$K$2 -> 3 | BN6: <250 | BS6: <700 | BV6: >=700
B7: altura localidad | C7: =IF(DG!E16="","",DG!E16) ->  | E7: Almería | F7: =$I$1 -> A | G7: =$L$2 -> 4 | H7: 0 | I7: A | J7: =$L$2 -> 4 | K7: A | L7: =$L$2 -> 4 | M7: =$J$1 -> B | N7: =$L$2 -> 4 | O7: =$J$1 -> B | P7: =$L$2 -> 4 | Q7: =$J$1 -> B | R7: =$L$2 -> 4 | S7: =$J$1 -> B | T7: =$K$2 -> 3 | U7: =$J$1 -> B | V7: =$K$2 -> 3 | W7: =$J$1 -> B | X7: =$K$2 -> 3 | Y7: =$K$1 -> C | Z7: =$K$2 -> 3 | AA7: =$K$1 -> C | AB7: =$K$2 -> 3 | AC7: =$K$1 -> C | AD7: =$K$2 -> 3 | AE7: =$K$1 -> C | AF7: =$K$2 -> 3 | AG7: =$K$1 -> C | AH7: =$K$2 -> 3 | AI7: =$K$1 -> C | AJ7: =$K$2 -> 3 | AK7: =$K$1 -> C | AL7: =$K$2 -> 3 | AM7: =$K$1 -> C | AN7: =$K$2 -> 3 | AO7: =$L$1 -> D | AP7: =$K$2 -> 3 | AQ7: =$L$1 -> D | AR7: =$K$2 -> 3 | AS7: =$L$1 -> D | AT7: =$K$2 -> 3 | AU7: =$L$1 -> D | AV7: =$K$2 -> 3 | AW7: =$L$1 -> D | AX7: =$K$2 -> 3 | AY7: =$L$1 -> D | AZ7: =$K$2 -> 3 | BA7: =$L$1 -> D | BB7: =$K$2 -> 3 | BC7: =$L$1 -> D | BD7: =$K$2 -> 3 | BE7: =$L$1 -> D | BF7: =$K$2 -> 3 | BG7: =$L$1 -> D | BH7: =$K$2 -> 3 | BJ7: <100 | BN7: <250 | BO7: <400 | BS7: <800 | BV7: >=800
B8: REDONDEO ALTITUD | C8: =IF(C7>=1300,1300,IF(AND(C7>=1250,C7<1300),1250,ROUND((C7+25)/50,0)*50)) -> 1300 | E8: Ávila | F8: =$M$1 -> E | G8: =$I$2 -> 1 | H8: 1054 | I8: =$L$1 -> D | J8: =$J$2 -> 2 | K8: =$L$1 -> D | L8: =$J$2 -> 2 | M8: =$L$1 -> D | N8: =$J$2 -> 2 | O8: =$L$1 -> D | P8: =$J$2 -> 2 | Q8: =$L$1 -> D | R8: =$J$2 -> 2 | S8: =$L$1 -> D | T8: =$J$2 -> 2 | U8: =$L$1 -> D | V8: =$J$2 -> 2 | W8: =$L$1 -> D | X8: =$J$2 -> 2 | Y8: =$L$1 -> D | Z8: =$J$2 -> 2 | AA8: =$L$1 -> D | AB8: =$J$2 -> 2 | AC8: =$L$1 -> D | AD8: =$J$2 -> 2 | AE8: =$L$1 -> D | AF8: =$I$2 -> 1 | AG8: =$L$1 -> D | AH8: =$I$2 -> 1 | AI8: =$L$1 -> D | AJ8: =$I$2 -> 1 | AK8: =$L$1 -> D | AL8: =$I$2 -> 1 | AM8: =$L$1 -> D | AN8: =$I$2 -> 1 | AO8: =$L$1 -> D | AP8: =$I$2 -> 1 | AQ8: =$M$1 -> E | AR8: =$I$2 -> 1 | AS8: =$M$1 -> E | AT8: =$I$2 -> 1 | AU8: =$M$1 -> E | AV8: =$I$2 -> 1 | AW8: =$M$1 -> E | AX8: =$I$2 -> 1 | AY8: =$M$1 -> E | AZ8: =$I$2 -> 1 | BA8: =$M$1 -> E | BB8: =$I$2 -> 1 | BC8: =$M$1 -> E | BD8: =$I$2 -> 1 | BE8: =$M$1 -> E | BF8: =$I$2 -> 1 | BG8: =$M$1 -> E | BH8: =$I$2 -> 1 | BU8: <50 | BX8: <550 | BY8: >=550
B9: Nº DE COLUMNA | C9: =(C8/50)*2 -> 52 | E9: Badajoz | F9: =$K$1 -> C | G9: =$L$2 -> 4 | H9: 168 | I9: =$K$1 -> C | J9: =$L$2 -> 4 | K9: =$K$1 -> C | L9: =$L$2 -> 4 | M9: =$K$1 -> C | N9: =$L$2 -> 4 | O9: =$K$1 -> C | P9: =$L$2 -> 4 | Q9: =$K$1 -> C | R9: =$L$2 -> 4 | S9: =$K$1 -> C | T9: =$L$2 -> 4 | U9: =$K$1 -> C | V9: =$L$2 -> 4 | W9: =$K$1 -> C | X9: =$L$2 -> 4 | Y9: =$K$1 -> C | Z9: =$K$2 -> 3 | AA9: =$L$1 -> D | AB9: =$K$2 -> 3 | AC9: =$L$1 -> D | AD9: =$K$2 -> 3 | AE9: =$L$1 -> D | AF9: =$K$2 -> 3 | AG9: =$L$1 -> D | AH9: =$K$2 -> 3 | AI9: =$L$1 -> D | AJ9: =$K$2 -> 3 | AK9: =$L$1 -> D | AL9: =$K$2 -> 3 | AM9: =$L$1 -> D | AN9: =$K$2 -> 3 | AO9: =$L$1 -> D | AP9: =$K$2 -> 3 | AQ9: =$L$1 -> D | AR9: =$K$2 -> 3 | AS9: =$L$1 -> D | AT9: =$K$2 -> 3 | AU9: =$L$1 -> D | AV9: =$K$2 -> 3 | AW9: =$L$1 -> D | AX9: =$K$2 -> 3 | AY9: =$L$1 -> D | AZ9: =$K$2 -> 3 | BA9: =$L$1 -> D | BB9: =$K$2 -> 3 | BC9: =$L$1 -> D | BD9: =$K$2 -> 3 | BE9: =$L$1 -> D | BF9: =$K$2 -> 3 | BG9: =$L$1 -> D | BH9: =$K$2 -> 3 | BW9: <550 | BX9: <850 | BY9: >=850
B10: ZC Invierno localidad | C10: =IF(C5="","",VLOOKUP(C$5,$E:$BH,C$9+3,FALSE)) ->  | E10: Barcelona | F10: =$K$1 -> C | G10: =$J$2 -> 2 | H10: 1 | I10: =$K$1 -> C | J10: =$J$2 -> 2 | K10: =$K$1 -> C | L10: =$J$2 -> 2 | M10: =$K$1 -> C | N10: =$J$2 -> 2 | O10: =$K$1 -> C | P10: =$J$2 -> 2 | Q10: =$K$1 -> C | R10: =$J$2 -> 2 | S10: =$L$1 -> D | T10: =$J$2 -> 2 | U10: =$L$1 -> D | V10: =$J$2 -> 2 | W10: =$L$1 -> D | X10: =$J$2 -> 2 | Y10: =$L$1 -> D | Z10: =$J$2 -> 2 | AA10: =$L$1 -> D | AB10: =$I$2 -> 1 | AC10: =$L$1 -> D | AD10: =$I$2 -> 1 | AE10: =$L$1 -> D | AF10: =$I$2 -> 1 | AG10: =$L$1 -> D | AH10: =$I$2 -> 1 | AI10: =$L$1 -> D | AJ10: =$I$2 -> 1 | AK10: =$L$1 -> D | AL10: =$I$2 -> 1 | AM10: =$M$1 -> E | AN10: =$I$2 -> 1 | AO10: =$M$1 -> E | AP10: =$I$2 -> 1 | AQ10: =$M$1 -> E | AR10: =$I$2 -> 1 | AS10: =$M$1 -> E | AT10: =$I$2 -> 1 | AU10: =$M$1 -> E | AV10: =$I$2 -> 1 | AW10: =$M$1 -> E | AX10: =$I$2 -> 1 | AY10: =$M$1 -> E | AZ10: =$I$2 -> 1 | BA10: =$M$1 -> E | BB10: =$I$2 -> 1 | BC10: =$M$1 -> E | BD10: =$I$2 -> 1 | BE10: =$M$1 -> E | BF10: =$I$2 -> 1 | BG10: =$M$1 -> E | BH10: =$I$2 -> 1 | BR10: <400 | BS10: <450 | BV10: >=450
B11: ZC Verano localidad | C11: =IF(C5="","",VLOOKUP(C$5,$E:$BH,C$9+4,FALSE)) ->  | E11: Bilbao | F11: =$K$1 -> C | G11: =$I$2 -> 1 | H11: 214 | I11: =$K$1 -> C | J11: =$I$2 -> 1 | K11: =$K$1 -> C | L11: =$I$2 -> 1 | M11: =$K$1 -> C | N11: =$I$2 -> 1 | O11: =$K$1 -> C | P11: =$I$2 -> 1 | Q11: =$K$1 -> C | R11: =$I$2 -> 1 | S11: =$L$1 -> D | T11: =$I$2 -> 1 | U11: =$L$1 -> D | V11: =$I$2 -> 1 | W11: =$L$1 -> D | X11: =$I$2 -> 1 | Y11: =$L$1 -> D | Z11: =$I$2 -> 1 | AA11: =$L$1 -> D | AB11: =$I$2 -> 1 | AC11: =$L$1 -> D | AD11: =$I$2 -> 1 | AE11: =$L$1 -> D | AF11: =$I$2 -> 1 | AG11: =$L$1 -> D | AH11: =$I$2 -> 1 | AI11: =$L$1 -> D | AJ11: =$I$2 -> 1 | AK11: =$L$1 -> D | AL11: =$I$2 -> 1 | AM11: =$L$1 -> D | AN11: =$I$2 -> 1 | AO11: =$L$1 -> D | AP11: =$I$2 -> 1 | AQ11: =$L$1 -> D | AR11: =$I$2 -> 1 | AS11: =$L$1 -> D | AT11: =$I$2 -> 1 | AU11: =$L$1 -> D | AV11: =$I$2 -> 1 | AW11: =$L$1 -> D | AX11: =$I$2 -> 1 | AY11: =$L$1 -> D | AZ11: =$I$2 -> 1 | BA11: =$L$1 -> D | BB11: =$I$2 -> 1 | BC11: =$L$1 -> D | BD11: =$I$2 -> 1 | BE11: =$L$1 -> D | BF11: =$I$2 -> 1 | BG11: =$L$1 -> D | BH11: =$I$2 -> 1 | BT11: <250 | BW11: <450 | BX11: <750 | BY11: >=750
B12: ZONA CLIMATICA PROVINCIA | C12: =IF(C5="","",VLOOKUP(C$5,E$5:H$56,2,FALSE)) ->  | E12: Burgos | F12: E | G12: =$I$2 -> 1 | H12: 861 | I12: =$L$1 -> D | J12: =$I$2 -> 1 | K12: D | L12: =$I$2 -> 1 | M12: D | N12: =$I$2 -> 1 | O12: D | P12: =$I$2 -> 1 | Q12: D | R12: =$I$2 -> 1 | S12: D | T12: =$I$2 -> 1 | U12: D | V12: =$I$2 -> 1 | W12: D | X12: =$I$2 -> 1 | Y12: D | Z12: =$I$2 -> 1 | AA12: =$L$1 -> D | AB12: =$I$2 -> 1 | AC12: =$L$1 -> D | AD12: =$I$2 -> 1 | AE12: =$L$1 -> D | AF12: =$I$2 -> 1 | AG12: =$M$1 -> E | AH12: =$I$2 -> 1 | AI12: =$M$1 -> E | AJ12: =$I$2 -> 1 | AK12: =$M$1 -> E | AL12: =$I$2 -> 1 | AM12: =$M$1 -> E | AN12: =$I$2 -> 1 | AO12: =$M$1 -> E | AP12: =$I$2 -> 1 | AQ12: =$M$1 -> E | AR12: =$I$2 -> 1 | AS12: =$M$1 -> E | AT12: =$I$2 -> 1 | AU12: =$M$1 -> E | AV12: =$I$2 -> 1 | AW12: =$M$1 -> E | AX12: =$I$2 -> 1 | AY12: =$M$1 -> E | AZ12: =$I$2 -> 1 | BA12: =$M$1 -> E | BB12: =$I$2 -> 1 | BC12: =$M$1 -> E | BD12: =$I$2 -> 1 | BE12: =$M$1 -> E | BF12: =$I$2 -> 1 | BG12: =$M$1 -> E | BH12: =$I$2 -> 1
B13: ZONA CLIMATICA PROVINCIA | C13: =IF(C5="","",VLOOKUP(C$5,E$5:H$56,3,FALSE)) ->  | E13: Cáceres | F13: =$K$1 -> C | G13: =$L$2 -> 4 | H13: 385 | I13: =$K$1 -> C | J13: =$L$2 -> 4 | K13: =$K$1 -> C | L13: =$L$2 -> 4 | M13: =$K$1 -> C | N13: =$L$2 -> 4 | O13: =$K$1 -> C | P13: =$L$2 -> 4 | Q13: =$K$1 -> C | R13: =$L$2 -> 4 | S13: =$K$1 -> C | T13: =$L$2 -> 4 | U13: =$K$1 -> C | V13: =$L$2 -> 4 | W13: =$K$1 -> C | X13: =$L$2 -> 4 | Y13: =$K$1 -> C | Z13: =$L$2 -> 4 | AA13: =$K$1 -> C | AB13: =$L$2 -> 4 | AC13: =$K$1 -> C | AD13: =$L$2 -> 4 | AE13: =$K$1 -> C | AF13: =$L$2 -> 4 | AG13: =$L$1 -> D | AH13: =$K$2 -> 3 | AI13: =$L$1 -> D | AJ13: 3 | AK13: =$L$1 -> D | AL13: 3 | AM13: =$L$1 -> D | AN13: 3 | AO13: =$L$1 -> D | AP13: 3 | AQ13: =$L$1 -> D | AR13: 3 | AS13: =$L$1 -> D | AT13: 3 | AU13: =$L$1 -> D | AV13: 3 | AW13: =$L$1 -> D | AX13: 3 | AY13: =$M$1 -> E | AZ13: =$I$2 -> 1 | BA13: =$M$1 -> E | BB13: =$I$2 -> 1 | BC13: =$M$1 -> E | BD13: =$I$2 -> 1 | BE13: =$M$1 -> E | BF13: =$I$2 -> 1 | BG13: =$M$1 -> E | BH13: =$I$2 -> 1 | BX13: <600 | BY13: >=600
E14: Cádiz | F14: =$I$1 -> A | G14: =$K$2 -> 3 | H14: 0 | I14: =$I$1 -> A | J14: =$K$2 -> 3 | K14: =$I$1 -> A | L14: =$K$2 -> 3 | M14: =$I$1 -> A | N14: =$K$2 -> 3 | O14: =$J$1 -> B | P14: =$K$2 -> 3 | Q14: B | R14: =$K$2 -> 3 | S14: B | T14: =$K$2 -> 3 | U14: B | V14: =$K$2 -> 3 | W14: B | X14: =$K$2 -> 3 | Y14: B | Z14: =$K$2 -> 3 | AA14: =$K$1 -> C | AB14: =$K$2 -> 3 | AC14: =$K$1 -> C | AD14: =$K$2 -> 3 | AE14: =$K$1 -> C | AF14: =$K$2 -> 3 | AG14: =$K$1 -> C | AH14: =$J$2 -> 2 | AI14: C | AJ14: 2 | AK14: C | AL14: 2 | AM14: C | AN14: 2 | AO14: C | AP14: 2 | AQ14: =$L$1 -> D | AR14: =$J$2 -> 2 | AS14: =$L$1 -> D | AT14: =$J$2 -> 2 | AU14: =$L$1 -> D | AV14: =$J$2 -> 2 | AW14: =$L$1 -> D | AX14: =$J$2 -> 2 | AY14: =$L$1 -> D | AZ14: =$J$2 -> 2 | BA14: =$L$1 -> D | BB14: =$J$2 -> 2 | BC14: =$L$1 -> D | BD14: =$J$2 -> 2 | BE14: =$L$1 -> D | BF14: =$J$2 -> 2 | BG14: =$L$1 -> D | BH14: =$J$2 -> 2 | BR14: <600 | BV14: <1050 | BY14: >=1050
E15: Castellón | F15: =$J$1 -> B | G15: =$K$2 -> 3 | H15: 18 | I15: =$J$1 -> B | J15: =$K$2 -> 3 | K15: =$K$1 -> C | L15: =$K$2 -> 3 | M15: =$K$1 -> C | N15: =$K$2 -> 3 | O15: =$K$1 -> C | P15: =$K$2 -> 3 | Q15: =$K$1 -> C | R15: =$K$2 -> 3 | S15: =$K$1 -> C | T15: =$K$2 -> 3 | U15: =$K$1 -> C | V15: =$K$2 -> 3 | W15: =$K$1 -> C | X15: =$K$2 -> 3 | Y15: =$K$1 -> C | Z15: =$K$2 -> 3 | AA15: =$K$1 -> C | AB15: =$K$2 -> 3 | AC15: =$L$1 -> D | AD15: =$K$2 -> 3 | AE15: =$L$1 -> D | AF15: =$K$2 -> 3 | AG15: =$L$1 -> D | AH15: 2 | AI15: =$L$1 -> D | AJ15: 2 | AK15: =$L$1 -> D | AL15: 2 | AM15: =$L$1 -> D | AN15: 2 | AO15: =$L$1 -> D | AP15: 2 | AQ15: =$L$1 -> D | AR15: =$J$2 -> 2 | AS15: =$L$1 -> D | AT15: =$J$2 -> 2 | AU15: =$L$1 -> D | AV15: =$J$2 -> 2 | AW15: =$M$1 -> E | AX15: =$I$2 -> 1 | AY15: =$M$1 -> E | AZ15: =$I$2 -> 1 | BA15: =$M$1 -> E | BB15: =$I$2 -> 1 | BC15: =$M$1 -> E | BD15: =$I$2 -> 1 | BE15: =$M$1 -> E | BF15: =$I$2 -> 1 | BG15: =$M$1 -> E | BH15: =$I$2 -> 1 | BU15: <150 | BX15: <650
E16: Ceuta | F16: =$J$1 -> B | G16: =$K$2 -> 3 | H16: 0 | I16: =$J$1 -> B | J16: =$K$2 -> 3 | K16: =$J$1 -> B | L16: =$K$2 -> 3 | M16: =$J$1 -> B | N16: =$K$2 -> 3 | O16: =$J$1 -> B | P16: =$K$2 -> 3 | Q16: =$J$1 -> B | R16: =$K$2 -> 3 | S16: =$J$1 -> B | T16: =$K$2 -> 3 | U16: =$J$1 -> B | V16: =$K$2 -> 3 | W16: =$J$1 -> B | X16: =$K$2 -> 3 | Y16: =$J$1 -> B | Z16: =$K$2 -> 3 | AA16: B | AB16: =$K$2 -> 3 | AC16: B | AD16: =$K$2 -> 3 | AE16: B | AF16: =$K$2 -> 3 | AG16: B | AH16: =$K$2 -> 3 | AI16: B | AJ16: =$K$2 -> 3 | AK16: B | AL16: =$K$2 -> 3 | AM16: B | AN16: =$K$2 -> 3 | AO16: B | AP16: =$K$2 -> 3 | AQ16: B | AR16: =$K$2 -> 3 | AS16: B | AT16: =$K$2 -> 3 | AU16: B | AV16: 3 | AW16: B | AX16: 3 | AY16: B | AZ16: 3 | BA16: B | BB16: 3 | BC16: B | BD16: 3 | BE16: B | BF16: 3 | BG16: B | BH16: 3 | BO16: <50 | BS16: <500 | BV16: <600 | BW16: <1000 | BY16: >=1000
E17: CiudadReal | F17: =$L$1 -> D | G17: =$K$2 -> 3 | H17: 630 | I17: =$K$1 -> C | J17: =$L$2 -> 4 | K17: =$K$1 -> C | L17: =$L$2 -> 4 | M17: =$K$1 -> C | N17: =$L$2 -> 4 | O17: =$K$1 -> C | P17: =$L$2 -> 4 | Q17: =$K$1 -> C | R17: =$L$2 -> 4 | S17: =$K$1 -> C | T17: =$L$2 -> 4 | U17: =$K$1 -> C | V17: =$L$2 -> 4 | W17: =$K$1 -> C | X17: =$L$2 -> 4 | Y17: =$K$1 -> C | Z17: =$L$2 -> 4 | AA17: =$K$1 -> C | AB17: =$K$2 -> 3 | AC17: =$L$1 -> D | AD17: =$K$2 -> 3 | AE17: =$L$1 -> D | AF17: =$K$2 -> 3 | AG17: =$L$1 -> D | AH17: =$K$2 -> 3 | AI17: =$L$1 -> D | AJ17: =$K$2 -> 3 | AK17: =$L$1 -> D | AL17: =$K$2 -> 3 | AM17: =$L$1 -> D | AN17: =$K$2 -> 3 | AO17: =$L$1 -> D | AP17: =$K$2 -> 3 | AQ17: =$L$1 -> D | AR17: =$K$2 -> 3 | AS17: =$L$1 -> D | AT17: 3 | AU17: =$L$1 -> D | AV17: 3 | AW17: =$L$1 -> D | AX17: 3 | AY17: =$L$1 -> D | AZ17: 3 | BA17: =$L$1 -> D | BB17: 3 | BC17: =$L$1 -> D | BD17: 3 | BE17: =$L$1 -> D | BF17: 3 | BG17: =$L$1 -> D | BH17: 3
E18: Córdoba | F18: =$J$1 -> B | G18: =$L$2 -> 4 | H18: 113 | I18: =$J$1 -> B | J18: =$L$2 -> 4 | K18: =$J$1 -> B | L18: =$L$2 -> 4 | M18: =$J$1 -> B | N18: =$L$2 -> 4 | O18: =$K$1 -> C | P18: =$L$2 -> 4 | Q18: =$K$1 -> C | R18: =$L$2 -> 4 | S18: =$K$1 -> C | T18: =$L$2 -> 4 | U18: =$K$1 -> C | V18: =$L$2 -> 4 | W18: =$K$1 -> C | X18: =$L$2 -> 4 | Y18: =$K$1 -> C | Z18: =$L$2 -> 4 | AA18: =$K$1 -> C | AB18: =$L$2 -> 4 | AC18: =$K$1 -> C | AD18: =$L$2 -> 4 | AE18: =$L$1 -> D | AF18: =$K$2 -> 3 | AG18: =$L$1 -> D | AH18: =$K$2 -> 3 | AI18: =$L$1 -> D | AJ18: =$K$2 -> 3 | AK18: =$L$1 -> D | AL18: =$K$2 -> 3 | AM18: =$L$1 -> D | AN18: =$K$2 -> 3 | AO18: =$L$1 -> D | AP18: =$K$2 -> 3 | AQ18: =$L$1 -> D | AR18: =$K$2 -> 3 | AS18: =$L$1 -> D | AT18: 3 | AU18: =$L$1 -> D | AV18: 3 | AW18: =$L$1 -> D | AX18: 3 | AY18: =$L$1 -> D | AZ18: 3 | BA18: =$L$1 -> D | BB18: 3 | BC18: =$L$1 -> D | BD18: 3 | BE18: =$L$1 -> D | BF18: 3 | BG18: =$L$1 -> D | BH18: 3 | BR18: <450 | BS18: <500 | BV18: >=500
B19: DESNIVEL | C19: =ROUNDUP((C7-C6)/100,0) ->  | E19: LaCoruña | F19: =$K$1 -> C | G19: =$I$2 -> 1 | H19: 0 | I19: =$K$1 -> C | J19: =$I$2 -> 1 | K19: =$K$1 -> C | L19: =$I$2 -> 1 | M19: =$K$1 -> C | N19: =$I$2 -> 1 | O19: =$K$1 -> C | P19: =$I$2 -> 1 | Q19: =$L$1 -> D | R19: =$I$2 -> 1 | S19: =$L$1 -> D | T19: =$I$2 -> 1 | U19: =$L$1 -> D | V19: =$I$2 -> 1 | W19: =$L$1 -> D | X19: =$I$2 -> 1 | Y19: =$L$1 -> D | Z19: =$I$2 -> 1 | AA19: =$L$1 -> D | AB19: =$I$2 -> 1 | AC19: =$L$1 -> D | AD19: =$I$2 -> 1 | AE19: =$L$1 -> D | AF19: =$I$2 -> 1 | AG19: =$L$1 -> D | AH19: =$I$2 -> 1 | AI19: =$L$1 -> D | AJ19: =$I$2 -> 1 | AK19: =$L$1 -> D | AL19: =$I$2 -> 1 | AM19: =$L$1 -> D | AN19: =$I$2 -> 1 | AO19: =$L$1 -> D | AP19: =$I$2 -> 1 | AQ19: =$L$1 -> D | AR19: =$I$2 -> 1 | AS19: =$L$1 -> D | AT19: =$I$2 -> 1 | AU19: =$L$1 -> D | AV19: =$I$2 -> 1 | AW19: =$L$1 -> D | AX19: =$I$2 -> 1 | AY19: =$L$1 -> D | AZ19: =$I$2 -> 1 | BA19: =$L$1 -> D | BB19: =$I$2 -> 1 | BC19: =$L$1 -> D | BD19: =$I$2 -> 1 | BE19: =$L$1 -> D | BF19: =$I$2 -> 1 | BG19: =$L$1 -> D | BH19: =$I$2 -> 1 | BN19: <150 | BR19: <550 | BV19: >=550
B20: CORRECCION ZONA CLIMATICA | C20: =3+IF(C19>10,5,IF(C19>8,4,IF(C19>6,3,IF(C19>4,2,IF(C19>2,1,IF(C19>0,0,0)))))) ->  | E20: Cuenca | F20: =$L$1 -> D | G20: =$J$2 -> 2 | H20: 975 | I20: =$L$1 -> D | J20: =$K$2 -> 3 | K20: =$L$1 -> D | L20: 3 | M20: =$L$1 -> D | N20: 3 | O20: =$L$1 -> D | P20: 3 | Q20: =$L$1 -> D | R20: 3 | S20: =$L$1 -> D | T20: 3 | U20: =$L$1 -> D | V20: 3 | W20: =$L$1 -> D | X20: 3 | Y20: =$L$1 -> D | Z20: 3 | AA20: =$L$1 -> D | AB20: 3 | AC20: =$L$1 -> D | AD20: 3 | AE20: =$L$1 -> D | AF20: 3 | AG20: =$L$1 -> D | AH20: 3 | AI20: =$L$1 -> D | AJ20: 3 | AK20: =$L$1 -> D | AL20: 3 | AM20: =$L$1 -> D | AN20: 3 | AO20: =$L$1 -> D | AP20: =$J$2 -> 2 | AQ20: =$L$1 -> D | AR20: 2 | AS20: =$L$1 -> D | AT20: 2 | AU20: =$L$1 -> D | AV20: 2 | AW20: =$L$1 -> D | AX20: 2 | AY20: =$M$1 -> E | AZ20: =$I$2 -> 1 | BA20: E | BB20: =$I$2 -> 1 | BC20: E | BD20: =$I$2 -> 1 | BE20: E | BF20: =$I$2 -> 1 | BG20: E | BH20: =$I$2 -> 1
E21: Gerona | F21: =$L$1 -> D | G21: =$J$2 -> 2 | H21: 143 | I21: =$K$1 -> C | J21: =$J$2 -> 2 | K21: =$K$1 -> C | L21: =$J$2 -> 2 | M21: =$L$1 -> D | N21: =$J$2 -> 2 | O21: =$L$1 -> D | P21: =$J$2 -> 2 | Q21: =$L$1 -> D | R21: =$J$2 -> 2 | S21: =$L$1 -> D | T21: =$J$2 -> 2 | U21: =$L$1 -> D | V21: =$J$2 -> 2 | W21: =$L$1 -> D | X21: =$J$2 -> 2 | Y21: =$L$1 -> D | Z21: =$J$2 -> 2 | AA21: =$L$1 -> D | AB21: =$J$2 -> 2 | AC21: =$L$1 -> D | AD21: =$J$2 -> 2 | AE21: =$L$1 -> D | AF21: =$J$2 -> 2 | AG21: =$M$1 -> E | AH21: =$I$2 -> 1 | AI21: =$M$1 -> E | AJ21: =$I$2 -> 1 | AK21: =$M$1 -> E | AL21: =$I$2 -> 1 | AM21: =$M$1 -> E | AN21: =$I$2 -> 1 | AO21: =$M$1 -> E | AP21: =$I$2 -> 1 | AQ21: =$M$1 -> E | AR21: =$I$2 -> 1 | AS21: =$M$1 -> E | AT21: =$I$2 -> 1 | AU21: =$M$1 -> E | AV21: =$I$2 -> 1 | AW21: =$M$1 -> E | AX21: =$I$2 -> 1 | AY21: =$M$1 -> E | AZ21: =$I$2 -> 1 | BA21: =$M$1 -> E | BB21: =$I$2 -> 1 | BC21: =$M$1 -> E | BD21: =$I$2 -> 1 | BE21: =$M$1 -> E | BF21: =$I$2 -> 1 | BG21: =$M$1 -> E | BH21: =$I$2 -> 1 | BU21: <200 | BX21: >=200
E22: Granada | F22: =$K$1 -> C | G22: =$K$2 -> 3 | H22: 754 | I22: =$I$1 -> A | J22: =$L$2 -> 4 | K22: =$J$1 -> B | L22: =$L$2 -> 4 | M22: =$J$1 -> B | N22: =$L$2 -> 4 | O22: =$J$1 -> B | P22: =$L$2 -> 4 | Q22: =$J$1 -> B | R22: =$L$2 -> 4 | S22: =$J$1 -> B | T22: =$L$2 -> 4 | U22: =$J$1 -> B | V22: =$L$2 -> 4 | W22: =$K$1 -> C | X22: =$L$2 -> 4 | Y22: C | Z22: 4 | AA22: C | AB22: 4 | AC22: C | AD22: 4 | AE22: C | AF22: 4 | AG22: =$K$1 -> C | AH22: =$K$2 -> 3 | AI22: C | AJ22: 3 | AK22: C | AL22: 3 | AM22: C | AN22: 3 | AO22: =$L$1 -> D | AP22: =$K$2 -> 3 | AQ22: =$L$1 -> D | AR22: 3 | AS22: =$L$1 -> D | AT22: 3 | AU22: =$L$1 -> D | AV22: 3 | AW22: =$L$1 -> D | AX22: 3 | AY22: =$L$1 -> D | AZ22: 3 | BA22: =$L$1 -> D | BB22: 3 | BC22: =$L$1 -> D | BD22: 3 | BE22: =$L$1 -> D | BF22: 3 | BG22: =$M$1 -> E | BH22: =$I$2 -> 1 | BV22: <800 | BW22: <1050 | BY22: >=1050
E23: Guadalajara | F23: =$L$1 -> D | G23: =$K$2 -> 3 | H23: 708 | I23: =$L$1 -> D | J23: =$K$2 -> 3 | K23: =$L$1 -> D | L23: =$K$2 -> 3 | M23: =$L$1 -> D | N23: =$K$2 -> 3 | O23: =$L$1 -> D | P23: =$K$2 -> 3 | Q23: =$L$1 -> D | R23: =$K$2 -> 3 | S23: =$L$1 -> D | T23: =$K$2 -> 3 | U23: =$L$1 -> D | V23: =$K$2 -> 3 | W23: =$L$1 -> D | X23: =$K$2 -> 3 | Y23: =$L$1 -> D | Z23: =$K$2 -> 3 | AA23: =$L$1 -> D | AB23: =$K$2 -> 3 | AC23: =$L$1 -> D | AD23: =$K$2 -> 3 | AE23: =$L$1 -> D | AF23: =$K$2 -> 3 | AG23: =$L$1 -> D | AH23: =$K$2 -> 3 | AI23: =$L$1 -> D | AJ23: =$K$2 -> 3 | AK23: =$L$1 -> D | AL23: =$K$2 -> 3 | AM23: =$L$1 -> D | AN23: =$K$2 -> 3 | AO23: =$L$1 -> D | AP23: =$K$2 -> 3 | AQ23: =$L$1 -> D | AR23: =$K$2 -> 3 | AS23: =$L$1 -> D | AT23: =$K$2 -> 3 | AU23: =$L$1 -> D | AV23: =$J$2 -> 2 | AW23: =$M$1 -> E | AX23: =$I$2 -> 1 | AY23: =$M$1 -> E | AZ23: =$I$2 -> 1 | BA23: =$M$1 -> E | BB23: =$I$2 -> 1 | BC23: =$M$1 -> E | BD23: =$I$2 -> 1 | BE23: =$M$1 -> E | BF23: =$I$2 -> 1 | BG23: =$M$1 -> E | BH23: =$I$2 -> 1 | BT23: <100 | BW23: <600 | BY23: >=600
E24: Huelva | F24: =$I$1 -> A | G24: =$L$2 -> 4 | H24: 50 | I24: =$I$1 -> A | J24: =$L$2 -> 4 | K24: =$J$1 -> B | L24: =$L$2 -> 4 | M24: =$J$1 -> B | N24: =$L$2 -> 4 | O24: =$J$1 -> B | P24: =$K$2 -> 3 | Q24: B | R24: =$K$2 -> 3 | S24: B | T24: =$K$2 -> 3 | U24: B | V24: =$K$2 -> 3 | W24: =$K$1 -> C | X24: =$K$2 -> 3 | Y24: C | Z24: =$K$2 -> 3 | AA24: C | AB24: =$K$2 -> 3 | AC24: C | AD24: =$K$2 -> 3 | AE24: C | AF24: =$K$2 -> 3 | AG24: C | AH24: =$K$2 -> 3 | AI24: C | AJ24: =$K$2 -> 3 | AK24: C | AL24: =$K$2 -> 3 | AM24: C | AN24: =$K$2 -> 3 | AO24: =$L$1 -> D | AP24: =$K$2 -> 3 | AQ24: =$L$1 -> D | AR24: =$K$2 -> 3 | AS24: =$L$1 -> D | AT24: =$K$2 -> 3 | AU24: =$L$1 -> D | AV24: =$K$2 -> 3 | AW24: =$L$1 -> D | AX24: 3 | AY24: =$L$1 -> D | AZ24: 3 | BA24: =$L$1 -> D | BB24: 3 | BC24: =$L$1 -> D | BD24: 3 | BE24: =$L$1 -> D | BF24: 3 | BG24: =$L$1 -> D | BH24: 3 | BV24: <950 | BW24: <1000 | BY24: >=1000
E25: Huesca | F25: =$L$1 -> D | G25: =$J$2 -> 2 | H25: 432 | I25: =$K$1 -> C | J25: =$K$2 -> 3 | K25: C | L25: 3 | M25: C | N25: 3 | O25: C | P25: 3 | Q25: =$L$1 -> D | R25: =$K$2 -> 3 | S25: =$L$1 -> D | T25: =$K$2 -> 3 | U25: =$L$1 -> D | V25: =$K$2 -> 3 | W25: =$L$1 -> D | X25: =$K$2 -> 3 | Y25: =$L$1 -> D | Z25: =$J$2 -> 2 | AA25: D | AB25: 2 | AC25: D | AD25: 2 | AE25: D | AF25: 2 | AG25: D | AH25: 2 | AI25: D | AJ25: 2 | AK25: =$M$1 -> E | AL25: =$I$2 -> 1 | AM25: =$M$1 -> E | AN25: =$I$2 -> 1 | AO25: =$M$1 -> E | AP25: =$I$2 -> 1 | AQ25: =$M$1 -> E | AR25: =$I$2 -> 1 | AS25: =$M$1 -> E | AT25: =$I$2 -> 1 | AU25: =$M$1 -> E | AV25: =$I$2 -> 1 | AW25: =$M$1 -> E | AX25: =$I$2 -> 1 | AY25: =$M$1 -> E | AZ25: =$I$2 -> 1 | BA25: =$M$1 -> E | BB25: =$I$2 -> 1 | BC25: =$M$1 -> E | BD25: =$I$2 -> 1 | BE25: =$M$1 -> E | BF25: =$I$2 -> 1 | BG25: =$M$1 -> E | BH25: =$I$2 -> 1 | BX25: <400 | BY25: >=400
E26: Jaén | F26: =$K$1 -> C | G26: =$L$2 -> 4 | H26: 436 | I26: =$J$1 -> B | J26: =$L$2 -> 4 | K26: =$J$1 -> B | L26: =$L$2 -> 4 | M26: =$J$1 -> B | N26: =$L$2 -> 4 | O26: =$J$1 -> B | P26: =$L$2 -> 4 | Q26: =$J$1 -> B | R26: =$L$2 -> 4 | S26: =$J$1 -> B | T26: =$L$2 -> 4 | U26: =$J$1 -> B | V26: =$L$2 -> 4 | W26: =$K$1 -> C | X26: =$L$2 -> 4 | Y26: C | Z26: 4 | AA26: C | AB26: 4 | AC26: C | AD26: 4 | AE26: C | AF26: 4 | AG26: C | AH26: 4 | AI26: C | AJ26: 4 | AK26: C | AL26: 4 | AM26: =$L$1 -> D | AN26: =$K$2 -> 3 | AO26: D | AP26: 3 | AQ26: D | AR26: 3 | AS26: D | AT26: 3 | AU26: D | AV26: 3 | AW26: D | AX26: 3 | AY26: D | AZ26: 3 | BA26: D | BB26: 3 | BC26: D | BD26: 3 | BE26: =$M$1 -> E | BF26: =$I$2 -> 1 | BG26: =$M$1 -> E | BH26: =$I$2 -> 1 | BS26: <200 | BV26: <400 | BW26: <700 | BY26: >=700
E27: León | F27: =$M$1 -> E | G27: =$I$2 -> 1 | H27: 346 | I27: =$M$1 -> E | J27: =$I$2 -> 1 | K27: =$M$1 -> E | L27: =$I$2 -> 1 | M27: =$M$1 -> E | N27: =$I$2 -> 1 | O27: =$M$1 -> E | P27: =$I$2 -> 1 | Q27: =$M$1 -> E | R27: =$I$2 -> 1 | S27: =$M$1 -> E | T27: =$I$2 -> 1 | U27: =$M$1 -> E | V27: =$I$2 -> 1 | W27: =$M$1 -> E | X27: =$I$2 -> 1 | Y27: =$M$1 -> E | Z27: =$I$2 -> 1 | AA27: =$M$1 -> E | AB27: =$I$2 -> 1 | AC27: =$M$1 -> E | AD27: =$I$2 -> 1 | AE27: =$M$1 -> E | AF27: =$I$2 -> 1 | AG27: =$M$1 -> E | AH27: =$I$2 -> 1 | AI27: =$M$1 -> E | AJ27: =$I$2 -> 1 | AK27: =$M$1 -> E | AL27: =$I$2 -> 1 | AM27: =$M$1 -> E | AN27: =$I$2 -> 1 | AO27: =$M$1 -> E | AP27: =$I$2 -> 1 | AQ27: =$M$1 -> E | AR27: =$I$2 -> 1 | AS27: =$M$1 -> E | AT27: =$I$2 -> 1 | AU27: =$M$1 -> E | AV27: =$I$2 -> 1 | AW27: =$M$1 -> E | AX27: =$I$2 -> 1 | AY27: =$M$1 -> E | AZ27: =$I$2 -> 1 | BA27: =$M$1 -> E | BB27: =$I$2 -> 1 | BC27: =$M$1 -> E | BD27: =$I$2 -> 1 | BE27: =$M$1 -> E | BF27: =$I$2 -> 1 | BG27: =$M$1 -> E | BH27: =$I$2 -> 1 | BK27: <350 | BL27: <750 | BP27: <1000 | BT27: >=1000
E28: Lérida | F28: =$L$1 -> D | G28: =$K$2 -> 3 | H28: 131 | I28: =$K$1 -> C | J28: =$K$2 -> 3 | K28: =$K$1 -> C | L28: =$K$2 -> 3 | M28: =$L$1 -> D | N28: =$K$2 -> 3 | O28: =$L$1 -> D | P28: 3 | Q28: =$L$1 -> D | R28: 3 | S28: =$L$1 -> D | T28: 3 | U28: =$L$1 -> D | V28: 3 | W28: =$L$1 -> D | X28: 3 | Y28: =$L$1 -> D | Z28: 3 | AA28: =$L$1 -> D | AB28: 3 | AC28: =$L$1 -> D | AD28: 3 | AE28: =$L$1 -> D | AF28: 3 | AG28: =$M$1 -> E | AH28: =$I$2 -> 1 | AI28: =$M$1 -> E | AJ28: =$I$2 -> 1 | AK28: =$M$1 -> E | AL28: =$I$2 -> 1 | AM28: =$M$1 -> E | AN28: =$I$2 -> 1 | AO28: =$M$1 -> E | AP28: =$I$2 -> 1 | AQ28: =$M$1 -> E | AR28: =$I$2 -> 1 | AS28: =$M$1 -> E | AT28: =$I$2 -> 1 | AU28: =$M$1 -> E | AV28: =$I$2 -> 1 | AW28: =$M$1 -> E | AX28: =$I$2 -> 1 | AY28: =$M$1 -> E | AZ28: =$I$2 -> 1 | BA28: =$M$1 -> E | BB28: =$I$2 -> 1 | BC28: =$M$1 -> E | BD28: =$I$2 -> 1 | BE28: =$M$1 -> E | BF28: =$I$2 -> 1 | BG28: =$M$1 -> E | BH28: =$I$2 -> 1 | BY28: <1250
E29: Logroño | F29: =$L$1 -> D | G29: =$J$2 -> 2 | H29: 379 | I29: =$K$1 -> C | J29: =$J$2 -> 2 | K29: =$K$1 -> C | L29: 2 | M29: =$K$1 -> C | N29: 2 | O29: =$K$1 -> C | P29: 2 | Q29: =$L$1 -> D | R29: =$J$2 -> 2 | S29: =$L$1 -> D | T29: 2 | U29: =$L$1 -> D | V29: 2 | W29: =$L$1 -> D | X29: 2 | Y29: =$L$1 -> D | Z29: 2 | AA29: =$L$1 -> D | AB29: 2 | AC29: =$L$1 -> D | AD29: 2 | AE29: =$L$1 -> D | AF29: 2 | AG29: =$L$1 -> D | AH29: 2 | AI29: =$L$1 -> D | AJ29: 2 | AK29: =$M$1 -> E | AL29: =$I$2 -> 1 | AM29: =$M$1 -> E | AN29: =$I$2 -> 1 | AO29: =$M$1 -> E | AP29: =$I$2 -> 1 | AQ29: =$M$1 -> E | AR29: =$I$2 -> 1 | AS29: =$M$1 -> E | AT29: =$I$2 -> 1 | AU29: =$M$1 -> E | AV29: =$I$2 -> 1 | AW29: =$M$1 -> E | AX29: =$I$2 -> 1 | AY29: =$M$1 -> E | AZ29: =$I$2 -> 1 | BA29: =$M$1 -> E | BB29: =$I$2 -> 1 | BC29: =$M$1 -> E | BD29: =$I$2 -> 1 | BE29: =$M$1 -> E | BF29: =$I$2 -> 1 | BG29: =$M$1 -> E | BH29: =$I$2 -> 1 | BS29: <100 | BV29: <600 | BY29: >=600
E30: Lugo | F30: =$L$1 -> D | G30: =$I$2 -> 1 | H30: 412 | I30: =$L$1 -> D | J30: =$I$2 -> 1 | K30: D | L30: 1 | M30: D | N30: 1 | O30: D | P30: 1 | Q30: D | R30: 1 | S30: D | T30: 1 | U30: D | V30: 1 | W30: D | X30: 1 | Y30: D | Z30: 1 | AA30: D | AB30: 1 | AC30: =$M$1 -> E | AD30: =$I$2 -> 1 | AE30: E | AF30: 1 | AG30: E | AH30: 1 | AI30: E | AJ30: 1 | AK30: E | AL30: 1 | AM30: E | AN30: 1 | AO30: E | AP30: 1 | AQ30: E | AR30: 1 | AS30: E | AT30: 1 | AU30: E | AV30: 1 | AW30: E | AX30: 1 | AY30: E | AZ30: 1 | BA30: E | BB30: 1 | BC30: E | BD30: 1 | BE30: E | BF30: 1 | BG30: E | BH30: 1
E31: Madrid | F31: =$L$1 -> D | G31: =$K$2 -> 3 | H31: 589 | I31: =$K$1 -> C | J31: =$K$2 -> 3 | K31: =$K$1 -> C | L31: =$K$2 -> 3 | M31: =$K$1 -> C | N31: =$K$2 -> 3 | O31: =$K$1 -> C | P31: =$K$2 -> 3 | Q31: =$K$1 -> C | R31: =$K$2 -> 3 | S31: =$K$1 -> C | T31: =$K$2 -> 3 | U31: =$K$1 -> C | V31: =$K$2 -> 3 | W31: =$K$1 -> C | X31: =$K$2 -> 3 | Y31: =$K$1 -> C | Z31: =$K$2 -> 3 | AA31: =$K$1 -> C | AB31: =$K$2 -> 3 | AC31: =$L$1 -> D | AD31: =$K$2 -> 3 | AE31: =$L$1 -> D | AF31: 3 | AG31: =$L$1 -> D | AH31: 3 | AI31: =$L$1 -> D | AJ31: 3 | AK31: =$L$1 -> D | AL31: 3 | AM31: =$L$1 -> D | AN31: 3 | AO31: =$L$1 -> D | AP31: 3 | AQ31: =$L$1 -> D | AR31: 3 | AS31: =$L$1 -> D | AT31: 3 | AU31: =$L$1 -> D | AV31: =$J$2 -> 2 | AW31: =$M$1 -> E | AX31: =$I$2 -> 1 | AY31: =$M$1 -> E | AZ31: =$I$2 -> 1 | BA31: =$M$1 -> E | BB31: =$I$2 -> 1 | BC31: =$M$1 -> E | BD31: =$I$2 -> 1 | BE31: =$M$1 -> E | BF31: =$I$2 -> 1 | BG31: =$M$1 -> E | BH31: =$I$2 -> 1 | BX31: <500 | BY31: >=500
E32: Málaga | F32: =$I$1 -> A | G32: =$K$2 -> 3 | H32: 0 | I32: =$J$1 -> B | J32: =$K$2 -> 3 | K32: B | L32: =$K$2 -> 3 | M32: B | N32: =$K$2 -> 3 | O32: B | P32: =$K$2 -> 3 | Q32: B | R32: =$K$2 -> 3 | S32: B | T32: =$K$2 -> 3 | U32: =$K$1 -> C | V32: =$K$2 -> 3 | W32: =$K$1 -> C | X32: =$K$2 -> 3 | Y32: =$K$1 -> C | Z32: =$K$2 -> 3 | AA32: =$K$1 -> C | AB32: =$K$2 -> 3 | AC32: =$K$1 -> C | AD32: 3 | AE32: C | AF32: 3 | AG32: C | AH32: 3 | AI32: C | AJ32: 3 | AK32: =$L$1 -> D | AL32: 3 | AM32: =$L$1 -> D | AN32: 3 | AO32: =$L$1 -> D | AP32: 3 | AQ32: =$L$1 -> D | AR32: 3 | AS32: =$L$1 -> D | AT32: 3 | AU32: =$L$1 -> D | AV32: =$K$2 -> 3 | AW32: =$L$1 -> D | AX32: 3 | AY32: =$L$1 -> D | AZ32: 3 | BA32: =$L$1 -> D | BB32: 3 | BC32: D | BD32: 3 | BE32: D | BF32: 3 | BG32: D | BH32: 3 | BS32: <500 | BV32: <950 | BW32: <1000 | BY32: >=1000
E33: Melilla | F33: =$I$1 -> A | G33: =$K$2 -> 3 | H33: 130 | I33: =$I$1 -> A | J33: =$K$2 -> 3 | K33: A | L33: =$K$2 -> 3 | M33: A | N33: =$K$2 -> 3 | O33: A | P33: =$K$2 -> 3 | Q33: A | R33: =$K$2 -> 3 | S33: A | T33: =$K$2 -> 3 | U33: A | V33: =$K$2 -> 3 | W33: A | X33: =$K$2 -> 3 | Y33: A | Z33: =$K$2 -> 3 | AA33: A | AB33: =$K$2 -> 3 | AC33: A | AD33: 3 | AE33: A | AF33: 3 | AG33: A | AH33: 3 | AI33: A | AJ33: 3 | AK33: A | AL33: 3 | AM33: A | AN33: 3 | AO33: A | AP33: 3 | AQ33: A | AR33: 3 | AS33: A | AT33: 3 | AU33: A | AV33: 3 | AW33: A | AX33: 3 | AY33: A | AZ33: 3 | BA33: A | BB33: 3 | BC33: A | BD33: 3 | BE33: A | BF33: 3 | BG33: A | BH33: 3 | BO33: <300 | BS33: <700 | BV33: >=700
E34: Murcia | F34: =$J$1 -> B | G34: =$K$2 -> 3 | H34: 25 | I34: =$J$1 -> B | J34: =$K$2 -> 3 | K34: =$J$1 -> B | L34: =$K$2 -> 3 | M34: =$K$1 -> C | N34: =$K$2 -> 3 | O34: =$K$1 -> C | P34: =$K$2 -> 3 | Q34: =$K$1 -> C | R34: =$K$2 -> 3 | S34: =$K$1 -> C | T34: =$K$2 -> 3 | U34: =$K$1 -> C | V34: =$K$2 -> 3 | W34: =$K$1 -> C | X34: =$K$2 -> 3 | Y34: =$K$1 -> C | Z34: =$K$2 -> 3 | AA34: =$K$1 -> C | AB34: =$K$2 -> 3 | AC34: =$K$1 -> C | AD34: 3 | AE34: =$L$1 -> D | AF34: 3 | AG34: D | AH34: 3 | AI34: D | AJ34: 3 | AK34: D | AL34: 3 | AM34: D | AN34: 3 | AO34: D | AP34: 3 | AQ34: D | AR34: 3 | AS34: D | AT34: 3 | AU34: D | AV34: 3 | AW34: D | AX34: 3 | AY34: D | AZ34: 3 | BA34: D | BB34: 3 | BC34: D | BD34: 3 | BE34: D | BF34: 3 | BG34: D | BH34: 3
E35: Orense | F35: =$L$1 -> D | G35: =$J$2 -> 2 | H35: 327 | I35: =$K$1 -> C | J35: =$K$2 -> 3 | K35: =$K$1 -> C | L35: =$K$2 -> 3 | M35: =$K$1 -> C | N35: =$K$2 -> 3 | O35: =$K$1 -> C | P35: =$J$2 -> 2 | Q35: =$K$1 -> C | R35: =$J$2 -> 2 | S35: =$K$1 -> C | T35: =$J$2 -> 2 | U35: =$L$1 -> D | V35: =$J$2 -> 2 | W35: D | X35: 2 | Y35: D | Z35: 2 | AA35: D | AB35: 2 | AC35: D | AD35: 2 | AE35: D | AF35: 2 | AG35: D | AH35: 2 | AI35: D | AJ35: 2 | AK35: D | AL35: 2 | AM35: D | AN35: 2 | AO35: =$M$1 -> E | AP35: =$I$2 -> 1 | AQ35: E | AR35: 1 | AS35: E | AT35: 1 | AU35: E | AV35: 1 | AW35: E | AX35: 1 | AY35: E | AZ35: 1 | BA35: E | BB35: 1 | BC35: E | BD35: 1 | BE35: E | BF35: 1 | BG35: E | BH35: 1 | BT35: <100 | BW35: <300 | BX35: <600 | BY35: >=600
E36: Oviedo | F36: =$L$1 -> D | G36: =$I$2 -> 1 | H36: 214 | I36: =$K$1 -> C | J36: =$I$2 -> 1 | K36: =$L$1 -> D | L36: =$I$2 -> 1 | M36: =$L$1 -> D | N36: =$I$2 -> 1 | O36: =$L$1 -> D | P36: =$I$2 -> 1 | Q36: =$L$1 -> D | R36: =$I$2 -> 1 | S36: =$L$1 -> D | T36: =$I$2 -> 1 | U36: =$L$1 -> D | V36: =$I$2 -> 1 | W36: =$L$1 -> D | X36: =$I$2 -> 1 | Y36: =$L$1 -> D | Z36: =$I$2 -> 1 | AA36: =$L$1 -> D | AB36: =$I$2 -> 1 | AC36: =$L$1 -> D | AD36: =$I$2 -> 1 | AE36: =$M$1 -> E | AF36: =$I$2 -> 1 | AG36: =$M$1 -> E | AH36: =$I$2 -> 1 | AI36: =$M$1 -> E | AJ36: =$I$2 -> 1 | AK36: =$M$1 -> E | AL36: =$I$2 -> 1 | AM36: =$M$1 -> E | AN36: =$I$2 -> 1 | AO36: =$M$1 -> E | AP36: =$I$2 -> 1 | AQ36: =$M$1 -> E | AR36: =$I$2 -> 1 | AS36: =$M$1 -> E | AT36: =$I$2 -> 1 | AU36: =$M$1 -> E | AV36: =$I$2 -> 1 | AW36: =$M$1 -> E | AX36: =$I$2 -> 1 | AY36: =$M$1 -> E | AZ36: =$I$2 -> 1 | BA36: =$M$1 -> E | BB36: =$I$2 -> 1 | BC36: =$M$1 -> E | BD36: =$I$2 -> 1 | BE36: =$M$1 -> E | BF36: =$I$2 -> 1 | BG36: =$M$1 -> E | BH36: =$I$2 -> 1 | BS36: <150 | BT36: <300 | BW36: <800 | BY36: >=800
E37: Palencia | F37: =$L$1 -> D | G37: =$I$2 -> 1 | H37: 722 | I37: =$L$1 -> D | J37: =$I$2 -> 1 | K37: =$L$1 -> D | L37: =$I$2 -> 1 | M37: =$L$1 -> D | N37: =$I$2 -> 1 | O37: =$L$1 -> D | P37: =$I$2 -> 1 | Q37: =$L$1 -> D | R37: =$I$2 -> 1 | S37: =$L$1 -> D | T37: =$I$2 -> 1 | U37: =$L$1 -> D | V37: =$I$2 -> 1 | W37: =$L$1 -> D | X37: =$I$2 -> 1 | Y37: =$L$1 -> D | Z37: =$I$2 -> 1 | AA37: =$L$1 -> D | AB37: =$I$2 -> 1 | AC37: =$L$1 -> D | AD37: =$I$2 -> 1 | AE37: =$L$1 -> D | AF37: =$I$2 -> 1 | AG37: D | AH37: =$I$2 -> 1 | AI37: D | AJ37: =$I$2 -> 1 | AK37: D | AL37: =$I$2 -> 1 | AM37: D | AN37: =$I$2 -> 1 | AO37: =$M$1 -> E | AP37: =$I$2 -> 1 | AQ37: =$M$1 -> E | AR37: =$I$2 -> 1 | AS37: =$M$1 -> E | AT37: =$I$2 -> 1 | AU37: =$M$1 -> E | AV37: =$I$2 -> 1 | AW37: =$M$1 -> E | AX37: =$I$2 -> 1 | AY37: =$M$1 -> E | AZ37: =$I$2 -> 1 | BA37: =$M$1 -> E | BB37: =$I$2 -> 1 | BC37: =$M$1 -> E | BD37: =$I$2 -> 1 | BE37: =$M$1 -> E | BF37: =$I$2 -> 1 | BG37: =$M$1 -> E | BH37: =$I$2 -> 1
E38: LasPalmasdeGranCanaria | F38: Alfa | G38: =$K$2 -> 3 | H38: 114 | I38: =$F$59 -> Alfa | J38: =$K$2 -> 3 | K38: =$F$59 -> Alfa | L38: =$K$2 -> 3 | M38: =$F$59 -> Alfa | N38: =$K$2 -> 3 | O38: =$F$59 -> Alfa | P38: =$K$2 -> 3 | Q38: =$F$59 -> Alfa | R38: =$K$2 -> 3 | S38: =$F$59 -> Alfa | T38: =$K$2 -> 3 | U38: =$F$59 -> Alfa | V38: =$K$2 -> 3 | W38: =$I$1 -> A | X38: =$J$2 -> 2 | Y38: A | Z38: 2 | AA38: A | AB38: 2 | AC38: A | AD38: 2 | AE38: A | AF38: 2 | AG38: A | AH38: 2 | AI38: A | AJ38: 2 | AK38: A | AL38: 2 | AM38: =$J$1 -> B | AN38: =$J$2 -> 2 | AO38: =$J$1 -> B | AP38: 2 | AQ38: =$J$1 -> B | AR38: 2 | AS38: =$J$1 -> B | AT38: 2 | AU38: =$J$1 -> B | AV38: 2 | AW38: =$K$1 -> C | AX38: =$J$2 -> 2 | AY38: C | AZ38: =$J$2 -> 2 | BA38: C | BB38: =$J$2 -> 2 | BC38: C | BD38: =$J$2 -> 2 | BE38: C | BF38: =$J$2 -> 2 | BG38: C | BH38: =$J$2 -> 2 | BX38: <800 | BY38: >=800
E39: PalmadeMallorca | F39: =$J$1 -> B | G39: =$K$2 -> 3 | H39: 1 | I39: =$J$1 -> B | J39: =$K$2 -> 3 | K39: B | L39: 3 | M39: B | N39: 3 | O39: B | P39: 3 | Q39: B | R39: 3 | S39: =$K$1 -> C | T39: =$K$2 -> 3 | U39: =$K$1 -> C | V39: 3 | W39: =$K$1 -> C | X39: 3 | Y39: =$K$1 -> C | Z39: 3 | AA39: =$K$1 -> C | AB39: 3 | AC39: =$K$1 -> C | AD39: 3 | AE39: C | AF39: 3 | AG39: C | AH39: 3 | AI39: C | AJ39: 3 | AK39: C | AL39: 3 | AM39: C | AN39: 3 | AO39: C | AP39: 3 | AQ39: C | AR39: 3 | AS39: C | AT39: 3 | AU39: C | AV39: 3 | AW39: C | AX39: 3 | AY39: C | AZ39: 3 | BA39: C | BB39: 3 | BC39: C | BD39: 3 | BE39: C | BF39: 3 | BG39: C | BH39: 3
E40: Pamplona | F40: =$L$1 -> D | G40: =$I$2 -> 1 | H40: 456 | I40: =$K$1 -> C | J40: =$J$2 -> 2 | K40: =$K$1 -> C | L40: =$J$2 -> 2 | M40: =$L$1 -> D | N40: =$J$2 -> 2 | O40: D | P40: 2 | Q40: D | R40: 2 | S40: D | T40: 2 | U40: =$L$1 -> D | V40: =$I$2 -> 1 | W40: =$L$1 -> D | X40: =$I$2 -> 1 | Y40: =$L$1 -> D | Z40: =$I$2 -> 1 | AA40: =$L$1 -> D | AB40: =$I$2 -> 1 | AC40: =$L$1 -> D | AD40: =$I$2 -> 1 | AE40: =$L$1 -> D | AF40: =$I$2 -> 1 | AG40: =$M$1 -> E | AH40: =$I$2 -> 1 | AI40: =$M$1 -> E | AJ40: =$I$2 -> 1 | AK40: =$M$1 -> E | AL40: =$I$2 -> 1 | AM40: =$M$1 -> E | AN40: =$I$2 -> 1 | AO40: =$M$1 -> E | AP40: =$I$2 -> 1 | AQ40: =$M$1 -> E | AR40: =$I$2 -> 1 | AS40: =$M$1 -> E | AT40: =$I$2 -> 1 | AU40: =$M$1 -> E | AV40: =$I$2 -> 1 | AW40: =$M$1 -> E | AX40: =$I$2 -> 1 | AY40: =$M$1 -> E | AZ40: =$I$2 -> 1 | BA40: =$M$1 -> E | BB40: =$I$2 -> 1 | BC40: =$M$1 -> E | BD40: =$I$2 -> 1 | BE40: =$M$1 -> E | BF40: =$I$2 -> 1 | BG40: =$M$1 -> E | BH40: =$I$2 -> 1
E41: Pontevedra | F41: =$K$1 -> C | G41: =$I$2 -> 1 | H41: 77 | I41: =$K$1 -> C | J41: =$I$2 -> 1 | K41: =$K$1 -> C | L41: 1 | M41: =$K$1 -> C | N41: 1 | O41: =$K$1 -> C | P41: 1 | Q41: =$K$1 -> C | R41: 1 | S41: =$K$1 -> C | T41: 1 | U41: =$K$1 -> C | V41: 1 | W41: =$L$1 -> D | X41: =$I$2 -> 1 | Y41: =$L$1 -> D | Z41: =$I$2 -> 1 | AA41: =$L$1 -> D | AB41: =$I$2 -> 1 | AC41: =$L$1 -> D | AD41: =$I$2 -> 1 | AE41: =$L$1 -> D | AF41: =$I$2 -> 1 | AG41: =$L$1 -> D | AH41: =$I$2 -> 1 | AI41: =$L$1 -> D | AJ41: =$I$2 -> 1 | AK41: =$L$1 -> D | AL41: =$I$2 -> 1 | AM41: =$L$1 -> D | AN41: =$I$2 -> 1 | AO41: =$L$1 -> D | AP41: =$I$2 -> 1 | AQ41: =$L$1 -> D | AR41: =$I$2 -> 1 | AS41: =$L$1 -> D | AT41: =$I$2 -> 1 | AU41: =$L$1 -> D | AV41: =$I$2 -> 1 | AW41: D | AX41: =$I$2 -> 1 | AY41: D | AZ41: =$I$2 -> 1 | BA41: D | BB41: =$I$2 -> 1 | BC41: D | BD41: =$I$2 -> 1 | BE41: D | BF41: =$I$2 -> 1 | BG41: D | BH41: =$I$2 -> 1 | BU41: <350 | BX41: >=350
E42: Salamanca | F42: =$L$1 -> D | G42: =$J$2 -> 2 | H42: 770 | I42: =$L$1 -> D | J42: =$J$2 -> 2 | K42: D | L42: 2 | M42: D | N42: 2 | O42: D | P42: 2 | Q42: D | R42: 2 | S42: D | T42: 2 | U42: D | V42: 2 | W42: D | X42: 2 | Y42: D | Z42: 2 | AA42: D | AB42: 2 | AC42: D | AD42: 2 | AE42: D | AF42: 2 | AG42: D | AH42: 2 | AI42: D | AJ42: 2 | AK42: D | AL42: 2 | AM42: D | AN42: 2 | AO42: =$M$1 -> E | AP42: =$I$2 -> 1 | AQ42: =$M$1 -> E | AR42: =$I$2 -> 1 | AS42: =$M$1 -> E | AT42: =$I$2 -> 1 | AU42: =$M$1 -> E | AV42: =$I$2 -> 1 | AW42: =$M$1 -> E | AX42: =$I$2 -> 1 | AY42: =$M$1 -> E | AZ42: =$I$2 -> 1 | BA42: =$M$1 -> E | BB42: =$I$2 -> 1 | BC42: =$M$1 -> E | BD42: =$I$2 -> 1 | BE42: =$M$1 -> E | BF42: =$I$2 -> 1 | BG42: =$M$1 -> E | BH42: =$I$2 -> 1 | BW42: <800 | BY42: >=800
E43: SanSebastián | F43: =$L$1 -> D | G43: =$I$2 -> 1 | H43: 5 | I43: =$L$1 -> D | J43: =$I$2 -> 1 | K43: =$L$1 -> D | L43: =$I$2 -> 1 | M43: =$L$1 -> D | N43: =$I$2 -> 1 | O43: =$L$1 -> D | P43: =$I$2 -> 1 | Q43: =$L$1 -> D | R43: =$I$2 -> 1 | S43: =$L$1 -> D | T43: =$I$2 -> 1 | U43: =$L$1 -> D | V43: =$I$2 -> 1 | W43: =$L$1 -> D | X43: =$I$2 -> 1 | Y43: =$M$1 -> E | Z43: =$I$2 -> 1 | AA43: =$M$1 -> E | AB43: =$I$2 -> 1 | AC43: =$M$1 -> E | AD43: =$I$2 -> 1 | AE43: =$M$1 -> E | AF43: =$I$2 -> 1 | AG43: =$M$1 -> E | AH43: =$I$2 -> 1 | AI43: =$M$1 -> E | AJ43: =$I$2 -> 1 | AK43: =$M$1 -> E | AL43: =$I$2 -> 1 | AM43: =$M$1 -> E | AN43: =$I$2 -> 1 | AO43: =$M$1 -> E | AP43: =$I$2 -> 1 | AQ43: =$M$1 -> E | AR43: =$I$2 -> 1 | AS43: =$M$1 -> E | AT43: =$I$2 -> 1 | AU43: =$M$1 -> E | AV43: =$I$2 -> 1 | AW43: =$M$1 -> E | AX43: =$I$2 -> 1 | AY43: =$M$1 -> E | AZ43: =$I$2 -> 1 | BA43: =$M$1 -> E | BB43: =$I$2 -> 1 | BC43: =$M$1 -> E | BD43: =$I$2 -> 1 | BE43: =$M$1 -> E | BF43: =$I$2 -> 1 | BG43: =$M$1 -> E | BH43: =$I$2 -> 1
E44: SantaCruzDeTenerife | F44: Alfa | G44: =$K$2 -> 3 | H44: 0 | I44: =$F$60 -> Alfa | J44: =$K$2 -> 3 | K44: =$F$60 -> Alfa | L44: =$K$2 -> 3 | M44: =$F$60 -> Alfa | N44: =$K$2 -> 3 | O44: =$F$60 -> Alfa | P44: =$K$2 -> 3 | Q44: =$F$60 -> Alfa | R44: =$K$2 -> 3 | S44: =$F$60 -> Alfa | T44: =$K$2 -> 3 | U44: =$F$60 -> Alfa | V44: =$K$2 -> 3 | W44: =$I$1 -> A | X44: =$J$2 -> 2 | Y44: A | Z44: 2 | AA44: A | AB44: 2 | AC44: A | AD44: 2 | AE44: A | AF44: 2 | AG44: A | AH44: 2 | AI44: A | AJ44: 2 | AK44: A | AL44: 2 | AM44: =$J$1 -> B | AN44: =$J$2 -> 2 | AO44: =$J$1 -> B | AP44: 2 | AQ44: =$J$1 -> B | AR44: 2 | AS44: =$J$1 -> B | AT44: 2 | AU44: =$J$1 -> B | AV44: 2 | AW44: =$K$1 -> C | AX44: =$J$2 -> 2 | AY44: C | AZ44: =$J$2 -> 2 | BA44: C | BB44: =$J$2 -> 2 | BC44: C | BD44: =$J$2 -> 2 | BE44: C | BF44: =$J$2 -> 2 | BG44: C | BH44: =$J$2 -> 2
E45: Santander | F45: =$K$1 -> C | G45: =$I$2 -> 1 | H45: 1 | I45: =$K$1 -> C | J45: =$I$2 -> 1 | K45: =$K$1 -> C | L45: =$I$2 -> 1 | M45: =$K$1 -> C | N45: =$I$2 -> 1 | O45: =$L$1 -> D | P45: =$I$2 -> 1 | Q45: =$L$1 -> D | R45: =$I$2 -> 1 | S45: =$L$1 -> D | T45: =$I$2 -> 1 | U45: =$L$1 -> D | V45: =$I$2 -> 1 | W45: =$L$1 -> D | X45: =$I$2 -> 1 | Y45: =$L$1 -> D | Z45: =$I$2 -> 1 | AA45: =$L$1 -> D | AB45: =$I$2 -> 1 | AC45: =$L$1 -> D | AD45: =$I$2 -> 1 | AE45: =$L$1 -> D | AF45: =$I$2 -> 1 | AG45: =$L$1 -> D | AH45: =$I$2 -> 1 | AI45: =$M$1 -> E | AJ45: =$I$2 -> 1 | AK45: =$M$1 -> E | AL45: =$I$2 -> 1 | AM45: =$M$1 -> E | AN45: =$I$2 -> 1 | AO45: =$M$1 -> E | AP45: =$I$2 -> 1 | AQ45: =$M$1 -> E | AR45: =$I$2 -> 1 | AS45: =$M$1 -> E | AT45: =$I$2 -> 1 | AU45: =$M$1 -> E | AV45: =$I$2 -> 1 | AW45: =$M$1 -> E | AX45: =$I$2 -> 1 | AY45: =$M$1 -> E | AZ45: =$I$2 -> 1 | BA45: =$M$1 -> E | BB45: =$I$2 -> 1 | BC45: =$M$1 -> E | BD45: =$I$2 -> 1 | BE45: =$M$1 -> E | BF45: =$I$2 -> 1 | BG45: =$M$1 -> E | BH45: =$I$2 -> 1 | BW45: <1000 | BY45: >=1000
E46: Segovia | F46: =$L$1 -> D | G46: =$J$2 -> 2 | H46: 1013 | I46: =$L$1 -> D | J46: =$J$2 -> 2 | K46: =$L$1 -> D | L46: =$J$2 -> 2 | M46: =$L$1 -> D | N46: =$J$2 -> 2 | O46: =$L$1 -> D | P46: =$J$2 -> 2 | Q46: =$L$1 -> D | R46: =$J$2 -> 2 | S46: =$L$1 -> D | T46: =$J$2 -> 2 | U46: =$L$1 -> D | V46: =$J$2 -> 2 | W46: =$L$1 -> D | X46: =$J$2 -> 2 | Y46: =$L$1 -> D | Z46: =$J$2 -> 2 | AA46: =$L$1 -> D | AB46: =$J$2 -> 2 | AC46: =$L$1 -> D | AD46: =$J$2 -> 2 | AE46: =$L$1 -> D | AF46: =$J$2 -> 2 | AG46: =$L$1 -> D | AH46: =$J$2 -> 2 | AI46: =$L$1 -> D | AJ46: =$J$2 -> 2 | AK46: =$L$1 -> D | AL46: =$J$2 -> 2 | AM46: =$L$1 -> D | AN46: =$J$2 -> 2 | AO46: =$L$1 -> D | AP46: =$J$2 -> 2 | AQ46: =$L$1 -> D | AR46: =$J$2 -> 2 | AS46: =$L$1 -> D | AT46: =$J$2 -> 2 | AU46: =$L$1 -> D | AV46: =$J$2 -> 2 | AW46: =$M$1 -> E | AX46: =$I$2 -> 1 | AY46: =$M$1 -> E | AZ46: =$I$2 -> 1 | BA46: =$M$1 -> E | BB46: =$I$2 -> 1 | BC46: =$M$1 -> E | BD46: =$I$2 -> 1 | BE46: =$M$1 -> E | BF46: =$I$2 -> 1 | BG46: =$M$1 -> E | BH46: =$I$2 -> 1 | BN46: <200 | BR46: >=200
E47: Sevilla | F47: =$J$1 -> B | G47: =$L$2 -> 4 | H47: 9 | I47: =$J$1 -> B | J47: =$L$2 -> 4 | K47: =$J$1 -> B | L47: =$L$2 -> 4 | M47: =$J$1 -> B | N47: =$L$2 -> 4 | O47: =$J$1 -> B | P47: =$L$2 -> 4 | Q47: =$K$1 -> C | R47: =$L$2 -> 4 | S47: =$K$1 -> C | T47: =$L$2 -> 4 | U47: =$K$1 -> C | V47: =$L$2 -> 4 | W47: =$K$1 -> C | X47: =$L$2 -> 4 | Y47: =$K$1 -> C | Z47: =$L$2 -> 4 | AA47: =$K$1 -> C | AB47: =$L$2 -> 4 | AC47: =$K$1 -> C | AD47: =$L$2 -> 4 | AE47: =$K$1 -> C | AF47: =$L$2 -> 4 | AG47: =$K$1 -> C | AH47: =$L$2 -> 4 | AI47: =$K$1 -> C | AJ47: =$L$2 -> 4 | AK47: =$K$1 -> C | AL47: =$L$2 -> 4 | AM47: =$K$1 -> C | AN47: =$L$2 -> 4 | AO47: =$K$1 -> C | AP47: =$L$2 -> 4 | AQ47: =$K$1 -> C | AR47: =$L$2 -> 4 | AS47: =$K$1 -> C | AT47: =$L$2 -> 4 | AU47: =$K$1 -> C | AV47: =$L$2 -> 4 | AW47: =$K$1 -> C | AX47: =$L$2 -> 4 | AY47: =$K$1 -> C | AZ47: =$L$2 -> 4 | BA47: =$K$1 -> C | BB47: =$L$2 -> 4 | BC47: =$K$1 -> C | BD47: =$L$2 -> 4 | BE47: =$K$1 -> C | BF47: =$L$2 -> 4 | BG47: =$K$1 -> C | BH47: =$L$2 -> 4 | BW47: <750 | BX47: <800 | BY47: >=800
E48: Soria | F48: =$M$1 -> E | G48: =$I$2 -> 1 | H48: 984 | I48: =$L$1 -> D | J48: =$J$2 -> 2 | K48: =$L$1 -> D | L48: =$J$2 -> 2 | M48: =$L$1 -> D | N48: =$J$2 -> 2 | O48: =$L$1 -> D | P48: =$J$2 -> 2 | Q48: =$L$1 -> D | R48: =$J$2 -> 2 | S48: =$L$1 -> D | T48: =$J$2 -> 2 | U48: =$L$1 -> D | V48: =$J$2 -> 2 | W48: =$L$1 -> D | X48: =$J$2 -> 2 | Y48: =$L$1 -> D | Z48: =$J$2 -> 2 | AA48: =$L$1 -> D | AB48: =$J$2 -> 2 | AC48: =$L$1 -> D | AD48: =$J$2 -> 2 | AE48: =$L$1 -> D | AF48: =$J$2 -> 2 | AG48: =$L$1 -> D | AH48: =$J$2 -> 2 | AI48: =$L$1 -> D | AJ48: =$J$2 -> 2 | AK48: =$L$1 -> D | AL48: =$J$2 -> 2 | AM48: =$L$1 -> D | AN48: =$I$2 -> 1 | AO48: =$M$1 -> E | AP48: =$I$2 -> 1 | AQ48: =$M$1 -> E | AR48: =$I$2 -> 1 | AS48: =$M$1 -> E | AT48: =$I$2 -> 1 | AU48: =$M$1 -> E | AV48: =$I$2 -> 1 | AW48: =$M$1 -> E | AX48: =$I$2 -> 1 | AY48: =$M$1 -> E | AZ48: =$I$2 -> 1 | BA48: =$M$1 -> E | BB48: =$I$2 -> 1 | BC48: =$M$1 -> E | BD48: =$I$2 -> 1 | BE48: =$M$1 -> E | BF48: =$I$2 -> 1 | BG48: =$M$1 -> E | BH48: =$I$2 -> 1 | BO48: <50 | BS48: <500 | BV48: >=500
E49: Tarragona | F49: =$J$1 -> B | G49: =$K$2 -> 3 | H49: 1 | I49: =$J$1 -> B | J49: =$K$2 -> 3 | K49: =$K$1 -> C | L49: =$K$2 -> 3 | M49: C | N49: =$K$2 -> 3 | O49: C | P49: =$K$2 -> 3 | Q49: C | R49: =$K$2 -> 3 | S49: C | T49: =$K$2 -> 3 | U49: C | V49: =$K$2 -> 3 | W49: C | X49: =$K$2 -> 3 | Y49: C | Z49: =$K$2 -> 3 | AA49: C | AB49: =$K$2 -> 3 | AC49: D | AD49: =$K$2 -> 3 | AE49: D | AF49: 3 | AG49: D | AH49: 3 | AI49: D | AJ49: 3 | AK49: D | AL49: 3 | AM49: D | AN49: 3 | AO49: =$L$1 -> D | AP49: 3 | AQ49: =$L$1 -> D | AR49: 3 | AS49: =$L$1 -> D | AT49: 3 | AU49: =$L$1 -> D | AV49: 3 | AW49: =$L$1 -> D | AX49: 3 | AY49: D | AZ49: 3 | BA49: D | BB49: 3 | BC49: D | BD49: 3 | BE49: D | BF49: 3 | BG49: D | BH49: 3 | BS49: <450 | BT49: <500 | BW49: <1000 | BY49: >=1000
E50: Teruel | F50: =$L$1 -> D | G50: =$J$2 -> 2 | H50: 995 | I50: C | J50: =$K$2 -> 3 | K50: C | L50: =$K$2 -> 3 | M50: C | N50: =$K$2 -> 3 | O50: C | P50: =$K$2 -> 3 | Q50: C | R50: =$K$2 -> 3 | S50: C | T50: =$K$2 -> 3 | U50: C | V50: =$K$2 -> 3 | W50: C | X50: =$K$2 -> 3 | Y50: C | Z50: =$K$2 -> 3 | AA50: C | AB50: =$J$2 -> 2 | AC50: D | AD50: =$J$2 -> 2 | AE50: D | AF50: =$J$2 -> 2 | AG50: D | AH50: =$J$2 -> 2 | AI50: D | AJ50: =$J$2 -> 2 | AK50: D | AL50: =$J$2 -> 2 | AM50: D | AN50: =$J$2 -> 2 | AO50: =$L$1 -> D | AP50: =$J$2 -> 2 | AQ50: =$L$1 -> D | AR50: =$J$2 -> 2 | AS50: =$L$1 -> D | AT50: =$J$2 -> 2 | AU50: =$L$1 -> D | AV50: =$J$2 -> 2 | AW50: =$M$1 -> E | AX50: =$I$2 -> 1 | AY50: =$M$1 -> E | AZ50: =$I$2 -> 1 | BA50: =$M$1 -> E | BB50: =$I$2 -> 1 | BC50: =$M$1 -> E | BD50: =$I$2 -> 1 | BE50: =$M$1 -> E | BF50: =$I$2 -> 1 | BG50: =$M$1 -> E | BH50: =$I$2 -> 1 | BR50: <500 | BV50: >=500
E51: Toledo | F51: =$K$1 -> C | G51: =$L$2 -> 4 | H51: 445 | I51: C | J51: =$L$2 -> 4 | K51: C | L51: =$L$2 -> 4 | M51: C | N51: =$L$2 -> 4 | O51: C | P51: =$L$2 -> 4 | Q51: C | R51: =$L$2 -> 4 | S51: C | T51: =$L$2 -> 4 | U51: C | V51: =$L$2 -> 4 | W51: C | X51: =$L$2 -> 4 | Y51: C | Z51: =$L$2 -> 4 | AA51: C | AB51: =$L$2 -> 4 | AC51: D | AD51: =$K$2 -> 3 | AE51: D | AF51: 3 | AG51: D | AH51: 3 | AI51: D | AJ51: 3 | AK51: D | AL51: 3 | AM51: D | AN51: 3 | AO51: =$L$1 -> D | AP51: 3 | AQ51: =$L$1 -> D | AR51: 3 | AS51: =$L$1 -> D | AT51: 3 | AU51: =$L$1 -> D | AV51: 3 | AW51: =$L$1 -> D | AX51: 3 | AY51: D | AZ51: 3 | BA51: D | BB51: 3 | BC51: D | BD51: 3 | BE51: D | BF51: 3 | BG51: D | BH51: 3 | BO51: <50 | BS51: <500 | BW51: <950 | BY51: >=950
E52: Valencia | F52: =$J$1 -> B | G52: =$K$2 -> 3 | H52: 8 | I52: =$J$1 -> B | J52: =$K$2 -> 3 | K52: C | L52: =$K$2 -> 3 | M52: C | N52: =$K$2 -> 3 | O52: C | P52: =$K$2 -> 3 | Q52: C | R52: =$K$2 -> 3 | S52: C | T52: =$K$2 -> 3 | U52: C | V52: =$K$2 -> 3 | W52: C | X52: =$K$2 -> 3 | Y52: C | Z52: =$K$2 -> 3 | AA52: C | AB52: =$K$2 -> 3 | AC52: D | AD52: =$J$2 -> 2 | AE52: D | AF52: =$J$2 -> 2 | AG52: D | AH52: =$J$2 -> 2 | AI52: D | AJ52: =$J$2 -> 2 | AK52: D | AL52: =$J$2 -> 2 | AM52: D | AN52: =$J$2 -> 2 | AO52: =$L$1 -> D | AP52: =$J$2 -> 2 | AQ52: =$L$1 -> D | AR52: =$J$2 -> 2 | AS52: =$L$1 -> D | AT52: =$J$2 -> 2 | AU52: =$M$1 -> E | AV52: =$I$2 -> 1 | AW52: =$M$1 -> E | AX52: =$I$2 -> 1 | AY52: =$M$1 -> E | AZ52: =$I$2 -> 1 | BA52: =$M$1 -> E | BB52: =$I$2 -> 1 | BC52: =$M$1 -> E | BD52: =$I$2 -> 1 | BE52: =$M$1 -> E | BF52: =$I$2 -> 1 | BG52: =$M$1 -> E | BH52: =$I$2 -> 1 | BW52: <800 | BY52: >=800
E53: Valladolid | F53: =$L$1 -> D | G53: =$J$2 -> 2 | H53: 704 | I53: =$L$1 -> D | J53: =$J$2 -> 2 | K53: =$L$1 -> D | L53: =$J$2 -> 2 | M53: =$L$1 -> D | N53: =$J$2 -> 2 | O53: =$L$1 -> D | P53: =$J$2 -> 2 | Q53: =$L$1 -> D | R53: =$J$2 -> 2 | S53: =$L$1 -> D | T53: =$J$2 -> 2 | U53: =$L$1 -> D | V53: =$J$2 -> 2 | W53: =$L$1 -> D | X53: =$J$2 -> 2 | Y53: =$L$1 -> D | Z53: =$J$2 -> 2 | AA53: =$L$1 -> D | AB53: =$J$2 -> 2 | AC53: D | AD53: =$J$2 -> 2 | AE53: D | AF53: =$J$2 -> 2 | AG53: D | AH53: =$J$2 -> 2 | AI53: D | AJ53: =$J$2 -> 2 | AK53: D | AL53: =$J$2 -> 2 | AM53: D | AN53: =$J$2 -> 2 | AO53: =$M$1 -> E | AP53: =$I$2 -> 1 | AQ53: =$M$1 -> E | AR53: =$I$2 -> 1 | AS53: =$M$1 -> E | AT53: =$I$2 -> 1 | AU53: =$M$1 -> E | AV53: =$I$2 -> 1 | AW53: =$M$1 -> E | AX53: =$I$2 -> 1 | AY53: =$M$1 -> E | AZ53: =$I$2 -> 1 | BA53: =$M$1 -> E | BB53: =$I$2 -> 1 | BC53: =$M$1 -> E | BD53: =$I$2 -> 1 | BE53: =$M$1 -> E | BF53: =$I$2 -> 1 | BG53: =$M$1 -> E | BH53: =$I$2 -> 1
E54: Vitoria | F54: =$L$1 -> D | G54: =$I$2 -> 1 | H54: 512 | I54: =$L$1 -> D | J54: =$I$2 -> 1 | K54: =$L$1 -> D | L54: 1 | M54: =$L$1 -> D | N54: 1 | O54: =$L$1 -> D | P54: 1 | Q54: =$L$1 -> D | R54: 1 | S54: =$L$1 -> D | T54: 1 | U54: =$L$1 -> D | V54: 1 | W54: =$L$1 -> D | X54: 1 | Y54: =$L$1 -> D | Z54: 1 | AA54: =$L$1 -> D | AB54: 1 | AC54: =$M$1 -> E | AD54: =$I$2 -> 1 | AE54: =$M$1 -> E | AF54: =$I$2 -> 1 | AG54: =$M$1 -> E | AH54: =$I$2 -> 1 | AI54: =$M$1 -> E | AJ54: =$I$2 -> 1 | AK54: =$M$1 -> E | AL54: =$I$2 -> 1 | AM54: =$M$1 -> E | AN54: =$I$2 -> 1 | AO54: =$M$1 -> E | AP54: =$I$2 -> 1 | AQ54: =$M$1 -> E | AR54: =$I$2 -> 1 | AS54: =$M$1 -> E | AT54: =$I$2 -> 1 | AU54: =$M$1 -> E | AV54: =$I$2 -> 1 | AW54: =$M$1 -> E | AX54: =$I$2 -> 1 | AY54: =$M$1 -> E | AZ54: =$I$2 -> 1 | BA54: =$M$1 -> E | BB54: =$I$2 -> 1 | BC54: =$M$1 -> E | BD54: =$I$2 -> 1 | BE54: =$M$1 -> E | BF54: =$I$2 -> 1 | BG54: =$M$1 -> E | BH54: =$I$2 -> 1 | BW54: <800 | BY54: >=800
E55: Zamora | F55: =$L$1 -> D | G55: =$J$2 -> 2 | H55: 617 | I55: =$L$1 -> D | J55: =$J$2 -> 2 | K55: =$L$1 -> D | L55: =$J$2 -> 2 | M55: =$L$1 -> D | N55: =$J$2 -> 2 | O55: =$L$1 -> D | P55: =$J$2 -> 2 | Q55: =$L$1 -> D | R55: =$J$2 -> 2 | S55: =$L$1 -> D | T55: =$J$2 -> 2 | U55: =$L$1 -> D | V55: =$J$2 -> 2 | W55: =$L$1 -> D | X55: =$J$2 -> 2 | Y55: =$L$1 -> D | Z55: =$J$2 -> 2 | AA55: =$L$1 -> D | AB55: =$J$2 -> 2 | AC55: =$L$1 -> D | AD55: =$J$2 -> 2 | AE55: =$L$1 -> D | AF55: =$J$2 -> 2 | AG55: =$L$1 -> D | AH55: =$J$2 -> 2 | AI55: =$L$1 -> D | AJ55: =$J$2 -> 2 | AK55: =$L$1 -> D | AL55: =$J$2 -> 2 | AM55: =$L$1 -> D | AN55: =$J$2 -> 2 | AO55: =$M$1 -> E | AP55: =$I$2 -> 1 | AQ55: =$M$1 -> E | AR55: =$I$2 -> 1 | AS55: =$M$1 -> E | AT55: =$I$2 -> 1 | AU55: =$M$1 -> E | AV55: =$I$2 -> 1 | AW55: =$M$1 -> E | AX55: =$I$2 -> 1 | AY55: =$M$1 -> E | AZ55: =$I$2 -> 1 | BA55: =$M$1 -> E | BB55: =$I$2 -> 1 | BC55: =$M$1 -> E | BD55: =$I$2 -> 1 | BE55: =$M$1 -> E | BF55: =$I$2 -> 1 | BG55: =$M$1 -> E | BH55: =$I$2 -> 1 | BS55: <200 | BV55: <650 | BY55: >=650
E56: Zaragoza | F56: =$L$1 -> D | G56: =$K$2 -> 3 | H56: 207 | I56: =$K$1 -> C | J56: =$K$2 -> 3 | K56: C | L56: 3 | M56: C | N56: 3 | O56: C | P56: 3 | Q56: =$L$1 -> D | R56: =$K$2 -> 3 | S56: =$L$1 -> D | T56: 3 | U56: =$L$1 -> D | V56: 3 | W56: =$L$1 -> D | X56: 3 | Y56: =$L$1 -> D | Z56: 3 | AA56: =$L$1 -> D | AB56: 3 | AC56: =$L$1 -> D | AD56: 3 | AE56: =$L$1 -> D | AF56: 3 | AG56: =$L$1 -> D | AH56: 3 | AI56: =$M$1 -> E | AJ56: =$I$2 -> 1 | AK56: =$M$1 -> E | AL56: =$I$2 -> 1 | AM56: =$M$1 -> E | AN56: =$I$2 -> 1 | AO56: =$M$1 -> E | AP56: =$I$2 -> 1 | AQ56: =$M$1 -> E | AR56: =$I$2 -> 1 | AS56: =$M$1 -> E | AT56: =$I$2 -> 1 | AU56: =$M$1 -> E | AV56: =$I$2 -> 1 | AW56: =$M$1 -> E | AX56: =$I$2 -> 1 | AY56: =$M$1 -> E | AZ56: =$I$2 -> 1 | BA56: =$M$1 -> E | BB56: =$I$2 -> 1 | BC56: =$M$1 -> E | BD56: =$I$2 -> 1 | BE56: =$M$1 -> E | BF56: =$I$2 -> 1 | BG56: =$M$1 -> E | BH56: =$I$2 -> 1
E58: CAPITAL | F58: Z.C. INVIERNO | G58: Z.C. VERANO | H58: ALTITUD | I58: 0-50 | K58: 50-100 | M58: 100-150 | O58: 150-200 | Q58: 200-250 | S58: 250-300 | U58: 300-350 | W58: 350-400 | Y58: 400-450 | AA58: 450-500 | AC58: 500-550 | AE58: 550-600 | AG58: 600-650 | AI58: 650-700 | AK58: 700-750 | AM58: 750-800 | AO58: 800-850 | AQ58: 850-900 | AS58: 900-950 | AU58: 950-1000 | AW58: 1000-1050 | AY58: 1100-1150 | BA58: 1150-1200 | BC58: 1200-1250 | BE58: 1250-1300 | BG58: >=1300
E59: Palmas de Gran Canaria, Las | F59: Alfa | G59: =$K$2 -> 3 | H59: 114 | I59: =$F$59 -> Alfa | J59: =$K$2 -> 3 | K59: =$F$59 -> Alfa | L59: =$K$2 -> 3 | M59: =$F$59 -> Alfa | N59: =$K$2 -> 3 | O59: =$F$59 -> Alfa | P59: =$K$2 -> 3 | Q59: =$F$59 -> Alfa | R59: =$K$2 -> 3 | S59: =$F$59 -> Alfa | T59: =$K$2 -> 3 | U59: =$F$59 -> Alfa | V59: =$K$2 -> 3 | W59: =$I$1 -> A | X59: =$J$2 -> 2 | Y59: A | Z59: 2 | AA59: A | AB59: 2 | AC59: A | AD59: 2 | AE59: A | AF59: 2 | AG59: A | AH59: 2 | AI59: A | AJ59: 2 | AK59: A | AL59: 2 | AM59: =$J$1 -> B | AN59: =$J$2 -> 2 | AO59: =$J$1 -> B | AP59: 2 | AQ59: =$J$1 -> B | AR59: 2 | AS59: =$J$1 -> B | AT59: 2 | AU59: =$J$1 -> B | AV59: 2 | AW59: =$K$1 -> C | AX59: =$J$2 -> 2 | AY59: C | AZ59: =$J$2 -> 2 | BA59: C | BB59: =$J$2 -> 2 | BC59: C | BD59: =$J$2 -> 2 | BE59: C | BF59: =$J$2 -> 2 | BG59: C | BH59: =$J$2 -> 2
E60: Santa Cruz de Tenerife | F60: =$F$59 -> Alfa | G60: =$K$2 -> 3 | H60: 0 | I60: =$F$59 -> Alfa | J60: =$K$2 -> 3 | K60: =$F$59 -> Alfa | L60: =$K$2 -> 3 | M60: =$F$59 -> Alfa | N60: =$K$2 -> 3 | O60: =$F$59 -> Alfa | P60: =$K$2 -> 3 | Q60: =$F$59 -> Alfa | R60: =$K$2 -> 3 | S60: =$F$59 -> Alfa | T60: =$K$2 -> 3 | U60: =$F$59 -> Alfa | V60: =$K$2 -> 3 | W60: A | X60: 2 | Y60: A | Z60: 2 | AA60: A | AB60: 2 | AC60: A | AD60: 2 | AE60: A | AF60: 2 | AG60: A | AH60: 2 | AI60: A | AJ60: 2 | AK60: A | AL60: 2 | AM60: =$J$1 -> B | AN60: 2 | AO60: =$J$1 -> B | AP60: 2 | AQ60: =$J$1 -> B | AR60: 2 | AS60: =$J$1 -> B | AT60: 2 | AU60: =$J$1 -> B | AV60: 2 | AW60: C | AX60: =$J$2 -> 2 | AY60: C | AZ60: =$J$2 -> 2 | BA60: C | BB60: =$J$2 -> 2 | BC60: C | BD60: =$J$2 -> 2 | BE60: C | BF60: =$J$2 -> 2 | BG60: C | BH60: =$J$2 -> 2

Sheet CA
B2: VERDE Edificios 2020 (Residencial privado) Nueva Edificación, Rehabilitación, Edificio Existente y Mixto
E3: CRITERIOS APLICABLES
C4: NOTA: Cuando la celda de marcado aparece en blanco, el criterio no aplica por la tipología del edificio o el tipo de actuación indicados en la pestaña de Datos Genreales.
B5: ='Matriz VERDE-GBCe'!U6 -> PE | D5: ='Matriz VERDE-GBCe'!V6 -> Parcela y emplazamiento | F5: =SUM(F10:F26) -> 0.1524462241
C7: Medidas
D10: ='Matriz VERDE-GBCe'!V7 -> PE 01 | E10: =VLOOKUP(D10,'Matriz VERDE-GBCe'!$V$6:W$55,2,FALSE) -> Proximidad al transporte publico. | F10: =VLOOKUP(D10,'Matriz VERDE-GBCe'!$V$6:AX$59,3,FALSE) -> 0.01429744853 | H10: 1
D12: ='Matriz VERDE-GBCe'!V8 -> PE 02 | E12: =VLOOKUP(D12,'Matriz VERDE-GBCe'!$V$6:W$55,2,FALSE) -> Proximidad a equipamiento y servicios. | F12: =VLOOKUP(D12,'Matriz VERDE-GBCe'!$V$6:AX$59,3,FALSE) -> 0.01347605113 | H12: 1
D14: ='Matriz VERDE-GBCe'!V9 -> PE 03 | E14: =VLOOKUP(D14,'Matriz VERDE-GBCe'!$V$6:W$55,2,FALSE) -> Facilidades para la bicicleta. | F14: =VLOOKUP(D14,'Matriz VERDE-GBCe'!$V$6:AX$59,3,FALSE) -> 0.0162996047 | H14: 1
D16: ='Matriz VERDE-GBCe'!V10 -> PE 04 | E16: =VLOOKUP(D16,'Matriz VERDE-GBCe'!$V$6:W$55,2,FALSE) -> Capacidad de carga de vehículos eléctricos. | F16: =VLOOKUP(D16,'Matriz VERDE-GBCe'!$V$6:AX$59,3,FALSE) -> 0.01601724935 | H16: 1
D18: ='Matriz VERDE-GBCe'!V11 -> PE 05 | E18: =VLOOKUP(D18,'Matriz VERDE-GBCe'!$V$6:W$55,2,FALSE) -> Clasificación de RSU. | F18: =VLOOKUP(D18,'Matriz VERDE-GBCe'!$V$6:AX$59,3,FALSE) -> 0.01129421428 | H18: 1
D20: ='Matriz VERDE-GBCe'!V12 -> PE 06 | E20: =VLOOKUP(D20,'Matriz VERDE-GBCe'!$V$6:W$55,2,FALSE) -> Gestión y Restauración del hábitat. | F20: =VLOOKUP(D20,'Matriz VERDE-GBCe'!$V$6:AX$59,3,FALSE) -> 0.02281944658 | H20: 1
D22: ='Matriz VERDE-GBCe'!V13 -> PE 07 | E22: =VLOOKUP(D22,'Matriz VERDE-GBCe'!$V$6:W$55,2,FALSE) -> Uso de plantas para crear sombras. | F22: =VLOOKUP(D22,'Matriz VERDE-GBCe'!$V$6:AX$59,3,FALSE) -> 0.01812208019 | H22: 1
D24: ='Matriz VERDE-GBCe'!V14 -> PE 08 | E24: =VLOOKUP(D24,'Matriz VERDE-GBCe'!$V$6:W$55,2,FALSE) -> Efecto isla de calor. | F24: =VLOOKUP(D24,'Matriz VERDE-GBCe'!$V$6:AX$59,3,FALSE) -> 0.02043226038 | H24: 1
F25: +
D26: ='Matriz VERDE-GBCe'!V15 -> PE 09 | E26: =VLOOKUP(D26,'Matriz VERDE-GBCe'!$V$6:W$55,2,FALSE) -> Contaminación lumínica. | F26: =VLOOKUP(D26,'Matriz VERDE-GBCe'!$V$6:AX$59,3,FALSE) -> 0.01968786899 | H26: 1
B29: EyA | D29: ='Matriz VERDE-GBCe'!V16 -> Energía y atmósfera | F29: =SUM(F34:F44) -> 0.1760100621
C31: Medidas
D34: ='Matriz VERDE-GBCe'!V17 -> EA 00 | E34: =VLOOKUP(D34,'Matriz VERDE-GBCe'!$V$6:W$55,2,FALSE) -> Demanda de calefacción y refrigeración | F34: =VLOOKUP(D34,'Matriz VERDE-GBCe'!$V$6:AX$55,3,FALSE) -> 0 | H34: 1
D36: ='Matriz VERDE-GBCe'!V18 -> EA 01 | E36: =VLOOKUP(D36,'Matriz VERDE-GBCe'!$V$6:W$55,2,FALSE) -> Consumo de energía primaria | F36: =VLOOKUP(D36,'Matriz VERDE-GBCe'!$V$6:AX$55,3,FALSE) -> 0.075414549 | H36: 1
D38: ='Matriz VERDE-GBCe'!V19 -> EA 02 | E38: =VLOOKUP(D38,'Matriz VERDE-GBCe'!$V$6:W$55,2,FALSE) -> Generación distribuida | F38: =VLOOKUP(D38,'Matriz VERDE-GBCe'!$V$6:AX$55,3,FALSE) -> 0.04851378408 | H38: 1
D40: ='Matriz VERDE-GBCe'!V20 -> EA 03 | E40: =VLOOKUP(D40,'Matriz VERDE-GBCe'!$V$6:W$55,2,FALSE) -> Consumo en zonas comunes | F40: =VLOOKUP(D40,'Matriz VERDE-GBCe'!$V$6:AX$55,3,FALSE) -> 0.02541198213 | H40: 1
D42: ='Matriz VERDE-GBCe'!V21 -> EA 05 | E42: =VLOOKUP(D42,'Matriz VERDE-GBCe'!$V$6:W$55,2,FALSE) -> Emisión de NOx en calderas de combustión. | F42: =VLOOKUP(D42,'Matriz VERDE-GBCe'!$V$6:AX$55,3,FALSE) -> 0 | H42: 1
D44: ='Matriz VERDE-GBCe'!V22 -> EA 04 | E44: =VLOOKUP(D44,'Matriz VERDE-GBCe'!$V$6:W$55,2,FALSE) -> Elección responsable de refrigerantes | F44: =VLOOKUP(D44,'Matriz VERDE-GBCe'!$V$6:AX$55,3,FALSE) -> 0.02666974691 | H44: 1
B47: RN | D47: ='Matriz VERDE-GBCe'!V23 -> Recursos naturales | F47: =SUM(F53:F75) -> 0.2292212126
C49: Medidas
D53: ='Matriz VERDE-GBCe'!V24 -> RN 01 | E53: =VLOOKUP(D53,'Matriz VERDE-GBCe'!$V$6:W$59,2,FALSE) -> Consumo de agua en aparatos sanitarios | F53: =VLOOKUP(D53,'Matriz VERDE-GBCe'!$V$6:AX$55,3,FALSE) -> 0.0214076698 | H53: 1
D55: ='Matriz VERDE-GBCe'!V25 -> RN 02 | E55: =VLOOKUP(D55,'Matriz VERDE-GBCe'!$V$6:W$59,2,FALSE) -> Necesidades de riego en jardines. | F55: =VLOOKUP(D55,'Matriz VERDE-GBCe'!$V$6:AX$55,3,FALSE) -> 0 | H55: 1
D57: ='Matriz VERDE-GBCe'!V26 -> RN 03 | E57: =VLOOKUP(D57,'Matriz VERDE-GBCe'!$V$6:W$59,2,FALSE) -> Consumos de agua singulares. | F57: =VLOOKUP(D57,'Matriz VERDE-GBCe'!$V$6:AX$55,3,FALSE) -> 0.01812208019 | H57: 1
D59: ='Matriz VERDE-GBCe'!V27 -> RN 04 | E59: =VLOOKUP(D59,'Matriz VERDE-GBCe'!$V$6:W$59,2,FALSE) -> Uso de agua no potable. | F59: =VLOOKUP(D59,'Matriz VERDE-GBCe'!$V$6:AX$55,3,FALSE) -> 0.02084295908 | H59: 1
D61: ='Matriz VERDE-GBCe'!V28 -> RN 05 | E61: =VLOOKUP(D61,'Matriz VERDE-GBCe'!$V$6:W$59,2,FALSE) -> Uso de materiales reciclados. | F61: =VLOOKUP(D61,'Matriz VERDE-GBCe'!$V$6:AX$55,3,FALSE) -> 0.01812208019 | H61: 1
D63: ='Matriz VERDE-GBCe'!V29 -> RN 06 | E63: =VLOOKUP(D63,'Matriz VERDE-GBCe'!$V$6:W$55,2,FALSE) -> Elección responsable de materiales | F63: =VLOOKUP(D63,'Matriz VERDE-GBCe'!$V$6:AX$55,3,FALSE) -> 0.01878946558 | H63: 1
D65: ='Matriz VERDE-GBCe'!V30 -> RN 07 | E65: =VLOOKUP(D65,'Matriz VERDE-GBCe'!$V$6:W$59,2,FALSE) -> Uso de materiales de producción local. | F65: =VLOOKUP(D65,'Matriz VERDE-GBCe'!$V$6:AX$55,3,FALSE) -> 0.01973920632 | H65: 1
D67: ='Matriz VERDE-GBCe'!V31 -> RN 08 | E67: =VLOOKUP(D67,'Matriz VERDE-GBCe'!$V$6:W$59,2,FALSE) -> El edificio como banco de materiales | F67: =VLOOKUP(D67,'Matriz VERDE-GBCe'!$V$6:AX$55,3,FALSE) -> 0.02163868782 | H67: 1
D69: ='Matriz VERDE-GBCe'!V32 -> RN 09 | E69: =VLOOKUP(D69,'Matriz VERDE-GBCe'!$V$6:W$59,2,FALSE) -> Gestión de los residuos de la construcción. | F69: =VLOOKUP(D69,'Matriz VERDE-GBCe'!$V$6:AX$55,3,FALSE) -> 0.01565788798 | H69: 1
D71: ='Matriz VERDE-GBCe'!V33 -> RN 10 | E71: =VLOOKUP(D71,'Matriz VERDE-GBCe'!$V$6:W$59,2,FALSE) -> Nivel de intervención en rehabilitaciones | F71: =VLOOKUP(D71,'Matriz VERDE-GBCe'!$V$6:AX$59,3,FALSE) -> 0 | H71: 1
D73: ='Matriz VERDE-GBCe'!V34 -> RN 11 | E73: =VLOOKUP(D73,'Matriz VERDE-GBCe'!$V$6:W$59,2,FALSE) -> Impacto de los materiales de la construcción. | F73: =VLOOKUP(D73,'Matriz VERDE-GBCe'!$V$6:AX$55,3,FALSE) -> 0.05485394527 | H73: 1
D75: ='Matriz VERDE-GBCe'!V35 -> RN 12 | E75: =VLOOKUP(D75,'Matriz VERDE-GBCe'!$V$6:W$59,2,FALSE) -> Ecoetiquetado de producto. | F75: =VLOOKUP(D75,'Matriz VERDE-GBCe'!$V$6:AX$55,3,FALSE) -> 0.02004723035 | H75: 1
B78: AI | D78: ='Matriz VERDE-GBCe'!V36 -> Ambiente Interior. | F78: =SUM(F83:F91) -> 0.09487139997
C80: Medidas
D83: ='Matriz VERDE-GBCe'!V37 -> AI 01 | E83: =VLOOKUP(D83,'Matriz VERDE-GBCe'!$V$6:W$59,2,FALSE) -> Limitación de las emisiones de COVs | F83: =VLOOKUP(D83,'Matriz VERDE-GBCe'!$V$6:AX$55,3,FALSE) -> 0.0190204836 | H83: 1
D85: ='Matriz VERDE-GBCe'!V38 -> AI 02 | E85: =VLOOKUP(D85,'Matriz VERDE-GBCe'!$V$6:W$59,2,FALSE) -> Control de la calidad del aire | F85: =VLOOKUP(D85,'Matriz VERDE-GBCe'!$V$6:AX$55,3,FALSE) -> 0.0186097849 | H85: 1
D87: ='Matriz VERDE-GBCe'!V39 -> AI 03 | E87: =VLOOKUP(D87,'Matriz VERDE-GBCe'!$V$6:W$59,2,FALSE) -> Iluminación natural. | F87: =VLOOKUP(D87,'Matriz VERDE-GBCe'!$V$6:AX$55,3,FALSE) -> 0.0186097849 | H87: 1
D89: ='Matriz VERDE-GBCe'!V40 -> AI 04 | E89: =VLOOKUP(D89,'Matriz VERDE-GBCe'!$V$6:W$59,2,FALSE) -> Iluminación artificial | F89: =VLOOKUP(D89,'Matriz VERDE-GBCe'!$V$6:AX$55,3,FALSE) -> 0.02002156168 | H89: 1
D90: ='Matriz VERDE-GBCe'!V42 -> Aspectos sociales
D91: ='Matriz VERDE-GBCe'!V41 -> AI 05 | E91: =VLOOKUP(D91,'Matriz VERDE-GBCe'!$V$6:W$59,2,FALSE) -> Protección frente al ruido. | F91: =VLOOKUP(D91,'Matriz VERDE-GBCe'!$V$6:AX$55,3,FALSE) -> 0.0186097849 | H91: 1
B94: CC | D94: ='Matriz VERDE-GBCe'!V52 -> Calidad de la edificación | F94: =SUM(F99:G111) -> 0.1802967298
C96: Medidas
D99: ='Matriz VERDE-GBCe'!V53 -> CE 01 | E99: =VLOOKUP(D99,'Matriz VERDE-GBCe'!$V$6:W$59,2,FALSE) -> Diseño pasivo | F99: =VLOOKUP(D99,'Matriz VERDE-GBCe'!$V$6:AX$55,3,FALSE) -> 0.02836387905 | H99: 1
D101: ='Matriz VERDE-GBCe'!V54 -> CE 02 | E101: =VLOOKUP(D101,'Matriz VERDE-GBCe'!$V$6:W$59,2,FALSE) -> Control parcial de los sistemas de clima | F101: =VLOOKUP(D101,'Matriz VERDE-GBCe'!$V$6:AX$55,3,FALSE) -> 0.02669541558 | H101: 1
D103: ='Matriz VERDE-GBCe'!V55 -> CE 03 | E103: =VLOOKUP(D103,'Matriz VERDE-GBCe'!$V$6:W$59,2,FALSE) -> Control local de la iluminación | F103: =VLOOKUP(D103,'Matriz VERDE-GBCe'!$V$6:AX$55,3,FALSE) -> 0.0222290672 | H103: 1
D105: ='Matriz VERDE-GBCe'!V56 -> CE 04 | E105: =VLOOKUP(D105,'Matriz VERDE-GBCe'!$V$6:W$59,2,FALSE) -> Calidad en la construcción | F105: =VLOOKUP(D105,'Matriz VERDE-GBCe'!$V$6:AX$59,3,FALSE) -> 0.03478104625 | H105: 1
D107: ='Matriz VERDE-GBCe'!V57 -> CE 05 | E107: =VLOOKUP(D107,'Matriz VERDE-GBCe'!$V$6:W$59,2,FALSE) -> Puesta en marcha sistemática | F107: =VLOOKUP(D107,'Matriz VERDE-GBCe'!$V$6:AX$59,3,FALSE) -> 0.03611581703 | H107: 1
D109: ='Matriz VERDE-GBCe'!V58 -> CE 06 | E109: =VLOOKUP(D109,'Matriz VERDE-GBCe'!$V$6:W$59,2,FALSE) -> Custodia de la documentación del proyecto | F109: =VLOOKUP(D109,'Matriz VERDE-GBCe'!$V$6:AX$59,3,FALSE) -> 0.0321115047 | H109: 1
D111: ='Matriz VERDE-GBCe'!V59 -> CE 07 | E111: =VLOOKUP(D111,'Matriz VERDE-GBCe'!$V$6:W$59,2,FALSE) -> Certificaciones voluntarias de edificios | F111: =VLOOKUP(D111,'Matriz VERDE-GBCe'!$V$6:AX$59,3,FALSE) -> 0 | H111: 1
B114: ='Matriz VERDE-GBCe'!U42 -> AS | D114: ='Matriz VERDE-GBCe'!V42 -> Aspectos sociales | F114: =SUM(F119:F135) -> 0.1671543714
C116: Medidas
D119: ='Matriz VERDE-GBCe'!V43 -> AS 01 | E119: =VLOOKUP(D119,'Matriz VERDE-GBCe'!$V$6:W$59,2,FALSE) -> Espacios para todas las personas | F119: =VLOOKUP(D119,'Matriz VERDE-GBCe'!$V$6:AX$59,3,FALSE) -> 0.0182760922 | H119: 1
D121: ='Matriz VERDE-GBCe'!V44 -> AS 02 | E121: =VLOOKUP(D121,'Matriz VERDE-GBCe'!$V$6:W$59,2,FALSE) -> Espacios para la comunicación | F121: =VLOOKUP(D121,'Matriz VERDE-GBCe'!$V$6:AX$55,3,FALSE) -> 0.01760870681 | H121: 1
D123: ='Matriz VERDE-GBCe'!V45 -> AS 03 | E123: =VLOOKUP(D123,'Matriz VERDE-GBCe'!$V$6:W$59,2,FALSE) -> Derecho al sol | F123: =VLOOKUP(D123,'Matriz VERDE-GBCe'!$V$6:AX$55,3,FALSE) -> 0.01660762873 | H123: 1
D125: ='Matriz VERDE-GBCe'!V46 -> AS 04 | E125: =VLOOKUP(D125,'Matriz VERDE-GBCe'!$V$6:W$59,2,FALSE) -> Derecho a la intimidad | F125: =VLOOKUP(D125,'Matriz VERDE-GBCe'!$V$6:AX$55,3,FALSE) -> 0.01601724935 | H125: 1
D127: ='Matriz VERDE-GBCe'!V47 -> AS 05 | E127: =VLOOKUP(D127,'Matriz VERDE-GBCe'!$V$6:W$59,2,FALSE) -> Contacto visual con el exterior | F127: =VLOOKUP(D127,'Matriz VERDE-GBCe'!$V$6:AX$55,3,FALSE) -> 0.01701832743 | H127: 1
D129: ='Matriz VERDE-GBCe'!V48 -> AS 06 | E129: =VLOOKUP(D129,'Matriz VERDE-GBCe'!$V$6:W$59,2,FALSE) -> Espacios abiertos privados | F129: =VLOOKUP(D129,'Matriz VERDE-GBCe'!$V$6:AX$55,3,FALSE) -> 0.01735202012 | H129: 1
D131: ='Matriz VERDE-GBCe'!V49 -> AS 07 | E131: =VLOOKUP(D131,'Matriz VERDE-GBCe'!$V$6:W$59,2,FALSE) -> Diseño inclusivo | F131: =VLOOKUP(D131,'Matriz VERDE-GBCe'!$V$6:AX$55,3,FALSE) -> 0.01976487499 | H131: 1
D133: ='Matriz VERDE-GBCe'!V50 -> AS 08 | E133: =VLOOKUP(D133,'Matriz VERDE-GBCe'!$V$6:W$59,2,FALSE) -> Conexión con la naturaleza | F133: =VLOOKUP(D133,'Matriz VERDE-GBCe'!$V$6:AX$55,3,FALSE) -> 0.02605369886 | H133: 1
D135: ='Matriz VERDE-GBCe'!V51 -> AS 09 | E135: =VLOOKUP(D135,'Matriz VERDE-GBCe'!$V$6:W$59,2,FALSE) -> El edificio como herramienta de comunicación | F135: =VLOOKUP(D135,'Matriz VERDE-GBCe'!$V$6:AX$55,3,FALSE) -> 0.01845577288 | H135: 1
F142: =F5+F29+F47+F78+F94+F114 -> 1
F143: =SUM(F5:F139)/2 -> 1
F144: 1

Sheet PRE
B2: VERDE Edificios 2020 (Residencial privado) Nueva Edificación, Rehabilitación, Edificio Existente y Mixto | Y2: SEGURO | Z2: SÍ
B3: PRE-EVALUACIÓN | Y3: PROBABLE | Z3: NO
Y4: DUDOSO
B5: ='Matriz VERDE-GBCe'!U6 -> PE | D5: ='Matriz VERDE-GBCe'!V6 -> Parcela y emplazamiento | O5: Valoración total | Q5: ='Matriz VERDE-GBCe'!X6 -> 0.1524462241 | Y5: NO CUMPLE
Y6: NO APLICA
D8: ='Matriz VERDE-GBCe'!V7 -> PE 01 | E8: =VLOOKUP($D8,'Matriz VERDE-GBCe'!$V$6:$AH$55,2,FALSE) -> Proximidad al transporte publico. | O8: =VLOOKUP($D8,'Matriz VERDE-GBCe'!$V$6:$AH$55,3,FALSE) -> 0.01429744853 | Y8: Target | Z8: SEGURO | AB8: PROBABLE | AD8: DUDOSO | AF8: NO CUMPLE | AH8: NO APLICA
D10: Se cumple con el número de líneas determinado en el radio correspondiente | Y10: 1 | Z10: =+IF($Q10="seguro",$Y10,0) -> 0 | AB10: =+IF($Q10="probable",$Y10,0) -> 0 | AD10: =+IF($Q10="dudoso",$Y10,0) -> 0 | AF10: =+IF($Q10="NO CUMPLE",$Y10,0) -> 0 | AH10: =+IF($Q10="no aplica",2,0) -> 0
D11: Valoración obtenida: | H11: SEGURO | J11: PROBABLE | L11: DUDOSO | Y11: =SUM(Y9:Y10) -> 1 | Z11: =IF($O8="",0,SUM(Z9:Z10)*$O8/$Y11) -> 0 | AB11: =IF($O8="",0,SUM(AB9:AB10)*$O8/$Y11) -> 0 | AD11: =IF($O8="",0,SUM(AD9:AD10)*$O8/$Y11) -> 0 | AF11: =IF($O8="",0,SUM(AF9:AF10)*$O8/$Y11) -> 0
H12: =Z11 -> 0 | J12: =AB11 -> 0 | L12: =AD11 -> 0
D15: ='Matriz VERDE-GBCe'!V8 -> PE 02 | E15: =VLOOKUP($D15,'Matriz VERDE-GBCe'!$V$6:$AH$55,2,FALSE) -> Proximidad a equipamiento y servicios. | O15: =VLOOKUP($D15,'Matriz VERDE-GBCe'!$V$6:$AH$55,3,FALSE) -> 0.01347605113 | Y15: Target | Z15: SEGURO | AB15: PROBABLE | AD15: DUDOSO | AF15: NO CUMPLE | AH15: NO APLICA
D17: Se cumple con el número de equipamientos determinados en el radio correspondiente | Y17: 1 | Z17: =+IF($Q17="seguro",$Y17,0) -> 0 | AB17: =+IF($Q17="probable",$Y17,0) -> 0 | AD17: =+IF($Q17="dudoso",$Y17,0) -> 0 | AF17: =+IF($Q17="NO CUMPLE",$Y17,0) -> 0 | AH17: =+IF($Q17="no aplica",2,0) -> 0
D18: Valoración obtenida: | H18: SEGURO | J18: PROBABLE | L18: DUDOSO | Y18: =SUM(Y17:Y17) -> 1 | Z18: =IF($O15="",0,SUM(Z16:Z17)*$O15/$Y18) -> 0 | AB18: =IF($O15="",0,SUM(AB16:AB17)*$O15/$Y18) -> 0 | AD18: =IF($O15="",0,SUM(AD16:AD17)*$O15/$Y18) -> 0 | AF18: =IF($O15="",0,SUM(AF16:AF17)*$O15/$Y18) -> 0
H19: =Z18 -> 0 | J19: =AB18 -> 0 | L19: =AD18 -> 0
D22: ='Matriz VERDE-GBCe'!V9 -> PE 03 | E22: =VLOOKUP($D22,'Matriz VERDE-GBCe'!$V$6:$AH$55,2,FALSE) -> Facilidades para la bicicleta. | O22: =VLOOKUP($D22,'Matriz VERDE-GBCe'!$V$6:$AH$55,3,FALSE) -> 0.0162996047
D24: =IF(DG!$E$31="","",DG!$E$31) ->  | Y24: Target | Z24: SEGURO | AB24: PROBABLE | AD24: DUDOSO | AF24: NO CUMPLE | AH24: NO APLICA
D26: Se cumple con el número de aparcabicis determinado y las medidas de seguridad para los elementos y el emplazamiento de los mismos | Y26: 1 | Z26: =+IF($Q26="seguro",$Y26,0) -> 0 | AB26: =+IF($Q26="probable",$Y26,0) -> 0 | AD26: =+IF($Q26="dudoso",$Y26,0) -> 0 | AF26: =+IF($Q26="NO CUMPLE",$Y26,0) -> 0 | AH26: =+IF($Q26="no aplica",2,0) -> 0
D29: No se dispone espacio libre en la parcela o espacio de aparcamiento pero existe un aparcamiento para bicicletas en vía pública a menos de 300 m | Y29: 0.5 | Z29: =+IF($Q29="seguro",$Y29,0) -> 0 | AB29: =+IF($Q29="probable",$Y29,0) -> 0 | AD29: =+IF($Q29="dudoso",$Y29,0) -> 0 | AF29: =+IF($Q29="NO CUMPLE",$Y29,0) -> 0
D31: Valoración obtenida: | H31: SEGURO | J31: PROBABLE | L31: DUDOSO | Y31: =SUM(Y26:Y26) -> 1 | Z31: =IF($O22="",0,MAX(Z25:Z30)*$O22) -> 0 | AB31: =IF($O22="",0,MAX(AB25:AB30)*$O22) -> 0 | AD31: =IF($O22="",0,MAX(AD25:AD30)*$O22) -> 0 | AF31: =IF($O22="",0,MAX(AF25:AF30)*$O22) -> 0
H32: =Z31 -> 0 | J32: =AB31 -> 0 | L32: =AD31 -> 0
D35: ='Matriz VERDE-GBCe'!V10 -> PE 04 | E35: =VLOOKUP($D35,'Matriz VERDE-GBCe'!$V$6:$AH$55,2,FALSE) -> Capacidad de carga de vehículos eléctricos. | O35: =VLOOKUP($D35,'Matriz VERDE-GBCe'!$V$6:$AH$55,3,FALSE) -> 0.01601724935
D37: =IF(DG!$E$29=0,"",DG!$E$29) ->  | Y37: El porcentaje de plazas con recarga para vehículos eléctricos es superior al | Z37: =IF(D39="Nueva edificación","20%","10%") -> 10% | AA37: con,al menos, 2 plazas.
D39: =IF(DG!$E$31=0,"",DG!$E$31) ->  | Y39: Target | Z39: SEGURO | AB39: PROBABLE | AD39: DUDOSO | AF39: NO CUMPLE | AH39: NO APLICA
D41: NOTA: Este criterio se evalúa por fórmulas lineales, la puntuación puede variar en la evaluación final. Ver la guía.
D43: ¿Todas las plazas de aparcamiento sin carga cuentan con una preinstalación de carga para vehículos?
D45: El porcentaje de plazas con carga para vehículos eléctricos es igula o superior al 35% con,al menos, 2 plazas. | Y45: 0.5 | Z45: =+IF($Q45="seguro",$Y45,0) -> 0 | AB45: =+IF($Q45="probable",$Y45,0) -> 0 | AD45: =+IF($Q45="dudoso",$Y45,0) -> 0 | AF45: =+IF($Q45="NO CUMPLE",$Y45,0) -> 0 | AH45: =+IF($Q45="no aplica",2,0) -> 0
D47: El porcentaje de plazas con carga para vehículos eléctricos es igula o superior al 50% con,al menos, 2 plazas. | Y47: 0.5 | Z47: =+IF($Q47="seguro",$Y47,0) -> 0 | AB47: =+IF($Q47="probable",$Y47,0) -> 0 | AD47: =+IF($Q47="dudoso",$Y47,0) -> 0 | AF47: =+IF($Q47="NO CUMPLE",$Y47,0) -> 0 | AH47: =+IF($Q47="no aplica",2,0) -> 0
D48: Valoración obtenida: | H48: SEGURO | J48: PROBABLE | L48: DUDOSO | Y48: =SUM(Y45:Y47) -> 1 | Z48: =IF($O35="",0,SUM(Z42:Z47)*$O35) -> 0 | AB48: =IF($O35="",0,SUM(AB42:AB47)*$O35) -> 0 | AD48: =IF($O35="",0,SUM(AD42:AD47)*$O35) -> 0 | AF48: =IF($O35="",0,SUM(AF42:AF47)*$O35) -> 0
H49: =IF(Q43="Seguro",Z48,0) -> 0 | I49: =IF(R43="Seguro",AA48,0) -> 0 | J49: =IF(Q43="Seguro",AB48,0) -> 0 | K49: =IF(R43="Seguro",AC48,0) -> 0 | L49: =IF(Q43="Seguro",AD48,0) -> 0
D52: ='Matriz VERDE-GBCe'!V11 -> PE 05 | E52: =VLOOKUP($D52,'Matriz VERDE-GBCe'!$V$6:$AH$55,2,FALSE) -> Clasificación de RSU. | O52: =VLOOKUP($D52,'Matriz VERDE-GBCe'!$V$6:$AH$55,3,FALSE) -> 0.01129421428 | W52: =IF(DG!E29="Unifamiliar","Uni",IF(DG!E29="Multi-residencial","Res","")) ->  | Y52: Target | Z52: SEGURO | AB52: PROBABLE | AD52: DUDOSO | AF52: NO CUMPLE | AH52: NO APLICA | AJ52: =IF(DG!E31="","",IF(DG!E31="rehabilitación","RH","NE")) ->  | AK52: =IF(DG!E29="unifamiliar","Uni", "Res") -> Res
D54: =IF(DG!$E$29=0,"",DG!$E$29) ->  | Y54: El porcentaje de plazas con recarga para vehículos eléctricos es superior al | Z54: =IF(D56="Nueva edificación","20%","10%") -> 10% | AA54: con,al menos, 2 plazas.
D56: Se cumplen las condiciones del almacén contenedores de residuos | Y56: 0.5 | Z56: =+IF($Q56="seguro",$Y56,0) -> 0 | AB56: =+IF($Q56="probable",$Y56,0) -> 0 | AD56: =+IF($Q56="dudoso",$Y56,0) -> 0 | AF56: =+IF($Q56="NO CUMPLE",$Y56,0) -> 0 | AH56: =+IF($Q56="no aplica",2,0) -> 0 | AK56: =IF(AK52="uni",0.35,IF(AJ52="ne",0.3,IF(AJ52="rh",0.4,0))) -> 0
AK57: =IF(AK52="uni",0.35,IF(AJ52="ne",0.2,IF(AJ52="rh",0.2,0))) -> 0
D58: Existe un sistema de revalorización de los residuos producidos en la parcela | Y58: 0.25 | Z58: =+IF($Q58="seguro",$Y58,0) -> 0 | AB58: =+IF($Q58="probable",$Y58,0) -> 0 | AD58: =+IF($Q58="dudoso",$Y58,0) -> 0 | AF58: =+IF($Q58="NO CUMPLE",$Y58,0) -> 0 | AH58: =+IF($Q58="no aplica",2,0) -> 0 | AK58: =IF(AK52="uni",0,IF(AJ52="ne",0.3,IF(AJ52="rh",0.2,0))) -> 0
D60: Se cumplen otras medidas de reducción, clasificación o gestión de residuos | Y60: 0.25 | Z60: =+IF($Q60="seguro",$Y60,0) -> 0 | AB60: =+IF($Q60="probable",$Y60,0) -> 0 | AD60: =+IF($Q60="dudoso",$Y60,0) -> 0 | AF60: =+IF($Q60="NO CUMPLE",$Y60,0) -> 0 | AH60: =+IF($Q60="no aplica",2,0) -> 0
D61: Valoración obtenida: | H61: SEGURO | J61: PROBABLE | L61: DUDOSO | Y61: =SUM(Y56:Y60) -> 1 | Z61: =IF($O52="",0,SUM(Z56:Z60)*$O52/Y61) -> 0 | AB61: =IF($O52="",0,SUM(AB56:AB60)*$O52/$Y61) -> 0 | AD61: =IF($O52="",0,SUM(AD56:AD60)*$O52/$Y61) -> 0 | AF61: =IF($O52="",0,SUM(AF56:AF60)*$O52/$Y61) -> 0
H62: =Z61 -> 0 | J62: =AB61 -> 0 | L62: =AD61 -> 0
D65: ='Matriz VERDE-GBCe'!V12 -> PE 06 | E65: =VLOOKUP($D65,'Matriz VERDE-GBCe'!$V$6:$AH$55,2,FALSE) -> Gestión y Restauración del hábitat. | O65: =VLOOKUP($D65,'Matriz VERDE-GBCe'!$V$6:$AH$55,3,FALSE) -> 0.02281944658 | Y65: Target | Z65: SEGURO | AB65: PROBABLE | AD65: DUDOSO | AF65: NO CUMPLE | AH65: NO APLICA
D67: NOTA: Este criterio se evalúa por fórmulas lineales, la puntuación puede variar en la evaluación final. Ver la guía.
D69: El porcentaje de superficie ajardinada ocupado por plantas autóctonas es superior al 50 % | Y69: 0.5 | Z69: =+IF($Q69="seguro",$Y69,0) -> 0 | AB69: =+IF($Q69="probable",$Y69,0) -> 0 | AD69: =+IF($Q69="dudoso",$Y69,0) -> 0 | AF69: =+IF($Q69="NO CUMPLE",$Y69,0) -> 0 | AH69: =+IF($Q69="no aplica",2,0) -> 0
D71: El porcentaje de superficie ajardinada ocupado por plantas autóctonas es superior al 75% | Y71: 1 | Z71: =+IF($Q71="seguro",$Y71,0) -> 0 | AB71: =+IF($Q71="probable",$Y71,0) -> 0 | AD71: =+IF($Q71="dudoso",$Y71,0) -> 0 | AF71: =+IF($Q71="NO CUMPLE",$Y71,0) -> 0 | AH71: =+IF($Q71="no aplica",2,0) -> 0
D72: Valoración obtenida: | H72: SEGURO | J72: PROBABLE | L72: DUDOSO | Y72: =MAX(Y68:Y71) -> 1 | Z72: =IF($O65="",0,MAX(Z69:Z71)*$O65/$Y72) -> 0 | AB72: =IF($O65="",0,MAX(AB69:AB71)*$O65/$Y72) -> 0 | AD72: =IF($O65="",0,MAX(AD69:AD71)*$O65/$Y72) -> 0 | AF72: =IF($O65="",0,MAX(AF69:AF71)*$O65/$Y72) -> 0
H73: =Z72 -> 0 | J73: =AB72 -> 0 | L73: =AD72 -> 0
E75: =VLOOKUP($D76,'Matriz VERDE-GBCe'!$V$6:$AH$55,2,FALSE) -> Uso de plantas para crear sombras.
D76: ='Matriz VERDE-GBCe'!V13 -> PE 07 | O76: =VLOOKUP($D76,'Matriz VERDE-GBCe'!$V$6:$AH$55,3,FALSE) -> 0.01812208019 | Y76: Target | Z76: SEGURO | AB76: PROBABLE | AD76: DUDOSO | AF76: NO CUMPLE | AH76: NO APLICA
D78: NOTA: Este criterio se evalúa por fórmulas lineales, la puntuación puede variar en la evaluación final. Ver la guía.
D80: Se cumplen los requisitos de sombreamiento para la fachada oeste | Y80: 0.4 | Z80: =+IF($Q80="seguro",$Y80,0) -> 0 | AB80: =+IF($Q80="probable",$Y80,0) -> 0 | AD80: =+IF($Q80="dudoso",$Y80,0) -> 0 | AF80: =+IF($Q80="NO CUMPLE",$Y80,0) -> 0 | AH80: =+IF($Q80="no aplica",2,0) -> 0
D82: Se cumplen los requisitos de sombreamiento de la fachada oeste | Y82: 0.3 | Z82: =+IF($Q82="seguro",$Y82,0) -> 0 | AB82: =+IF($Q82="probable",$Y82,0) -> 0 | AD82: =+IF($Q82="dudoso",$Y82,0) -> 0 | AF82: =+IF($Q82="NO CUMPLE",$Y82,0) -> 0 | AH82: =+IF($Q82="no aplica",2,0) -> 0
D84: Se cumplen los requisitos de sombreamiento de la fachada sur | Y84: 0.3 | Z84: =+IF($Q84="seguro",$Y84,0) -> 0 | AB84: =+IF($Q84="probable",$Y84,0) -> 0 | AD84: =+IF($Q84="dudoso",$Y84,0) -> 0 | AF84: =+IF($Q84="NO CUMPLE",$Y84,0) -> 0
D85: Valoración obtenida: | H85: SEGURO | J85: PROBABLE | L85: DUDOSO | Y85: =SUM(Y80:Y84) -> 1 | Z85: =IF($O76="",0,SUM(Z80:Z84)*$O76/$Y85) -> 0 | AB85: =IF($O76="",0,SUM(AB80:AB84)*$O76/$Y85) -> 0 | AD85: =IF($O76="",0,SUM(AD80:AD84)*$O76/$Y85) -> 0 | AF85: =IF($O76="",0,SUM(AF80:AF84)*$O76/$Y85) -> 0
H86: =Z85 -> 0 | J86: =AB85 -> 0 | L86: =AD85 -> 0
D89: ='Matriz VERDE-GBCe'!V14 -> PE 08 | E89: =VLOOKUP($D89,'Matriz VERDE-GBCe'!$V$6:$AH$55,2,FALSE) -> Efecto isla de calor. | O89: =VLOOKUP($D89,'Matriz VERDE-GBCe'!$V$6:$AH$55,3,FALSE) -> 0.02043226038 | Y89: Target | Z89: SEGURO | AB89: PROBABLE | AD89: DUDOSO | AF89: NO CUMPLE | AH89: NO APLICA
D91: NOTA: Este criterio se evalúa por fórmulas lineales, la puntuación puede variar en la evaluación final. Ver la guía.
D93: El porcentaje de superficie libre de parcela más cubierta que evita la isla de calor es superior al 70% | Y93: 0.7 | Z93: =+IF($Q93="seguro",$Y93,0) -> 0 | AB93: =+IF($Q93="probable",$Y93,0) -> 0 | AD93: =+IF($Q93="dudoso",$Y93,0) -> 0 | AF93: =+IF($Q93="NO CUMPLE",$Y93,0) -> 0 | AH93: =+IF($Q93="no aplica",2,0) -> 0
D95: El porcentaje de superficie de fachadas este, sur y oeste que evita la isla de calor es superior al 70% | Y95: 0.3 | Z95: =+IF($Q95="seguro",$Y95,0) -> 0 | AB95: =+IF($Q95="probable",$Y95,0) -> 0 | AD95: =+IF($Q95="dudoso",$Y95,0) -> 0 | AF95: =+IF($Q95="NO CUMPLE",$Y95,0) -> 0 | AH95: =+IF($Q95="no aplica",2,0) -> 0
D96: Valoración obtenida: | H96: SEGURO | J96: PROBABLE | L96: DUDOSO | Y96: =SUM(Y93:Y95) -> 1 | Z96: =IF($O89="",0,SUM(Z93:Z95)*$O89/$Y96) -> 0 | AB96: =IF($O89="",0,SUM(AB93:AB95)*$O89/$Y96) -> 0 | AD96: =IF($O89="",0,SUM(AD93:AD95)*$O89/$Y96) -> 0 | AF96: =IF($O89="",0,SUM(AF93:AF95)*$O89/$Y96) -> 0
H97: =Z96 -> 0 | J97: =AB96 -> 0 | L97: =AD96 -> 0
D100: ='Matriz VERDE-GBCe'!V15 -> PE 09 | E100: =VLOOKUP($D100,'Matriz VERDE-GBCe'!$V$6:$AH$55,2,FALSE) -> Contaminación lumínica. | O100: =VLOOKUP($D100,'Matriz VERDE-GBCe'!$V$6:$AH$55,3,FALSE) -> 0.01968786899 | Y100: Target | Z100: SEGURO | AB100: PROBABLE | AD100: DUDOSO | AF100: NO CUMPLE | AH100: NO APLICA
D102: El FHS mayor de las luminarias instaladas reduce en más de un 55 % el de la zona de protección lumínica del proyecto | Y102: 1 | Z102: =+IF($Q102="seguro",$Y102,0) -> 0 | AB102: =+IF($Q102="probable",$Y102,0) -> 0 | AD102: =+IF($Q102="dudoso",$Y102,0) -> 0 | AF102: =+IF($Q102="NO CUMPLE",$Y102,0) -> 0 | AH102: =+IF($Q102="no aplica",2,0) -> 0
D104: Valoración obtenida: | H104: SEGURO | J104: PROBABLE | L104: DUDOSO | Y104: =SUM(Y102:Y102) -> 1 | Z104: =IF($O100="",0,SUM(Z102:Z102)*$O100/$Y104) -> 0 | AB104: =IF($O100="",0,SUM(AB102:AB102)*$O100/$Y104) -> 0 | AD104: =IF($O100="",0,SUM(AD102:AD102)*$O100/$Y104) -> 0 | AF104: =IF($O100="",0,SUM(AF102:AF102)*$O100/$Y104) -> 0
H105: =Z104 -> 0 | J105: =AB104 -> 0 | L105: =AD104 -> 0
F107: SEGURO | H107: PROBABLE | J107: DUDOSO | L107: NO CUMPLE
C109: SUBTOTAL PE | F109: =H12+H19+H32+H49+H62+H73+H86+H97+H105 -> 0 | G109: =I12+I19+I32+I49+I62+I73+I86+I97+I105 -> 0 | H109: =J12+J19+J32+J49+J62+J73+J86+J97+J105 -> 0 | I109: =K12+K19+K32+K49+K62+K73+K86+K97+K105 -> 0 | J109: =L12+L19+L32+L49+L62+L73+L86+L97+L105 -> 0 | L109: =$AF11+$AF18+$AF31+$AF61+$AF72+$AF85+$AF96+$AF104+AF48 -> 0
B112: EA | D112: ENERGÍA Y ATMÓSFERA | O112: Valoración total
D116: ='Matriz VERDE-GBCe'!V18 -> EA 01 | E116: =VLOOKUP($D116,'Matriz VERDE-GBCe'!$V$6:$AH$55,2,FALSE) -> Consumo de energía primaria | O116: =VLOOKUP($D116,'Matriz VERDE-GBCe'!$V$6:$AH$55,3,FALSE) -> 0.075414549 | W116: =IF(D118="Nueva Edificación","NE","RH") -> RH
D118: =IF(DG!$E$31=0,"",DG!$E$31) ->  | Y118: Target | Z118: SEGURO | AB118: PROBABLE | AD118: DUDOSO | AF118: NO CUMPLE | AH118: NO APLICA
D120: Consumo límite de enrgía primaria no renovable | Y120: 0.1 | Z120: =+IF($Q122="seguro",$Y120,0) -> 0 | AB120: =+IF($Q122="probable",$Y120,0) -> 0 | AD120: =+IF($Q122="dudoso",$Y120,0) -> 0 | AF120: =+IF($Q122="NO CUMPLE",$Y120,0) -> 0 | AH120: =+IF($Q120="no aplica",2,0) -> 0
D122: =IF($W116="NE","El consumo de energía primaria no renovable previsto en el proyecto reduce en mas de un 30 % al consumo energía primaria no renovable límite fijado por el DB HE 0","El consumo de energía primaria no renovable previsto en el proyecto reduce en mas de un 15 % al consumo energía primaria no renovable límite fijado por el DB HE 0") -> El consumo de energía primaria no renovable previsto en el proyecto reduce en mas de un 15 % al consumo energía primaria no renovable límite fijado por el DB HE 0
Y123: 0.3 | Z123: =+IF($Q125="seguro",$Y123,0) -> 0 | AB123: =+IF($Q125="probable",$Y123,0) -> 0 | AD123: =+IF($Q125="dudoso",$Y123,0) -> 0 | AF123: =+IF($Q125="NO CUMPLE",$Y123,0) -> 0 | AH123: =+IF($Q123="no aplica",2,0) -> 0
D125: =IF($W116="NE","El consumo de energía primaria no renovable previsto en el proyecto reduce en mas de un 60 % al consumo energía primaria no renovable límite fijado por el DB HE 0","El consumo de energía primaria no renovable previsto en el proyecto reduce en mas de un 30 % al consumo energía primaria no renovable límite fijado por el DB HE 0") -> El consumo de energía primaria no renovable previsto en el proyecto reduce en mas de un 30 % al consumo energía primaria no renovable límite fijado por el DB HE 0
Y126: 0.6 | Z126: =+IF($Q128="seguro",$Y126,0) -> 0 | AB126: =+IF($Q128="probable",$Y126,0) -> 0 | AD126: =+IF($Q128="dudoso",$Y126,0) -> 0 | AF126: =+IF($Q128="NO CUMPLE",$Y126,0) -> 0 | AH126: =+IF($Q126="no aplica",2,0) -> 0
D128: =IF($W116="NE","El consumo de energía primaria no renovable previsto en el proyecto reduce en mas de un 90 % al consumo energía primaria no renovable límite fijado por el DB HE 0","El consumo de energía primaria no renovable previsto en el proyecto reduce en mas de un 45 % al consumo energía primaria no renovable límite fijado por el DB HE 0") -> El consumo de energía primaria no renovable previsto en el proyecto reduce en mas de un 45 % al consumo energía primaria no renovable límite fijado por el DB HE 0
Y129: =SUM(Y120:Y128) -> 1 | Z129: =IF($O116="",0,SUM(Z119:Z128)*$O116) -> 0 | AB129: =IF($O114="",0,SUM(AB119:AB128)*$O114) -> 0 | AD129: =IF($O114="",0,SUM(AD120:AD128)*$O114) -> 0 | AF129: =IF($O114="",0,SUM(AF120:AF128)*$O114) -> 0
D131: Consumo límite de enrgía primaria total | Y131: Target | Z131: SEGURO | AB131: PROBABLE | AD131: DUDOSO | AF131: NO CUMPLE | AH131: NO APLICA
D133: El consumo de energía primaria total previsto en el proyecto reduce en mas de un 5 % al consumo energía primaria total límite fijado por el DB HE 0 | Y133: 0.1 | Z133: =+IF($Q133="seguro",$Y133,0) -> 0 | AB133: =+IF($Q133="probable",$Y133,0) -> 0 | AD133: =+IF($Q133="dudoso",$Y133,0) -> 0 | AF133: =+IF($Q133="NO CUMPLE",$Y133,0) -> 0 | AH133: =+IF($Q133="no aplica",2,0) -> 0
D136: El consumo de energía primaria total previsto en el proyecto reduce en mas de un 15 % al consumo energía primaria total límite fijado por el DB HE 0 | Y136: 0.3 | Z136: =+IF($Q136="seguro",$Y136,0) -> 0 | AB136: =+IF($Q136="probable",$Y136,0) -> 0 | AD136: =+IF($Q136="dudoso",$Y136,0) -> 0 | AF136: =+IF($Q136="NO CUMPLE",$Y136,0) -> 0 | AH136: =+IF($Q136="no aplica",2,0) -> 0
D139: El consumo de energía primaria total previsto en el proyecto reduce en mas de un 25 % al consumo energía primaria total límite fijado por el DB HE 0 | Y139: 0.6 | Z139: =+IF($Q139="seguro",$Y139,0) -> 0 | AB139: =+IF($Q139="probable",$Y139,0) -> 0 | AD139: =+IF($Q139="dudoso",$Y139,0) -> 0 | AF139: =+IF($Q139="NO CUMPLE",$Y139,0) -> 0 | AH139: =+IF($Q139="no aplica",2,0) -> 0
D142: El consumo de energía primaria total de calefacción y/o refrigeración es inferior a 15kWh/m2, se aporta ensayo Blower door cumpliendo las especificaciones ddel criterio | Y142: =SUM(Y133:Y140) -> 1 | Z142: =IF($O116="",0,SUM(Z132:Z141)*$O116) -> 0 | AB142: =IF($O116="",0,SUM(AB132:AB141)*$O116) -> 0 | AD142: =IF($O116="",0,SUM(AD132:AD141)*$O116) -> 0 | AF142: =IF($O116="",0,SUM(AF132:AF141)*$O116) -> 0
Z144: =IF(Q142="",(0.5*Z129+0.5*Z142),Z145) -> 0 | AB144: =IF(Q142="",(0.4*AB129+0.4*AB142),AB145) -> 0 | AD144: =IF(Q142="",(0.4*AD129+0.4*AD142),AD145) -> 0 | AF144: =IF(Q142="",(0.4*AF129+0.4*AF142),AF145) -> 0
D145: Valoración obtenida: | H145: SEGURO | J145: PROBABLE | L145: DUDOSO | Z145: =+IF($Q142="seguro",$O116,(0.5*Z129+0.5*Z142)*0.9) -> 0 | AB145: =+IF($Q142="probable",$O116,(0.5*AB129+0.5*AB142)*0.9) -> 0 | AD145: =+IF($Q142="dudoso",$O116,(0.5*AD129+0.5*AD142)*0.9) -> 0 | AF145: =+IF($Q142="no cumple",$O116,(0.5*AF129+0.5*AF142)*0.9) -> 0
H146: =Z144 -> 0 | J146: =AB144 -> 0 | L146: =AD144 -> 0
D149: ='Matriz VERDE-GBCe'!V19 -> EA 02 | E149: =VLOOKUP($D149,'Matriz VERDE-GBCe'!$V$6:$AH$55,2,FALSE) -> Generación distribuida | O149: =VLOOKUP($D149,'Matriz VERDE-GBCe'!$V$6:$AH$55,3,FALSE) -> 0.04851378408 | W149: =IF(OR(D150="Nueva Edificación",D150="Rehabilitación"),"NE","EE") -> EE
D150: =IF(DG!$E$31=0,"",DG!$E$31) ->  | Y150: Target | Z150: SEGURO | AB150: PROBABLE | AD150: DUDOSO | AF150: NO CUMPLE | AH150: NO APLICA
D152: =IF(W149="NE","La producción de energía renovable en la parcela es mas de un 30 % respecto de los límites fijados en el criterio", "La producción de energía renovable en la parcela, es mas de un 70 % respecto del estudio de potencial de renovables del edificio") -> La producción de energía renovable en la parcela, es mas de un 70 % respecto del estudio de potencial de renovables del edificio | Y152: 0.1 | Z152: =+IF($Q152="seguro",$Y152,0) -> 0 | AB152: =+IF($Q152="probable",$Y152,0) -> 0 | AD152: =+IF($Q152="dudoso",$Y152,0) -> 0 | AF152: =+IF($Q152="NO CUMPLE",$Y152,0) -> 0 | AH152: =+IF($Q152="no aplica",2,0) -> 0
D155: =IF(W149="NE","La producción de energía renovable en la parcela es mas de un 60 % respecto de los límites fijados en el criterio", "La producción de energía renovable en la parcela, es mas de un 80 % respecto del estudio de potencial de renovables del edificio") -> La producción de energía renovable en la parcela, es mas de un 80 % respecto del estudio de potencial de renovables del edificio | Y155: 0.3 | Z155: =+IF($Q155="seguro",$Y155,0) -> 0 | AB155: =+IF($Q155="probable",$Y155,0) -> 0 | AD155: =+IF($Q155="dudoso",$Y155,0) -> 0 | AF155: =+IF($Q155="NO CUMPLE",$Y155,0) -> 0 | AH155: =+IF($Q155="no aplica",2,0) -> 0
D158: =IF(W149="NE","La producción de energía renovable en la parcela es mas de un 90 % respecto de los límites fijados en el criterio", "La producción de energía renovable en la parcela, es mas de un 90 % respecto del estudio de potencial de renovables del edificio") -> La producción de energía renovable en la parcela, es mas de un 90 % respecto del estudio de potencial de renovables del edificio | Y158: 0.6 | Z158: =+IF($Q158="seguro",$Y158,0) -> 0 | AB158: =+IF($Q158="probable",$Y158,0) -> 0 | AD158: =+IF($Q158="dudoso",$Y158,0) -> 0 | AF158: =+IF($Q158="NO CUMPLE",$Y158,0) -> 0 | AH158: =+IF($Q158="no aplica",2,0) -> 0
D160: Se prevée que la generación de energía renovable en la parcela sea superior a la energía primaria total límite fijada en el DB HE 0 para el edificio | Y160: =SUM(Y152:Y159) -> 1 | Z160: =IF($O149="",0,IF(W149="NE",(SUM(Z152:Z159)*$O149*0.8),(SUM(Z152:Z159)*$O149))) -> 0 | AB160: =IF($O149="",0,SUM(AB152:AB159)*$O149*0.8) -> 0 | AD160: =IF($O149="",0,SUM(AD152:AD159)*$O149*0.8) -> 0 | AF160: =IF($O149="",0,SUM(AF152:AF159)*$O149*0.8) -> 0
Z162: =+IF(AND($Q160="seguro",W149="NE"),$O149*0.2,0) -> 0 | AB162: =+IF($Q160="probable",$O149*0.2,0) -> 0 | AD162: =+IF($Q160="provable",$O149*0.2,0) -> 0 | AF162: =+IF($Q160="no cumple",$O149*0.2,0) -> 0
D163: Valoración obtenida: | H163: SEGURO | J163: PROBABLE | L163: DUDOSO | Z163: =IF((Z160+Z162)>O149,O149,(Z160+Z162)) -> 0 | AB163: =AB160+AB162 -> 0 | AD163: 0 | AF163: 0
H164: =Z163 -> 0 | J164: =AB163 -> 0 | L164: =AD163 -> 0
D167: ='Matriz VERDE-GBCe'!V20 -> EA 03 | E167: =VLOOKUP($D167,'Matriz VERDE-GBCe'!$V$6:$AH$55,2,FALSE) -> Consumo en zonas comunes | O167: =VLOOKUP($D167,'Matriz VERDE-GBCe'!$V$6:$AH$55,3,FALSE) -> 0.02541198213 | Y167: Target | Z167: SEGURO | AB167: PROBABLE | AD167: DUDOSO | AF167: NO CUMPLE | AH167: NO APLICA
D169: El ascensor cuenta con una clasificación, al menos B, según la norma UNE 25745-2 | W169: 0.25 | X169: =IF(AH169=2,0,W169) -> 0.25 | Y169: =X169/X$184 -> 0.25 | Z169: =+IF($Q169="seguro",$Y169,0) -> 0 | AB169: =+IF($Q169="probable",$Y169,0) -> 0 | AD169: =+IF($Q169="dudoso",$Y169,0) -> 0 | AF169: =+IF($Q169="NO CUMPLE",$Y169,0) -> 0 | AH169: =+IF($Q169="no aplica",2,0) -> 0
D171: La iluminación de la cabina del ascensor se realiza con leds y dispone de detectores de presencia | W171: 0.25 | X171: =IF(AH171=2,0,W171) -> 0.25 | Y171: =X171/X$184 -> 0.25 | Z171: =+IF($Q171="seguro",$Y171,0) -> 0 | AB171: =+IF($Q171="probable",$Y171,0) -> 0 | AD171: =+IF($Q171="dudoso",$Y171,0) -> 0 | AF171: =+IF($Q171="NO CUMPLE",$Y171,0) -> 0 | AH171: =+IF($Q171="no aplica",2,0) -> 0
D173: El VEEI de las zonas comunes es igual o inferior a 3 | W173: 0.3 | X173: =IF(AH173=2,0,W173) -> 0.3 | Y173: =X173/X$184 -> 0.3 | Z173: =+IF($Q173="seguro",$Y173,0) -> 0 | AB173: =+IF($Q173="probable",$Y173,0) -> 0 | AD173: =+IF($Q173="dudoso",$Y173,0) -> 0 | AF173: =+IF($Q173="NO CUMPLE",$Y173,0) -> 0 | AH173: =+IF($Q173="no aplica",2,0) -> 0
D175: La iluminación de zonas comunes cuenta con los siguientes dispositivos de ahorro:
D177: Detector de presencia combinado con sonda de iluminación | W177: 0.2 | X177: =1-SUM(X169:X173) -> 0.2 | Y177: =X177/X$184 -> 0.2 | Z177: =+IF($Q177="seguro",$Y177,0) -> 0 | AB177: =+IF($Q177="probable",$Y177,0) -> 0 | AD177: =+IF($Q177="dudoso",$Y177,0) -> 0 | AF177: =+IF($Q177="NO CUMPLE",$Y177,0) -> 0 | AH177: =+IF($Q177="no aplica",2,0) -> 0
D179: Detector de presencia | W179: 0.15 | Y179: =(W179*Y$177/W$177) -> 0.15 | Z179: =+IF(Z177=0,IF($Q179="seguro",$Y179,0),0) -> 0 | AB179: =+IF(AB177=0,IF($Q179="probable",$Y179,0),0) -> 0 | AD179: =+IF(AD177=0,IF($Q179="dudoso",$Y179,0),0) -> 0 | AF179: =+IF(AF177=0,IF($Q179="no cumple",$Y179,0),0) -> 0 | AH179: =+IF($Q179="no aplica",2,0) -> 0
D181: Sonda de iluminación | W181: 0.1 | Y181: =(W181*Y$177/W$177) -> 0.1 | Z181: =+IF(AND(Z177=0,Z179=0),IF($Q181="seguro",$Y181,0),0) -> 0 | AB181: =+IF(AND(AB177=0,AB179=0),IF($Q181="probable",$Y181,0),0) -> 0 | AD181: =+IF(AND(AD177=0,AD179=0),IF($Q181="dudoso",$Y181,0),0) -> 0 | AF181: =+IF(AND(AF177=0,AF179=0),IF($Q181="no cumple",$Y181,0),0) -> 0 | AH181: =+IF($Q181="no aplica",2,0) -> 0
D183: Temporizador | W183: 0.05 | Y183: =(W183*Y$177/W$177) -> 0.05 | Z183: =+IF(AND(Z177=0,Z179=0),IF($Q183="seguro",$Y183,0),0) -> 0 | AB183: =+IF(AND(AB177=0,AB179=0),IF($Q183="probable",$Y183,0),0) -> 0 | AD183: =+IF(AND(AD177=0,AD179=0),IF($Q183="dudoso",$Y183,0),0) -> 0 | AF183: =+IF(AND(AF177=0,AF179=0),IF($Q183="no cumple",$Y183,0),0) -> 0 | AH183: =+IF($Q183="no aplica",2,0) -> 0
D184: Valoración obtenida: | H184: SEGURO | J184: PROBABLE | L184: DUDOSO | W184: =SUM(W177:W183) -> 0.5 | X184: =SUM(X169:X177) -> 1 | Y184: =SUM(Y168:Y178) -> 1 | Z184: =IF($O167="",0,SUM(Z168:Z183)*$O167) -> 0 | AB184: =IF($O167="",0,SUM(AB168:AB183)*$O167) -> 0 | AD184: =IF($O167="",0,SUM(AD168:AD183)*$O167) -> 0 | AF184: =IF($O167="",0,SUM(AF168:AF183)*$O167) -> 0
H185: =Z184 -> 0 | J185: =AB184 -> 0 | L185: =AD184 -> 0
D188: ='Matriz VERDE-GBCe'!V22 -> EA 04 | E188: =VLOOKUP($D188,'Matriz VERDE-GBCe'!$V$6:$AH$55,2,FALSE) -> Elección responsable de refrigerantes | O188: =VLOOKUP($D188,'Matriz VERDE-GBCe'!$V$6:$AH$55,3,FALSE) -> 0.02666974691 | Y188: Target | Z188: SEGURO | AB188: PROBABLE | AD188: DUDOSO | AF188: NO CUMPLE | AH188: NO APLICA
D190: Todos los refrigerantes empleados tienen un potencial de calentamiento entre 700 y 450 | Y190: 0.5 | Z190: =+IF($Q190="seguro",$Y190,0) -> 0 | AB190: =+IF($Q190="probable",$Y190,0) -> 0 | AD190: =+IF($Q190="dudoso",$Y190,0) -> 0 | AF190: =+IF($Q190="NO CUMPLE",$Y190,0) -> 0 | AH190: =+IF($Q190="no aplica",2,0) -> 0
D192: Todos los refrigerantes empleados tienen un potencial de calentamiento entre 450 y 150 o inferior | Y192: 0.5 | Z192: =+IF($Q192="seguro",$Y192,0) -> 0 | AB192: =+IF($Q192="probable",$Y192,0) -> 0 | AD192: =+IF($Q192="dudoso",$Y192,0) -> 0 | AF192: =+IF($Q192="NO CUMPLE",$Y192,0) -> 0 | AH192: =+IF($Q192="no aplica",2,0) -> 0
D193: Valoración obtenida: | H193: SEGURO | J193: PROBABLE | L193: DUDOSO | Y193: =SUM(Y190:Y192) -> 1 | Z193: =IF($O188="",0,SUM(Z190:Z190)*$O188) -> 0 | AB193: =IF($O188="",0,SUM(AB190:AB190)*$O188) -> 0 | AD193: =IF($O188="",0,SUM(AD190:AD190)*$O188) -> 0 | AF193: =IF($O188="",0,SUM(AF190:AF190)*$O188) -> 0
H194: =Z193 -> 0 | J194: =AB193 -> 0 | L194: =AD193 -> 0
F196: SEGURO | H196: PROBABLE | J196: DUDOSO | L196: NO CUMPLE
C198: SUBTOTAL EA | F198: =H146+H164+H185+H194 -> 0 | H198: =J146+J164+J185+J194 -> 0 | J198: =+L146+L164+L185+L194 -> 0 | L198: =$AF145+$AF163+$AF184+$AF193 -> 0
B201: RN | D201: RECURSOS NATURALES | O201: Valoración total
D204: ='Matriz VERDE-GBCe'!V24 -> RN 01 | E204: =VLOOKUP($D204,'Matriz VERDE-GBCe'!$V$6:$AH$55,2,FALSE) -> Consumo de agua en aparatos sanitarios | O204: =VLOOKUP($D204,'Matriz VERDE-GBCe'!$V$6:$AH$55,3,FALSE) -> 0.0214076698 | Y204: Target | Z204: SEGURO | AB204: PROBABLE | AD204: DUDOSO | AF204: NO CUMPLE | AH204: NO APLICA
D206: El consumo de agua en sanitarios se reduce en un 20% | Y206: 0.5 | Z206: =+IF($Q206="seguro",$Y206,0) -> 0 | AB206: =+IF($Q206="probable",$Y206,0) -> 0 | AD206: =+IF($Q206="dudoso",$Y206,0) -> 0 | AF206: =+IF($Q206="NO CUMPLE",$Y206,0) -> 0 | AH206: =+IF($Q206="no aplica",2,0) -> 0
D208: El consumo de agua en sanitarios se reduce en un 30% | Y208: 0.5 | Z208: =+IF($Q208="seguro",$Y208,0) -> 0 | AB208: =+IF($Q208="probable",$Y208,0) -> 0 | AD208: =+IF($Q208="dudoso",$Y208,0) -> 0 | AF208: =+IF($Q208="NO CUMPLE",$Y208,0) -> 0 | AH208: =+IF($Q208="no aplica",2,0) -> 0
D209: Valoración obtenida: | H209: SEGURO | J209: PROBABLE | L209: DUDOSO | Y209: =SUM(Y206:Y208) -> 1 | Z209: =IF($O204="",0,SUM(Z206:Z208)*$O204/$Y209) -> 0 | AB209: =IF($O204="",0,SUM(AB206:AB208)*$O204/$Y209) -> 0 | AD209: =IF($O204="",0,SUM(AD206:AD208)*$O204/$Y209) -> 0 | AF209: =IF($O204="",0,SUM(AF206:AF208)*$O204/$Y209) -> 0
H210: =Z209 -> 0 | J210: =AB209 -> 0 | L210: =AD209 -> 0
D213: ='Matriz VERDE-GBCe'!V25 -> RN 02 | E213: =VLOOKUP($D213,'Matriz VERDE-GBCe'!$V$6:$AH$55,2,FALSE) -> Necesidades de riego en jardines. | O213: =VLOOKUP($D213,'Matriz VERDE-GBCe'!$V$6:$AH$55,3,FALSE) -> 0 | Y213: Target | Z213: SEGURO | AB213: PROBABLE | AD213: DUDOSO | AF213: NO CUMPLE | AH213: NO APLICA
D215: Las necesidades de riego en jardines se reducen en un 40 % | Y215: 0.35 | Z215: =+IF($Q215="seguro",$Y215,0) -> 0 | AB215: =+IF($Q215="probable",$Y215,0) -> 0 | AD215: =+IF($Q215="dudoso",$Y215,0) -> 0 | AF215: =+IF($Q215="NO CUMPLE",$Y215,0) -> 0 | AH215: =+IF($Q215="no aplica",2,0) -> 0
D217: Las necesidades de riego en jardines se reducen en un 60 % | Y217: 0.35 | Z217: =+IF($Q217="seguro",$Y217,0) -> 0 | AB217: =+IF($Q217="probable",$Y217,0) -> 0 | AD217: =+IF($Q217="dudoso",$Y217,0) -> 0 | AF217: =+IF($Q217="NO CUMPLE",$Y217,0) -> 0 | AH217: =+IF($Q217="no aplica",2,0) -> 0
D219: Las necesidades de riego en jardines se reducen en un 80 % | Y219: 0.3 | Z219: =+IF($Q219="seguro",$Y219,0) -> 0 | AB219: =+IF($Q219="probable",$Y219,0) -> 0 | AD219: =+IF($Q219="dudoso",$Y219,0) -> 0 | AF219: =+IF($Q219="NO CUMPLE",$Y219,0) -> 0 | AH219: =+IF($Q219="no aplica",2,0) -> 0
D220: Valoración obtenida: | H220: SEGURO | J220: PROBABLE | L220: DUDOSO | Y220: =SUM(Y214:Y219) -> 1 | Z220: =IF($O213="",0,SUM(Z214:Z219)*$O213/$Y220) -> 0 | AB220: =IF($O213="",0,SUM(AB215:AB219)*$O213/$Y220) -> 0 | AD220: =IF($O213="",0,SUM(AD215:AD219)*$O213/$Y220) -> 0 | AF220: =IF($O213="",0,SUM(AF215:AF219)*$O213/$Y220) -> 0
H221: =Z220 -> 0 | J221: =AB220 -> 0 | L221: =AD220 -> 0
D224: ='Matriz VERDE-GBCe'!V26 -> RN 03 | E224: =VLOOKUP($D224,'Matriz VERDE-GBCe'!$V$6:$AH$55,2,FALSE) -> Consumos de agua singulares. | O224: =VLOOKUP($D224,'Matriz VERDE-GBCe'!$V$6:$AH$55,3,FALSE) -> 0.01812208019 | Y224: Target | Z224: SEGURO | AB224: PROBABLE | AD224: DUDOSO | AF224: NO CUMPLE | AH224: NO APLICA
D226: Se reutiliza el 80 % de las aguas grises producidas | Y226: 0.6 | Z226: =+IF($Q226="seguro",$Y226,0) -> 0 | AB226: =+IF($Q226="probable",$Y226,0) -> 0 | AD226: =+IF($Q226="dudoso",$Y226,0) -> 0 | AF226: =+IF($Q226="NO CUMPLE",$Y226,0) -> 0 | AH226: =+IF($Q226="no aplica",2,0) -> 0
D228: Se han instalado aparatos sanitarios eficientes en zonas comunes | Y228: 0.4 | Z228: =+IF($Q228="seguro",$Y228,0) -> 0 | AB228: =+IF($Q228="probable",$Y228,0) -> 0 | AD228: =+IF($Q228="dudoso",$Y228,0) -> 0 | AF228: =+IF($Q228="NO CUMPLE",$Y228,0) -> 0 | AH228: =+IF($Q228="no aplica",2,0) -> 0
D229: Valoración obtenida: | H229: SEGURO | J229: PROBABLE | L229: DUDOSO | Y229: =SUM(Y226:Y228) -> 1 | Z229: =IF($O224="",0,SUM(Z226:Z228)*$O224/$Y229) -> 0 | AB229: =IF($O224="",0,SUM(AB226:AB228)*$O224/$Y229) -> 0 | AD229: =IF($O224="",0,SUM(AD226:AD228)*$O224/$Y229) -> 0 | AF229: =IF($O224="",0,SUM(AF226:AF228)*$O224/$Y229) -> 0
H230: =Z229 -> 0 | J230: =AB229 -> 0 | L230: =AD229 -> 0
D233: ='Matriz VERDE-GBCe'!V27 -> RN 04 | E233: =VLOOKUP($D233,'Matriz VERDE-GBCe'!$V$6:$AH$55,2,FALSE) -> Uso de agua no potable. | O233: =VLOOKUP($D233,'Matriz VERDE-GBCe'!$V$6:$AH$55,3,FALSE) -> 0.02084295908 | Y233: Target | Z233: SEGURO | AB233: PROBABLE | AD233: DUDOSO | AF233: NO CUMPLE | AH233: NO APLICA
D235: Las aguas recuperadas cubren el 30 % de las necesidades | Y235: 0.35 | Z235: =+IF($Q235="seguro",$Y235,0) -> 0 | AB235: =+IF($Q235="probable",$Y235,0) -> 0 | AD235: =+IF($Q235="dudoso",$Y235,0) -> 0 | AF235: =+IF($Q235="NO CUMPLE",$Y235,0) -> 0 | AH235: =+IF($Q235="no aplica",2,0) -> 0
D237: Las aguas recuperadas cubren el 60 % de las necesidades | Y237: 0.35 | Z237: =+IF($Q237="seguro",$Y237,0) -> 0 | AB237: =+IF($Q237="probable",$Y237,0) -> 0 | AD237: =+IF($Q237="dudoso",$Y237,0) -> 0 | AF237: =+IF($Q237="NO CUMPLE",$Y237,0) -> 0 | AH237: =+IF($Q237="no aplica",2,0) -> 0
D239: Las aguas recuperadas cubren el 90 % de las necesidades | Y239: 0.3 | Z239: =+IF($Q239="seguro",$Y239,0) -> 0 | AB239: =+IF($Q239="probable",$Y239,0) -> 0 | AD239: =+IF($Q239="dudoso",$Y239,0) -> 0 | AF239: =+IF($Q239="NO CUMPLE",$Y239,0) -> 0 | AH239: =+IF($Q239="no aplica",2,0) -> 0
D240: Valoración obtenida: | H240: SEGURO | J240: PROBABLE | L240: DUDOSO | Y240: =SUM(Y234:Y239) -> 1 | Z240: =IF($O233="",0,SUM(Z234:Z239)*$O233/$Y240) -> 0 | AB240: =IF($O233="",0,SUM(AB235:AB239)*$O233/$Y240) -> 0 | AD240: =IF($O233="",0,SUM(AD235:AD239)*$O233/$Y240) -> 0 | AF240: =IF($O233="",0,SUM(AF235:AF239)*$O233/$Y240) -> 0
H241: =Z240 -> 0 | J241: =AB240 -> 0 | L241: =AD240 -> 0
D244: ='Matriz VERDE-GBCe'!V28 -> RN 05 | E244: =VLOOKUP($D244,'Matriz VERDE-GBCe'!$V$6:$AH$55,2,FALSE) -> Uso de materiales reciclados. | O244: =VLOOKUP($D244,'Matriz VERDE-GBCe'!$V$6:$AH$55,3,FALSE) -> 0.01812208019 | Y244: Target | Z244: SEGURO | AB244: PROBABLE | AD244: DUDOSO | AF244: NO CUMPLE | AH244: NO APLICA
D246: Se ha instalado un 70 % de los elementos cerámicos, áridos, étreos y hormigones reciclados | Y246: 0.25 | Z246: =+IF($Q246="seguro",$Y246,0) -> 0 | AB246: =+IF($Q246="probable",$Y246,0) -> 0 | AD246: =+IF($Q246="dudoso",$Y246,0) -> 0 | AF246: =+IF($Q246="NO CUMPLE",$Y246,0) -> 0 | AH246: =+IF($Q246="no aplica",2,0) -> 0
D248: Se ha instalado un 90 % de los elementos cerámicos, áridos, étreos y hormigones reciclados | Y248: 0.5 | Z248: =+IF($Q248="seguro",$Y248,0) -> 0 | AB248: =+IF($Q248="probable",$Y248,0) -> 0 | AD248: =+IF($Q248="dudoso",$Y248,0) -> 0 | AF248: =+IF($Q248="NO CUMPLE",$Y248,0) -> 0 | AH248: =+IF($Q248="no aplica",2,0) -> 0
D250: Se ha instalado un 20 % de resto de materiales reciclados | Y250: 0.25 | Z250: =+IF($Q250="seguro",$Y250,0) -> 0 | AB250: =+IF($Q250="probable",$Y250,0) -> 0 | AD250: =+IF($Q250="dudoso",$Y250,0) -> 0 | AF250: =+IF($Q250="NO CUMPLE",$Y250,0) -> 0 | AH250: =+IF($Q250="no aplica",2,0) -> 0
D252: Se ha instalado un 30 % de resto de materiales reciclados | Y252: 0.5 | Z252: =+IF($Q252="seguro",$Y252,0) -> 0 | AB252: =+IF($Q252="probable",$Y252,0) -> 0 | AD252: =+IF($Q252="dudoso",$Y252,0) -> 0 | AF252: =+IF($Q252="NO CUMPLE",$Y252,0) -> 0 | AH252: =+IF($Q252="no aplica",2,0) -> 0
D253: Valoración obtenida: | H253: SEGURO | J253: PROBABLE | L253: DUDOSO | Y253: =MAX(Y245:Y248)+MAX(Y249:Y252) -> 1 | Z253: =IF($O244="",0,(MAX(Z245:Z248)+MAX(Z249:Z252))*$O244/$Y253) -> 0 | AB253: =IF($O244="",0,(MAX(AB245:AB248)+MAX(AB249:AB252))*$O244/$Y253) -> 0 | AD253: =IF($O244="",0,(MAX(AD245:AD248)+MAX(AD249:AD252))*$O244/$Y253) -> 0 | AF253: =IF($O244="",0,(MAX(AF245:AF248)+MAX(AF249:AF252))*$O244/$Y253) -> 0
H254: =Z253 -> 0 | J254: =AB253 -> 0 | L254: =AD253 -> 0
D257: ='Matriz VERDE-GBCe'!V29 -> RN 06 | E257: =VLOOKUP($D257,'Matriz VERDE-GBCe'!$V$6:$AH$55,2,FALSE) -> Elección responsable de materiales | O257: =VLOOKUP($D257,'Matriz VERDE-GBCe'!$V$6:$AH$55,3,FALSE) -> 0.01878946558 | Y257: Target | Z257: SEGURO | AB257: PROBABLE | AD257: DUDOSO | AF257: NO CUMPLE | AH257: NO APLICA
D259: Al menos el 30 % de la maderas tienen certificado de origen en cadena de custodia | Y259: 0.3 | Z259: =+IF($Q259="seguro",$Y259,0) -> 0 | AB259: =+IF($Q259="probable",$Y259,0) -> 0 | AD259: =+IF($Q259="dudoso",$Y259,0) -> 0 | AF259: =+IF($Q259="NO CUMPLE",$Y259,0) -> 0 | AH259: =+IF($Q259="no aplica",2,0) -> 0
D261: Al menos el 50 % de la maderas tienen certificado de origen en cadena de custodia | Y261: 0.7 | Z261: =+IF($Q261="seguro",$Y261,0) -> 0 | AB261: =+IF($Q261="probable",$Y261,0) -> 0 | AD261: =+IF($Q261="dudoso",$Y261,0) -> 0 | AF261: =+IF($Q261="NO CUMPLE",$Y261,0) -> 0 | AH261: =+IF($Q261="no aplica",2,0) -> 0
D263: Al menos el 10 % de los materiales disponen de un documento de procedencia de materias primas | Y263: 0.3 | Z263: =+IF($Q263="seguro",$Y263,0) -> 0 | AB263: =+IF($Q263="probable",$Y263,0) -> 0 | AD263: =+IF($Q263="dudoso",$Y263,0) -> 0 | AF263: =+IF($Q263="NO CUMPLE",$Y263,0) -> 0 | AH263: =+IF($Q263="no aplica",2,0) -> 0
D264: Valoración obtenida: | H264: SEGURO | J264: PROBABLE | L264: DUDOSO | Y264: =MAX(Y259:Y261)+Y263 -> 1 | Z264: =IF($O257="",0,(MAX(Z258:Z261)+Z263)*O257/$Y264) -> 0 | AB264: =IF($O257="",0,(MAX(AB258:AB261)+AB263)*O257/$Y264) -> 0 | AD264: =IF($O257="",0,(MAX(AD258:AD261)+AD263)*O257/$Y264) -> 0 | AF264: =IF($O257="",0,(MAX(AF258:AF261)+AF263)*O257/$Y264) -> 0
H265: =Z264 -> 0 | J265: =AB264 -> 0 | L265: =AD264 -> 0
D268: ='Matriz VERDE-GBCe'!V30 -> RN 07 | E268: =VLOOKUP($D268,'Matriz VERDE-GBCe'!$V$6:$AH$55,2,FALSE) -> Uso de materiales de producción local. | O268: =VLOOKUP($D268,'Matriz VERDE-GBCe'!$V$6:$AH$55,3,FALSE) -> 0.01973920632 | Y268: Target | Z268: SEGURO | AB268: PROBABLE | AD268: DUDOSO | AF268: NO CUMPLE | AH268: NO APLICA
D270: El 60% de los elementos cerámicos, áridos, étreos y hormigones reciclados son de origen local | Y270: 0.2 | Z270: =+IF($Q270="seguro",$Y270,0) -> 0 | AB270: =+IF($Q270="probable",$Y270,0) -> 0 | AD270: =+IF($Q270="dudoso",$Y270,0) -> 0 | AF270: =+IF($Q270="NO CUMPLE",$Y270,0) -> 0 | AH270: =+IF($Q270="no aplica",2,0) -> 0
D272: El 80% de los elementos cerámicos, áridos, étreos y hormigones reciclados son de origen local | Y272: 0.4 | Z272: =+IF($Q272="seguro",$Y272,0) -> 0 | AB272: =+IF($Q272="probable",$Y272,0) -> 0 | AD272: =+IF($Q272="dudoso",$Y272,0) -> 0 | AF272: =+IF($Q272="NO CUMPLE",$Y272,0) -> 0 | AH272: =+IF($Q272="no aplica",2,0) -> 0
D274: El 60% de resto de materiales son de origen local | Y274: 0.3 | Z274: =+IF($Q274="seguro",$Y274,0) -> 0 | AB274: =+IF($Q274="probable",$Y274,0) -> 0 | AD274: =+IF($Q274="dudoso",$Y274,0) -> 0 | AF274: =+IF($Q274="NO CUMPLE",$Y274,0) -> 0 | AH274: =+IF($Q274="no aplica",2,0) -> 0
D276: El 80% de resto de materiales son de origen local | Y276: 0.6 | Z276: =+IF($Q276="seguro",$Y276,0) -> 0 | AB276: =+IF($Q276="probable",$Y276,0) -> 0 | AD276: =+IF($Q276="dudoso",$Y276,0) -> 0 | AF276: =+IF($Q276="NO CUMPLE",$Y276,0) -> 0 | AH276: =+IF($Q276="no aplica",2,0) -> 0
D277: Valoración obtenida: | H277: SEGURO | J277: PROBABLE | L277: DUDOSO | Y277: =MAX(Y269:Y272)+MAX(Y273:Y276) -> 1 | Z277: =IF($O268="",0,(MAX(Z269:Z272)+MAX(Z273:Z276))*$O268/$Y277) -> 0 | AB277: =IF($O268="",0,(MAX(AB269:AB272)+MAX(AB273:AB276))*$O268/$Y277) -> 0 | AD277: =IF($O268="",0,(MAX(AD269:AD272)+MAX(AD273:AD276))*$O268/$Y277) -> 0 | AF277: =IF($O268="",0,(MAX(AF269:AF272)+MAX(AF273:AF276))*$O268/$Y277) -> 0
H278: =Z277 -> 0 | J278: =AB277 -> 0 | L278: =AD277 -> 0
D281: ='Matriz VERDE-GBCe'!V31 -> RN 08 | E281: =VLOOKUP($D281,'Matriz VERDE-GBCe'!$V$6:$AH$55,2,FALSE) -> El edificio como banco de materiales | O281: =VLOOKUP($D281,'Matriz VERDE-GBCe'!$V$6:$AH$55,3,FALSE) -> 0.02163868782 | Y281: Target | Z281: SEGURO | AB281: PROBABLE | AD281: DUDOSO | AF281: NO CUMPLE | AH281: NO APLICA
D283: El 50% de los favorecen el reciclaje al final de su ciclo de vida del edificio | Y283: 0.2 | Z283: =+IF($Q283="seguro",$Y283,0) -> 0 | AB283: =+IF($Q283="probable",$Y283,0) -> 0 | AD283: =+IF($Q283="dudoso",$Y283,0) -> 0 | AF283: =+IF($Q283="NO CUMPLE",$Y283,0) -> 0 | AH283: =+IF($Q283="no aplica",2,0) -> 0
D285: El 60% de los favorecen el reciclaje al final de su ciclo de vida del edificio | Y285: 0.4 | Z285: =+IF($Q285="seguro",$Y285,0) -> 0 | AB285: =+IF($Q285="probable",$Y285,0) -> 0 | AD285: =+IF($Q285="dudoso",$Y285,0) -> 0 | AF285: =+IF($Q285="NO CUMPLE",$Y285,0) -> 0 | AH285: =+IF($Q285="no aplica",2,0) -> 0
D287: EL 60% de los elementos de los cerramientos exteriores garantizan su recuperación al fin de vida del edificio | Y287: 0.1 | Z287: 0 | AB287: 0 | AD287: 0 | AF287: 0 | AH287: 0
D289: EL 60% de los elementos de la cubierta garantizan su recuperación al fin de vida del edificio | Y289: 0.1 | Z289: 0 | AB289: 0 | AD289: 0 | AF289: 0 | AH289: 0
D291: EL 60% de los elementos de la extructura garantizan su recuperación al fin de vida del edificio | Y291: 0.1 | Z291: 0 | AB291: 0 | AD291: 0 | AF291: 0 | AH291: 0
D293: EL 60% de los elementos de lal divisiones interiores garantizan su recuperación al fin de vida del edificio | Y293: 0.1 | Z293: 0 | AB293: 0 | AD293: 0 | AF293: 0 | AH293: 0
D295: Existe un estudio del posible uso de los materiales después de su desmontaje al final de la vida del edificio | Y295: 0.2 | Z295: 0 | AB295: 0 | AD295: 0 | AF295: 0 | AH295: 0
D296: Valoración obtenida: | H296: SEGURO | J296: PROBABLE | L296: DUDOSO | Y296: =MAX(Y283:Y286)+Y287+Y289+Y291+Y293+Y295 -> 1 | Z296: =IF($O281="",0,(MAX(Z282:Z285)+SUM(Z286:Z295))*$O281/$Y296) -> 0 | AB296: =IF($O281="",0,(MAX(AB282:AB285)+SUM(AB286:AB295))*$O281/$Y296) -> 0 | AD296: =IF($O281="",0,(MAX(AD282:AD285)+SUM(AD286:AD295))*$O281/$Y296) -> 0 | AF296: =IF($O281="",0,(MAX(AF282:AF285)+SUM(AF286:AF295))*$O281/$Y296) -> 0
H297: =Z296 -> 0 | J297: =AB296 -> 0 | L297: =AD296 -> 0
D300: ='Matriz VERDE-GBCe'!V32 -> RN 09 | E300: =VLOOKUP($D300,'Matriz VERDE-GBCe'!$V$6:$AH$55,2,FALSE) -> Gestión de los residuos de la construcción. | O300: =VLOOKUP($D300,'Matriz VERDE-GBCe'!$V$6:$AH$55,3,FALSE) -> 0.01565788798 | Y300: Target | Z300: SEGURO | AB300: PROBABLE | AD300: DUDOSO | AF300: NO CUMPLE | AH300: NO APLICA
D302: Se garantiza la revalorización del 65% de los residuos de la construcción | Y302: 0.25 | Z302: =+IF($Q302="seguro",$Y302,0) -> 0 | AB302: =+IF($Q302="probable",$Y302,0) -> 0 | AD302: =+IF($Q302="dudoso",$Y302,0) -> 0 | AF302: =+IF($Q302="NO CUMPLE",$Y302,0) -> 0 | AH302: =+IF($Q302="no aplica",2,0) -> 0
D304: Se garantiza la revalorización del 75% de los residuos de la construcción | Y304: 0.5 | Z304: =+IF($Q304="seguro",$Y304,0) -> 0 | AB304: =+IF($Q304="probable",$Y304,0) -> 0 | AD304: =+IF($Q304="dudoso",$Y304,0) -> 0 | AF304: =+IF($Q304="NO CUMPLE",$Y304,0) -> 0 | AH304: =+IF($Q304="no aplica",2,0) -> 0
D306: Se ha realizadoo unanálisis de posibles alternativas en la utilización de sistemas o materiales para minimizar los residuos de obra | Y306: 0.5 | Z306: 0 | AB306: 0 | AD306: 0 | AF306: 0 | AH306: 0
D308: Valoración obtenida: | H308: SEGURO | J308: PROBABLE | L308: DUDOSO | Y308: =MAX(Y302:Y305)+Y306 -> 1 | Z308: =IF($O300="",0,(MAX(Z302:Z305)+Z306)*$O300/$Y308) -> 0 | AB308: =IF($O300="",0,(MAX(AB301:AB304)+AB306)*$O300/$Y308) -> 0 | AD308: =IF($O300="",0,(MAX(AD302:AD305)+AD306)*$O300/$Y308) -> 0 | AF308: =IF($O300="",0,(MAX(AF302:AF305)+AF306)*$O300/$Y308) -> 0
H309: =Z308 -> 0 | J309: =AB308 -> 0 | L309: =AD308 -> 0
D312: ='Matriz VERDE-GBCe'!V33 -> RN 10 | E312: =VLOOKUP($D312,'Matriz VERDE-GBCe'!$V$6:$AH$55,2,FALSE) -> Nivel de intervención en rehabilitaciones | O312: =VLOOKUP($D312,'Matriz VERDE-GBCe'!$V$6:$AH$55,3,FALSE) -> 0
D313: =IF(DG!$E$31=0,"",DG!$E$31) ->  | Y313: Target | Z313: SEGURO | AB313: PROBABLE | AD313: DUDOSO | AF313: NO CUMPLE | AH313: NO APLICA
D315: Se conservan mas del 80% de los elementos de los cerramientos exteriores verticales. | Y315: 0.2 | Z315: =+IF($Q315="seguro",$Y315,0) -> 0 | AB315: =+IF($Q315="probable",$Y315,0) -> 0 | AD315: =+IF($Q315="dudoso",$Y315,0) -> 0 | AF315: =+IF($Q315="NO CUMPLE",$Y315,0) -> 0 | AH315: =+IF($Q315="no aplica",2,0) -> 0
D317: Se conservan mas del 80% de la cubierta. | Y317: 0.2 | Z317: =+IF($Q317="seguro",$Y317,0) -> 0 | AB317: 0 | AD317: 0 | AF317: 0 | AH317: 0
D319: Se conservan mas del 80% de los elementos de la estructura. | Y319: 0.2 | Z319: 0 | AB319: 0 | AD319: 0 | AF319: 0 | AH319: 0
D321: Se conservan mas del 80% de los elementos de las particiones interiores. | Y321: 0.2 | Z321: 0 | AB321: 0 | AD321: 0 | AF321: 0 | AH321: 0
D323: Se conservan mas del 80% de los elementos de las cajas de escalera y huecos de ascensores. | Y323: 0.2 | Z323: 0 | AB323: 0 | AD323: 0 | AF323: 0 | AH323: 0
D324: Valoración obtenida: | H324: SEGURO | J324: PROBABLE | L324: DUDOSO | Y324: =SUM(Y315:Y323) -> 1 | Z324: =IF($O312="",0,SUM(Z315:Z323)*$O312/$Y324) -> 0 | AB324: =IF($O312="",0,SUM(AB315:AB323)*$O312/$Y324) -> 0 | AD324: =IF($O312="",0,SUM(AD315:AD323)*$O312/$Y324) -> 0 | AF324: =IF($O312="",0,SUM(AF315:AF323)*$O312/$Y324) -> 0
H325: =IF(D313="Rehabilitación",Z324,0) -> 0 | J325: =IF(D313="Rehabilitación",AB324,0) -> 0 | L325: =IF(D313="Rehabilitación",AD324,0) -> 0
D328: ='Matriz VERDE-GBCe'!V34 -> RN 11 | E328: =VLOOKUP($D328,'Matriz VERDE-GBCe'!$V$6:$AH$55,2,FALSE) -> Impacto de los materiales de la construcción. | O328: =VLOOKUP($D328,'Matriz VERDE-GBCe'!$V$6:$AH$55,3,FALSE) -> 0.05485394527 | Y328: Target | Z328: SEGURO | AB328: PROBABLE | AD328: DUDOSO | AF328: NO CUMPLE | AH328: NO APLICA
D330: Existe un ACV parcial en las etapas A1, A2, A3 según la EN 15978 que contempla los indicadores GWP (kg CO2 eq) y ADP (MJ). | Y330: 0.5 | Z330: =+IF($Q330="seguro",$Y330,0) -> 0 | AB330: =+IF($Q330="probable",$Y330,0) -> 0 | AD330: =+IF($Q330="dudoso",$Y330,0) -> 0 | AF330: =+IF($Q330="NO CUMPLE",$Y330,0) -> 0 | AH330: =+IF($Q330="no aplica",2,0) -> 0
D333: Existe un ACV completo en las etapas A1, A2, A3, A4, A5, B4, C3 y C4 según la EN 15978 que contempla los indicadores GWP(kg CO2 eq) y ADP (MJ). | Y333: 0.3 | Z333: =+IF($Q333="seguro",$Y333,0) -> 0 | AB333: =+IF($Q333="probable",$Y333,0) -> 0 | AD333: =+IF($Q333="dudoso",$Y333,0) -> 0 | AF333: =+IF($Q333="NO CUMPLE",$Y333,0) -> 0 | AH333: =+IF($Q333="no aplica",2,0) -> 0
D336: El ACV que demuestra una reducción del 15% en los indicadores GWP (kg CO2 eq) y/o ADP (MJ). | Y336: 0.1 | Z336: =+IF($Q336="seguro",$Y336,0) -> 0 | AB336: =+IF($Q336="probable",$Y336,0) -> 0 | AD336: =+IF($Q336="dudoso",$Y336,0) -> 0 | AF336: =+IF($Q336="NO CUMPLE",$Y336,0) -> 0 | AH336: =+IF($Q336="no aplica",2,0) -> 0
D338: Existe un ACV parcial o completo que contempla todos los indicadores establecidos en la norma EN 15978 | Y338: 0.1 | Z338: =+IF($Q338="seguro",$Y338,0) -> 0 | AB338: =+IF($Q338="probable",$Y338,0) -> 0 | AD338: =+IF($Q338="dudoso",$Y338,0) -> 0 | AF338: =+IF($Q338="NO CUMPLE",$Y338,0) -> 0 | AH338: =+IF($Q338="no aplica",2,0) -> 0
D339: Valoración obtenida: | H339: SEGURO | J339: PROBABLE | L339: DUDOSO | Y339: =SUM(Y330:Y338) -> 1 | Z339: =IF($O328="",0,SUM(Z330:Z338)*$O328/$Y339) -> 0 | AB339: =IF($O328="",0,SUM(AB330:AB338)*$O328/$Y339) -> 0 | AD339: =IF($O328="",0,SUM(AD330:AD338)*$O328/$Y339) -> 0 | AF339: =IF($O328="",0,SUM(AF330:AF338)*$O328/$Y339) -> 0
H340: =Z339 -> 0 | J340: =AB339 -> 0 | L340: =AD339 -> 0
D343: ='Matriz VERDE-GBCe'!V35 -> RN 12 | E343: =VLOOKUP($D343,'Matriz VERDE-GBCe'!$V$6:$AH$55,2,FALSE) -> Ecoetiquetado de producto. | O343: =VLOOKUP($D343,'Matriz VERDE-GBCe'!$V$6:$AH$55,3,FALSE) -> 0.02004723035 | Y343: Target | Z343: SEGURO | AB343: PROBABLE | AD343: DUDOSO | AF343: NO CUMPLE | AH343: NO APLICA
D345: El porcentaje en masa de los materiales con ecoetiqueta tipo I está por encima del 15% | Y345: 0.2 | Z345: =+IF($Q345="seguro",$Y345,0) -> 0 | AB345: =+IF($Q345="probable",$Y345,0) -> 0 | AD345: =+IF($Q345="dudoso",$Y345,0) -> 0 | AF345: =+IF($Q345="NO CUMPLE",$Y345,0) -> 0 | AH345: =+IF($Q345="no aplica",2,0) -> 0
D347: El porcentaje en masa de los elementos cerámicos, áridos, pétreos y hormigones con DAP está por encima del 90% | Y347: 0.3 | Z347: =+IF($Q347="seguro",$Y347,0) -> 0 | AB347: =+IF($Q347="probable",$Y347,0) -> 0 | AD347: =+IF($Q347="dudoso",$Y347,0) -> 0 | AF347: =+IF($Q347="NO CUMPLE",$Y347,0) -> 0 | AH347: =+IF($Q347="no aplica",2,0) -> 0
D349: El porcentaje en masa del resto de materiales con DAP está por encima del 30% | Y349: 0.5 | Z349: 0 | AB349: 0 | AD349: 0 | AF349: 0 | AH349: 0
D351: Entre los materiales con DAPs se encuentran, al menos, las siguientes familias: elementos estructurales, aislamientos y revestimientos. | Y351: 0.2 | Z351: =+IF($Q351="seguro",$Y351,0) -> 0 | AB351: =+IF($Q351="probable",$Y351,0) -> 0 | AD351: =+IF($Q351="dudoso",$Y351,0) -> 0 | AF351: =+IF($Q351="NO CUMPLE",$Y351,0) -> 0 | AH351: =+IF($Q351="no aplica",2,0) -> 0
D354: El 50% de las DAPs cuentan con un ACV en todas las fases del ciclo de vida | Y354: 0.2 | Z354: =+IF($Q354="seguro",$Y354,0) -> 0 | AB354: =+IF($Q354="probable",$Y354,0) -> 0 | AD354: =+IF($Q354="dudoso",$Y354,0) -> 0 | AF354: =+IF($Q354="NO CUMPLE",$Y354,0) -> 0 | AH354: =+IF($Q354="no aplica",2,0) -> 0
D355: Valoración obtenida: | H355: SEGURO | J355: PROBABLE | L355: DUDOSO | Y355: =IF((SUM(Y344:Y350))=1,1,SUM(Y345:Y354)) -> 1 | Z355: =IF($O343=0,0,IF(SUM(Z345:Z354)>1,O343,SUM(Z345:Z354)*$O343)) -> 0 | AB355: =IF($O343="",0,MAX(AB345:AB354)*$O343/$Y355) -> 0 | AD355: =IF($O343="",0,MAX(AD345:AD354)*$O343/$Y355) -> 0 | AF355: =IF($O343="",0,MAX(AF345:AF354)*$O343/$Y355) -> 0
H356: =Z355 -> 0 | J356: =AB355 -> 0 | L356: =AD355 -> 0
F358: SEGURO | H358: PROBABLE | J358: DUDOSO | L358: NO CUMPLE
C360: SUBTOTAL RN | F360: =H210+H221+H230+H241+H254+H265+H278+H297+H309+H340+H356+H325 -> 0 | H360: =J210+J221+J230+J241+J254+J265+J278+J297+J309+J340+J356+J325 -> 0 | J360: =L210+L221+L230+L241+L254+L265+L278+L297+L309+L340+L356+L325 -> 0 | L360: =$AF209+$AF220+$AF229+$AF240+$AF253+$AF264+$AF277+$AF296+$AF308+$AF339+$AF355+AF324 -> 0
B363: AI | D363: ='Matriz VERDE-GBCe'!V36 -> Ambiente Interior. | O363: Valoración total
D366: ='Matriz VERDE-GBCe'!V37 -> AI 01 | E366: =VLOOKUP($D366,'Matriz VERDE-GBCe'!$V$6:$AH$55,2,FALSE) -> Limitación de las emisiones de COVs | O366: =VLOOKUP($D366,'Matriz VERDE-GBCe'!$V$6:$AH$55,3,FALSE) -> 0.0190204836 | Y366: Target | Z366: SEGURO | AB366: PROBABLE | AD366: DUDOSO | AF366: NO CUMPLE | AH366: NO APLICA
D368: Se ha realizado un ensayo tal y cómo se describe en la guía, también en cuanto a sus resultados | Y368: 1 | Z368: =+IF($Q368="seguro",$Y368,0) -> 0 | AB368: =+IF($Q368="probable",$Y368,0) -> 0 | AD368: =+IF($Q368="dudoso",$Y368,0) -> 0 | AF368: =+IF($Q368="NO CUMPLE",$Y368,0) -> 0 | AH368: =+IF($Q368="no aplica",2,0) -> 0
D370: Las pinturas, barnices, adhesivos, sellantes y derivados de la madera, tienen emisiones de COVs nulas | Y370: 0.6 | Z370: =+IF($Q370="seguro",$Y370,0) -> 0 | AB370: =+IF($Q370="probable",$Y370,0) -> 0 | AD370: =+IF($Q370="dudoso",$Y370,0) -> 0 | AF370: =+IF($Q370="NO CUMPLE",$Y370,0) -> 0 | AH370: =+IF($Q370="no aplica",2,0) -> 0
D372: Las pinturas, barnices, adhesivos, sellantes y derivados de la madera, tienen emisiones de COVs por debajo de las indicadas en la guía | Y372: 0.4 | Z372: =+IF($Q372="seguro",$Y372,0) -> 0 | AB372: =+IF($Q372="probable",$Y372,0) -> 0 | AD372: =+IF($Q372="dudoso",$Y372,0) -> 0 | AF372: =+IF($Q372="NO CUMPLE",$Y372,0) -> 0 | AH372: =+IF($Q372="no aplica",2,0) -> 0
D374: Valoración obtenida: | H374: SEGURO | J374: PROBABLE | L374: DUDOSO | Y374: =IF(Y368=1,1,SUM(Y370:Y372)) -> 1 | Z374: =IF($O366="",0,IF(Z368=1,$O366/Y374,SUM(Z370:Z372)*$O366/Y374)) -> 0 | AB374: =IF($O366="",0,IF(AB368=1,$O366/Y374,SUM(AB370:AB372)*$O366/Y374)) -> 0 | AD374: =IF($O366="",0,IF(AD368=1,$O366/Y374,SUM(AD370:AD372)*$O366/Y374)) -> 0 | AF374: =IF($O366="",0,IF(AF368=1,$O366/Y374,SUM(AF370:AF372)*$O366/Y374)) -> 0
H375: =Z374 -> 0 | J375: =AB374 -> 0 | L375: =AD374 -> 0
D378: ='Matriz VERDE-GBCe'!V38 -> AI 02 | E378: =VLOOKUP($D378,'Matriz VERDE-GBCe'!$V$6:$AH$55,2,FALSE) -> Control de la calidad del aire | O378: =VLOOKUP($D378,'Matriz VERDE-GBCe'!$V$6:$AH$55,3,FALSE) -> 0.0186097849
... 143 more rows

Sheet PE
B2: ='Matriz VERDE-GBCe'!U6 -> PE | D2: ='Matriz VERDE-GBCe'!V6 -> Parcela y emplazamiento
D5: ='Matriz VERDE-GBCe'!V7 -> PE 01 | E5: =VLOOKUP($D5,'Matriz VERDE-GBCe'!$V$7:$AH$55,2,FALSE) -> Proximidad al transporte publico. | F5: =VLOOKUP($D5,'Matriz VERDE-GBCe'!$V$7:$AH$55,3,FALSE) -> 0.01429744853
E7: =IF(DG!$E$29=DG!$K$30,"Comprueba las particularidades de este criterio para urbanizaciones en GEA.","") ->  | S7: SE ADJUNTA | U7: SÍ | V7: NO
S8: NO SE ADJUNTA | U8: NO
E9: Número de habitantes del municipio | S9: NO APLICA
E11: Densidad del entorno de la parcela en viv./ha
E13: =CONCATENATE(M13,N13,O13,P13,Q13) -> Se cumple con el requisito de 2 líneas de transporte público en las paradas situadas en un radio de 1000 m | L13: Sí | M13: Se cumple con el requisito de | N13: =IF(AND($H$11>100,$H$9>100000),6,IF(OR(AND($H$11>100,AND($H$9<100000,$H$9>20000)),AND($H$11<100,$H$9>20000)),4,2)) -> 2 | O13: líneas de transporte público en las paradas situadas en un radio de | P13: =IF(AND($H$11>100,$H$9>100000),300,IF(OR(AND($H$11>100,AND($H$9<100000,$H$9>20000)),AND($H$11<100,$H$9>20000)),600,1000)) -> 1000 | Q13: m
D15: NOTAS
D17: DOCUMENTOS JUSTIFICATIVOS
D19: PE 01.01 | E19: Plano de situación del edificio en formato que permita la comprobación de las medidas con herramientas de libre acceso, indicando el círculo del diámetro adecuado para el caso de estudio, la entrada principal y la situación de las paradas de transporte público.
D21: PE 01.02 | E21: =IF(DG!E85=DG!L83,CONCATENATE(PE!M21,PE!N21,PE!O21),CONCATENATE(PE!M21,PE!N21,PE!P21)) -> Información de los tipos de transporte público y líneas de cada uno de ellos con los horarios de servicio en las paradas incluidas en el diámetro aplicable al caso de estudio vigentes a fecha depuesta en servicio del edificio. | M21: Información de los tipos de transporte público y líneas de cada uno de ellos con los horarios de servicio en las paradas incluidas en el diámetro aplicable al caso de estudio | N21: vigentes a fecha de | O21: visado del proyecto. | P21: puesta en servicio del edificio.
D23: VALORACIÓN DEL CRITERIO | F23: =IF($H13="SÍ",$F5,0) -> 0
D27: ='Matriz VERDE-GBCe'!V8 -> PE 02 | E27: =VLOOKUP($D27,'Matriz VERDE-GBCe'!$V$7:$AH$55,2,FALSE) -> Proximidad a equipamiento y servicios. | F27: =VLOOKUP($D27,'Matriz VERDE-GBCe'!$V$7:$AH$55,3,FALSE) -> 0.01347605113
E29: =IF(DG!$E$29=DG!$K$30,"Comprueba las particularidades de este criterio para urbanizaciones en GEA.",IF(DG!$E$29=DG!K29,"Comprueba las particularidades de este criterio para unifamiliares en GEA.","")) -> 
E31: Número de habitantes del municipio | F31: =H9 -> 0 | M31: =IF(AND($F$33>100,$F$31>100000),"A",IF(OR(AND($F$33>100,AND($F$31<100000,$F$31>20000)),AND($F$33<100,$F$31>20000)),"B","C")) -> C | N31: A | O31: B | P31: C
E33: Densidad del entorno de la parcela en viv./ha | F33: =H11 -> 0 | N33: =IF(OR($H$35<3,$H$37<3,$H$39<2),0,$F$27) -> 0 | O33: =IF(OR($H$35<3,$H$37<2,$H$39<1),0,$F$27) -> 0 | P33: =IF(OR($H$35<2,$H$37<1),0,$F$27) -> 0
E35: Número de equipamientos de PRIORIDAD 1
E37: Número de equipamientos de PRIORIDAD 2
E39: Número de equipamientos de PRIORIDAD 3
D41: NOTAS
D43: DOCUMENTOS JUSTIFICATIVOS
D45: PE 02.01 | E45: =CONCATENATE(M45,N45,O45) -> Plano de situación del edificio en formato que permita la comprobación de las medidas con herramientas de libre acceso, indicando el círculo de diámetro 800 y la situación de Los equipamientos indicando su prioridad y su función. | M45: Plano de situación del edificio en formato que permita la comprobación de las medidas con herramientas de libre acceso, indicando el círculo de diámetro | N45: =IF(DG!E29="unifamiliar",1000,800) -> 800 | O45: y la situación de Los equipamientos indicando su prioridad y su función.
D47: VALORACIÓN DEL CRITERIO | F47: =IF($M31="A",$N33,IF($M31="B",$O33,IF($M31="C",$P33,0))) -> 0
D51: ='Matriz VERDE-GBCe'!V9 -> PE 03 | E51: =VLOOKUP($D51,'Matriz VERDE-GBCe'!$V$7:$AH$55,2,FALSE) -> Facilidades para la bicicleta. | F51: =VLOOKUP($D51,'Matriz VERDE-GBCe'!$V$7:$AH$55,3,FALSE) -> 0.0162996047
E53: =IF(DG!E31=DG!K40,"Comprueba las particularidades de este criterio para rehabilitaciones en GEA.",IF(DG!E31=DG!K41,"Comprueba las particularidades de este criterio para edificios existentes en GEA.",IF(DG!E31=DG!K42,"Conculta con GBCe las particularidades de este criterio para actuaciones mixtas",""))) -> 
E55: =IF(DG!$E$29="","",DG!$E$29) -> 
E57: Número de aparcabicis requerido | F57: =DG!E27 -> 0
E59: Número de aparcabicis del proyecto
E61: El proyecto no tiene aparcabicis, pero hay uno público a menos de 300 m que cumple con las exigencias del criterio en cuanto a diseño y número de plazas.
E64: Se reserva una franja de 0,5 m de ancho entre el espacio ocupados por las bicis y los viales de circulación tanto peatonal, cómo de vehículos
E67: Se ofrece un entorno cómodo para los ciclistas con espacio suficiente para realizar las maniobras necesarias
E70: La instalación cumple con las normativas de accesibilidad de peatones y personas con movilidad reducida.
E73: Los paracabaicis están anclados a una estructura permanente y permiten el anclaje de la bicicleta en dos puntos, al menos una rueda y un bastidor.
E76: El espacio de aparcamiento está debidamente iluminado y ofrece sensación de seguridad.
E79: El aparcabicis previene robos o actos de vandalismo, en caso de desanclar el elemento de aparcamiento del suelo, las bicicletas no podrán ser separadas de él sin romper el candado.
D82: NOTAS
D84: DOCUMENTOS JUSTIFICATIVOS
D86: PE 03.01 | E86: Plano con la situación de los aparcabicis y la justificación de que se cumplen las distancias de seguridad
D88: PE 03.02 | E88: Detalle o ficha técnica de los aparcabicis seleccionados
D90: PE 03.03 | E90: Copia de las facturas de los aparcabicis (pudiendo ocultar el precio)
D92: PE 03.04 | E92: Fotografías de obra construida de los aparcabicis y su relación con el entorno
D94: PE 03.05 | E94: Memoria de cálculos justificativos del número de aparcamientos en función de los ocupantes del edificio
D96: VALORACIÓN DEL CRITERIO | F96: =IF(AND(OR(DG!E31=DG!K40,DG!E31=DG!K41,DG!E31=DG!K42),PE!H61="sí"),PE!F51/2,IF(OR($H59<$F57,COUNTIF($H64:$H79,"Sí")<6),0,$F51)) -> 0
D100: ='Matriz VERDE-GBCe'!V10 -> PE 04 | E100: =VLOOKUP($D100,'Matriz VERDE-GBCe'!$V$7:$AH$55,2,FALSE) -> Capacidad de carga de vehículos eléctricos. | F100: =VLOOKUP($D100,'Matriz VERDE-GBCe'!$V$7:$AH$55,3,FALSE) -> 0.01601724935
E102: =IF(OR(DG!$E$29=DG!$K$30,DG!$E$29=DG!K111,DG!E31=DG!K40,DG!E31=DG!K41,DG!E31=DG!K42),"Comprueba las particularidades de este criterio para la tipología y la actuación a evaluar en GEA","") -> Comprueba las particularidades de este criterio para la tipología y la actuación a evaluar en GEA
E104: =IF(DG!E29=DG!K29,"¿Se cuenta en la parcela con, al menos, una plaza con carga para vehículos eléctricos?",IF(DG!E29=DG!K30,"¿Se cuenta con una plaza con carga para vehículos eléctricos para cada vivienda?","¿El edificio cuenta con aparcamiento privado?")) -> ¿El edificio cuenta con aparcamiento privado?
E106: ¿Todas las plazas de aparcamiento sin carga cuentan con una preinstalación de carga para vehículos?
E108: =IF(OR(DG!$E$29= DG!K29,DG!E29=DG!K30),"","Número de plazas de aparcamiento.") -> Número de plazas de aparcamiento.
E110: =IF(OR(DG!$E$29= DG!$K$29,DG!$E$29=DG!$K$30),"","Número de plazas con carga para vehículos eléctricos.") -> Número de plazas con carga para vehículos eléctricos.
E112: Porcentaje de plazas con carga para vehículos eléctricos | F112: =IF(H108="",0,(H110/H108)) -> 0 | M112: =IFERROR(IF(F112<0.2,0,IF(F112>0.5,F$100,(F112-0.2)/0.3*F$100)),0) -> 0
D114: NOTAS
D116: DOCUMENTOS JUSTIFICATIVOS
D118: PE 04.01 | E118: Extracto de la memoria del proyecto y planos de aparcamiento donde se indique el número de plazas de aparcamiento y cuántas de ellas tienen carga para vehículos eléctricos o preinstalación.
D120: PE 04.02 | E120: Extracto de la memoria de instalaciones y planos de instalación eléctrica del proyecto, en los que se justifique que la instalación cuenta con la preinstalación de carga y la de carga se adapta a las exigencias de la ITC BT 52 del REBT
D122: PE 04.03 | E122: Justificación de que el edificio dispone de los requisitos de potencia necesarios para cubrir el consumo de los puntos de carga de vehículos.
D124: VALORACIÓN DEL CRITERIO | F124: =IF(OR(H104="No",H106="No"),0,M112) -> 0
D128: ='Matriz VERDE-GBCe'!V11 -> PE 05 | E128: =VLOOKUP($D128,'Matriz VERDE-GBCe'!$V$7:$AH$55,2,FALSE) -> Clasificación de RSU. | F128: =VLOOKUP($D128,'Matriz VERDE-GBCe'!$V$7:$AH$55,3,FALSE) -> 0.01129421428
D130: Espacio para conenedores separadores de fracciones:
E132: =IF(OR(DG!E31=DG!K40,DG!E31=DG!K41,DG!E31=DG!K42),"Comprueba las particularidades de este criterio para la actuación a evaluar en GEA","") -> 
E134: Superficie para almacén de contenedores exigida en el CTE | M134: =IF(DG!E31="rehabilitación","RH",IF(DG!E31="NUEVA EDIFICACIÓN","NE","")) ->  | N134: =IF(OR(DG!E29="unifamiliar",DG!E29="Urbanizaciones"),"Uni", "Res") -> Res
E136: Superficie del almacén de contenedores del edificio | M136: =IF(AND(OR(DG!E31=DG!K40,DG!E31=DG!K41,DG!E31=DG!K42),H142="Sí"),1,IF(AND(OR(DG!E31=DG!K40,DG!E31=DG!K41,DG!E31=DG!K42),H138="Sí",H136>=(DG!E27/20)*10),1,IF(AND(H136>=(H134+H134*0.15),H140="sí"),1,0))) -> 0 | N136: =IF(M$136=0,0,0.5*F128) -> 0
E138: =IF(OR(DG!E31=DG!K40,DG!E31=DG!K41,DG!E31=DG!K42),"¿Se demuestra la imposibilidad de cumplir con los requisitos de superficie de la medida?","") -> 
E140: El almacén de contenedores dispone de la señalética adecuada
E142: =IF(OR(DG!E31=DG!K40,DG!E31=DG!K41,DG!E31=DG!K42),"¿Existe un punto de recogida selectiva a menos de 50 metros de la entrada principal?","") -> 
D144: Sistema de revalorización de residuos en la parcela:
E146: Existe un sistema de revalorización de los residuos generados en el edificio | M146: =IF(H146="sí",1,0) -> 0 | N146: =IF(M$146=0,0,0.25*F128) -> 0
D148: Otras medidas de mejora
E150: Se han diseñado medidas de mejora en el edificio que favorezcan la reducción, clasificación o recogida de resíduos. | M150: =IF(H150="sí",1,0) -> 0 | N150: =IF(M$150=0,0,0.25*F128) -> 0
D153: NOTAS
D155: DOCUMENTOS JUSTIFICATIVOS
D157: PE 05.01 | E157: Plano en formato que permita la comprobación de las medidas con herramientas de libre acceso, en el que se sitúe, para cada medida cumplida: el lugar reservado en el edificio para los contenedores de clasificación, el lugar reservado en cada planta para los contenedores de fracciones de residuos (Solo para tipologías de usos distintos del residencial privado), la situación del sistema de revalorización de los residuos propios y si fuera aplicable, la mejora implementada.
D159: PE 05.02 | E159: Descripción y fichas técnicas del sistema de revalorización de residuos
D161: PE 05.04 | E161: Memoria justificativa de la medida adoptada para incentivar la reducción, separación o reciclado de RSU
D163: PE 05.05 | E163: Copia de las facturas de los sistemas implantados (pudiendo ocultar el precio).
D165: PE 05.06 | E165: Fotografías de obra construida que justifiquen el cumplimiento de las medidas. Deberán aparecer los espacios para contenedores o almacenaje con sus correspondientes carteles y, si hubiera, los sistemas de revalorización instalados, así como la señalética adecuada como espacio para contenedores de residuos.
D167: VALORACIÓN DEL CRITERIO | F167: =SUM($N136+$N146+$N150) -> 0
D171: ='Matriz VERDE-GBCe'!V12 -> PE 06 | E171: =VLOOKUP($D171,'Matriz VERDE-GBCe'!$V$7:$AH$55,2,FALSE) -> Gestión y Restauración del hábitat. | F171: =VLOOKUP($D171,'Matriz VERDE-GBCe'!$V$7:$AH$55,3,FALSE) -> 0.02281944658
E173: ¿Alguna de las especies vegetales plantadas en la parcela o el edificio está recogida en el catálogo de especies invasoras del Ministerio de Medio Ambiente?
E176: Superficie ajardinada de la parcela y el edificio | F176: =DG!E47 -> 0
E178: Superficie cubierta por plantas autóctonas
E180: Porcentaje de la superficie ajardinada ocupada por plantas autóctonas | F180: =IF(OR(F176=0,F176="",H178>F176),0,H178/F176) -> 0
D182: NOTAS
D184: DOCUMENTOS JUSTIFICATIVOS
D186: PE 06.01 | E186: Plano de jardinería en el que se incluya el cuadro de cálculo indicando las especies utilizadas, la superficie ocupada por las mismas y si son autóctonas o adaptadas o no.
D188: PE 06.02 | E188: Copia de las facturas (pudiendo ocultar el precio) donde se indique la o las especies plantadas y la superficie ocupadas por las mismas o las unidades entregadas
D190: PE 06.03 | E190: Fotografías de la superficie ajardinada donde se puedan apreciar las especies plantadas y la superficie ocupada por las mismas, serán necesarias fotografías generales y de detalle
D192: PE 06.04 | E192: Informe de Evaluador en el que se garantice que ninguna especie de las plantadas está recogida en el listado de especies invasoras del Ministerio de Medio Ambiente.
D194: VALORACIÓN DEL CRITERIO | F194: =IF(OR(H173="Sí",F180=""),0,IF(F180<0.3,0,IF(F180>=0.8,F171,F171*((F180-0.3)*100/50)))) -> 0
D198: ='Matriz VERDE-GBCe'!V13 -> PE 07 | E198: =VLOOKUP($D198,'Matriz VERDE-GBCe'!$V$7:$AH$55,2,FALSE) -> Uso de plantas para crear sombras. | F198: =VLOOKUP($D198,'Matriz VERDE-GBCe'!$V$7:$AH$55,3,FALSE) -> 0.01812208019
E200: ¿Existen elementos vegetales que sombreen las fachadas este, sur y/u oeste? | L200: SÍ
E202: Porcentaje de fachada OESTE sombreada por elementos vegetales. | L202: 50 | M202: =IF(OR(H200="",H200="no"),0,IF(H202<0.2,0,IF(H202>=0.6,0.4*F198,F198*0.4*((H202-0.2)*100/40)))) -> 0
E204: Porcentaje de fachada ESTE sombreada por elementos vegetales. | L204: 60 | M204: =IF(OR(H200="",H200="no"),0,IF(H204<0.2,0,IF(H204>=0.6,0.3*F198,F198*0.3*((H204-0.2)*100/40)))) -> 0
E206: Porcentaje de fachada SUR sombreada por elementos vegetales. | M206: =IF(OR(H200="",H200="no"),0,IF(H206<0.2,0,IF(H206>=0.6,0.3*F198,F198*0.3*((H206-0.2)*100/40)))) -> 0
D208: NOTAS
D210: DOCUMENTOS JUSTIFICATIVOS
D212: PE 07.01 | E212: Plano de planta de la parcela donde se sitúen las plantas con potencial de sombreado para las fachadas este, sur y oeste indicando las especies de que se trata
D214: PE 07.02 | E214: Plano de fachada este, sur y oeste en el que se indique la superficie sombreada por plantas.
D216: PE 07.03 | E216: Memoria de sombreamiento donde se justifique el cumplimiento de los criterios establecidos..
D218: PE 07.04 | E218: Copia de las facturas (pudiendo ocultar el precio) donde se indique la o las especies plantadas y la superficie ocupadas por las mismas o las unidades entregadas.
D220: PE 07.05 | E220: Fotografías de la superficie ajardinada donde se puedan apreciar las especies plantadas y la superficie ocupada por las mismas, serán necesarias fotografías generales y de detalle.
D222: VALORACIÓN DEL CRITERIO | F222: =M204+M202+M206 -> 0
D226: ='Matriz VERDE-GBCe'!V14 -> PE 08 | E226: =VLOOKUP($D226,'Matriz VERDE-GBCe'!$V$7:$AH$55,2,FALSE) -> Efecto isla de calor. | F226: =VLOOKUP($D226,'Matriz VERDE-GBCe'!$V$7:$AH$55,3,FALSE) -> 0.02043226038
D228: Porcentaje de superficie libre de parcela y cubierta que evita la isla de calor
E230: Superficie libre de parcela | F230: =DG!E45 -> 0
E232: Superficie de cubierta
E234: Superficie ajardinada con un espesor de tierra vegetal con al menos 5 cm de espesor
E236: Superficie con pavimento permeable
E238: Superficies sombreadas que evitan la isla de calor
E240: Superficies con acabado de color claro
E242: ¿Se aportan documentos que justifiquen el ISR?
F244: =IF(F230+H232=0,0,(H234+H238+H236+H240)/(F230+H232)) -> 0 | M244: =IF(F244="","",IF(F244<0.4,0,IF(F244>0.7,0.7*F226,F226*0.7*((F244-0.4)*100/30)))) -> 0
D246: Porcentaje de superficie de fachadas este, sur y oeste que evita la isla de calor
E248: Superficies de fachada E-S-O
E250: Superficies de fachada E-S-O de colores claros, sombreadas o cubiertas por vegetación
E252: Porcentaje de superficie de fachadas E-S-O que evitan la isla de calor | F252: =IF(OR(H248=0,H248=""),0,H250/H248) -> 0 | M252: =IF(F252="",0,IF(F252<0.4,0,IF(F252>0.7,0.3*F226,F226*0.3*((F252-0.4)*100/30)))) -> 0
D254: NOTAS
D256: DOCUMENTOS JUSTIFICATIVOS
D258: PE 08.01 | E258: Plano en formato que permita la comprobación de las medidas con herramientas de libre acceso , indicando el límite de las siguientes superficies en parcela y cubierta: la zona libre; la zona ajardinada; y la zona sombreada o con un acabado de color claro.
D260: PE 08.02 | E260: Memoria del cálculo del porcentaje de la superficie que evita la isla de calor en zona libre de parcela y cubierta.
D262: PE 08.03 | E262: Detalle constructivo de las zonas ajardinadas donde se detalle el espesor de tierra previsto.
D264: PE 08.04 | E264: Detalle constructivo de las zonas con pavimento permeable donde se detalle el espesor y composición de la base del pavimento.
D266: PE 08.05 | E266: Memoria del cálculo del porcentaje de la superficie de fachadas este, sur y oeste que evita la isla de calor.
D268: PE 08.06 | E268: Estudio de soleamiento tanto de la superficie libre de parcela y cubiertas, como de las fachadas este, sur y oeste.
D270: VALORACIÓN DEL CRITERIO | F270: =IFERROR(IF(OR(H240="",H240=0),M244+$M252,IF(H242="no",0.9*(M244+M252),M244+M252)),0) -> 0
C273: <
D274: ='Matriz VERDE-GBCe'!V15 -> PE 09 | F274: =VLOOKUP($D274,'Matriz VERDE-GBCe'!$V$7:$AH$55,3,FALSE) -> 0.01968786899 | M274: E1 | N274: ≤ 1% | O274: 0.01 | P274: 0.01
M275: E2 | N275: ≤ 5% | O275: 0.02 | P275: 0.05
E276: Zona de protección lumínica de la parcela | L276: E2 | M276: E3 | N276: ≤ 15% | O276: 0.03 | P276: 0.15
M277: E4 | N277: ≤ 25% | O277: 0.05 | P277: 0.25
E278: FHS límite para el área de protección lumínica | F278: =IF(H276="","",VLOOKUP(H276,M274:N277,2,FALSE)) -> 
E280: FHS más alto de las luminarias instaladas en la parcela | N280: =IFERROR(P280,0) -> 0 | P280: =VLOOKUP(H276,M274:P277,4,FALSE) -> 
O281: 0.05
E282: Porcentaje de mejora respecto a la exigencia normativa | F282: =IF(OR(H280="",H280>N280),0,1-(H280/N280)) -> 0
D284: NOTAS
D286: DOCUMENTOS JUSTIFICATIVOS
D288: PE 09.01 | E288: Plano de parcela con localización de la luminarias exteriores e indicación del tipo de luminaria.
D290: PE 09.02 | E290: Curvas fotométricas de las luminarias empleadas o documento técnico donde aparezca el FHS.
D292: PE 09.03 | E292: Identificación y justificación de la zona de protección lumínica.
D294: VALORACIÓN DEL CRITERIO | F294: =IF(H276="",0,IF(F282<0.2,0,IF(F282>0.6,F274,F274*((F282-0.2)*100/40)))) -> 0
F299: VALORACIÓN ÁREA
F301: SUBTOTAL | H301: =IFERROR(F23+F47+F96+F124+F167+F194+F222+F270+F294,"") -> 0
F303: SOBRE | H303: =VLOOKUP(B$2,'Matriz VERDE-GBCe'!$U$4:$AH$55,4,FALSE) -> 0.1524462241
F309: SÍ | H309: x
F310: NO

Sheet PyE (2) (hidden)
C2: ='Matriz VERDE-GBCe'!U6 -> PE | E2: ='Matriz VERDE-GBCe'!V6 -> Parcela y emplazamiento | Y2: EJEMPLO 1
E5: ='Matriz VERDE-GBCe'!V7 -> PE 01 | F5: =VLOOKUP($E5,'Matriz VERDE-GBCe'!$V$7:$AH$55,2,FALSE) -> Proximidad al transporte publico. | G5: =VLOOKUP($E5,'Matriz VERDE-GBCe'!$V$7:$AH$55,3,FALSE) -> 0.01429744853
F7: =IF(DG!$E$29=DG!$K$30,"Comprueba las particularidades de este criterio para urbanizaciones en GEA.","") ->  | T7: SE ADJUNTA | V7: SÍ | W7: NO
T8: NO SE ADJUNTA | V8: NO
F9: Número de habitantes del municipio | M9: 10000 | T9: NO APLICA | Y9: 10000
F11: Densidad del entorno de la parcela en viv./ha | M11: 1.5 | Y11: 150
F13: =CONCATENATE(N13,O13,P13,Q13,R13) -> Se cumple con el requisito de 2 líneas de transporte público en las paradas situadas en un radio de 1000 m | M13: Sí | N13: Se cumple con el requisito de | O13: =IF(AND($I$11>100,$I$9>100000),6,IF(OR(AND($I$11>100,AND($I$9<100000,$I$9>20000)),AND($I$11<100,$I$9>20000)),4,2)) -> 2 | P13: líneas de transporte público en las paradas situadas en un radio de | Q13: =IF(AND($I$11>100,$I$9>100000),300,IF(OR(AND($I$11>100,AND($I$9<100000,$I$9>20000)),AND($I$11<100,$I$9>20000)),600,1000)) -> 1000 | R13: m | Y13: SÍ
E15: NOTAS
E17: DOCUMENTOS JUSTIFICATIVOS | N17: Valoración del criterio:
E19: PE 01.01 | F19: Plano de situación del edificio en formato que permita la comprobación de las medidas con herramientas de libre acceso, indicando el círculo del diámetro adecuado para el caso de estudio y la situación de las paradas de transporte público. | I19: SE ADJUNTA | N19: =IF(G13="sí",G5,0) -> 0
E21: PE 01.02 | F21: =IF(DG!E85=DG!L83,CONCATENATE('PyE (2)'!N21,'PyE (2)'!O21,'PyE (2)'!P21),CONCATENATE('PyE (2)'!N21,'PyE (2)'!O21,'PyE (2)'!Q21)) -> Información de los tipos de transporte público y líneas de cada uno de ellos con los horarios de servicio en las paradas incluidas en el diámetro aplicable al caso de estudio vigentes a fecha depuesta en servicio del edificio. | I21: NO SE ADJUNTA | N21: Información de los tipos de transporte público y líneas de cada uno de ellos con los horarios de servicio en las paradas incluidas en el diámetro aplicable al caso de estudio | O21: vigentes a fecha de | P21: visado del proyecto. | Q21: puesta en servicio del edificio.
E23: VALORACIÓN DEL CRITERIO | G23: =IF($I13="SÍ",$G5,0) -> 0
E27: ='Matriz VERDE-GBCe'!V8 -> PE 02 | F27: =VLOOKUP($E27,'Matriz VERDE-GBCe'!$V$7:$AH$55,2,FALSE) -> Proximidad a equipamiento y servicios. | G27: =VLOOKUP($E27,'Matriz VERDE-GBCe'!$V$7:$AH$55,3,FALSE) -> 0.01347605113
F29: =IF(DG!$E$29=DG!$K$30,"Comprueba las particularidades de este criterio para urbanizaciones en GEA.",IF(DG!$E$29=DG!K29,"Comprueba las particularidades de este criterio para unifamiliares en GEA.","")) -> 
F31: Número de habitantes del municipio | G31: =I9 -> 0 | N31: =IF(AND($G$33>100,$G$31>100000),"A",IF(OR(AND($G$33>100,AND($G$31<100000,$G$31>20000)),AND($G$33<100,$G$31>20000)),"B","C")) -> C | O31: A | P31: B | Q31: C
F33: Densidad del entorno de la parcela en viv./ha | G33: =I11 -> 0 | O33: =IF(OR($I$35<3,$I$37<3,$I$39<2),0,$G$27) -> 0 | P33: =IF(OR($I$35<3,$I$37<2,$I$39<1),0,$G$27) -> 0 | Q33: =IF(OR($I$35<2,$I$37<1),0,$G$27) -> 0
F35: Número de equipamientos de PRIORIDAD 1 | M35: 5 | Y35: 5
F37: Número de equipamientos de PRIORIDAD 2 | M37: 3 | Y37: 3
F39: Número de equipamientos de PRIORIDAD 3 | M39: 0 | Y39: 0
E41: NOTAS
E43: DOCUMENTOS JUSTIFICATIVOS
E45: PE 02.01 | F45: =CONCATENATE(N45,O45,P45) -> Plano de situación del edificio en formato que permita la comprobación de las medidas con herramientas de libre acceso, indicando el círculo de diámetro 800 y la situación de Los equipamientos indicando su prioridad y su función. | N45: Plano de situación del edificio en formato que permita la comprobación de las medidas con herramientas de libre acceso, indicando el círculo de diámetro | O45: =IF(DG!E29="unifamiliar",1000,800) -> 800 | P45: y la situación de Los equipamientos indicando su prioridad y su función.
E47: VALORACIÓN DEL CRITERIO | G47: =IF($N31="A",$O33,IF($N31="B",$P33,IF($N31="C",$Q33,0))) -> 0
E51: ='Matriz VERDE-GBCe'!V9 -> PE 03 | F51: =VLOOKUP($E51,'Matriz VERDE-GBCe'!$V$7:$AH$55,2,FALSE) -> Facilidades para la bicicleta. | G51: =VLOOKUP($E51,'Matriz VERDE-GBCe'!$V$7:$AH$55,3,FALSE) -> 0.0162996047
F53: =IF(DG!E31=DG!K40,"Comprueba las particularidades de este criterio para rehabilitaciones en GEA.",IF(DG!E31=DG!K41,"Comprueba las particularidades de este criterio para edificios existentes en GEA.",IF(DG!E31=DG!K42,"Comprueba las particularidades de este criterio para actuaciones mixtas en GEA.",""))) -> 
F55: =DG!$E$29 -> 0
F57: Número de aparcabicis requerido | G57: =DG!E27 -> 0
F59: Número de aparcabicis del proyecto | M59: 75 | Y59: 75
F61: El proyecto no tiene aparcabicis, pero hay uno público a menos de 300 m que cumple con las exigencias del criterio en cuanto a diseño y número de plazas. | N61: Pendiente de si se modifica en GEA y que valga para todos los edificios
F64: Se reserva una franja de 0,5 m de ancho entre el espacio ocupados por las bicis y los viales de circulación tanto peatonal, cómo de vehículos | Y64: SÍ
F67: Se ofrece un entorno cómodo para los ciclistas con espacio suficiente para realizar las maniobras necesarias | Y67: SÍ
F70: La instalación cumple con las normativas de accesibilidad de peatones y personas con movilidad reducida. | Y70: SÍ
F73: Los paracabaicis están anclados a una estructura permanente y permiten el anclaje de la bicicleta en dos puntos, al menos una rueda y un bastidor. | Y73: SÍ
F76: El espacio de aparcamiento está debidamente iluminado y ofrece sensación de seguridad. | Y76: SÍ
F79: El aparcabicis previene robos o actos de vandalismo, en caso de desanclar el elemento de aparcamiento del suelo, las bicicletas no podrán ser separadas de él sin romper el candado. | Y79: SÍ
E82: NOTAS
E84: DOCUMENTOS JUSTIFICATIVOS
E86: PE 03.01 | F86: Plano con la situación de los aparcabicis y la justificación de que se cumplen las distancias de seguridad
E88: PE 03.02 | F88: Detalle o ficha técnica de los aparcabicis seleccionados
E90: PE 03.03 | F90: Copia de las facturas de los aparcabicis (pudiendo ocultar el precio)
E92: PE 03.04 | F92: Fotografías de obra construida de los aparcabicis y su relación con el entorno
E94: VALORACIÓN DEL CRITERIO | G94: =IF(AND(OR(DG!E31=DG!K40,DG!E31=DG!K41,DG!E31=DG!K42),'PyE (2)'!I61="sí"),'PyE (2)'!G51/2,IF(OR($I59<$G57,COUNTIF($I64:$I79,"Sí")<6),0,$G51)) -> 0
E98: ='Matriz VERDE-GBCe'!V10 -> PE 04 | F98: =VLOOKUP($E98,'Matriz VERDE-GBCe'!$V$7:$AH$55,2,FALSE) -> Capacidad de carga de vehículos eléctricos. | G98: =VLOOKUP($E98,'Matriz VERDE-GBCe'!$V$7:$AH$55,3,FALSE) -> 0.01601724935
F100: =IF(OR(DG!$E$29=DG!$K$30,DG!$E$29=DG!K111,DG!E31=DG!K40,DG!E31=DG!K41,DG!E31=DG!K42),"Comprueba las particularidades de este criterio para la tipología y la actuación a evaluar en GEA","") -> Comprueba las particularidades de este criterio para la tipología y la actuación a evaluar en GEA
F102: =IF(DG!E29=DG!K29,"¿Se cuenta en la parcela con, al menos, una plaza con carga para vehículos eléctricos?",IF(DG!E29=DG!K30,"¿Se cuenta con una plaza con carga para vehículos eléctricos para cada vivienda?","¿El edificio cuenta con aparcamiento privado?")) -> ¿El edificio cuenta con aparcamiento privado? | I102: SÍ
F104: =IF(OR(DG!$E$29= DG!K29,DG!E29=DG!K30),"","Número de plazas de aparcamiento.") -> Número de plazas de aparcamiento. | I104: 100
F106: =IF(OR(DG!$E$29= DG!$K$29,DG!$E$29=DG!$K$30),"","Número de plazas con carga para vehículos eléctricos.") -> Número de plazas con carga para vehículos eléctricos. | I106: 60
F108: =IF(OR(DG!$E$29= DG!$K$29,DG!$E$29=DG!$K$30),"","Número de plazas con preinstalación para cargar vehículos eléctricos.") -> Número de plazas con preinstalación para cargar vehículos eléctricos. | I108: 40
F110: Porcentaje de plazas con carga para vehículos eléctricos | G110: =IF(I104="",0,(I106/I104)) -> 0.6 | N110: =IFERROR(IF(G110<0.2,0,IF(G110>0.4,G$98*0.7,(G110-0.2)/0.2*0.7*G$98)),0) -> 0.01121207454
F112: Porcentaje de plazas con pre-instalación para cargar vehículos eléctricos | G112: =IF(I104="",0,(I108/I104)) -> 0.4 | M112: =IF(G110>0.4,G110-0.4+G112,G112) -> 0.6 | N112: =IFERROR(IF(M112<0.4,0,IF(G112=1,G$98*0.3,(G112-0.4)/0.8*0.5*G$98)),0) -> 0 | O112: Ver formula cuando aclaremos el GEA
E114: NOTAS
E116: DOCUMENTOS JUSTIFICATIVOS
E118: PE 04.01 | F118: Extracto de la memoria del proyecto y planos de aparcamiento donde se indique el número de plazas de aparcamiento y cuántas de ellas tienen carga para vehículos eléctricos o preinstalación.
E120: PE 04.02 | F120: Extracto de la memoria de instalaciones y planos de instalación eléctrica del proyecto en el que se justifique el cumplimiento de la (ITC) BT-52 del REBT.
E122: PE 04.03 | F122: Justificación de que el edificio dispone de los requisitos de potencia necesarios para cubrir el consumo de los puntos de carga de vehículos a través del contrato con la compañía de suministro eléctrico. (nuevo pasar al GEA)
E124: VALORACIÓN DEL CRITERIO | G124: =N110+N112 -> 0.01121207454
E128: ='Matriz VERDE-GBCe'!V11 -> PE 05 | F128: =VLOOKUP($E128,'Matriz VERDE-GBCe'!$V$7:$AH$55,2,FALSE) -> Clasificación de RSU. | G128: =VLOOKUP($E128,'Matriz VERDE-GBCe'!$V$7:$AH$55,3,FALSE) -> 0.01129421428
E130: Espacio para conenedores separadores de fracciones:
F132: =IF(OR(DG!E31=DG!K40,DG!E31=DG!K41,DG!E31=DG!K42),"Comprueba las particularidades de este criterio para la actuación a evaluar en GEA","") -> 
F134: Superficie para almacén de contenedores exigida en el CTE | M134: 23 | N134: =IF(DG!E31="rehabilitación","RH",IF(DG!E31="NUEVA EDIFICACIÓN","NE","")) ->  | O134: =IF(DG!E29="unifamiliar","Uni", "Res") -> Res | R134: NE | Y134: 23
F136: Superficie del almacén de contenedores del edificio | N136: =IF(AND(OR(DG!E31=DG!K40,DG!E31=DG!K41,DG!E31=DG!K42),I142="Sí"),1,IF(AND(OR(DG!E31=DG!K40,DG!E31=DG!K41,DG!E31=DG!K42),I138="Sí",I136>=(DG!E27/20)*10),1,IF(AND(I136>=(I134+I134*0.15),I140="sí"),1,0))) -> 0 | O136: =IF(N$136=0,0,0.5*G128) -> 0 | Y136: 30
F138: =IF(OR(DG!E31=DG!K40,DG!E31=DG!K41,DG!E31=DG!K42),"¿Se demuestra la imposibilidad de cumplir con los requisitos de superficie de la medida?","") -> 
F140: El almacén de contenedores dispone de la señalética adecuada | Y140: SÍ
F142: =IF(OR(DG!E31=DG!K40,DG!E31=DG!K41,DG!E31=DG!K42),"¿Existe un punto de recogida selectiva a menos de 50 metros de la entrada principal?","") -> 
E144: Sistema de revalorización de residuos en la parcela:
F146: Existe un sistema de revalorización de los residuos generados en el edificio | N146: =IF(I146="sí",1,0) -> 0 | O146: =IF(N$146=0,0,0.25*G128) -> 0 | Y146: NO
E148: Otras medidas de mejora
F150: Se han diseñado medidas de mejora en el edificio que favorezcan la reducción, clasificación o recogida de resíduos. | N150: =IF(I150="sí",1,0) -> 0 | O150: =IF(N$150=0,0,0.25*G128) -> 0 | Y150: NO
E153: NOTAS
E155: DOCUMENTOS JUSTIFICATIVOS
E157: PE 05.01 | F157: Plano de la planta de edificio donde se sitúe el espacio para contenedores, su superficie y el círculo inscrito del radio solicitado.
E159: PE 05.02 | F159: Descripción y fichas técnicas del sistema de revalorización de residuos
E161: PE 05.03 | F161: Plano en el que se sitúe el local destinado al almacenamiento de muebles y enseres hasta su traslado.
E163: PE 05.04 | F163: Memoria justificativa de la medida adoptada para incentivar la reducción, separación o reciclado de RSU
E165: PE 05.05 | F165: Copia de las facturas de los sistemas implantados (pudiendo ocultar el precio).
E167: PE 05.06 | F167: Fotografías de obra construida que justifiquen el cumplimiento de las medidas. Deberán aparecer los espacios para contenedores o almacenaje con sus correspondientes carteles y, si hubiera, los sistemas de revalorización instalados, así como la señalética adecuada como espacio para contenedores de residuos.
E169: VALORACIÓN DEL CRITERIO | G169: =SUM($O136+$O146+$O150) -> 0
E173: ='Matriz VERDE-GBCe'!V12 -> PE 06 | F173: =VLOOKUP($E173,'Matriz VERDE-GBCe'!$V$7:$AH$55,2,FALSE) -> Gestión y Restauración del hábitat. | G173: =VLOOKUP($E173,'Matriz VERDE-GBCe'!$V$7:$AH$55,3,FALSE) -> 0.02281944658
F175: Superficie ajardinada de la parcela y el edificio | M175: 1000 | Y175: 1000
F177: Superficie cubierta por plantas autóctonas | M177: 700 | Y177: 800
F179: Porcentaje de la superficie ajardinada ocupada por plantas autóctonas | G179: =IF(OR(I175=0,I175=""),0,I177/I175) -> 0
E181: NOTAS
E183: DOCUMENTOS JUSTIFICATIVOS
E185: PE 06.01 | F185: Plano de jardinería en el que se incluya el cuadro de cálculo indicando las especies utilizadas, la superficie ocupada por las mismas y si son autóctonas o adaptadas o no. | O185: Metemos pregunta como en equipamientos sobre especies invasoras?
E187: PE 06.02 | F187: Copia de las facturas (pudiendo ocultar el precio) donde se indique la o las especies plantadas y la superficie ocupadas por las mismas o las unidades entregadas
E189: PE 06.03 | F189: Fotografías de la superficie ajardinada donde se puedan apreciar las especies plantadas y la superficie ocupada por las mismas, serán necesarias fotografías generales y de detalle
E191: PE 06.04 | F191: Informe de Evaluador en el que se garantice que ninguna especie de las plantadas está recogida en el listado de especies invasoras del Ministerio de Medio Ambiente.
E193: VALORACIÓN DEL CRITERIO | G193: =IF(G179="",0,IF(G179<0.3,0,IF(G179>0.8,G173,G173*((G179-0.3)*100/50)))) -> 0
E197: ='Matriz VERDE-GBCe'!V13 -> PE 07 | F197: =VLOOKUP($E197,'Matriz VERDE-GBCe'!$V$7:$AH$55,2,FALSE) -> Uso de plantas para crear sombras. | G197: =VLOOKUP($E197,'Matriz VERDE-GBCe'!$V$7:$AH$55,3,FALSE) -> 0.01812208019
F199: ¿Existen elementos vegetales que sombreen las fachadas este y/u oeste? | M199: SÍ
F201: Porcentaje de fachada OESTE sombreada | M201: 50 | N201: =IF(OR(I199="",I199="no"),0,IF(I201<0.2,0,IF(I201>=0.6,0.7*G197,G197*0.7*((I201-0.2)*100/40)))) -> 0
F203: Porcentaje de fachada ESTE sombreada | M203: 60 | N203: =IF(OR(I199="",I199="no"),0,IF(I203<0.2,0,IF(I203>0.6,0.3*G197,G197*0.3*((I203-0.2)*100/40)))) -> 0
E205: NOTAS
E207: DOCUMENTOS JUSTIFICATIVOS
E209: PE 07.01 | F209: Plano de planta de la parcela donde se sitúen los árboles con potencial de sombreamiento para las fachadas este y oeste indicando las especies de que se trata.
E211: PE 07.02 | F211: Plano de fachada este y oeste en el que se indique la superficie sombreada por los árboles.
E213: PE 07.03 | F213: Memoria de sombreamiento donde se justifique el cumplimiento de los criterios establecidos..
E215: PE 07.04 | F215: Copia de las facturas (pudiendo ocultar el precio) donde se indique la o las especies plantadas y la superficie ocupadas por las mismas o las unidades entregadas.
E217: PE 07.05 | F217: Fotografías de la superficie ajardinada donde se puedan apreciar las especies plantadas y la superficie ocupada por las mismas, serán necesarias fotografías generales y de detalle.
E219: VALORACIÓN DEL CRITERIO | G219: =N203+N201 -> 0
E223: ='Matriz VERDE-GBCe'!V14 -> PE 08 | F223: =VLOOKUP($E223,'Matriz VERDE-GBCe'!$V$7:$AH$55,2,FALSE) -> Efecto isla de calor. | G223: =VLOOKUP($E223,'Matriz VERDE-GBCe'!$V$7:$AH$55,3,FALSE) -> 0.02043226038
E225: Porcentaje de superficie libre de parcela y cubierta que evita la isla de calor
F227: Superficie libre de parcela | M227: 1500
F229: Superficie de cubierta | M229: 700
F231: Superficie con pavimento permeable | M231: 500
F233: Superficies sombreadas por elementos con alta reflectividad, vegetales o paneles solares tanto fotovoltaicos como térmicos) | M233: 300
F236: Superficies con un pavimento con alta reflectividad | M236: 500
F238: Porcentaje de superficie libre de parcela más cubierta que evitan la isla de calor | G238: =IF(I227+I229=0,0,(I231+I233+I236)/(I227+I229)) -> 0 | N238: =IF(G238="","",IF(G238<0.4,0,IF(G238>0.7,0.7*G223,G223*0.7*((G238-0.4)*100/30)))) -> 0
E240: Porcentaje de superficie de fachadas este, sur y oeste que evita la isla de calor
F242: Superficies de fachada E-S-O | M242: 700
F244: Superficies de fachada E-S-O de colores claros, sombreadas o cubiertas por vegetación | M244: 500
F246: Porcentaje de superficie de fachadas E-S-O que evitan la isla de calor | G246: =IF(OR(I242=0,I242=""),0,I244/I242) -> 0 | N246: =IF(G246="",0,IF(G246<0.4,0,IF(G246>0.7,0.3*G223,G223*0.3*((G246-0.4)*100/30)))) -> 0
E248: NOTAS
E250: DOCUMENTOS JUSTIFICATIVOS
E252: PE 08.01 | F252: Plano de urbanización indicando el límite de las superficies en parcela y cubierta que estén ajardinadas, sombreadas, con un acabado permeable o con un ISR superior a 70.
E254: PE 08.02 | F254: Memoria del cálculo del porcentaje de la superficie que evita la isla de calor en zona libre de parcela y cubierta.
E256: PE 08.03 | F256: Detalle constructivo de las zonas ajardinadas donde se detalle el espesor de tierra previsto.
E258: PE 08.04 | F258: Detalle constructivo de las zonas con pavimento permeable donde se detalle el espesor y composición de la base del pavimento.
E260: PE 08.05 | F260: Memoria del cálculo del porcentaje de la superficie de fachadas este, sur y oeste que evita la isla de calor.
E262: PE 08.06 | F262: Estudio de soleamiento tanto de la superficie libre de parcela y cubiertas, como de las fachadas este, sur y oeste.
E264: VALORACIÓN DEL CRITERIO | G264: =IFERROR($N238+$N246,0) -> 0
D267: <
E268: ='Matriz VERDE-GBCe'!V15 -> PE 09 | F268: =VLOOKUP($E268,'Matriz VERDE-GBCe'!$V$7:$AH$55,2,FALSE) -> Contaminación lumínica. | G268: =VLOOKUP($E268,'Matriz VERDE-GBCe'!$V$7:$AH$55,3,FALSE) -> 0.01968786899 | N268: E1 | O268: ≤ 1% | P268: 0.01 | Q268: 0.01
N269: E2 | O269: ≤ 5% | P269: 0.02 | Q269: 0.05
F270: Zona de protección lumínica de la parcela | M270: E2 | N270: E3 | O270: ≤ 15% | P270: 0.03 | Q270: 0.15
N271: E4 | O271: ≤ 25% | P271: 0.05 | Q271: 0.25
F272: FHS límite para el área de protección lumínica | G272: =IF(I270="","",VLOOKUP(I270,N268:O271,2,FALSE)) -> 
F274: FHS más alto de las luminarias instaladas en la parcela | M274: 3 | Q274: =VLOOKUP(I270,N268:Q271,4,FALSE) -> 
P275: 0.05
F276: Porcentaje de mejora respecto a la exigencia normativa | G276: =IF(I274="",0,1-(I274/Q274)) -> 0
E278: NOTAS
E280: DOCUMENTOS JUSTIFICATIVOS
E282: PE 09.01 | F282: Plano de parcela con localización de la luminarias exteriores e indicación del tipo de luminaria.
E284: PE 09.02 | F284: Curvas fotométricas de las luminarias empleadas o documento técnico donde aparezca el FHS.
E286: PE 09.03 | F286: Identificación y justificación de la zona de protección lumínica.
E288: VALORACIÓN DEL CRITERIO | G288: =IF(I270="",0,IF(G276<0.2,0,IF(G276>0.6,G268,G268*((G276-0.2)*100/40)))) -> 0
G293: VALORACIÓN ÁREA
G295: SUBTOTAL | I295: =IFERROR(G23+G47+G94+G124+G169+G193+G219+G264+G288,"") -> 0.01121207454
G297: SOBRE | I297: =VLOOKUP(C$2,'Matriz VERDE-GBCe'!$U$4:$AH$55,4,FALSE) -> 0.1524462241
G303: SÍ | I303: x
G304: NO

Sheet EA
B2: ='Matriz VERDE-GBCe'!U16 -> EA | D2: ='Matriz VERDE-GBCe'!V16 -> Energía y atmósfera
D5: ='Matriz VERDE-GBCe'!V18 -> EA 01 | E5: =VLOOKUP($D5,'Matriz VERDE-GBCe'!$V$7:$AH$55,2,FALSE) -> Consumo de energía primaria | F5: =VLOOKUP($D5,'Matriz VERDE-GBCe'!$V$7:$AH$55,3,FALSE) -> 0.075414549 | M5: =IF(DG!$E$31="","",IF(OR(DG!$E$31="rehabilitación",DG!$E$31="Edificio existente"),"RH","NE")) ->  | N5: =IF(OR(DG!$E$29="unifamiliar",DG!$E$29="urbanización"),"Uni",IF(DG!$E$29="","","Res")) ->  | S5: SE ADJUNTA | U5: SÍ | V5: NO
S6: NO SE ADJUNTA | U6: NO
E7: =IF(DG!E$31=DG!K$42,"Ponte en contacto con GBCe para fijar los datos a introducir.","") ->  | M7: Opción para Mixtos en E7 | S7: NO APLICA
E9: ¿Se ha utilizado un método simplificado para la calificación energética del edificio? | H9: NO
D11: NUEVA EDIFICACIÓN, REHABILITACIÓN Y EDIFICIO EXISTENTE
E13: Emisiones de CO2 del edificio de referencia en kgCO2 eq./m2.
E15: Emisiones de CO2 del proyecto en kgCO2 eq./m2. | M15: Alfa | N15: A | O15: B | P15: C | Q15: D | R15: E | U15: Energía primaría no renovable
E17: Consumo de energía primaria no renovable | M17: 20 | N17: 25 | O17: 28 | P17: 32 | Q17: 38 | R17: 43 | S17: Obra nueva
E19: Consumo límite de energía primaría no renovable para el edificio en kWh/m2 | F19: =O23 ->  | M19: AA | N19: A | O19: B | P19: C | Q19: D | R19: E
E21: Consumo de energía primaría no renovable para el edificio en kWh/m2 | M21: 40 | N21: 50 | O21: 55 | P21: 65 | Q21: 70 | R21: 80 | S21: Reformas- mas del 25% de la superficie
E23: Porcentaje de reducción del consumo de enería primaria no renovable del proyecto | F23: =IF(OR(H21="",H21>F19),0,IF(H21=0,1,1-(H21/F19))) -> 0 | N23: ='zona clima'!C10 ->  | O23: =IF(DG!E25="","",IF(N23="","",IF(M5="NE",(HLOOKUP(N23,M15:R17,3)),(HLOOKUP(N23,M19:R21,3))))) ->  | P23: =IF(F23="","",F23*0.5*F5) -> 0 | R23: =IF(F23="","",IF(F23>=0.5,0.5*F5,(F23/0.5)*0.5*F5)) -> 0 | S23: Rehabilitación
E25: Valoración del indicador | F25: =IF(M5="NE",P23,R23) -> 0
E27: Consumo de energía primaria Total
